Workbook

Sheet C
C1: Contents | E1: =$A$38&": "&$A$39 -> Limitation of use and of liability: This model has been prepared for OCECPR to undertake its regulatory duties using bottom-up models for the calculation of the cost of wholesale services in order to promote competition in the fixed electronic communications market in Cyprus and for no other purpose. We do not give, accept or assume responsibility for any other purpose or to any other person for action or inaction taken as a result of this model, unless expressly agreed by our prior consent in writing.
A3: Information
A5: Title | B5: BU fixed model
A6: Objective | B6: Calculate the cost of fixed network services in Cyprus
A8: Version | B8: v6.0
A9: Status | B9: Approved for release
B10: Under construction
B11: Work in progress
B12: Ready for review
B13: Approved for release
A14: Author | B14: Loïc Tchoukriel-Thébaud, Jon Driver
A15: Email | B15: Loic.Tchoukriel-Thebaud@analysysmason.com; Jonathan.Driver@analysysmason.com
A17: Contents
A19: Sheet | B19: Description | D19: Status | E19: Notes
A20: C | B20: This contents sheet | D20: Approved for release
A21: V | B21: A history of the versions of this workbook | D21: Approved for release
A22: S | B22: A guide to the styles used in this workbook | D22: Approved for release
A23: Control | B23: Control sheet including controlling parameters | D23: Approved for release
A24: RCEAs | B24: Determines the ratio of NBV to GRC and the ratio of remaining to original lifetime of Reusable Civil Engineering Assets | D24: Approved for release
A25: GeoInputs | B25: Lists inputs related to geographic analysis | D25: Approved for release
A26: Lists | B26: Defines the names of commonly used lists in the model | D26: Approved for release
A27: Demand | B27: Determines the number of subscribers/connections and annual volumes of traffic | D27: Approved for release
A28: Traffic | B28: Determines total network traffic volumes | D28: Approved for release
A29: Access network | B29: Determines access assets required for the network | D29: Approved for release
A30: NwDesIn | B30: Lists inputs needed in the "NwDes” sheet | D30: Approved for release
A31: NwDes | B31: Determines the required assets to carry the volume of traffic on the network | D31: Approved for release
A32: Costs | B32: Determines network element costs (capex and opex) | D32: Approved for release
A33: One-time fees | B33: Determines the cost of one-time fees | D33: Approved for release
A34: Service costing | B34: Determine costs for services provided on the network | D34: Approved for release
A35: Results | B35: Calculates the results of this model, i.e. the cost of each relevant service | D35: Approved for release
A36: Cost of fibre by area | B36: Determine the cost of fibre access by area | D36: Approved for release
A38: Limitation of use and of liability
A39: This model has been prepared for OCECPR to undertake its regulatory duties using bottom-up models for the calculation of the cost of wholesale services in order to promote competition in the fixed electronic communications market in Cyprus and for no other purpose. We do not give, accept or assume responsibility for any other purpose or to any other person for action or inaction taken as a result of this model, unless expressly agreed by our prior consent in writing.
A41: Confidentiality status
A42: This model file is the public version
A43: Cells in orange, as shown in the example below, are redacted inputs

Sheet V
C1: Version history
A3: Information
A5: Title | B5: =Workbook.Title -> BU fixed model
A6: Objective | B6: =Workbook.Objective -> Calculate the cost of fixed network services in Cyprus
A8: Version | B8: =Workbook.Version -> v6.0
A9: Status | B9: =Workbook.Status -> Approved for release
A10: Author | B10: =Workbook.Author -> Loïc Tchoukriel-Thébaud, Jon Driver
A11: Email | B11: =Workbook.Authors_Email_Address -> Loic.Tchoukriel-Thebaud@analysysmason.com; Jonathan.Driver@analysysmason.com
A13: History
A15: Version | B15: Date released | C15: Author | D15: Details
A16: v1.0 | B16: 2024-06-24 | C16: Analysys Mason | D16: First draft version
A17: v2.0 | B17: 2024-07-06 | C17: Analysys Mason | D17: Second draft version
A18: v3.0 | B18: 2024-07-19 | C18: Analysys Mason | D18: Third draft version
A19: v4.0 | B19: 2024-07-28 | C19: Analysys Mason | D19: Fourth draft version
A20: v5.0 | B20: 2024-09-02 | C20: Analysys Mason | D20: Fifth draft version
A21: v6.0 | B21: 2025-03-04 | C21: Analysys Mason | D21: Final draft version

Sheet S
C1: Style guidelines
A3: NB Use Window Unfreeze Panes (on each worksheet) to have row 1 scroll with the rest of the worksheet
A4: NB Consider using Insert > Header & Footer > Sheet > Rows to repeat at top: $1:$1 to include row 1 at the top of all printed pages
A6: Input cell styles
A7: Use these styles to identify inputs to a model
A8: NB These styles change most aspects of a cell's formatting (all except Number and Alignment)
B10: Input Parameter | C10: 100 | D10: unlocked | E10: An input to the model that it is expected the user will change (change at will)
B12: Input Parameter | C12: 250 | D12: unlocked | E12: Consider using Data Validation to ensure that only acceptable values are entered
B13: Minimum | C13: 100
B14: Maximum | C14: 300
B16: Input Parameter | C16: 300 | D16: unlocked | E16: If a parameter can take only one of a small number of values, consider using Data Validation Allow List with In-cell dropdown selected
B17: Acceptable values | C17: 100
C18: 200
C19: 300
B21: Input Data | C21: 100 | D21: unlocked | E21: A piece of real data (only change if you have better data)
B23: Input Estimate | C23: 100 | D23: unlocked | E23: An estimate used in the absence of real data (only change if you have a better estimate, or real data )
B25: Input Calculation | C25: 100 | D25: locked | E25: An input to the model that has been calculated from other inputs (e.g. interpolated input values)
B27: Input Link | C27: 100 | D27: locked | E27: An input to this part of the model, which is linked to a source on this worksheet within this workbook
B29: Input Link (different Worksheet) | C29: 100 | D29: locked | E29: An input to this part of the model, which is linked to a source on another worksheet within this workbook
B31: Input Link (different Workbook) | C31: 100 | D31: locked | E31: An input to this part of the model, which is linked to a source on a worksheet in a different workbook
A33: Other cell styles
A34: Use these styles to identify the role of other cells in a model
A35: NB These styles change a variety of different aspects of a cell's formatting (as appropriate to the context)
B37: Calculation | C37: 100 | D37: locked | E37: A calculation of the model
B39: Total | C39: 123.45 | E39: A total (use if not part of a "Sub-total row" or a "Total row" in a table - see below)
B41: Checksum | C41: 0 | D41: locked | E41: A side calculation intended solely to cross check a result (and which therefore should not be referenced anywhere else in the model)
B43: Checksum | C43: 0.1 | D43: locked | E43: Consider using Conditional Formatting (on Home tab) to highlight unacceptable results of cross-check calculations (e.g. non-zero)
B45: Output | C45: 100 | E45: A key result from this part of the model (in particular one that will be used elsewhere in the model)
B47: Name | C47: Name | D47: locked | E47: An Excel Name applying to one or more adjacent cells – use Create from Selection (on Formulas tab) to actually create the Excel Names
B49: Note | C49: Note | E49: A note (NB smaller than standard font size)
B51: Highlight | C51: 100 | E51: A cell that is special in some way
B53: Unhighlight | C53: 100 | E53: And one that isn't anymore
A55: Number styles
A56: Use these styles to consistently format numbers (and dates)
A57: NB All number styles use the decimal symbol and digit grouping symbol (thousands separator) defined under Regional Options in Control Panel. So if you want to change them do it there, and not here in Excel !
A58: NB Most number styles leave space for a ')' to the right of the number, but only the Currency styles actually use '(…)' for negatives
C60: Number | D60: Number (2dp) | E60: Percentage | F60: Percentage (2dp) | G60: Currency | H60: Currency (2dp) | I60: Comma | J60: Percent
B61: Positive | C61: 1234.56 | D61: 123.45 | E61: 0.1234 | F61: 0.1234 | G61: 1234.56 | H61: 123.45 | I61: 1234.56 | J61: 0.1234
B62: Negative | C62: -1234.56 | D62: -123.45 | E62: -0.1234 | F62: -0.1234 | G62: -1234.56 | H62: -123.45 | I62: -1234.56 | J62: -0.1234
B63: Zero | C63: 0 | D63: 0 | E63: 0 | F63: 0 | G63: 0 | H63: 0 | I63: 0 | J63: 0
B64: Text | C64: Text | D64: Text | E64: Text | F64: Text | G64: Text | H64: Text | I64: Text | J64: Text
C66: Currency EUR | D66: Currency EUR (2dp) | E66: Currency Euro | F66: Currency Euro (2dp)
B67: Positive | C67: 1234.56 | D67: 123.45 | E67: 1234.56 | F67: 123.45
B68: Negative | C68: -1234.56 | D68: -123.45 | E68: -1234.56 | F68: -123.45
B69: Zero | C69: 0 | D69: 0 | E69: 0 | F69: 0
B70: Text | C70: Text | D70: Text | E70: Text | F70: Text
C72: Currency USD | D72: Currency USD (2dp) | E72: Currency Dollar | F72: Currency Dollar (2dp)
B73: Positive | C73: 1234.56 | D73: 123.45 | E73: 1234.56 | F73: 123.45
B74: Negative | C74: -1234.56 | D74: -123.45 | E74: -1234.56 | F74: -123.45
B75: Zero | C75: 0 | D75: 0 | E75: 0 | F75: 0
B76: Text | C76: Text | D76: Text | E76: Text | F76: Text
C78: Currency GBP | D78: Currency GBP (2dp) | E78: Currency Pound | F78: Currency Pound (2dp)
B79: Positive | C79: 1234.56 | D79: 123.45 | E79: 1234.56 | F79: 123.45
B80: Negative | C80: -1234.56 | D80: -123.45 | E80: -1234.56 | F80: -123.45
B81: Zero | C81: 0 | D81: 0 | E81: 0 | F81: 0
B82: Text | C82: Text | D82: Text | E82: Text | F82: Text
C84: Date | D84: Date (Month) | E84: Date (Year)
B85: Date | C85: 2002-12-01 | D85: 2002-12-01 | E85: 2002-12-01
A87: Heading styles
A88: Use these styles to format headings
A89: NB These styles change only the font used in a cell
B91: H0 | C91: Sheet title | E91: Heading level 0
B93: H1 | C93: Title | E93: Heading level 1
B95: H2 | C95: Title | E95: Heading level 2
B97: H3 | C97: Title | E97: Heading level 3
B99: H4 | C99: Title | E99: Heading level 4
A101: Table styles
A102: Use these styles to consistently format tables
A103: NB These styles change a variety of different aspects of cell formatting (as appropriate to the context)
A105: A simple table
B106: Column label (left aligned) | C106: Column label | D106: Column label | E106: Column label | F106: Column label
B107: Row label
B108: Row label
B109: Row label
B110: (Table finish row)
A112: A more complex table
D113: Column label (no wrap) | F113: Column label (no wrap)
B114: Column label (left aligned) | C114: Column label (not bold) | D114: Column label | E114: Column label | F114: Column label | G114: Column label
B115: Row label | D115: (Table unshading) | F115: (Table shading)
B116: Row label (indent)
B117: Sub-total row
B118: Total row
A121: Examples of use
A122: NB To avoid having spurious names in this template the names shown below have not actually been created
A124: Number of subscribers (year end)
B125: Service | C125: Units | D125: Notes | E125: 2000 | F125: 2001 | G125: 2002 | H125: 2003 | I125: Subscribers.Year End.By Service
B126: Dial-up | C126: Subscribers | D126: Linear interpolation | E126: 1000000 | F126: =E126+($H126-$E126)/3 -> 1000000 | G126: 1000000 | H126: 1000000
B127: ADSL | C127: Subscribers | D127: Linear interpolation | E127: 100000 | F127: 133333.3333 | G127: 166666.6667 | H127: 200000
B128: Cable Modem | C128: Subscribers | D128: Linear interpolation | E128: 50000 | F128: 100000 | G128: 150000 | H128: 200000
B129: Total | C129: Subscribers | E129: =SUM(E126:E128) -> 1150000 | F129: =SUM(F126:F128) -> 1233333.333 | G129: =SUM(G126:G128) -> 1316666.667 | H129: =SUM(H126:H128) -> 1400000
A131: Number of subscribers (year end)
B132: Service | C132: Units | D132: Notes | E132: 2000 | F132: 2001 | G132: 2002 | H132: 2003
B133: Dial-up | C133: Subscribers | D133: From above | E133: =$E$126:$H$128 -> 1000000 | F133: 1000000 | G133: 1000000 | H133: 1000000
B134: ADSL | C134: Subscribers | D134: From above | E134: 100000 | F134: 133333.3333 | G134: 166666.6667 | H134: 200000
B135: Cable Modem | C135: Subscribers | D135: From Cable_modem.xls | E135: 50000 | F135: 100000 | G135: 150000 | H135: 200000
B136: Total | C136: Subscribers | E136: =SUM(E133:E135) -> 1150000 | F136: =SUM(F133:F135) -> 1233333.333 | G136: =SUM(G133:G135) -> 1316666.667 | H136: =SUM(H133:H135) -> 1400000
A139: Number of subscribers (simple year average)
B140: Service | C140: Units | D140: Notes | E140: 2000 | F140: 2001 | G140: 2002 | H140: 2003
B141: Dial-up | C141: Subscribers | F141: =(F133+E133)/2 -> 1000000 | G141: 1000000 | H141: 1000000
B142: ADSL | C142: Subscribers | F142: 116666.6667 | G142: 150000 | H142: 183333.3333
B143: Cable Modem | C143: Subscribers | F143: 75000 | G143: 125000 | H143: 175000
B144: Total | C144: Subscribers | F144: =SUM(F141:F143) -> 1191666.667 | G144: =SUM(G141:G143) -> 1275000 | H144: =SUM(H141:H143) -> 1358333.333 | I144: Subscribers.Year Average.Total

Sheet Control
D1: Control
A2: This model has been prepared for OCECPR to undertake its regulatory duties using bottom-up models for the calculation of the cost of wholesale services in order to promote competition in the fixed electronic communications market in Cyprus and for no other purpose. We do not give, accept or assume responsibility for any other purpose or to any other person for action or inaction taken as a result of this model, unless expressly agreed by our prior consent in writing.
A3: =MAX(A$1:A2)+1 -> 1 | B3: Inputs and scenario selectors
E5: Selected scenario
C7: Year selected | E7: 2025 | F7: CTRL.year.selected
C10: WACC | E10: 0.0464 | F10: CTRL.WACC | H10: As calculated in the WACC report
C13: Common costs mark-ups
D14: Variable opex mark-up | E14: 0.1 | F14: CTRL.variable.overheads.markup
D15: Fixed mark-up (before inflation) | E15: 1000000 | F15: CTRL.fixed.overheads.markup.amount | H15: Reference year: | I15: 2022 | J15: CTRL.fixed.overheads.markup.reference.year
C18: Broadband contention ratio | E18: 30 | F18: CTRL.broadband.contention.ratio
C21: Access network carrying the demand | E21: Split between copper and fibre according to the market demand | F21: CTRL.network.for.access.demand
E22: Split between copper and fibre according to the market demand | F22: Network.for.access.demand.as.the.market
E23: All demand on copper | F23: Network.for.access.demand.all.on.copper
E24: All demand on fibre | F24: Network.for.access.demand.all.on.fibre
E25: Network.options.for.access.demand
C28: Voice termination traffic | E28: With incoming | F28: Incoming.traffic.selected
E29: With incoming | F29: With.incoming
E30: Without incoming | F30: Without.incoming
E31: Incoming.traffic.scenarios
C34: Reusable civil engineering assets (RCEAs) | E34: Details contained in the "RCEAs" worksheet
A38: =MAX(A$1:A37)+1 -> 2 | B38: Checks
C40: Correct calculations
D41: No asset/line added or removed by error in the "NwDes" sheet | E41: =Check.NwDes -> Correct
D42: No demand volumes or assets added or removed by error between the national and sub-national allocations in the "Service costing" sheet | E42: =Check.service.costing -> Correct
C45: Correct links from other workbooks - checks value are not zero or an error message
D46: Copper broadband subscribers ; split by speed | E46: =IF(OR(ISERROR(SUM(Demand!J35:O44)),SUM(Demand!J35:O44)=0),"ERROR","Correct") -> Correct
D47: Fibre broadband subscribers ; split by speed | E47: =IF(OR(ISERROR(SUM(Demand!J59:O88)),SUM(Demand!J59:O88)=0),"ERROR","Correct") -> Correct
D48: Total number of leased lines access segments | E48: =IF(OR(ISERROR(SUM(Demand!J206:T206)),SUM(Demand!J206:T206)=0),"ERROR","Correct") -> Correct
D49: Total number of traffic/core segments - Proper core segments | E49: =IF(OR(ISERROR(SUM(Demand!J269:T269)),SUM(Demand!J269:T269)=0),"ERROR","Correct") -> Correct
D50: Total number of traffic/core segments - Access-only core segment | E50: =IF(OR(ISERROR(SUM(Demand!J270:T270)),SUM(Demand!J270:T270)=0),"ERROR","Correct") -> Correct
D51: Leased lines split by speed - Access only Ethernet | E51: =IF(OR(ISERROR(SUM(Demand!N275:N314)),SUM(Demand!N275:N314)=0),"ERROR","Correct") -> Correct
D52: Leased lines split by speed - IP | E52: =IF(OR(ISERROR(SUM(Demand!N322:N361)),SUM(Demand!N322:N361)=0),"ERROR","Correct") -> Correct
D53: Leased lines split by speed - SDH | E53: =IF(OR(ISERROR(SUM(Demand!N369:N408)),SUM(Demand!N369:N408)=0),"ERROR","Correct") -> Correct
D54: Leased lines split by speed - Ethernet | E54: =IF(OR(ISERROR(SUM(Demand!N416:N455)),SUM(Demand!N416:N455)=0),"ERROR","Correct") -> Correct
D55: Average number of accesses by type of leased line | E55: =IF(OR(ISERROR(SUM(Accesses.by.type.of.leased.line)),SUM(Accesses.by.type.of.leased.line)=0),"ERROR","Correct") -> Correct
D56: Retail voice traffic volume per subscriber - Outgoing | E56: =IF(OR(ISERROR(SUM(Demand!K535:M535)),SUM(Demand!K535:M535)=0),"ERROR","Correct") -> Correct
D57: Retail voice traffic volume per subscriber - On-net | E57: =IF(OR(ISERROR(SUM(Demand!K536:M536)),SUM(Demand!K536:M536)=0),"ERROR","Correct") -> Correct
D58: Wholesale voice traffic volume per subscriber | E58: =IF(OR(ISERROR(SUM(Demand!L539:M539)),SUM(Demand!L539:M539)=0),"ERROR","Correct") -> Correct
D59: Wholesale voice traffic volumes - origination | E59: =IF(OR(ISERROR(SUM(Demand!J542:M542)),SUM(Demand!J542:M542)=0),"ERROR","Correct") -> Correct
D60: Wholesale voice traffic volumes - transit | E60: =IF(OR(ISERROR(SUM(Demand!L543:M543)),SUM(Demand!L543:M543)=0),"ERROR","Correct") -> Correct
D61: IPTV subscribers / broadband subscribers | E61: =IF(OR(ISERROR(SUM(Demand!K957:M957)),SUM(Demand!K957:M957)=0),"ERROR","Correct") -> Correct
D62: IPTV channel distribution | E62: =IF(OR(ISERROR(SUM(Demand!N966:N968)),SUM(Demand!N966:N968)=0),"ERROR","Correct") -> Correct
D63: Number of IPTV channels | E63: =IF(OR(ISERROR(SUM(Demand!N972)),SUM(Demand!N972)=0),"ERROR","Correct") -> Correct
D64: Proportion of premises passed by the fibre network | E64: =IF(OR(ISERROR(SUM('Access network'!I1015:M1861)),SUM('Access network'!I1015:M1861)=0),"ERROR","Correct") -> Correct
D65: Access assets required at full copper rollout | E65: =IF(OR(ISERROR(SUM('Access network'!I5151:FB6050)),SUM('Access network'!I5151:FB6050)=0),"ERROR","Correct") -> Correct
D66: Access assets required at full fibre rollout | E66: =IF(OR(ISERROR(SUM('Access network'!FC6157:KV7056)),SUM('Access network'!I5151:FB6050)=0),"ERROR","Correct") -> Correct
A70: END

Sheet RCEAs
D1: Reusable Civil Engineering Assets
A2: This model has been prepared for OCECPR to undertake its regulatory duties using bottom-up models for the calculation of the cost of wholesale services in order to promote competition in the fixed electronic communications market in Cyprus and for no other purpose. We do not give, accept or assume responsibility for any other purpose or to any other person for action or inaction taken as a result of this model, unless expressly agreed by our prior consent in writing.
A3: =MAX(A$1:A2)+1 -> 1 | B3: Inputs
C5: Step 1: Insert line items from CYTA fixed assets table, end of year (end of 2023 currently used)
D6: Confidential
D7: GL Code | E7: Asset Code | F7: Asset Code Description | G7: UEL | H7: Valuation Method | I7: GBV (HC) 01/01/2023 | J7: Additions | K7: Withdrawals | L7: Other / Transfers / ADJ | M7: GBV (HC), 31/12/2023 | N7: Accm depn 01/01/2023 | O7: Depn charge | P7: Accm depn on withdrawals | Q7: Accm depn on transfers / adj | R7: Accm depn 31/12/2023 | S7: NBV, 31/12/2022 | T7: NBV, 31/12/2023 | U7: GRC (CCA), 01/01/2023 | V7: Additions | W7: Withdrawals | X7: Other / transfer | Y7: Holding gain (loss) | Z7: GRC (CCA), 31/12/2023 | AA7: CCA AD - 01/01/2023 | AC7: CCA charge | AD7: Backlog | AE7: Depr. On Withdrawals | AF7: Depr. On transfers / adj | AG7: CCA AD - 31/12/2023 | AH7: NRC, 31/12/2022 | AI7: NRC Mean | AJ7: NRC, 31/12/2023 | AK7: Suppl Depreciation (CCA cha- Hist cha) | AL7: NHL / (NHG) | AN7: Under Construction 01/01/2023 | AO7: Under Construction 31/12/2023 | AP7: Mean Under Construction
D8: 1020050050 | E8: NJDUC | F8: Duct Route with J/B | G8: 40 | H8: REVALUED | I8: 1000000 | J8: 1000000 | K8: -1000 | L8: 0 | M8: =SUM(I8:L8) -> 1999000 | N8: 1000000 | O8: 1000000 | P8: 0 | Q8: 0 | R8: 1000000 | S8: 1000000 | T8: 1000000 | U8: 1000000 | V8: 1000000 | W8: -1000 | X8: 0 | Y8: 0 | Z8: =SUM(U8:Y8) -> 1999000 | AA8: -1000000 | AB8: 0 | AC8: -1000000 | AD8: 0 | AE8: 0 | AF8: 0 | AG8: -1000000 | AH8: 1000000 | AI8: 1000000 | AJ8: 1000000 | AK8: 0 | AL8: 0 | AM8: 0 | AN8: 1000000 | AO8: 1000000 | AP8: 1000000
D9: 1020050050 | E9: NMDUC | F9: Infrastructure - Manholes & Ducts | G9: 40 | H9: REVALUED | I9: 1000000 | J9: 100000 | K9: 0 | L9: 0 | M9: =SUM(I9:L9) -> 1100000 | N9: 1000000 | O9: 100000 | P9: 0 | R9: 1000000 | S9: 1000000 | T9: 1000000 | U9: 1000000 | V9: 100000 | W9: 0 | X9: 0 | Y9: 0 | Z9: =SUM(U9:Y9) -> 1100000 | AA9: -1000000 | AB9: 0 | AC9: -1000000 | AD9: -100000 | AE9: 0 | AF9: 0 | AG9: -1000000 | AH9: 1000000 | AI9: 1000000 | AJ9: 1000000 | AK9: 0 | AL9: 0 | AN9: 100000 | AO9: 100000 | AP9: 100000
D10: 1020050050 | E10: NACSC | F10: Access Copper Cable Secondary | G10: 25 | H10: REVALUED | I10: 1000000 | J10: 1000000 | K10: -100000 | L10: 0 | M10: 1900000 | N10: 1000000 | O10: 1000000 | P10: -100000 | Q10: 0 | R10: 1000000 | S10: 1000000 | T10: 1000000 | U10: 1000000 | V10: 1000000 | W10: -100000 | X10: 0 | Y10: 0 | Z10: 1900000 | AA10: -1000000 | AB10: 0 | AC10: -1000000 | AD10: 10000 | AE10: 100000 | AF10: 0 | AG10: -1000000 | AH10: 1000000 | AI10: 1000000 | AJ10: 1000000 | AK10: 0 | AL10: 0 | AM10: 0 | AN10: 1000000 | AO10: 1000000 | AP10: 1000000
D11: 1020050050 | E11: NAOPR | F11: Access Optical Cable Primary | G11: 25 | H11: REVALUED | I11: 1000000 | J11: 100000 | K11: 0 | L11: 0 | M11: 1100000 | N11: 1000000 | O11: 100000 | P11: 0 | R11: 1000000 | S11: 1000000 | T11: 1000000 | U11: 1000000 | V11: 100000 | W11: 0 | X11: 0 | Y11: 0 | Z11: 1100000 | AA11: -1000000 | AB11: 0 | AC11: -100000 | AD11: -100000 | AE11: 0 | AF11: 0 | AG11: -1000000 | AH11: 100000 | AI11: 100000 | AJ11: 100000 | AK11: 0 | AL11: 0 | AN11: 100000 | AO11: 100000 | AP11: 100000
A25: =MAX(A$1:A24)+1 -> 2 | B25: Calculations
C27: Step 2: Identify calculations for modelled asset categories ensuring same lifetime
F29: Asset Code Description | G29: GBV year end | H29: Accumulated depreciation | I29: NBV year end | J29: % depreciated | K29: Full lifetime | L29: Average age | M29: Real terms cost trend | N29: Annual inflation | O29: Nominal terms trend | P29: How much would average GBV be in GRC terms | Q29: Ratio of NBV to GRC | R29: Ratio of remaining to original lifetime
D30: Trenches | F30: =F8 -> Duct Route with J/B | G30: =M8 -> 1999000 | H30: =R8 -> 1000000 | I30: =T8 -> 1000000 | J30: =H30/G30 -> 0.5002501251 | K30: =G8 -> 40 | L30: =K30*J30 -> 20.010005 | M30: =INDEX(Capex.cost.trends.real,MATCH(D30,Asset.categories,0)) -> 0.01 | N30: =Annual.inflation -> 0.02 | O30: =(1+N30)*(1+M30)-1 -> 0.0302 | P30: =G30*(1+O30)^L30 -> 3625542.372 | Q30: =I30/P30 -> 0.2758208007 | R30: =(1-J30) -> 0.4997498749
D31: Duct | F31: =F9 -> Infrastructure - Manholes & Ducts | G31: =M9 -> 1100000 | H31: =R9 -> 1000000 | I31: =T9 -> 1000000 | J31: =H31/G31 -> 0.9090909091 | K31: =G9 -> 40 | L31: =K31*J31 -> 36.36363636 | M31: =INDEX(Capex.cost.trends.real,MATCH(D31,Asset.categories,0)) -> 0.01 | N31: =Annual.inflation -> 0.02 | O31: =(1+N31)*(1+M31)-1 -> 0.0302 | P31: =G31*(1+O31)^L31 -> 3245391.307 | Q31: =I31/P31 -> 0.3081292532 | R31: =(1-J31) -> 0.09090909091
D32: Poles | F32: =F10 -> Access Copper Cable Secondary | G32: =M10 -> 1900000 | H32: =R10 -> 1000000 | I32: =T10 -> 1000000 | J32: =H32/G32 -> 0.5263157895 | K32: =G10 -> 25 | L32: =K32*J32 -> 13.15789474 | M32: =INDEX(Capex.cost.trends.real,MATCH(D32,Asset.categories,0)) -> 0.01 | N32: =Annual.inflation -> 0.02 | O32: 0.0302 | P32: =G32*(1+O32)^L32 -> 2810437.535 | Q32: =I32/P32 -> 0.3558164832 | R32: =(1-J32) -> 0.4736842105
D33: Manholes | F33: =F31 -> Infrastructure - Manholes & Ducts | G33: 1100000 | H33: 1000000 | I33: 1000000 | J33: 0.9090909091 | K33: 40 | L33: 36.36363636 | M33: 0.01 | N33: 0.02 | O33: 0.0302 | P33: 3245391.307 | Q33: 0.3081292532 | R33: 0.09090909091
D34: RCEAs.categories | Q34: RCEAs.remaining.cost.ratio | R34: RCEAs.remaining.lifetime.ratio
A38: END

Sheet GeoInputs
D1: Geographical inputs
A2: This model has been prepared for OCECPR to undertake its regulatory duties using bottom-up models for the calculation of the cost of wholesale services in order to promote competition in the fixed electronic communications market in Cyprus and for no other purpose. We do not give, accept or assume responsibility for any other purpose or to any other person for action or inaction taken as a result of this model, unless expressly agreed by our prior consent in writing.
A3: =MAX(A$1:A2)+1 -> 1 | B3: Postal code areas
C5: Regions | F5: Not a postcode | G5: Not.a.postcode
C6: Nicosia | D6: =COUNTIF($C$19:$C$1018,$C6) -> 322
C7: Limassol | D7: =COUNTIF($C$19:$C$1018,$C7) -> 234
C8: Famagusta | D8: =COUNTIF($C$19:$C$1018,$C8) -> 26
C9: Larnaca | D9: =COUNTIF($C$19:$C$1018,$C9) -> 105
C10: Paphos | D10: =COUNTIF($C$19:$C$1018,$C10) -> 155
C11: Regions
F12: Regulated | G12: Regulated | H12: =COUNTIF(Regulated.or.unregulated.postal.codes,Regulated) -> 693
F13: Unregulated | G13: Unregulated | H13: =COUNTIF(Regulated.or.unregulated.postal.codes,Unregulated) -> 149
F14: Regulated.or.unregulated.area
S15: Deregulation.threshold
B16: List of postcodes from CYSTAT in the background map used for the acces network modelling | J16: List of postcodes used by OCECPR to determine which are unregulated for fibre | S16: 3 | T16: Networks needed for the postal code to be deregulated
D17: =SUM(D19:D1018) -> 1166 | E17: =SUM(E19:E1018) -> 15 | F17: =SUM(F19:F1018) -> 1168 | K17: =COUNTA(K20:K877) -> 0 | L17: 0 | M17: 0 | N17: 0 | O17: 0 | P17: =COUNTA(P20:P877) -> 0
B18: Postal code | C18: Region | D18: Number of FTTH/B/P networks from original matching | E18: Number of FTTH/B/P networks from reallocation | F18: Final number of FTTH/B/P networks | G18: Regulated or unregulated area | J18: Postal code | K18: Cyta | L18: Epic | M18: Cablenet | N18: Cablenet DOC | O18: Primetel | P18: SKY WISP SERVICES LTD | Q18: Number of FTTH/B/P networks | S18: Deregulated postal code
B19: 1010 | C19: Nicosia | D19: =IF($B19=spare,Not.a.postcode, IF(NOT(ISNA(MATCH($B19,Occupied.postal.codes,0))),0, IF(ISNA(MATCH($B19,OCECPR.postal.codes,0)),0,INDEX(OCECPR.number.of.fibre.networks,MATCH($B19,OCECPR.postal.codes,0),)))) -> 1 | E19: =IF($B19=spare,Not.a.postcode, IF(NOT(ISNA(MATCH($B19,Occupied.postal.codes,0))),0, IF(NOT(ISNA(MATCH($B19,Postal.codes.reallocation.output,0))), INDEX(OCECPR.number.of.fibre.networks,MATCH(INDEX(Postal.codes.to.be.reallocated,MATCH($B19,Postal.codes.reallocation.output,0),),OCECPR.postal.codes,0)),0))) -> 0 | F19: =MAX(D19,E19) -> 1 | G19: =IF($B19=spare,Not.a.postcode, IF(NOT(ISNA(MATCH($B19,Occupied.postal.codes,0))),Occupied, IF(F19>=Deregulation.threshold,Unregulated,Regulated))) -> Regulated | K19: FTTP/B/H | L19: FTTP/B/H | M19: FTTP/B/H | N19: DOCSIS 3.1 | O19: FTTP/B/H | P19: FTTP/B/H
B20: 1011 | C20: Nicosia | D20: =IF($B20=spare,Not.a.postcode, IF(NOT(ISNA(MATCH($B20,Occupied.postal.codes,0))),0, IF(ISNA(MATCH($B20,OCECPR.postal.codes,0)),0,INDEX(OCECPR.number.of.fibre.networks,MATCH($B20,OCECPR.postal.codes,0),)))) -> 1 | E20: =IF($B20=spare,Not.a.postcode, IF(NOT(ISNA(MATCH($B20,Occupied.postal.codes,0))),0, IF(NOT(ISNA(MATCH($B20,Postal.codes.reallocation.output,0))), INDEX(OCECPR.number.of.fibre.networks,MATCH(INDEX(Postal.codes.to.be.reallocated,MATCH($B20,Postal.codes.reallocation.output,0),),OCECPR.postal.codes,0)),0))) -> 0 | F20: =MAX(D20,E20) -> 1 | G20: Regulated | J20: 5280 | Q20: 1 | S20: =IF(Q20>=Deregulation.threshold,Unregulated,Regulated) -> Regulated
B21: 1015 | C21: Nicosia | D21: =IF($B21=spare,Not.a.postcode, IF(NOT(ISNA(MATCH($B21,Occupied.postal.codes,0))),0, IF(ISNA(MATCH($B21,OCECPR.postal.codes,0)),0,INDEX(OCECPR.number.of.fibre.networks,MATCH($B21,OCECPR.postal.codes,0),)))) -> 1 | E21: =IF($B21=spare,Not.a.postcode, IF(NOT(ISNA(MATCH($B21,Occupied.postal.codes,0))),0, IF(NOT(ISNA(MATCH($B21,Postal.codes.reallocation.output,0))), INDEX(OCECPR.number.of.fibre.networks,MATCH(INDEX(Postal.codes.to.be.reallocated,MATCH($B21,Postal.codes.reallocation.output,0),),OCECPR.postal.codes,0)),0))) -> 0 | F21: 1 | G21: Regulated | J21: 5281 | Q21: 1 | S21: Regulated
B22: 1016 | C22: Nicosia | D22: =IF($B22=spare,Not.a.postcode, IF(NOT(ISNA(MATCH($B22,Occupied.postal.codes,0))),0, IF(ISNA(MATCH($B22,OCECPR.postal.codes,0)),0,INDEX(OCECPR.number.of.fibre.networks,MATCH($B22,OCECPR.postal.codes,0),)))) -> 1 | E22: =IF($B22=spare,Not.a.postcode, IF(NOT(ISNA(MATCH($B22,Occupied.postal.codes,0))),0, IF(NOT(ISNA(MATCH($B22,Postal.codes.reallocation.output,0))), INDEX(OCECPR.number.of.fibre.networks,MATCH(INDEX(Postal.codes.to.be.reallocated,MATCH($B22,Postal.codes.reallocation.output,0),),OCECPR.postal.codes,0)),0))) -> 0 | F22: 1 | G22: Regulated | J22: 5282 | Q22: 1 | S22: Regulated
B23: 1017 | C23: Nicosia | D23: =IF($B23=spare,Not.a.postcode, IF(NOT(ISNA(MATCH($B23,Occupied.postal.codes,0))),0, IF(ISNA(MATCH($B23,OCECPR.postal.codes,0)),0,INDEX(OCECPR.number.of.fibre.networks,MATCH($B23,OCECPR.postal.codes,0),)))) -> 1 | E23: =IF($B23=spare,Not.a.postcode, IF(NOT(ISNA(MATCH($B23,Occupied.postal.codes,0))),0, IF(NOT(ISNA(MATCH($B23,Postal.codes.reallocation.output,0))), INDEX(OCECPR.number.of.fibre.networks,MATCH(INDEX(Postal.codes.to.be.reallocated,MATCH($B23,Postal.codes.reallocation.output,0),),OCECPR.postal.codes,0)),0))) -> 0 | F23: 1 | G23: Regulated | J23: 5283 | Q23: 1 | S23: Regulated
B24: 1020 | C24: Nicosia | D24: =IF($B24=spare,Not.a.postcode, IF(NOT(ISNA(MATCH($B24,Occupied.postal.codes,0))),0, IF(ISNA(MATCH($B24,OCECPR.postal.codes,0)),0,INDEX(OCECPR.number.of.fibre.networks,MATCH($B24,OCECPR.postal.codes,0),)))) -> 1 | E24: =IF($B24=spare,Not.a.postcode, IF(NOT(ISNA(MATCH($B24,Occupied.postal.codes,0))),0, IF(NOT(ISNA(MATCH($B24,Postal.codes.reallocation.output,0))), INDEX(OCECPR.number.of.fibre.networks,MATCH(INDEX(Postal.codes.to.be.reallocated,MATCH($B24,Postal.codes.reallocation.output,0),),OCECPR.postal.codes,0)),0))) -> 0 | F24: 1 | G24: Regulated | J24: 5284 | Q24: 1 | S24: Regulated
B25: 1021 | C25: Nicosia | D25: =IF($B25=spare,Not.a.postcode, IF(NOT(ISNA(MATCH($B25,Occupied.postal.codes,0))),0, IF(ISNA(MATCH($B25,OCECPR.postal.codes,0)),0,INDEX(OCECPR.number.of.fibre.networks,MATCH($B25,OCECPR.postal.codes,0),)))) -> 1 | E25: =IF($B25=spare,Not.a.postcode, IF(NOT(ISNA(MATCH($B25,Occupied.postal.codes,0))),0, IF(NOT(ISNA(MATCH($B25,Postal.codes.reallocation.output,0))), INDEX(OCECPR.number.of.fibre.networks,MATCH(INDEX(Postal.codes.to.be.reallocated,MATCH($B25,Postal.codes.reallocation.output,0),),OCECPR.postal.codes,0)),0))) -> 0 | F25: 1 | G25: Regulated | J25: 5285 | Q25: 1 | S25: Regulated
B26: 1022 | C26: Nicosia | D26: =IF($B26=spare,Not.a.postcode, IF(NOT(ISNA(MATCH($B26,Occupied.postal.codes,0))),0, IF(ISNA(MATCH($B26,OCECPR.postal.codes,0)),0,INDEX(OCECPR.number.of.fibre.networks,MATCH($B26,OCECPR.postal.codes,0),)))) -> 1 | E26: =IF($B26=spare,Not.a.postcode, IF(NOT(ISNA(MATCH($B26,Occupied.postal.codes,0))),0, IF(NOT(ISNA(MATCH($B26,Postal.codes.reallocation.output,0))), INDEX(OCECPR.number.of.fibre.networks,MATCH(INDEX(Postal.codes.to.be.reallocated,MATCH($B26,Postal.codes.reallocation.output,0),),OCECPR.postal.codes,0)),0))) -> 0 | F26: 1 | G26: Regulated | J26: 5286 | Q26: 1 | S26: Regulated
B27: 1025 | C27: Nicosia | D27: =IF($B27=spare,Not.a.postcode, IF(NOT(ISNA(MATCH($B27,Occupied.postal.codes,0))),0, IF(ISNA(MATCH($B27,OCECPR.postal.codes,0)),0,INDEX(OCECPR.number.of.fibre.networks,MATCH($B27,OCECPR.postal.codes,0),)))) -> 1 | E27: =IF($B27=spare,Not.a.postcode, IF(NOT(ISNA(MATCH($B27,Occupied.postal.codes,0))),0, IF(NOT(ISNA(MATCH($B27,Postal.codes.reallocation.output,0))), INDEX(OCECPR.number.of.fibre.networks,MATCH(INDEX(Postal.codes.to.be.reallocated,MATCH($B27,Postal.codes.reallocation.output,0),),OCECPR.postal.codes,0)),0))) -> 0 | F27: 1 | G27: Regulated | J27: 5288 | Q27: 1 | S27: Regulated
B28: 1026 | C28: Nicosia | D28: =IF($B28=spare,Not.a.postcode, IF(NOT(ISNA(MATCH($B28,Occupied.postal.codes,0))),0, IF(ISNA(MATCH($B28,OCECPR.postal.codes,0)),0,INDEX(OCECPR.number.of.fibre.networks,MATCH($B28,OCECPR.postal.codes,0),)))) -> 1 | E28: =IF($B28=spare,Not.a.postcode, IF(NOT(ISNA(MATCH($B28,Occupied.postal.codes,0))),0, IF(NOT(ISNA(MATCH($B28,Postal.codes.reallocation.output,0))), INDEX(OCECPR.number.of.fibre.networks,MATCH(INDEX(Postal.codes.to.be.reallocated,MATCH($B28,Postal.codes.reallocation.output,0),),OCECPR.postal.codes,0)),0))) -> 0 | F28: 1 | G28: Regulated | J28: 5289 | Q28: 1 | S28: Regulated
B29: 1027 | C29: Nicosia | D29: =IF($B29=spare,Not.a.postcode, IF(NOT(ISNA(MATCH($B29,Occupied.postal.codes,0))),0, IF(ISNA(MATCH($B29,OCECPR.postal.codes,0)),0,INDEX(OCECPR.number.of.fibre.networks,MATCH($B29,OCECPR.postal.codes,0),)))) -> 1 | E29: =IF($B29=spare,Not.a.postcode, IF(NOT(ISNA(MATCH($B29,Occupied.postal.codes,0))),0, IF(NOT(ISNA(MATCH($B29,Postal.codes.reallocation.output,0))), INDEX(OCECPR.number.of.fibre.networks,MATCH(INDEX(Postal.codes.to.be.reallocated,MATCH($B29,Postal.codes.reallocation.output,0),),OCECPR.postal.codes,0)),0))) -> 0 | F29: 1 | G29: Regulated | J29: 5290 | Q29: 1 | S29: Regulated
B30: 1028 | C30: Nicosia | D30: =IF($B30=spare,Not.a.postcode, IF(NOT(ISNA(MATCH($B30,Occupied.postal.codes,0))),0, IF(ISNA(MATCH($B30,OCECPR.postal.codes,0)),0,INDEX(OCECPR.number.of.fibre.networks,MATCH($B30,OCECPR.postal.codes,0),)))) -> 1 | E30: =IF($B30=spare,Not.a.postcode, IF(NOT(ISNA(MATCH($B30,Occupied.postal.codes,0))),0, IF(NOT(ISNA(MATCH($B30,Postal.codes.reallocation.output,0))), INDEX(OCECPR.number.of.fibre.networks,MATCH(INDEX(Postal.codes.to.be.reallocated,MATCH($B30,Postal.codes.reallocation.output,0),),OCECPR.postal.codes,0)),0))) -> 0 | F30: 1 | G30: Regulated | J30: 5291 | Q30: 1 | S30: Regulated
B31: 1035 | C31: Nicosia | D31: =IF($B31=spare,Not.a.postcode, IF(NOT(ISNA(MATCH($B31,Occupied.postal.codes,0))),0, IF(ISNA(MATCH($B31,OCECPR.postal.codes,0)),0,INDEX(OCECPR.number.of.fibre.networks,MATCH($B31,OCECPR.postal.codes,0),)))) -> 1 | E31: =IF($B31=spare,Not.a.postcode, IF(NOT(ISNA(MATCH($B31,Occupied.postal.codes,0))),0, IF(NOT(ISNA(MATCH($B31,Postal.codes.reallocation.output,0))), INDEX(OCECPR.number.of.fibre.networks,MATCH(INDEX(Postal.codes.to.be.reallocated,MATCH($B31,Postal.codes.reallocation.output,0),),OCECPR.postal.codes,0)),0))) -> 0 | F31: 1 | G31: Regulated | J31: 5292 | Q31: 1 | S31: Regulated
B32: 1036 | C32: Nicosia | D32: =IF($B32=spare,Not.a.postcode, IF(NOT(ISNA(MATCH($B32,Occupied.postal.codes,0))),0, IF(ISNA(MATCH($B32,OCECPR.postal.codes,0)),0,INDEX(OCECPR.number.of.fibre.networks,MATCH($B32,OCECPR.postal.codes,0),)))) -> 1 | E32: =IF($B32=spare,Not.a.postcode, IF(NOT(ISNA(MATCH($B32,Occupied.postal.codes,0))),0, IF(NOT(ISNA(MATCH($B32,Postal.codes.reallocation.output,0))), INDEX(OCECPR.number.of.fibre.networks,MATCH(INDEX(Postal.codes.to.be.reallocated,MATCH($B32,Postal.codes.reallocation.output,0),),OCECPR.postal.codes,0)),0))) -> 0 | F32: 1 | G32: Regulated | J32: 5295 | Q32: 1 | S32: Regulated
B33: 1037 | C33: Nicosia | D33: =IF($B33=spare,Not.a.postcode, IF(NOT(ISNA(MATCH($B33,Occupied.postal.codes,0))),0, IF(ISNA(MATCH($B33,OCECPR.postal.codes,0)),0,INDEX(OCECPR.number.of.fibre.networks,MATCH($B33,OCECPR.postal.codes,0),)))) -> 1 | E33: =IF($B33=spare,Not.a.postcode, IF(NOT(ISNA(MATCH($B33,Occupied.postal.codes,0))),0, IF(NOT(ISNA(MATCH($B33,Postal.codes.reallocation.output,0))), INDEX(OCECPR.number.of.fibre.networks,MATCH(INDEX(Postal.codes.to.be.reallocated,MATCH($B33,Postal.codes.reallocation.output,0),),OCECPR.postal.codes,0)),0))) -> 0 | F33: 1 | G33: Regulated | J33: 5296 | Q33: 1 | S33: Regulated
B34: 1040 | C34: Nicosia | D34: =IF($B34=spare,Not.a.postcode, IF(NOT(ISNA(MATCH($B34,Occupied.postal.codes,0))),0, IF(ISNA(MATCH($B34,OCECPR.postal.codes,0)),0,INDEX(OCECPR.number.of.fibre.networks,MATCH($B34,OCECPR.postal.codes,0),)))) -> 1 | E34: =IF($B34=spare,Not.a.postcode, IF(NOT(ISNA(MATCH($B34,Occupied.postal.codes,0))),0, IF(NOT(ISNA(MATCH($B34,Postal.codes.reallocation.output,0))), INDEX(OCECPR.number.of.fibre.networks,MATCH(INDEX(Postal.codes.to.be.reallocated,MATCH($B34,Postal.codes.reallocation.output,0),),OCECPR.postal.codes,0)),0))) -> 0 | F34: 1 | G34: Regulated | J34: 5297 | Q34: 1 | S34: Regulated
B35: 1041 | C35: Nicosia | D35: =IF($B35=spare,Not.a.postcode, IF(NOT(ISNA(MATCH($B35,Occupied.postal.codes,0))),0, IF(ISNA(MATCH($B35,OCECPR.postal.codes,0)),0,INDEX(OCECPR.number.of.fibre.networks,MATCH($B35,OCECPR.postal.codes,0),)))) -> 1 | E35: =IF($B35=spare,Not.a.postcode, IF(NOT(ISNA(MATCH($B35,Occupied.postal.codes,0))),0, IF(NOT(ISNA(MATCH($B35,Postal.codes.reallocation.output,0))), INDEX(OCECPR.number.of.fibre.networks,MATCH(INDEX(Postal.codes.to.be.reallocated,MATCH($B35,Postal.codes.reallocation.output,0),),OCECPR.postal.codes,0)),0))) -> 0 | F35: 1 | G35: Regulated | J35: 5320 | Q35: 1 | S35: Regulated
B36: 1042 | C36: Nicosia | D36: =IF($B36=spare,Not.a.postcode, IF(NOT(ISNA(MATCH($B36,Occupied.postal.codes,0))),0, IF(ISNA(MATCH($B36,OCECPR.postal.codes,0)),0,INDEX(OCECPR.number.of.fibre.networks,MATCH($B36,OCECPR.postal.codes,0),)))) -> 1 | E36: =IF($B36=spare,Not.a.postcode, IF(NOT(ISNA(MATCH($B36,Occupied.postal.codes,0))),0, IF(NOT(ISNA(MATCH($B36,Postal.codes.reallocation.output,0))), INDEX(OCECPR.number.of.fibre.networks,MATCH(INDEX(Postal.codes.to.be.reallocated,MATCH($B36,Postal.codes.reallocation.output,0),),OCECPR.postal.codes,0)),0))) -> 0 | F36: 1 | G36: Regulated | J36: 5330 | Q36: 1 | S36: Regulated
B37: 1045 | C37: Nicosia | D37: =IF($B37=spare,Not.a.postcode, IF(NOT(ISNA(MATCH($B37,Occupied.postal.codes,0))),0, IF(ISNA(MATCH($B37,OCECPR.postal.codes,0)),0,INDEX(OCECPR.number.of.fibre.networks,MATCH($B37,OCECPR.postal.codes,0),)))) -> 1 | E37: =IF($B37=spare,Not.a.postcode, IF(NOT(ISNA(MATCH($B37,Occupied.postal.codes,0))),0, IF(NOT(ISNA(MATCH($B37,Postal.codes.reallocation.output,0))), INDEX(OCECPR.number.of.fibre.networks,MATCH(INDEX(Postal.codes.to.be.reallocated,MATCH($B37,Postal.codes.reallocation.output,0),),OCECPR.postal.codes,0)),0))) -> 0 | F37: 1 | G37: Regulated | J37: 5350 | Q37: 1 | S37: Regulated
B38: 1046 | C38: Nicosia | D38: =IF($B38=spare,Not.a.postcode, IF(NOT(ISNA(MATCH($B38,Occupied.postal.codes,0))),0, IF(ISNA(MATCH($B38,OCECPR.postal.codes,0)),0,INDEX(OCECPR.number.of.fibre.networks,MATCH($B38,OCECPR.postal.codes,0),)))) -> 1 | E38: =IF($B38=spare,Not.a.postcode, IF(NOT(ISNA(MATCH($B38,Occupied.postal.codes,0))),0, IF(NOT(ISNA(MATCH($B38,Postal.codes.reallocation.output,0))), INDEX(OCECPR.number.of.fibre.networks,MATCH(INDEX(Postal.codes.to.be.reallocated,MATCH($B38,Postal.codes.reallocation.output,0),),OCECPR.postal.codes,0)),0))) -> 0 | F38: 1 | G38: Regulated | J38: 5380 | Q38: 1 | S38: Regulated
B39: 1047 | C39: Nicosia | D39: =IF($B39=spare,Not.a.postcode, IF(NOT(ISNA(MATCH($B39,Occupied.postal.codes,0))),0, IF(ISNA(MATCH($B39,OCECPR.postal.codes,0)),0,INDEX(OCECPR.number.of.fibre.networks,MATCH($B39,OCECPR.postal.codes,0),)))) -> 1 | E39: =IF($B39=spare,Not.a.postcode, IF(NOT(ISNA(MATCH($B39,Occupied.postal.codes,0))),0, IF(NOT(ISNA(MATCH($B39,Postal.codes.reallocation.output,0))), INDEX(OCECPR.number.of.fibre.networks,MATCH(INDEX(Postal.codes.to.be.reallocated,MATCH($B39,Postal.codes.reallocation.output,0),),OCECPR.postal.codes,0)),0))) -> 0 | F39: 1 | G39: Regulated | J39: 5390 | Q39: 1 | S39: Regulated
B40: 1048 | C40: Nicosia | D40: =IF($B40=spare,Not.a.postcode, IF(NOT(ISNA(MATCH($B40,Occupied.postal.codes,0))),0, IF(ISNA(MATCH($B40,OCECPR.postal.codes,0)),0,INDEX(OCECPR.number.of.fibre.networks,MATCH($B40,OCECPR.postal.codes,0),)))) -> 1 | E40: =IF($B40=spare,Not.a.postcode, IF(NOT(ISNA(MATCH($B40,Occupied.postal.codes,0))),0, IF(NOT(ISNA(MATCH($B40,Postal.codes.reallocation.output,0))), INDEX(OCECPR.number.of.fibre.networks,MATCH(INDEX(Postal.codes.to.be.reallocated,MATCH($B40,Postal.codes.reallocation.output,0),),OCECPR.postal.codes,0)),0))) -> 0 | F40: 1 | G40: Regulated | J40: 5391 | Q40: 1 | S40: Regulated
B41: 1049 | C41: Nicosia | D41: =IF($B41=spare,Not.a.postcode, IF(NOT(ISNA(MATCH($B41,Occupied.postal.codes,0))),0, IF(ISNA(MATCH($B41,OCECPR.postal.codes,0)),0,INDEX(OCECPR.number.of.fibre.networks,MATCH($B41,OCECPR.postal.codes,0),)))) -> 1 | E41: =IF($B41=spare,Not.a.postcode, IF(NOT(ISNA(MATCH($B41,Occupied.postal.codes,0))),0, IF(NOT(ISNA(MATCH($B41,Postal.codes.reallocation.output,0))), INDEX(OCECPR.number.of.fibre.networks,MATCH(INDEX(Postal.codes.to.be.reallocated,MATCH($B41,Postal.codes.reallocation.output,0),),OCECPR.postal.codes,0)),0))) -> 0 | F41: 1 | G41: Regulated | J41: 5510 | Q41: 1 | S41: Regulated
B42: 1055 | C42: Nicosia | D42: =IF($B42=spare,Not.a.postcode, IF(NOT(ISNA(MATCH($B42,Occupied.postal.codes,0))),0, IF(ISNA(MATCH($B42,OCECPR.postal.codes,0)),0,INDEX(OCECPR.number.of.fibre.networks,MATCH($B42,OCECPR.postal.codes,0),)))) -> 1 | E42: =IF($B42=spare,Not.a.postcode, IF(NOT(ISNA(MATCH($B42,Occupied.postal.codes,0))),0, IF(NOT(ISNA(MATCH($B42,Postal.codes.reallocation.output,0))), INDEX(OCECPR.number.of.fibre.networks,MATCH(INDEX(Postal.codes.to.be.reallocated,MATCH($B42,Postal.codes.reallocation.output,0),),OCECPR.postal.codes,0)),0))) -> 0 | F42: 1 | G42: Regulated | J42: 5521 | Q42: 1 | S42: Regulated
B43: 1056 | C43: Nicosia | D43: =IF($B43=spare,Not.a.postcode, IF(NOT(ISNA(MATCH($B43,Occupied.postal.codes,0))),0, IF(ISNA(MATCH($B43,OCECPR.postal.codes,0)),0,INDEX(OCECPR.number.of.fibre.networks,MATCH($B43,OCECPR.postal.codes,0),)))) -> 1 | E43: =IF($B43=spare,Not.a.postcode, IF(NOT(ISNA(MATCH($B43,Occupied.postal.codes,0))),0, IF(NOT(ISNA(MATCH($B43,Postal.codes.reallocation.output,0))), INDEX(OCECPR.number.of.fibre.networks,MATCH(INDEX(Postal.codes.to.be.reallocated,MATCH($B43,Postal.codes.reallocation.output,0),),OCECPR.postal.codes,0)),0))) -> 0 | F43: 1 | G43: Regulated | J43: 5522 | Q43: 1 | S43: Regulated
B44: 1057 | C44: Nicosia | D44: =IF($B44=spare,Not.a.postcode, IF(NOT(ISNA(MATCH($B44,Occupied.postal.codes,0))),0, IF(ISNA(MATCH($B44,OCECPR.postal.codes,0)),0,INDEX(OCECPR.number.of.fibre.networks,MATCH($B44,OCECPR.postal.codes,0),)))) -> 1 | E44: =IF($B44=spare,Not.a.postcode, IF(NOT(ISNA(MATCH($B44,Occupied.postal.codes,0))),0, IF(NOT(ISNA(MATCH($B44,Postal.codes.reallocation.output,0))), INDEX(OCECPR.number.of.fibre.networks,MATCH(INDEX(Postal.codes.to.be.reallocated,MATCH($B44,Postal.codes.reallocation.output,0),),OCECPR.postal.codes,0)),0))) -> 0 | F44: 1 | G44: Regulated | J44: 5523 | Q44: 1 | S44: Regulated
B45: 1060 | C45: Nicosia | D45: =IF($B45=spare,Not.a.postcode, IF(NOT(ISNA(MATCH($B45,Occupied.postal.codes,0))),0, IF(ISNA(MATCH($B45,OCECPR.postal.codes,0)),0,INDEX(OCECPR.number.of.fibre.networks,MATCH($B45,OCECPR.postal.codes,0),)))) -> 1 | E45: =IF($B45=spare,Not.a.postcode, IF(NOT(ISNA(MATCH($B45,Occupied.postal.codes,0))),0, IF(NOT(ISNA(MATCH($B45,Postal.codes.reallocation.output,0))), INDEX(OCECPR.number.of.fibre.networks,MATCH(INDEX(Postal.codes.to.be.reallocated,MATCH($B45,Postal.codes.reallocation.output,0),),OCECPR.postal.codes,0)),0))) -> 0 | F45: 1 | G45: Regulated | J45: 5524 | Q45: 1 | S45: Regulated
B46: 1061 | C46: Nicosia | D46: =IF($B46=spare,Not.a.postcode, IF(NOT(ISNA(MATCH($B46,Occupied.postal.codes,0))),0, IF(ISNA(MATCH($B46,OCECPR.postal.codes,0)),0,INDEX(OCECPR.number.of.fibre.networks,MATCH($B46,OCECPR.postal.codes,0),)))) -> 1 | E46: =IF($B46=spare,Not.a.postcode, IF(NOT(ISNA(MATCH($B46,Occupied.postal.codes,0))),0, IF(NOT(ISNA(MATCH($B46,Postal.codes.reallocation.output,0))), INDEX(OCECPR.number.of.fibre.networks,MATCH(INDEX(Postal.codes.to.be.reallocated,MATCH($B46,Postal.codes.reallocation.output,0),),OCECPR.postal.codes,0)),0))) -> 0 | F46: 1 | G46: Regulated | J46: 5525 | Q46: 1 | S46: Regulated
B47: 1065 | C47: Nicosia | D47: =IF($B47=spare,Not.a.postcode, IF(NOT(ISNA(MATCH($B47,Occupied.postal.codes,0))),0, IF(ISNA(MATCH($B47,OCECPR.postal.codes,0)),0,INDEX(OCECPR.number.of.fibre.networks,MATCH($B47,OCECPR.postal.codes,0),)))) -> 1 | E47: =IF($B47=spare,Not.a.postcode, IF(NOT(ISNA(MATCH($B47,Occupied.postal.codes,0))),0, IF(NOT(ISNA(MATCH($B47,Postal.codes.reallocation.output,0))), INDEX(OCECPR.number.of.fibre.networks,MATCH(INDEX(Postal.codes.to.be.reallocated,MATCH($B47,Postal.codes.reallocation.output,0),),OCECPR.postal.codes,0)),0))) -> 0 | F47: 1 | G47: Regulated | J47: 5620 | Q47: 1 | S47: Regulated
B48: 1066 | C48: Nicosia | D48: =IF($B48=spare,Not.a.postcode, IF(NOT(ISNA(MATCH($B48,Occupied.postal.codes,0))),0, IF(ISNA(MATCH($B48,OCECPR.postal.codes,0)),0,INDEX(OCECPR.number.of.fibre.networks,MATCH($B48,OCECPR.postal.codes,0),)))) -> 1 | E48: =IF($B48=spare,Not.a.postcode, IF(NOT(ISNA(MATCH($B48,Occupied.postal.codes,0))),0, IF(NOT(ISNA(MATCH($B48,Postal.codes.reallocation.output,0))), INDEX(OCECPR.number.of.fibre.networks,MATCH(INDEX(Postal.codes.to.be.reallocated,MATCH($B48,Postal.codes.reallocation.output,0),),OCECPR.postal.codes,0)),0))) -> 0 | F48: 1 | G48: Regulated | J48: 6010 | Q48: 1 | S48: Regulated
B49: 1070 | C49: Nicosia | D49: =IF($B49=spare,Not.a.postcode, IF(NOT(ISNA(MATCH($B49,Occupied.postal.codes,0))),0, IF(ISNA(MATCH($B49,OCECPR.postal.codes,0)),0,INDEX(OCECPR.number.of.fibre.networks,MATCH($B49,OCECPR.postal.codes,0),)))) -> 1 | E49: =IF($B49=spare,Not.a.postcode, IF(NOT(ISNA(MATCH($B49,Occupied.postal.codes,0))),0, IF(NOT(ISNA(MATCH($B49,Postal.codes.reallocation.output,0))), INDEX(OCECPR.number.of.fibre.networks,MATCH(INDEX(Postal.codes.to.be.reallocated,MATCH($B49,Postal.codes.reallocation.output,0),),OCECPR.postal.codes,0)),0))) -> 0 | F49: 1 | G49: Regulated | J49: 6011 | Q49: 1 | S49: Regulated
B50: 1071 | C50: Nicosia | D50: =IF($B50=spare,Not.a.postcode, IF(NOT(ISNA(MATCH($B50,Occupied.postal.codes,0))),0, IF(ISNA(MATCH($B50,OCECPR.postal.codes,0)),0,INDEX(OCECPR.number.of.fibre.networks,MATCH($B50,OCECPR.postal.codes,0),)))) -> 1 | E50: =IF($B50=spare,Not.a.postcode, IF(NOT(ISNA(MATCH($B50,Occupied.postal.codes,0))),0, IF(NOT(ISNA(MATCH($B50,Postal.codes.reallocation.output,0))), INDEX(OCECPR.number.of.fibre.networks,MATCH(INDEX(Postal.codes.to.be.reallocated,MATCH($B50,Postal.codes.reallocation.output,0),),OCECPR.postal.codes,0)),0))) -> 0 | F50: 1 | G50: Regulated | J50: 6012 | Q50: 1 | S50: Regulated
B51: 1075 | C51: Nicosia | D51: =IF($B51=spare,Not.a.postcode, IF(NOT(ISNA(MATCH($B51,Occupied.postal.codes,0))),0, IF(ISNA(MATCH($B51,OCECPR.postal.codes,0)),0,INDEX(OCECPR.number.of.fibre.networks,MATCH($B51,OCECPR.postal.codes,0),)))) -> 1 | E51: =IF($B51=spare,Not.a.postcode, IF(NOT(ISNA(MATCH($B51,Occupied.postal.codes,0))),0, IF(NOT(ISNA(MATCH($B51,Postal.codes.reallocation.output,0))), INDEX(OCECPR.number.of.fibre.networks,MATCH(INDEX(Postal.codes.to.be.reallocated,MATCH($B51,Postal.codes.reallocation.output,0),),OCECPR.postal.codes,0)),0))) -> 0 | F51: 1 | G51: Regulated | J51: 6013 | Q51: 1 | S51: Regulated
B52: 1076 | C52: Nicosia | D52: =IF($B52=spare,Not.a.postcode, IF(NOT(ISNA(MATCH($B52,Occupied.postal.codes,0))),0, IF(ISNA(MATCH($B52,OCECPR.postal.codes,0)),0,INDEX(OCECPR.number.of.fibre.networks,MATCH($B52,OCECPR.postal.codes,0),)))) -> 1 | E52: =IF($B52=spare,Not.a.postcode, IF(NOT(ISNA(MATCH($B52,Occupied.postal.codes,0))),0, IF(NOT(ISNA(MATCH($B52,Postal.codes.reallocation.output,0))), INDEX(OCECPR.number.of.fibre.networks,MATCH(INDEX(Postal.codes.to.be.reallocated,MATCH($B52,Postal.codes.reallocation.output,0),),OCECPR.postal.codes,0)),0))) -> 0 | F52: 1 | G52: Regulated | J52: 6015 | Q52: 1 | S52: Regulated
B53: 1077 | C53: Nicosia | D53: =IF($B53=spare,Not.a.postcode, IF(NOT(ISNA(MATCH($B53,Occupied.postal.codes,0))),0, IF(ISNA(MATCH($B53,OCECPR.postal.codes,0)),0,INDEX(OCECPR.number.of.fibre.networks,MATCH($B53,OCECPR.postal.codes,0),)))) -> 1 | E53: =IF($B53=spare,Not.a.postcode, IF(NOT(ISNA(MATCH($B53,Occupied.postal.codes,0))),0, IF(NOT(ISNA(MATCH($B53,Postal.codes.reallocation.output,0))), INDEX(OCECPR.number.of.fibre.networks,MATCH(INDEX(Postal.codes.to.be.reallocated,MATCH($B53,Postal.codes.reallocation.output,0),),OCECPR.postal.codes,0)),0))) -> 0 | F53: 1 | G53: Regulated | J53: 6016 | Q53: 1 | S53: Regulated
B54: 1080 | C54: Nicosia | D54: =IF($B54=spare,Not.a.postcode, IF(NOT(ISNA(MATCH($B54,Occupied.postal.codes,0))),0, IF(ISNA(MATCH($B54,OCECPR.postal.codes,0)),0,INDEX(OCECPR.number.of.fibre.networks,MATCH($B54,OCECPR.postal.codes,0),)))) -> 1 | E54: =IF($B54=spare,Not.a.postcode, IF(NOT(ISNA(MATCH($B54,Occupied.postal.codes,0))),0, IF(NOT(ISNA(MATCH($B54,Postal.codes.reallocation.output,0))), INDEX(OCECPR.number.of.fibre.networks,MATCH(INDEX(Postal.codes.to.be.reallocated,MATCH($B54,Postal.codes.reallocation.output,0),),OCECPR.postal.codes,0)),0))) -> 0 | F54: 1 | G54: Regulated | J54: 6017 | Q54: 1 | S54: Regulated
B55: 1081 | C55: Nicosia | D55: =IF($B55=spare,Not.a.postcode, IF(NOT(ISNA(MATCH($B55,Occupied.postal.codes,0))),0, IF(ISNA(MATCH($B55,OCECPR.postal.codes,0)),0,INDEX(OCECPR.number.of.fibre.networks,MATCH($B55,OCECPR.postal.codes,0),)))) -> 1 | E55: =IF($B55=spare,Not.a.postcode, IF(NOT(ISNA(MATCH($B55,Occupied.postal.codes,0))),0, IF(NOT(ISNA(MATCH($B55,Postal.codes.reallocation.output,0))), INDEX(OCECPR.number.of.fibre.networks,MATCH(INDEX(Postal.codes.to.be.reallocated,MATCH($B55,Postal.codes.reallocation.output,0),),OCECPR.postal.codes,0)),0))) -> 0 | F55: 1 | G55: Regulated | J55: 6018 | Q55: 1 | S55: Regulated
B56: 1082 | C56: Nicosia | D56: =IF($B56=spare,Not.a.postcode, IF(NOT(ISNA(MATCH($B56,Occupied.postal.codes,0))),0, IF(ISNA(MATCH($B56,OCECPR.postal.codes,0)),0,INDEX(OCECPR.number.of.fibre.networks,MATCH($B56,OCECPR.postal.codes,0),)))) -> 1 | E56: =IF($B56=spare,Not.a.postcode, IF(NOT(ISNA(MATCH($B56,Occupied.postal.codes,0))),0, IF(NOT(ISNA(MATCH($B56,Postal.codes.reallocation.output,0))), INDEX(OCECPR.number.of.fibre.networks,MATCH(INDEX(Postal.codes.to.be.reallocated,MATCH($B56,Postal.codes.reallocation.output,0),),OCECPR.postal.codes,0)),0))) -> 0 | F56: 1 | G56: Regulated | J56: 6019 | Q56: 1 | S56: Regulated
B57: 1085 | C57: Nicosia | D57: =IF($B57=spare,Not.a.postcode, IF(NOT(ISNA(MATCH($B57,Occupied.postal.codes,0))),0, IF(ISNA(MATCH($B57,OCECPR.postal.codes,0)),0,INDEX(OCECPR.number.of.fibre.networks,MATCH($B57,OCECPR.postal.codes,0),)))) -> 1 | E57: =IF($B57=spare,Not.a.postcode, IF(NOT(ISNA(MATCH($B57,Occupied.postal.codes,0))),0, IF(NOT(ISNA(MATCH($B57,Postal.codes.reallocation.output,0))), INDEX(OCECPR.number.of.fibre.networks,MATCH(INDEX(Postal.codes.to.be.reallocated,MATCH($B57,Postal.codes.reallocation.output,0),),OCECPR.postal.codes,0)),0))) -> 0 | F57: 1 | G57: Regulated | J57: 6020 | Q57: 1 | S57: Regulated
B58: 1086 | C58: Nicosia | D58: =IF($B58=spare,Not.a.postcode, IF(NOT(ISNA(MATCH($B58,Occupied.postal.codes,0))),0, IF(ISNA(MATCH($B58,OCECPR.postal.codes,0)),0,INDEX(OCECPR.number.of.fibre.networks,MATCH($B58,OCECPR.postal.codes,0),)))) -> 1 | E58: =IF($B58=spare,Not.a.postcode, IF(NOT(ISNA(MATCH($B58,Occupied.postal.codes,0))),0, IF(NOT(ISNA(MATCH($B58,Postal.codes.reallocation.output,0))), INDEX(OCECPR.number.of.fibre.networks,MATCH(INDEX(Postal.codes.to.be.reallocated,MATCH($B58,Postal.codes.reallocation.output,0),),OCECPR.postal.codes,0)),0))) -> 0 | F58: 1 | G58: Regulated | J58: 6021 | Q58: 1 | S58: Regulated
B59: 1087 | C59: Nicosia | D59: =IF($B59=spare,Not.a.postcode, IF(NOT(ISNA(MATCH($B59,Occupied.postal.codes,0))),0, IF(ISNA(MATCH($B59,OCECPR.postal.codes,0)),0,INDEX(OCECPR.number.of.fibre.networks,MATCH($B59,OCECPR.postal.codes,0),)))) -> 1 | E59: =IF($B59=spare,Not.a.postcode, IF(NOT(ISNA(MATCH($B59,Occupied.postal.codes,0))),0, IF(NOT(ISNA(MATCH($B59,Postal.codes.reallocation.output,0))), INDEX(OCECPR.number.of.fibre.networks,MATCH(INDEX(Postal.codes.to.be.reallocated,MATCH($B59,Postal.codes.reallocation.output,0),),OCECPR.postal.codes,0)),0))) -> 0 | F59: 1 | G59: Regulated | J59: 6022 | Q59: 1 | S59: Regulated
B60: 1090 | C60: Nicosia | D60: =IF($B60=spare,Not.a.postcode, IF(NOT(ISNA(MATCH($B60,Occupied.postal.codes,0))),0, IF(ISNA(MATCH($B60,OCECPR.postal.codes,0)),0,INDEX(OCECPR.number.of.fibre.networks,MATCH($B60,OCECPR.postal.codes,0),)))) -> 1 | E60: =IF($B60=spare,Not.a.postcode, IF(NOT(ISNA(MATCH($B60,Occupied.postal.codes,0))),0, IF(NOT(ISNA(MATCH($B60,Postal.codes.reallocation.output,0))), INDEX(OCECPR.number.of.fibre.networks,MATCH(INDEX(Postal.codes.to.be.reallocated,MATCH($B60,Postal.codes.reallocation.output,0),),OCECPR.postal.codes,0)),0))) -> 0 | F60: 1 | G60: Regulated | J60: 6023 | Q60: 1 | S60: Regulated
B61: 1095 | C61: Nicosia | D61: =IF($B61=spare,Not.a.postcode, IF(NOT(ISNA(MATCH($B61,Occupied.postal.codes,0))),0, IF(ISNA(MATCH($B61,OCECPR.postal.codes,0)),0,INDEX(OCECPR.number.of.fibre.networks,MATCH($B61,OCECPR.postal.codes,0),)))) -> 1 | E61: =IF($B61=spare,Not.a.postcode, IF(NOT(ISNA(MATCH($B61,Occupied.postal.codes,0))),0, IF(NOT(ISNA(MATCH($B61,Postal.codes.reallocation.output,0))), INDEX(OCECPR.number.of.fibre.networks,MATCH(INDEX(Postal.codes.to.be.reallocated,MATCH($B61,Postal.codes.reallocation.output,0),),OCECPR.postal.codes,0)),0))) -> 0 | F61: 1 | G61: Regulated | J61: 6025 | Q61: 1 | S61: Regulated
B62: 1096 | C62: Nicosia | D62: =IF($B62=spare,Not.a.postcode, IF(NOT(ISNA(MATCH($B62,Occupied.postal.codes,0))),0, IF(ISNA(MATCH($B62,OCECPR.postal.codes,0)),0,INDEX(OCECPR.number.of.fibre.networks,MATCH($B62,OCECPR.postal.codes,0),)))) -> 1 | E62: =IF($B62=spare,Not.a.postcode, IF(NOT(ISNA(MATCH($B62,Occupied.postal.codes,0))),0, IF(NOT(ISNA(MATCH($B62,Postal.codes.reallocation.output,0))), INDEX(OCECPR.number.of.fibre.networks,MATCH(INDEX(Postal.codes.to.be.reallocated,MATCH($B62,Postal.codes.reallocation.output,0),),OCECPR.postal.codes,0)),0))) -> 0 | F62: 1 | G62: Regulated | J62: 6026 | Q62: 1 | S62: Regulated
B63: 1097 | C63: Nicosia | D63: =IF($B63=spare,Not.a.postcode, IF(NOT(ISNA(MATCH($B63,Occupied.postal.codes,0))),0, IF(ISNA(MATCH($B63,OCECPR.postal.codes,0)),0,INDEX(OCECPR.number.of.fibre.networks,MATCH($B63,OCECPR.postal.codes,0),)))) -> 1 | E63: =IF($B63=spare,Not.a.postcode, IF(NOT(ISNA(MATCH($B63,Occupied.postal.codes,0))),0, IF(NOT(ISNA(MATCH($B63,Postal.codes.reallocation.output,0))), INDEX(OCECPR.number.of.fibre.networks,MATCH(INDEX(Postal.codes.to.be.reallocated,MATCH($B63,Postal.codes.reallocation.output,0),),OCECPR.postal.codes,0)),0))) -> 0 | F63: 1 | G63: Regulated | J63: 6027 | Q63: 1 | S63: Regulated
B64: 1100 | C64: Nicosia | D64: =IF($B64=spare,Not.a.postcode, IF(NOT(ISNA(MATCH($B64,Occupied.postal.codes,0))),0, IF(ISNA(MATCH($B64,OCECPR.postal.codes,0)),0,INDEX(OCECPR.number.of.fibre.networks,MATCH($B64,OCECPR.postal.codes,0),)))) -> 1 | E64: =IF($B64=spare,Not.a.postcode, IF(NOT(ISNA(MATCH($B64,Occupied.postal.codes,0))),0, IF(NOT(ISNA(MATCH($B64,Postal.codes.reallocation.output,0))), INDEX(OCECPR.number.of.fibre.networks,MATCH(INDEX(Postal.codes.to.be.reallocated,MATCH($B64,Postal.codes.reallocation.output,0),),OCECPR.postal.codes,0)),0))) -> 0 | F64: 1 | G64: Regulated | J64: 6028 | Q64: 1 | S64: Regulated
B65: 1101 | C65: Nicosia | D65: =IF($B65=spare,Not.a.postcode, IF(NOT(ISNA(MATCH($B65,Occupied.postal.codes,0))),0, IF(ISNA(MATCH($B65,OCECPR.postal.codes,0)),0,INDEX(OCECPR.number.of.fibre.networks,MATCH($B65,OCECPR.postal.codes,0),)))) -> 1 | E65: =IF($B65=spare,Not.a.postcode, IF(NOT(ISNA(MATCH($B65,Occupied.postal.codes,0))),0, IF(NOT(ISNA(MATCH($B65,Postal.codes.reallocation.output,0))), INDEX(OCECPR.number.of.fibre.networks,MATCH(INDEX(Postal.codes.to.be.reallocated,MATCH($B65,Postal.codes.reallocation.output,0),),OCECPR.postal.codes,0)),0))) -> 0 | F65: 1 | G65: Regulated | J65: 6029 | Q65: 1 | S65: Regulated
B66: 1102 | C66: Nicosia | D66: =IF($B66=spare,Not.a.postcode, IF(NOT(ISNA(MATCH($B66,Occupied.postal.codes,0))),0, IF(ISNA(MATCH($B66,OCECPR.postal.codes,0)),0,INDEX(OCECPR.number.of.fibre.networks,MATCH($B66,OCECPR.postal.codes,0),)))) -> 1 | E66: =IF($B66=spare,Not.a.postcode, IF(NOT(ISNA(MATCH($B66,Occupied.postal.codes,0))),0, IF(NOT(ISNA(MATCH($B66,Postal.codes.reallocation.output,0))), INDEX(OCECPR.number.of.fibre.networks,MATCH(INDEX(Postal.codes.to.be.reallocated,MATCH($B66,Postal.codes.reallocation.output,0),),OCECPR.postal.codes,0)),0))) -> 0 | F66: 1 | G66: Regulated | J66: 6030 | Q66: 1 | S66: Regulated
B67: 1105 | C67: Nicosia | D67: =IF($B67=spare,Not.a.postcode, IF(NOT(ISNA(MATCH($B67,Occupied.postal.codes,0))),0, IF(ISNA(MATCH($B67,OCECPR.postal.codes,0)),0,INDEX(OCECPR.number.of.fibre.networks,MATCH($B67,OCECPR.postal.codes,0),)))) -> 1 | E67: =IF($B67=spare,Not.a.postcode, IF(NOT(ISNA(MATCH($B67,Occupied.postal.codes,0))),0, IF(NOT(ISNA(MATCH($B67,Postal.codes.reallocation.output,0))), INDEX(OCECPR.number.of.fibre.networks,MATCH(INDEX(Postal.codes.to.be.reallocated,MATCH($B67,Postal.codes.reallocation.output,0),),OCECPR.postal.codes,0)),0))) -> 1 | F67: 1 | G67: Regulated | J67: 6031 | Q67: 1 | S67: Regulated
B68: 1106 | C68: Nicosia | D68: =IF($B68=spare,Not.a.postcode, IF(NOT(ISNA(MATCH($B68,Occupied.postal.codes,0))),0, IF(ISNA(MATCH($B68,OCECPR.postal.codes,0)),0,INDEX(OCECPR.number.of.fibre.networks,MATCH($B68,OCECPR.postal.codes,0),)))) -> 1 | E68: =IF($B68=spare,Not.a.postcode, IF(NOT(ISNA(MATCH($B68,Occupied.postal.codes,0))),0, IF(NOT(ISNA(MATCH($B68,Postal.codes.reallocation.output,0))), INDEX(OCECPR.number.of.fibre.networks,MATCH(INDEX(Postal.codes.to.be.reallocated,MATCH($B68,Postal.codes.reallocation.output,0),),OCECPR.postal.codes,0)),0))) -> 0 | F68: 1 | G68: Regulated | J68: 6035 | Q68: 1 | S68: Regulated
B69: 1107 | C69: Nicosia | D69: =IF($B69=spare,Not.a.postcode, IF(NOT(ISNA(MATCH($B69,Occupied.postal.codes,0))),0, IF(ISNA(MATCH($B69,OCECPR.postal.codes,0)),0,INDEX(OCECPR.number.of.fibre.networks,MATCH($B69,OCECPR.postal.codes,0),)))) -> 1 | E69: =IF($B69=spare,Not.a.postcode, IF(NOT(ISNA(MATCH($B69,Occupied.postal.codes,0))),0, IF(NOT(ISNA(MATCH($B69,Postal.codes.reallocation.output,0))), INDEX(OCECPR.number.of.fibre.networks,MATCH(INDEX(Postal.codes.to.be.reallocated,MATCH($B69,Postal.codes.reallocation.output,0),),OCECPR.postal.codes,0)),0))) -> 0 | F69: 1 | G69: Regulated | J69: 6036 | Q69: 1 | S69: Regulated
B70: 1120 | C70: Occupied area | D70: =IF($B70=spare,Not.a.postcode, IF(NOT(ISNA(MATCH($B70,Occupied.postal.codes,0))),0, IF(ISNA(MATCH($B70,OCECPR.postal.codes,0)),0,INDEX(OCECPR.number.of.fibre.networks,MATCH($B70,OCECPR.postal.codes,0),)))) -> 0 | E70: =IF($B70=spare,Not.a.postcode, IF(NOT(ISNA(MATCH($B70,Occupied.postal.codes,0))),0, IF(NOT(ISNA(MATCH($B70,Postal.codes.reallocation.output,0))), INDEX(OCECPR.number.of.fibre.networks,MATCH(INDEX(Postal.codes.to.be.reallocated,MATCH($B70,Postal.codes.reallocation.output,0),),OCECPR.postal.codes,0)),0))) -> 0 | F70: 0 | G70: Occupied area | J70: 6037 | Q70: 1 | S70: Regulated
B71: 1130 | C71: Occupied area | D71: =IF($B71=spare,Not.a.postcode, IF(NOT(ISNA(MATCH($B71,Occupied.postal.codes,0))),0, IF(ISNA(MATCH($B71,OCECPR.postal.codes,0)),0,INDEX(OCECPR.number.of.fibre.networks,MATCH($B71,OCECPR.postal.codes,0),)))) -> 0 | E71: =IF($B71=spare,Not.a.postcode, IF(NOT(ISNA(MATCH($B71,Occupied.postal.codes,0))),0, IF(NOT(ISNA(MATCH($B71,Postal.codes.reallocation.output,0))), INDEX(OCECPR.number.of.fibre.networks,MATCH(INDEX(Postal.codes.to.be.reallocated,MATCH($B71,Postal.codes.reallocation.output,0),),OCECPR.postal.codes,0)),0))) -> 0 | F71: 0 | G71: Occupied area | J71: 6040 | Q71: 1 | S71: Regulated
B72: 1140 | C72: Occupied area | D72: =IF($B72=spare,Not.a.postcode, IF(NOT(ISNA(MATCH($B72,Occupied.postal.codes,0))),0, IF(ISNA(MATCH($B72,OCECPR.postal.codes,0)),0,INDEX(OCECPR.number.of.fibre.networks,MATCH($B72,OCECPR.postal.codes,0),)))) -> 0 | E72: =IF($B72=spare,Not.a.postcode, IF(NOT(ISNA(MATCH($B72,Occupied.postal.codes,0))),0, IF(NOT(ISNA(MATCH($B72,Postal.codes.reallocation.output,0))), INDEX(OCECPR.number.of.fibre.networks,MATCH(INDEX(Postal.codes.to.be.reallocated,MATCH($B72,Postal.codes.reallocation.output,0),),OCECPR.postal.codes,0)),0))) -> 0 | F72: 0 | G72: Occupied area | J72: 6041 | Q72: 1 | S72: Regulated
B73: 1150 | C73: Occupied area | D73: =IF($B73=spare,Not.a.postcode, IF(NOT(ISNA(MATCH($B73,Occupied.postal.codes,0))),0, IF(ISNA(MATCH($B73,OCECPR.postal.codes,0)),0,INDEX(OCECPR.number.of.fibre.networks,MATCH($B73,OCECPR.postal.codes,0),)))) -> 0 | E73: =IF($B73=spare,Not.a.postcode, IF(NOT(ISNA(MATCH($B73,Occupied.postal.codes,0))),0, IF(NOT(ISNA(MATCH($B73,Postal.codes.reallocation.output,0))), INDEX(OCECPR.number.of.fibre.networks,MATCH(INDEX(Postal.codes.to.be.reallocated,MATCH($B73,Postal.codes.reallocation.output,0),),OCECPR.postal.codes,0)),0))) -> 0 | F73: 0 | G73: Occupied area | J73: 6042 | Q73: 1 | S73: Regulated
B74: 1160 | C74: Occupied area | D74: =IF($B74=spare,Not.a.postcode, IF(NOT(ISNA(MATCH($B74,Occupied.postal.codes,0))),0, IF(ISNA(MATCH($B74,OCECPR.postal.codes,0)),0,INDEX(OCECPR.number.of.fibre.networks,MATCH($B74,OCECPR.postal.codes,0),)))) -> 0 | E74: =IF($B74=spare,Not.a.postcode, IF(NOT(ISNA(MATCH($B74,Occupied.postal.codes,0))),0, IF(NOT(ISNA(MATCH($B74,Postal.codes.reallocation.output,0))), INDEX(OCECPR.number.of.fibre.networks,MATCH(INDEX(Postal.codes.to.be.reallocated,MATCH($B74,Postal.codes.reallocation.output,0),),OCECPR.postal.codes,0)),0))) -> 0 | F74: 0 | G74: Occupied area | J74: 6043 | Q74: 1 | S74: Regulated
B75: 2000 | C75: Nicosia | D75: =IF($B75=spare,Not.a.postcode, IF(NOT(ISNA(MATCH($B75,Occupied.postal.codes,0))),0, IF(ISNA(MATCH($B75,OCECPR.postal.codes,0)),0,INDEX(OCECPR.number.of.fibre.networks,MATCH($B75,OCECPR.postal.codes,0),)))) -> 1 | E75: =IF($B75=spare,Not.a.postcode, IF(NOT(ISNA(MATCH($B75,Occupied.postal.codes,0))),0, IF(NOT(ISNA(MATCH($B75,Postal.codes.reallocation.output,0))), INDEX(OCECPR.number.of.fibre.networks,MATCH(INDEX(Postal.codes.to.be.reallocated,MATCH($B75,Postal.codes.reallocation.output,0),),OCECPR.postal.codes,0)),0))) -> 0 | F75: 1 | G75: Regulated | J75: 6045 | Q75: 1 | S75: Regulated
B76: 2001 | C76: Nicosia | D76: =IF($B76=spare,Not.a.postcode, IF(NOT(ISNA(MATCH($B76,Occupied.postal.codes,0))),0, IF(ISNA(MATCH($B76,OCECPR.postal.codes,0)),0,INDEX(OCECPR.number.of.fibre.networks,MATCH($B76,OCECPR.postal.codes,0),)))) -> 1 | E76: =IF($B76=spare,Not.a.postcode, IF(NOT(ISNA(MATCH($B76,Occupied.postal.codes,0))),0, IF(NOT(ISNA(MATCH($B76,Postal.codes.reallocation.output,0))), INDEX(OCECPR.number.of.fibre.networks,MATCH(INDEX(Postal.codes.to.be.reallocated,MATCH($B76,Postal.codes.reallocation.output,0),),OCECPR.postal.codes,0)),0))) -> 0 | F76: 1 | G76: Regulated | J76: 6046 | Q76: 1 | S76: Regulated
B77: 2002 | C77: Nicosia | D77: =IF($B77=spare,Not.a.postcode, IF(NOT(ISNA(MATCH($B77,Occupied.postal.codes,0))),0, IF(ISNA(MATCH($B77,OCECPR.postal.codes,0)),0,INDEX(OCECPR.number.of.fibre.networks,MATCH($B77,OCECPR.postal.codes,0),)))) -> 1 | E77: =IF($B77=spare,Not.a.postcode, IF(NOT(ISNA(MATCH($B77,Occupied.postal.codes,0))),0, IF(NOT(ISNA(MATCH($B77,Postal.codes.reallocation.output,0))), INDEX(OCECPR.number.of.fibre.networks,MATCH(INDEX(Postal.codes.to.be.reallocated,MATCH($B77,Postal.codes.reallocation.output,0),),OCECPR.postal.codes,0)),0))) -> 0 | F77: 1 | G77: Regulated | J77: 6047 | Q77: 1 | S77: Regulated
B78: 2003 | C78: Nicosia | D78: =IF($B78=spare,Not.a.postcode, IF(NOT(ISNA(MATCH($B78,Occupied.postal.codes,0))),0, IF(ISNA(MATCH($B78,OCECPR.postal.codes,0)),0,INDEX(OCECPR.number.of.fibre.networks,MATCH($B78,OCECPR.postal.codes,0),)))) -> 1 | E78: =IF($B78=spare,Not.a.postcode, IF(NOT(ISNA(MATCH($B78,Occupied.postal.codes,0))),0, IF(NOT(ISNA(MATCH($B78,Postal.codes.reallocation.output,0))), INDEX(OCECPR.number.of.fibre.networks,MATCH(INDEX(Postal.codes.to.be.reallocated,MATCH($B78,Postal.codes.reallocation.output,0),),OCECPR.postal.codes,0)),0))) -> 0 | F78: 1 | G78: Regulated | J78: 6050 | Q78: 1 | S78: Regulated
B79: 2006 | C79: Nicosia | D79: =IF($B79=spare,Not.a.postcode, IF(NOT(ISNA(MATCH($B79,Occupied.postal.codes,0))),0, IF(ISNA(MATCH($B79,OCECPR.postal.codes,0)),0,INDEX(OCECPR.number.of.fibre.networks,MATCH($B79,OCECPR.postal.codes,0),)))) -> 1 | E79: =IF($B79=spare,Not.a.postcode, IF(NOT(ISNA(MATCH($B79,Occupied.postal.codes,0))),0, IF(NOT(ISNA(MATCH($B79,Postal.codes.reallocation.output,0))), INDEX(OCECPR.number.of.fibre.networks,MATCH(INDEX(Postal.codes.to.be.reallocated,MATCH($B79,Postal.codes.reallocation.output,0),),OCECPR.postal.codes,0)),0))) -> 0 | F79: 1 | G79: Regulated | J79: 6051 | Q79: 1 | S79: Regulated
B80: 2007 | C80: Nicosia | D80: =IF($B80=spare,Not.a.postcode, IF(NOT(ISNA(MATCH($B80,Occupied.postal.codes,0))),0, IF(ISNA(MATCH($B80,OCECPR.postal.codes,0)),0,INDEX(OCECPR.number.of.fibre.networks,MATCH($B80,OCECPR.postal.codes,0),)))) -> 1 | E80: =IF($B80=spare,Not.a.postcode, IF(NOT(ISNA(MATCH($B80,Occupied.postal.codes,0))),0, IF(NOT(ISNA(MATCH($B80,Postal.codes.reallocation.output,0))), INDEX(OCECPR.number.of.fibre.networks,MATCH(INDEX(Postal.codes.to.be.reallocated,MATCH($B80,Postal.codes.reallocation.output,0),),OCECPR.postal.codes,0)),0))) -> 0 | F80: 1 | G80: Regulated | J80: 6052 | Q80: 1 | S80: Regulated
B81: 2008 | C81: Nicosia | D81: =IF($B81=spare,Not.a.postcode, IF(NOT(ISNA(MATCH($B81,Occupied.postal.codes,0))),0, IF(ISNA(MATCH($B81,OCECPR.postal.codes,0)),0,INDEX(OCECPR.number.of.fibre.networks,MATCH($B81,OCECPR.postal.codes,0),)))) -> 1 | E81: =IF($B81=spare,Not.a.postcode, IF(NOT(ISNA(MATCH($B81,Occupied.postal.codes,0))),0, IF(NOT(ISNA(MATCH($B81,Postal.codes.reallocation.output,0))), INDEX(OCECPR.number.of.fibre.networks,MATCH(INDEX(Postal.codes.to.be.reallocated,MATCH($B81,Postal.codes.reallocation.output,0),),OCECPR.postal.codes,0)),0))) -> 0 | F81: 1 | G81: Regulated | J81: 6053 | Q81: 1 | S81: Regulated
B82: 2011 | C82: Nicosia | D82: =IF($B82=spare,Not.a.postcode, IF(NOT(ISNA(MATCH($B82,Occupied.postal.codes,0))),0, IF(ISNA(MATCH($B82,OCECPR.postal.codes,0)),0,INDEX(OCECPR.number.of.fibre.networks,MATCH($B82,OCECPR.postal.codes,0),)))) -> 1 | E82: =IF($B82=spare,Not.a.postcode, IF(NOT(ISNA(MATCH($B82,Occupied.postal.codes,0))),0, IF(NOT(ISNA(MATCH($B82,Postal.codes.reallocation.output,0))), INDEX(OCECPR.number.of.fibre.networks,MATCH(INDEX(Postal.codes.to.be.reallocated,MATCH($B82,Postal.codes.reallocation.output,0),),OCECPR.postal.codes,0)),0))) -> 0 | F82: 1 | G82: Regulated | J82: 6055 | Q82: 1 | S82: Regulated
B83: 2012 | C83: Nicosia | D83: =IF($B83=spare,Not.a.postcode, IF(NOT(ISNA(MATCH($B83,Occupied.postal.codes,0))),0, IF(ISNA(MATCH($B83,OCECPR.postal.codes,0)),0,INDEX(OCECPR.number.of.fibre.networks,MATCH($B83,OCECPR.postal.codes,0),)))) -> 1 | E83: =IF($B83=spare,Not.a.postcode, IF(NOT(ISNA(MATCH($B83,Occupied.postal.codes,0))),0, IF(NOT(ISNA(MATCH($B83,Postal.codes.reallocation.output,0))), INDEX(OCECPR.number.of.fibre.networks,MATCH(INDEX(Postal.codes.to.be.reallocated,MATCH($B83,Postal.codes.reallocation.output,0),),OCECPR.postal.codes,0)),0))) -> 0 | F83: 1 | G83: =IF($B83=spare,Not.a.postcode, IF(NOT(ISNA(MATCH($B83,Occupied.postal.codes,0))),Occupied, IF(F83>=Deregulation.threshold,Unregulated,Regulated))) -> Regulated | J83: 6056 | Q83: 1 | S83: Regulated
B84: 2013 | C84: Nicosia | D84: =IF($B84=spare,Not.a.postcode, IF(NOT(ISNA(MATCH($B84,Occupied.postal.codes,0))),0, IF(ISNA(MATCH($B84,OCECPR.postal.codes,0)),0,INDEX(OCECPR.number.of.fibre.networks,MATCH($B84,OCECPR.postal.codes,0),)))) -> 1 | E84: =IF($B84=spare,Not.a.postcode, IF(NOT(ISNA(MATCH($B84,Occupied.postal.codes,0))),0, IF(NOT(ISNA(MATCH($B84,Postal.codes.reallocation.output,0))), INDEX(OCECPR.number.of.fibre.networks,MATCH(INDEX(Postal.codes.to.be.reallocated,MATCH($B84,Postal.codes.reallocation.output,0),),OCECPR.postal.codes,0)),0))) -> 0 | F84: =MAX(D84,E84) -> 1 | G84: Regulated | J84: 6057 | Q84: 1 | S84: =IF(Q84>=Deregulation.threshold,Unregulated,Regulated) -> Regulated
B85: 2014 | C85: Nicosia | D85: =IF($B85=spare,Not.a.postcode, IF(NOT(ISNA(MATCH($B85,Occupied.postal.codes,0))),0, IF(ISNA(MATCH($B85,OCECPR.postal.codes,0)),0,INDEX(OCECPR.number.of.fibre.networks,MATCH($B85,OCECPR.postal.codes,0),)))) -> 1 | E85: =IF($B85=spare,Not.a.postcode, IF(NOT(ISNA(MATCH($B85,Occupied.postal.codes,0))),0, IF(NOT(ISNA(MATCH($B85,Postal.codes.reallocation.output,0))), INDEX(OCECPR.number.of.fibre.networks,MATCH(INDEX(Postal.codes.to.be.reallocated,MATCH($B85,Postal.codes.reallocation.output,0),),OCECPR.postal.codes,0)),0))) -> 0 | F85: 1 | G85: Regulated | J85: 6058 | Q85: 1 | S85: Regulated
B86: 2015 | C86: Nicosia | D86: =IF($B86=spare,Not.a.postcode, IF(NOT(ISNA(MATCH($B86,Occupied.postal.codes,0))),0, IF(ISNA(MATCH($B86,OCECPR.postal.codes,0)),0,INDEX(OCECPR.number.of.fibre.networks,MATCH($B86,OCECPR.postal.codes,0),)))) -> 1 | E86: =IF($B86=spare,Not.a.postcode, IF(NOT(ISNA(MATCH($B86,Occupied.postal.codes,0))),0, IF(NOT(ISNA(MATCH($B86,Postal.codes.reallocation.output,0))), INDEX(OCECPR.number.of.fibre.networks,MATCH(INDEX(Postal.codes.to.be.reallocated,MATCH($B86,Postal.codes.reallocation.output,0),),OCECPR.postal.codes,0)),0))) -> 0 | F86: 1 | G86: Regulated | J86: 6059 | Q86: 1 | S86: Regulated
B87: 2018 | C87: Nicosia | D87: =IF($B87=spare,Not.a.postcode, IF(NOT(ISNA(MATCH($B87,Occupied.postal.codes,0))),0, IF(ISNA(MATCH($B87,OCECPR.postal.codes,0)),0,INDEX(OCECPR.number.of.fibre.networks,MATCH($B87,OCECPR.postal.codes,0),)))) -> 1 | E87: =IF($B87=spare,Not.a.postcode, IF(NOT(ISNA(MATCH($B87,Occupied.postal.codes,0))),0, IF(NOT(ISNA(MATCH($B87,Postal.codes.reallocation.output,0))), INDEX(OCECPR.number.of.fibre.networks,MATCH(INDEX(Postal.codes.to.be.reallocated,MATCH($B87,Postal.codes.reallocation.output,0),),OCECPR.postal.codes,0)),0))) -> 0 | F87: 1 | G87: Regulated | J87: 6060 | Q87: 1 | S87: Regulated
B88: 2019 | C88: Nicosia | D88: =IF($B88=spare,Not.a.postcode, IF(NOT(ISNA(MATCH($B88,Occupied.postal.codes,0))),0, IF(ISNA(MATCH($B88,OCECPR.postal.codes,0)),0,INDEX(OCECPR.number.of.fibre.networks,MATCH($B88,OCECPR.postal.codes,0),)))) -> 1 | E88: =IF($B88=spare,Not.a.postcode, IF(NOT(ISNA(MATCH($B88,Occupied.postal.codes,0))),0, IF(NOT(ISNA(MATCH($B88,Postal.codes.reallocation.output,0))), INDEX(OCECPR.number.of.fibre.networks,MATCH(INDEX(Postal.codes.to.be.reallocated,MATCH($B88,Postal.codes.reallocation.output,0),),OCECPR.postal.codes,0)),0))) -> 0 | F88: 1 | G88: Regulated | J88: 7000 | Q88: 1 | S88: Regulated
B89: 2020 | C89: Nicosia | D89: =IF($B89=spare,Not.a.postcode, IF(NOT(ISNA(MATCH($B89,Occupied.postal.codes,0))),0, IF(ISNA(MATCH($B89,OCECPR.postal.codes,0)),0,INDEX(OCECPR.number.of.fibre.networks,MATCH($B89,OCECPR.postal.codes,0),)))) -> 1 | E89: =IF($B89=spare,Not.a.postcode, IF(NOT(ISNA(MATCH($B89,Occupied.postal.codes,0))),0, IF(NOT(ISNA(MATCH($B89,Postal.codes.reallocation.output,0))), INDEX(OCECPR.number.of.fibre.networks,MATCH(INDEX(Postal.codes.to.be.reallocated,MATCH($B89,Postal.codes.reallocation.output,0),),OCECPR.postal.codes,0)),0))) -> 0 | F89: 1 | G89: Regulated | J89: 7020 | Q89: 1 | S89: Regulated
B90: 2021 | C90: Nicosia | D90: =IF($B90=spare,Not.a.postcode, IF(NOT(ISNA(MATCH($B90,Occupied.postal.codes,0))),0, IF(ISNA(MATCH($B90,OCECPR.postal.codes,0)),0,INDEX(OCECPR.number.of.fibre.networks,MATCH($B90,OCECPR.postal.codes,0),)))) -> 1 | E90: =IF($B90=spare,Not.a.postcode, IF(NOT(ISNA(MATCH($B90,Occupied.postal.codes,0))),0, IF(NOT(ISNA(MATCH($B90,Postal.codes.reallocation.output,0))), INDEX(OCECPR.number.of.fibre.networks,MATCH(INDEX(Postal.codes.to.be.reallocated,MATCH($B90,Postal.codes.reallocation.output,0),),OCECPR.postal.codes,0)),0))) -> 0 | F90: 1 | G90: Regulated | J90: 7040 | Q90: 1 | S90: Regulated
B91: 2023 | C91: Nicosia | D91: =IF($B91=spare,Not.a.postcode, IF(NOT(ISNA(MATCH($B91,Occupied.postal.codes,0))),0, IF(ISNA(MATCH($B91,OCECPR.postal.codes,0)),0,INDEX(OCECPR.number.of.fibre.networks,MATCH($B91,OCECPR.postal.codes,0),)))) -> 1 | E91: =IF($B91=spare,Not.a.postcode, IF(NOT(ISNA(MATCH($B91,Occupied.postal.codes,0))),0, IF(NOT(ISNA(MATCH($B91,Postal.codes.reallocation.output,0))), INDEX(OCECPR.number.of.fibre.networks,MATCH(INDEX(Postal.codes.to.be.reallocated,MATCH($B91,Postal.codes.reallocation.output,0),),OCECPR.postal.codes,0)),0))) -> 0 | F91: 1 | G91: Regulated | J91: 7041 | Q91: 1 | S91: Regulated
B92: 2024 | C92: Nicosia | D92: =IF($B92=spare,Not.a.postcode, IF(NOT(ISNA(MATCH($B92,Occupied.postal.codes,0))),0, IF(ISNA(MATCH($B92,OCECPR.postal.codes,0)),0,INDEX(OCECPR.number.of.fibre.networks,MATCH($B92,OCECPR.postal.codes,0),)))) -> 1 | E92: =IF($B92=spare,Not.a.postcode, IF(NOT(ISNA(MATCH($B92,Occupied.postal.codes,0))),0, IF(NOT(ISNA(MATCH($B92,Postal.codes.reallocation.output,0))), INDEX(OCECPR.number.of.fibre.networks,MATCH(INDEX(Postal.codes.to.be.reallocated,MATCH($B92,Postal.codes.reallocation.output,0),),OCECPR.postal.codes,0)),0))) -> 0 | F92: 1 | G92: Regulated | J92: 7060 | Q92: 1 | S92: Regulated
B93: 2025 | C93: Nicosia | D93: =IF($B93=spare,Not.a.postcode, IF(NOT(ISNA(MATCH($B93,Occupied.postal.codes,0))),0, IF(ISNA(MATCH($B93,OCECPR.postal.codes,0)),0,INDEX(OCECPR.number.of.fibre.networks,MATCH($B93,OCECPR.postal.codes,0),)))) -> 1 | E93: =IF($B93=spare,Not.a.postcode, IF(NOT(ISNA(MATCH($B93,Occupied.postal.codes,0))),0, IF(NOT(ISNA(MATCH($B93,Postal.codes.reallocation.output,0))), INDEX(OCECPR.number.of.fibre.networks,MATCH(INDEX(Postal.codes.to.be.reallocated,MATCH($B93,Postal.codes.reallocation.output,0),),OCECPR.postal.codes,0)),0))) -> 0 | F93: 1 | G93: Regulated | J93: 7080 | Q93: 1 | S93: Regulated
B94: 2027 | C94: Nicosia | D94: =IF($B94=spare,Not.a.postcode, IF(NOT(ISNA(MATCH($B94,Occupied.postal.codes,0))),0, IF(ISNA(MATCH($B94,OCECPR.postal.codes,0)),0,INDEX(OCECPR.number.of.fibre.networks,MATCH($B94,OCECPR.postal.codes,0),)))) -> 1 | E94: =IF($B94=spare,Not.a.postcode, IF(NOT(ISNA(MATCH($B94,Occupied.postal.codes,0))),0, IF(NOT(ISNA(MATCH($B94,Postal.codes.reallocation.output,0))), INDEX(OCECPR.number.of.fibre.networks,MATCH(INDEX(Postal.codes.to.be.reallocated,MATCH($B94,Postal.codes.reallocation.output,0),),OCECPR.postal.codes,0)),0))) -> 0 | F94: 1 | G94: Regulated | J94: 7081 | Q94: 1 | S94: Regulated
B95: 2028 | C95: Nicosia | D95: =IF($B95=spare,Not.a.postcode, IF(NOT(ISNA(MATCH($B95,Occupied.postal.codes,0))),0, IF(ISNA(MATCH($B95,OCECPR.postal.codes,0)),0,INDEX(OCECPR.number.of.fibre.networks,MATCH($B95,OCECPR.postal.codes,0),)))) -> 1 | E95: =IF($B95=spare,Not.a.postcode, IF(NOT(ISNA(MATCH($B95,Occupied.postal.codes,0))),0, IF(NOT(ISNA(MATCH($B95,Postal.codes.reallocation.output,0))), INDEX(OCECPR.number.of.fibre.networks,MATCH(INDEX(Postal.codes.to.be.reallocated,MATCH($B95,Postal.codes.reallocation.output,0),),OCECPR.postal.codes,0)),0))) -> 0 | F95: 1 | G95: Regulated | J95: 7100 | Q95: 1 | S95: Regulated
B96: 2029 | C96: Nicosia | D96: =IF($B96=spare,Not.a.postcode, IF(NOT(ISNA(MATCH($B96,Occupied.postal.codes,0))),0, IF(ISNA(MATCH($B96,OCECPR.postal.codes,0)),0,INDEX(OCECPR.number.of.fibre.networks,MATCH($B96,OCECPR.postal.codes,0),)))) -> 1 | E96: =IF($B96=spare,Not.a.postcode, IF(NOT(ISNA(MATCH($B96,Occupied.postal.codes,0))),0, IF(NOT(ISNA(MATCH($B96,Postal.codes.reallocation.output,0))), INDEX(OCECPR.number.of.fibre.networks,MATCH(INDEX(Postal.codes.to.be.reallocated,MATCH($B96,Postal.codes.reallocation.output,0),),OCECPR.postal.codes,0)),0))) -> 0 | F96: 1 | G96: Regulated | J96: 7101 | Q96: 1 | S96: Regulated
B97: 2030 | C97: Nicosia | D97: =IF($B97=spare,Not.a.postcode, IF(NOT(ISNA(MATCH($B97,Occupied.postal.codes,0))),0, IF(ISNA(MATCH($B97,OCECPR.postal.codes,0)),0,INDEX(OCECPR.number.of.fibre.networks,MATCH($B97,OCECPR.postal.codes,0),)))) -> 1 | E97: =IF($B97=spare,Not.a.postcode, IF(NOT(ISNA(MATCH($B97,Occupied.postal.codes,0))),0, IF(NOT(ISNA(MATCH($B97,Postal.codes.reallocation.output,0))), INDEX(OCECPR.number.of.fibre.networks,MATCH(INDEX(Postal.codes.to.be.reallocated,MATCH($B97,Postal.codes.reallocation.output,0),),OCECPR.postal.codes,0)),0))) -> 0 | F97: 1 | G97: Regulated | J97: 7102 | Q97: 1 | S97: Regulated
B98: 2031 | C98: Nicosia | D98: =IF($B98=spare,Not.a.postcode, IF(NOT(ISNA(MATCH($B98,Occupied.postal.codes,0))),0, IF(ISNA(MATCH($B98,OCECPR.postal.codes,0)),0,INDEX(OCECPR.number.of.fibre.networks,MATCH($B98,OCECPR.postal.codes,0),)))) -> 1 | E98: =IF($B98=spare,Not.a.postcode, IF(NOT(ISNA(MATCH($B98,Occupied.postal.codes,0))),0, IF(NOT(ISNA(MATCH($B98,Postal.codes.reallocation.output,0))), INDEX(OCECPR.number.of.fibre.networks,MATCH(INDEX(Postal.codes.to.be.reallocated,MATCH($B98,Postal.codes.reallocation.output,0),),OCECPR.postal.codes,0)),0))) -> 0 | F98: 1 | G98: Regulated | J98: 7103 | Q98: 1 | S98: Regulated
B99: 2032 | C99: Nicosia | D99: =IF($B99=spare,Not.a.postcode, IF(NOT(ISNA(MATCH($B99,Occupied.postal.codes,0))),0, IF(ISNA(MATCH($B99,OCECPR.postal.codes,0)),0,INDEX(OCECPR.number.of.fibre.networks,MATCH($B99,OCECPR.postal.codes,0),)))) -> 1 | E99: =IF($B99=spare,Not.a.postcode, IF(NOT(ISNA(MATCH($B99,Occupied.postal.codes,0))),0, IF(NOT(ISNA(MATCH($B99,Postal.codes.reallocation.output,0))), INDEX(OCECPR.number.of.fibre.networks,MATCH(INDEX(Postal.codes.to.be.reallocated,MATCH($B99,Postal.codes.reallocation.output,0),),OCECPR.postal.codes,0)),0))) -> 0 | F99: 1 | G99: Regulated | J99: 7104 | Q99: 1 | S99: Regulated
B100: 2033 | C100: Nicosia | D100: =IF($B100=spare,Not.a.postcode, IF(NOT(ISNA(MATCH($B100,Occupied.postal.codes,0))),0, IF(ISNA(MATCH($B100,OCECPR.postal.codes,0)),0,INDEX(OCECPR.number.of.fibre.networks,MATCH($B100,OCECPR.postal.codes,0),)))) -> 1 | E100: =IF($B100=spare,Not.a.postcode, IF(NOT(ISNA(MATCH($B100,Occupied.postal.codes,0))),0, IF(NOT(ISNA(MATCH($B100,Postal.codes.reallocation.output,0))), INDEX(OCECPR.number.of.fibre.networks,MATCH(INDEX(Postal.codes.to.be.reallocated,MATCH($B100,Postal.codes.reallocation.output,0),),OCECPR.postal.codes,0)),0))) -> 0 | F100: 1 | G100: Regulated | J100: 7105 | Q100: 1 | S100: Regulated
B101: 2034 | C101: Nicosia | D101: =IF($B101=spare,Not.a.postcode, IF(NOT(ISNA(MATCH($B101,Occupied.postal.codes,0))),0, IF(ISNA(MATCH($B101,OCECPR.postal.codes,0)),0,INDEX(OCECPR.number.of.fibre.networks,MATCH($B101,OCECPR.postal.codes,0),)))) -> 1 | E101: =IF($B101=spare,Not.a.postcode, IF(NOT(ISNA(MATCH($B101,Occupied.postal.codes,0))),0, IF(NOT(ISNA(MATCH($B101,Postal.codes.reallocation.output,0))), INDEX(OCECPR.number.of.fibre.networks,MATCH(INDEX(Postal.codes.to.be.reallocated,MATCH($B101,Postal.codes.reallocation.output,0),),OCECPR.postal.codes,0)),0))) -> 0 | F101: 1 | G101: Regulated | J101: 7501 | Q101: 1 | S101: Regulated
B102: 2035 | C102: Nicosia | D102: =IF($B102=spare,Not.a.postcode, IF(NOT(ISNA(MATCH($B102,Occupied.postal.codes,0))),0, IF(ISNA(MATCH($B102,OCECPR.postal.codes,0)),0,INDEX(OCECPR.number.of.fibre.networks,MATCH($B102,OCECPR.postal.codes,0),)))) -> 1 | E102: =IF($B102=spare,Not.a.postcode, IF(NOT(ISNA(MATCH($B102,Occupied.postal.codes,0))),0, IF(NOT(ISNA(MATCH($B102,Postal.codes.reallocation.output,0))), INDEX(OCECPR.number.of.fibre.networks,MATCH(INDEX(Postal.codes.to.be.reallocated,MATCH($B102,Postal.codes.reallocation.output,0),),OCECPR.postal.codes,0)),0))) -> 0 | F102: 1 | G102: Regulated | J102: 7502 | Q102: 1 | S102: Regulated
B103: 2036 | C103: Nicosia | D103: =IF($B103=spare,Not.a.postcode, IF(NOT(ISNA(MATCH($B103,Occupied.postal.codes,0))),0, IF(ISNA(MATCH($B103,OCECPR.postal.codes,0)),0,INDEX(OCECPR.number.of.fibre.networks,MATCH($B103,OCECPR.postal.codes,0),)))) -> 1 | E103: =IF($B103=spare,Not.a.postcode, IF(NOT(ISNA(MATCH($B103,Occupied.postal.codes,0))),0, IF(NOT(ISNA(MATCH($B103,Postal.codes.reallocation.output,0))), INDEX(OCECPR.number.of.fibre.networks,MATCH(INDEX(Postal.codes.to.be.reallocated,MATCH($B103,Postal.codes.reallocation.output,0),),OCECPR.postal.codes,0)),0))) -> 0 | F103: 1 | G103: Regulated | J103: 7503 | Q103: 1 | S103: Regulated
B104: 2037 | C104: Nicosia | D104: =IF($B104=spare,Not.a.postcode, IF(NOT(ISNA(MATCH($B104,Occupied.postal.codes,0))),0, IF(ISNA(MATCH($B104,OCECPR.postal.codes,0)),0,INDEX(OCECPR.number.of.fibre.networks,MATCH($B104,OCECPR.postal.codes,0),)))) -> 1 | E104: =IF($B104=spare,Not.a.postcode, IF(NOT(ISNA(MATCH($B104,Occupied.postal.codes,0))),0, IF(NOT(ISNA(MATCH($B104,Postal.codes.reallocation.output,0))), INDEX(OCECPR.number.of.fibre.networks,MATCH(INDEX(Postal.codes.to.be.reallocated,MATCH($B104,Postal.codes.reallocation.output,0),),OCECPR.postal.codes,0)),0))) -> 0 | F104: 1 | G104: Regulated | J104: 7505 | Q104: 1 | S104: Regulated
B105: 2038 | C105: Nicosia | D105: =IF($B105=spare,Not.a.postcode, IF(NOT(ISNA(MATCH($B105,Occupied.postal.codes,0))),0, IF(ISNA(MATCH($B105,OCECPR.postal.codes,0)),0,INDEX(OCECPR.number.of.fibre.networks,MATCH($B105,OCECPR.postal.codes,0),)))) -> 1 | E105: =IF($B105=spare,Not.a.postcode, IF(NOT(ISNA(MATCH($B105,Occupied.postal.codes,0))),0, IF(NOT(ISNA(MATCH($B105,Postal.codes.reallocation.output,0))), INDEX(OCECPR.number.of.fibre.networks,MATCH(INDEX(Postal.codes.to.be.reallocated,MATCH($B105,Postal.codes.reallocation.output,0),),OCECPR.postal.codes,0)),0))) -> 0 | F105: 1 | G105: Regulated | J105: 7506 | Q105: 1 | S105: Regulated
B106: 2039 | C106: Nicosia | D106: =IF($B106=spare,Not.a.postcode, IF(NOT(ISNA(MATCH($B106,Occupied.postal.codes,0))),0, IF(ISNA(MATCH($B106,OCECPR.postal.codes,0)),0,INDEX(OCECPR.number.of.fibre.networks,MATCH($B106,OCECPR.postal.codes,0),)))) -> 1 | E106: =IF($B106=spare,Not.a.postcode, IF(NOT(ISNA(MATCH($B106,Occupied.postal.codes,0))),0, IF(NOT(ISNA(MATCH($B106,Postal.codes.reallocation.output,0))), INDEX(OCECPR.number.of.fibre.networks,MATCH(INDEX(Postal.codes.to.be.reallocated,MATCH($B106,Postal.codes.reallocation.output,0),),OCECPR.postal.codes,0)),0))) -> 0 | F106: 1 | G106: Regulated | J106: 7508 | Q106: 1 | S106: Regulated
B107: 2040 | C107: Nicosia | D107: =IF($B107=spare,Not.a.postcode, IF(NOT(ISNA(MATCH($B107,Occupied.postal.codes,0))),0, IF(ISNA(MATCH($B107,OCECPR.postal.codes,0)),0,INDEX(OCECPR.number.of.fibre.networks,MATCH($B107,OCECPR.postal.codes,0),)))) -> 1 | E107: =IF($B107=spare,Not.a.postcode, IF(NOT(ISNA(MATCH($B107,Occupied.postal.codes,0))),0, IF(NOT(ISNA(MATCH($B107,Postal.codes.reallocation.output,0))), INDEX(OCECPR.number.of.fibre.networks,MATCH(INDEX(Postal.codes.to.be.reallocated,MATCH($B107,Postal.codes.reallocation.output,0),),OCECPR.postal.codes,0)),0))) -> 0 | F107: 1 | G107: Regulated | J107: 7509 | Q107: 1 | S107: Regulated
B108: 2042 | C108: Nicosia | D108: =IF($B108=spare,Not.a.postcode, IF(NOT(ISNA(MATCH($B108,Occupied.postal.codes,0))),0, IF(ISNA(MATCH($B108,OCECPR.postal.codes,0)),0,INDEX(OCECPR.number.of.fibre.networks,MATCH($B108,OCECPR.postal.codes,0),)))) -> 1 | E108: =IF($B108=spare,Not.a.postcode, IF(NOT(ISNA(MATCH($B108,Occupied.postal.codes,0))),0, IF(NOT(ISNA(MATCH($B108,Postal.codes.reallocation.output,0))), INDEX(OCECPR.number.of.fibre.networks,MATCH(INDEX(Postal.codes.to.be.reallocated,MATCH($B108,Postal.codes.reallocation.output,0),),OCECPR.postal.codes,0)),0))) -> 0 | F108: 1 | G108: Regulated | J108: 7510 | Q108: 1 | S108: Regulated
B109: 2043 | C109: Nicosia | D109: =IF($B109=spare,Not.a.postcode, IF(NOT(ISNA(MATCH($B109,Occupied.postal.codes,0))),0, IF(ISNA(MATCH($B109,OCECPR.postal.codes,0)),0,INDEX(OCECPR.number.of.fibre.networks,MATCH($B109,OCECPR.postal.codes,0),)))) -> 1 | E109: =IF($B109=spare,Not.a.postcode, IF(NOT(ISNA(MATCH($B109,Occupied.postal.codes,0))),0, IF(NOT(ISNA(MATCH($B109,Postal.codes.reallocation.output,0))), INDEX(OCECPR.number.of.fibre.networks,MATCH(INDEX(Postal.codes.to.be.reallocated,MATCH($B109,Postal.codes.reallocation.output,0),),OCECPR.postal.codes,0)),0))) -> 0 | F109: 1 | G109: Regulated | J109: 7520 | Q109: 1 | S109: Regulated
B110: 2044 | C110: Nicosia | D110: =IF($B110=spare,Not.a.postcode, IF(NOT(ISNA(MATCH($B110,Occupied.postal.codes,0))),0, IF(ISNA(MATCH($B110,OCECPR.postal.codes,0)),0,INDEX(OCECPR.number.of.fibre.networks,MATCH($B110,OCECPR.postal.codes,0),)))) -> 1 | E110: =IF($B110=spare,Not.a.postcode, IF(NOT(ISNA(MATCH($B110,Occupied.postal.codes,0))),0, IF(NOT(ISNA(MATCH($B110,Postal.codes.reallocation.output,0))), INDEX(OCECPR.number.of.fibre.networks,MATCH(INDEX(Postal.codes.to.be.reallocated,MATCH($B110,Postal.codes.reallocation.output,0),),OCECPR.postal.codes,0)),0))) -> 0 | F110: 1 | G110: Regulated | J110: 7530 | Q110: 1 | S110: Regulated
B111: 2045 | C111: Nicosia | D111: =IF($B111=spare,Not.a.postcode, IF(NOT(ISNA(MATCH($B111,Occupied.postal.codes,0))),0, IF(ISNA(MATCH($B111,OCECPR.postal.codes,0)),0,INDEX(OCECPR.number.of.fibre.networks,MATCH($B111,OCECPR.postal.codes,0),)))) -> 1 | E111: =IF($B111=spare,Not.a.postcode, IF(NOT(ISNA(MATCH($B111,Occupied.postal.codes,0))),0, IF(NOT(ISNA(MATCH($B111,Postal.codes.reallocation.output,0))), INDEX(OCECPR.number.of.fibre.networks,MATCH(INDEX(Postal.codes.to.be.reallocated,MATCH($B111,Postal.codes.reallocation.output,0),),OCECPR.postal.codes,0)),0))) -> 0 | F111: 1 | G111: Regulated | J111: 7550 | Q111: 1 | S111: Regulated
B112: 2046 | C112: Nicosia | D112: =IF($B112=spare,Not.a.postcode, IF(NOT(ISNA(MATCH($B112,Occupied.postal.codes,0))),0, IF(ISNA(MATCH($B112,OCECPR.postal.codes,0)),0,INDEX(OCECPR.number.of.fibre.networks,MATCH($B112,OCECPR.postal.codes,0),)))) -> 1 | E112: =IF($B112=spare,Not.a.postcode, IF(NOT(ISNA(MATCH($B112,Occupied.postal.codes,0))),0, IF(NOT(ISNA(MATCH($B112,Postal.codes.reallocation.output,0))), INDEX(OCECPR.number.of.fibre.networks,MATCH(INDEX(Postal.codes.to.be.reallocated,MATCH($B112,Postal.codes.reallocation.output,0),),OCECPR.postal.codes,0)),0))) -> 0 | F112: 1 | G112: Regulated | J112: 7560 | Q112: 1 | S112: Regulated
B113: 2047 | C113: Nicosia | D113: =IF($B113=spare,Not.a.postcode, IF(NOT(ISNA(MATCH($B113,Occupied.postal.codes,0))),0, IF(ISNA(MATCH($B113,OCECPR.postal.codes,0)),0,INDEX(OCECPR.number.of.fibre.networks,MATCH($B113,OCECPR.postal.codes,0),)))) -> 1 | E113: =IF($B113=spare,Not.a.postcode, IF(NOT(ISNA(MATCH($B113,Occupied.postal.codes,0))),0, IF(NOT(ISNA(MATCH($B113,Postal.codes.reallocation.output,0))), INDEX(OCECPR.number.of.fibre.networks,MATCH(INDEX(Postal.codes.to.be.reallocated,MATCH($B113,Postal.codes.reallocation.output,0),),OCECPR.postal.codes,0)),0))) -> 0 | F113: 1 | G113: Regulated | J113: 7561 | Q113: 1 | S113: Regulated
B114: 2048 | C114: Nicosia | D114: =IF($B114=spare,Not.a.postcode, IF(NOT(ISNA(MATCH($B114,Occupied.postal.codes,0))),0, IF(ISNA(MATCH($B114,OCECPR.postal.codes,0)),0,INDEX(OCECPR.number.of.fibre.networks,MATCH($B114,OCECPR.postal.codes,0),)))) -> 1 | E114: =IF($B114=spare,Not.a.postcode, IF(NOT(ISNA(MATCH($B114,Occupied.postal.codes,0))),0, IF(NOT(ISNA(MATCH($B114,Postal.codes.reallocation.output,0))), INDEX(OCECPR.number.of.fibre.networks,MATCH(INDEX(Postal.codes.to.be.reallocated,MATCH($B114,Postal.codes.reallocation.output,0),),OCECPR.postal.codes,0)),0))) -> 0 | F114: 1 | G114: Regulated | J114: 7562 | Q114: 1 | S114: Regulated
B115: 2049 | C115: Nicosia | D115: =IF($B115=spare,Not.a.postcode, IF(NOT(ISNA(MATCH($B115,Occupied.postal.codes,0))),0, IF(ISNA(MATCH($B115,OCECPR.postal.codes,0)),0,INDEX(OCECPR.number.of.fibre.networks,MATCH($B115,OCECPR.postal.codes,0),)))) -> 1 | E115: =IF($B115=spare,Not.a.postcode, IF(NOT(ISNA(MATCH($B115,Occupied.postal.codes,0))),0, IF(NOT(ISNA(MATCH($B115,Postal.codes.reallocation.output,0))), INDEX(OCECPR.number.of.fibre.networks,MATCH(INDEX(Postal.codes.to.be.reallocated,MATCH($B115,Postal.codes.reallocation.output,0),),OCECPR.postal.codes,0)),0))) -> 0 | F115: 1 | G115: Regulated | J115: 7570 | Q115: 1 | S115: Regulated
B116: 2050 | C116: Nicosia | D116: =IF($B116=spare,Not.a.postcode, IF(NOT(ISNA(MATCH($B116,Occupied.postal.codes,0))),0, IF(ISNA(MATCH($B116,OCECPR.postal.codes,0)),0,INDEX(OCECPR.number.of.fibre.networks,MATCH($B116,OCECPR.postal.codes,0),)))) -> 1 | E116: =IF($B116=spare,Not.a.postcode, IF(NOT(ISNA(MATCH($B116,Occupied.postal.codes,0))),0, IF(NOT(ISNA(MATCH($B116,Postal.codes.reallocation.output,0))), INDEX(OCECPR.number.of.fibre.networks,MATCH(INDEX(Postal.codes.to.be.reallocated,MATCH($B116,Postal.codes.reallocation.output,0),),OCECPR.postal.codes,0)),0))) -> 0 | F116: 1 | G116: Regulated | J116: 7571 | Q116: 1 | S116: Regulated
B117: 2051 | C117: Nicosia | D117: =IF($B117=spare,Not.a.postcode, IF(NOT(ISNA(MATCH($B117,Occupied.postal.codes,0))),0, IF(ISNA(MATCH($B117,OCECPR.postal.codes,0)),0,INDEX(OCECPR.number.of.fibre.networks,MATCH($B117,OCECPR.postal.codes,0),)))) -> 1 | E117: =IF($B117=spare,Not.a.postcode, IF(NOT(ISNA(MATCH($B117,Occupied.postal.codes,0))),0, IF(NOT(ISNA(MATCH($B117,Postal.codes.reallocation.output,0))), INDEX(OCECPR.number.of.fibre.networks,MATCH(INDEX(Postal.codes.to.be.reallocated,MATCH($B117,Postal.codes.reallocation.output,0),),OCECPR.postal.codes,0)),0))) -> 0 | F117: 1 | G117: Regulated | J117: 7572 | Q117: 1 | S117: Regulated
B118: 2052 | C118: Nicosia | D118: =IF($B118=spare,Not.a.postcode, IF(NOT(ISNA(MATCH($B118,Occupied.postal.codes,0))),0, IF(ISNA(MATCH($B118,OCECPR.postal.codes,0)),0,INDEX(OCECPR.number.of.fibre.networks,MATCH($B118,OCECPR.postal.codes,0),)))) -> 1 | E118: =IF($B118=spare,Not.a.postcode, IF(NOT(ISNA(MATCH($B118,Occupied.postal.codes,0))),0, IF(NOT(ISNA(MATCH($B118,Postal.codes.reallocation.output,0))), INDEX(OCECPR.number.of.fibre.networks,MATCH(INDEX(Postal.codes.to.be.reallocated,MATCH($B118,Postal.codes.reallocation.output,0),),OCECPR.postal.codes,0)),0))) -> 0 | F118: 1 | G118: Regulated | J118: 7573 | Q118: 1 | S118: Regulated
B119: 2054 | C119: Nicosia | D119: =IF($B119=spare,Not.a.postcode, IF(NOT(ISNA(MATCH($B119,Occupied.postal.codes,0))),0, IF(ISNA(MATCH($B119,OCECPR.postal.codes,0)),0,INDEX(OCECPR.number.of.fibre.networks,MATCH($B119,OCECPR.postal.codes,0),)))) -> 1 | E119: =IF($B119=spare,Not.a.postcode, IF(NOT(ISNA(MATCH($B119,Occupied.postal.codes,0))),0, IF(NOT(ISNA(MATCH($B119,Postal.codes.reallocation.output,0))), INDEX(OCECPR.number.of.fibre.networks,MATCH(INDEX(Postal.codes.to.be.reallocated,MATCH($B119,Postal.codes.reallocation.output,0),),OCECPR.postal.codes,0)),0))) -> 0 | F119: 1 | G119: Regulated | J119: 7575 | Q119: 1 | S119: Regulated
B120: 2055 | C120: Nicosia | D120: =IF($B120=spare,Not.a.postcode, IF(NOT(ISNA(MATCH($B120,Occupied.postal.codes,0))),0, IF(ISNA(MATCH($B120,OCECPR.postal.codes,0)),0,INDEX(OCECPR.number.of.fibre.networks,MATCH($B120,OCECPR.postal.codes,0),)))) -> 1 | E120: =IF($B120=spare,Not.a.postcode, IF(NOT(ISNA(MATCH($B120,Occupied.postal.codes,0))),0, IF(NOT(ISNA(MATCH($B120,Postal.codes.reallocation.output,0))), INDEX(OCECPR.number.of.fibre.networks,MATCH(INDEX(Postal.codes.to.be.reallocated,MATCH($B120,Postal.codes.reallocation.output,0),),OCECPR.postal.codes,0)),0))) -> 0 | F120: 1 | G120: Regulated | J120: 7576 | Q120: 1 | S120: Regulated
B121: 2057 | C121: Nicosia | D121: =IF($B121=spare,Not.a.postcode, IF(NOT(ISNA(MATCH($B121,Occupied.postal.codes,0))),0, IF(ISNA(MATCH($B121,OCECPR.postal.codes,0)),0,INDEX(OCECPR.number.of.fibre.networks,MATCH($B121,OCECPR.postal.codes,0),)))) -> 1 | E121: =IF($B121=spare,Not.a.postcode, IF(NOT(ISNA(MATCH($B121,Occupied.postal.codes,0))),0, IF(NOT(ISNA(MATCH($B121,Postal.codes.reallocation.output,0))), INDEX(OCECPR.number.of.fibre.networks,MATCH(INDEX(Postal.codes.to.be.reallocated,MATCH($B121,Postal.codes.reallocation.output,0),),OCECPR.postal.codes,0)),0))) -> 0 | F121: 1 | G121: Regulated | J121: 7577 | Q121: 1 | S121: Regulated
B122: 2058 | C122: Nicosia | D122: =IF($B122=spare,Not.a.postcode, IF(NOT(ISNA(MATCH($B122,Occupied.postal.codes,0))),0, IF(ISNA(MATCH($B122,OCECPR.postal.codes,0)),0,INDEX(OCECPR.number.of.fibre.networks,MATCH($B122,OCECPR.postal.codes,0),)))) -> 1 | E122: =IF($B122=spare,Not.a.postcode, IF(NOT(ISNA(MATCH($B122,Occupied.postal.codes,0))),0, IF(NOT(ISNA(MATCH($B122,Postal.codes.reallocation.output,0))), INDEX(OCECPR.number.of.fibre.networks,MATCH(INDEX(Postal.codes.to.be.reallocated,MATCH($B122,Postal.codes.reallocation.output,0),),OCECPR.postal.codes,0)),0))) -> 0 | F122: 1 | G122: Regulated | J122: 7578 | Q122: 1 | S122: Regulated
B123: 2059 | C123: Nicosia | D123: =IF($B123=spare,Not.a.postcode, IF(NOT(ISNA(MATCH($B123,Occupied.postal.codes,0))),0, IF(ISNA(MATCH($B123,OCECPR.postal.codes,0)),0,INDEX(OCECPR.number.of.fibre.networks,MATCH($B123,OCECPR.postal.codes,0),)))) -> 1 | E123: =IF($B123=spare,Not.a.postcode, IF(NOT(ISNA(MATCH($B123,Occupied.postal.codes,0))),0, IF(NOT(ISNA(MATCH($B123,Postal.codes.reallocation.output,0))), INDEX(OCECPR.number.of.fibre.networks,MATCH(INDEX(Postal.codes.to.be.reallocated,MATCH($B123,Postal.codes.reallocation.output,0),),OCECPR.postal.codes,0)),0))) -> 0 | F123: 1 | G123: Regulated | J123: 7600 | Q123: 1 | S123: Regulated
B124: 2060 | C124: Nicosia | D124: =IF($B124=spare,Not.a.postcode, IF(NOT(ISNA(MATCH($B124,Occupied.postal.codes,0))),0, IF(ISNA(MATCH($B124,OCECPR.postal.codes,0)),0,INDEX(OCECPR.number.of.fibre.networks,MATCH($B124,OCECPR.postal.codes,0),)))) -> 1 | E124: =IF($B124=spare,Not.a.postcode, IF(NOT(ISNA(MATCH($B124,Occupied.postal.codes,0))),0, IF(NOT(ISNA(MATCH($B124,Postal.codes.reallocation.output,0))), INDEX(OCECPR.number.of.fibre.networks,MATCH(INDEX(Postal.codes.to.be.reallocated,MATCH($B124,Postal.codes.reallocation.output,0),),OCECPR.postal.codes,0)),0))) -> 0 | F124: 1 | G124: Regulated | J124: 7640 | Q124: 1 | S124: Regulated
B125: 2062 | C125: Nicosia | D125: =IF($B125=spare,Not.a.postcode, IF(NOT(ISNA(MATCH($B125,Occupied.postal.codes,0))),0, IF(ISNA(MATCH($B125,OCECPR.postal.codes,0)),0,INDEX(OCECPR.number.of.fibre.networks,MATCH($B125,OCECPR.postal.codes,0),)))) -> 1 | E125: =IF($B125=spare,Not.a.postcode, IF(NOT(ISNA(MATCH($B125,Occupied.postal.codes,0))),0, IF(NOT(ISNA(MATCH($B125,Postal.codes.reallocation.output,0))), INDEX(OCECPR.number.of.fibre.networks,MATCH(INDEX(Postal.codes.to.be.reallocated,MATCH($B125,Postal.codes.reallocation.output,0),),OCECPR.postal.codes,0)),0))) -> 0 | F125: 1 | G125: Regulated | J125: 7641 | Q125: 1 | S125: Regulated
B126: 2063 | C126: Nicosia | D126: =IF($B126=spare,Not.a.postcode, IF(NOT(ISNA(MATCH($B126,Occupied.postal.codes,0))),0, IF(ISNA(MATCH($B126,OCECPR.postal.codes,0)),0,INDEX(OCECPR.number.of.fibre.networks,MATCH($B126,OCECPR.postal.codes,0),)))) -> 1 | E126: =IF($B126=spare,Not.a.postcode, IF(NOT(ISNA(MATCH($B126,Occupied.postal.codes,0))),0, IF(NOT(ISNA(MATCH($B126,Postal.codes.reallocation.output,0))), INDEX(OCECPR.number.of.fibre.networks,MATCH(INDEX(Postal.codes.to.be.reallocated,MATCH($B126,Postal.codes.reallocation.output,0),),OCECPR.postal.codes,0)),0))) -> 0 | F126: 1 | G126: Regulated | J126: 7642 | Q126: 1 | S126: Regulated
B127: 2064 | C127: Nicosia | D127: =IF($B127=spare,Not.a.postcode, IF(NOT(ISNA(MATCH($B127,Occupied.postal.codes,0))),0, IF(ISNA(MATCH($B127,OCECPR.postal.codes,0)),0,INDEX(OCECPR.number.of.fibre.networks,MATCH($B127,OCECPR.postal.codes,0),)))) -> 1 | E127: =IF($B127=spare,Not.a.postcode, IF(NOT(ISNA(MATCH($B127,Occupied.postal.codes,0))),0, IF(NOT(ISNA(MATCH($B127,Postal.codes.reallocation.output,0))), INDEX(OCECPR.number.of.fibre.networks,MATCH(INDEX(Postal.codes.to.be.reallocated,MATCH($B127,Postal.codes.reallocation.output,0),),OCECPR.postal.codes,0)),0))) -> 0 | F127: 1 | G127: Regulated | J127: 7643 | Q127: 1 | S127: Regulated
B128: 2066 | C128: Nicosia | D128: =IF($B128=spare,Not.a.postcode, IF(NOT(ISNA(MATCH($B128,Occupied.postal.codes,0))),0, IF(ISNA(MATCH($B128,OCECPR.postal.codes,0)),0,INDEX(OCECPR.number.of.fibre.networks,MATCH($B128,OCECPR.postal.codes,0),)))) -> 1 | E128: =IF($B128=spare,Not.a.postcode, IF(NOT(ISNA(MATCH($B128,Occupied.postal.codes,0))),0, IF(NOT(ISNA(MATCH($B128,Postal.codes.reallocation.output,0))), INDEX(OCECPR.number.of.fibre.networks,MATCH(INDEX(Postal.codes.to.be.reallocated,MATCH($B128,Postal.codes.reallocation.output,0),),OCECPR.postal.codes,0)),0))) -> 0 | F128: 1 | G128: Regulated | J128: 7644 | Q128: 1 | S128: Regulated
B129: 2100 | C129: Nicosia | D129: =IF($B129=spare,Not.a.postcode, IF(NOT(ISNA(MATCH($B129,Occupied.postal.codes,0))),0, IF(ISNA(MATCH($B129,OCECPR.postal.codes,0)),0,INDEX(OCECPR.number.of.fibre.networks,MATCH($B129,OCECPR.postal.codes,0),)))) -> 1 | E129: =IF($B129=spare,Not.a.postcode, IF(NOT(ISNA(MATCH($B129,Occupied.postal.codes,0))),0, IF(NOT(ISNA(MATCH($B129,Postal.codes.reallocation.output,0))), INDEX(OCECPR.number.of.fibre.networks,MATCH(INDEX(Postal.codes.to.be.reallocated,MATCH($B129,Postal.codes.reallocation.output,0),),OCECPR.postal.codes,0)),0))) -> 0 | F129: 1 | G129: Regulated | J129: 7645 | Q129: 1 | S129: Regulated
B130: 2101 | C130: Nicosia | D130: =IF($B130=spare,Not.a.postcode, IF(NOT(ISNA(MATCH($B130,Occupied.postal.codes,0))),0, IF(ISNA(MATCH($B130,OCECPR.postal.codes,0)),0,INDEX(OCECPR.number.of.fibre.networks,MATCH($B130,OCECPR.postal.codes,0),)))) -> 1 | E130: =IF($B130=spare,Not.a.postcode, IF(NOT(ISNA(MATCH($B130,Occupied.postal.codes,0))),0, IF(NOT(ISNA(MATCH($B130,Postal.codes.reallocation.output,0))), INDEX(OCECPR.number.of.fibre.networks,MATCH(INDEX(Postal.codes.to.be.reallocated,MATCH($B130,Postal.codes.reallocation.output,0),),OCECPR.postal.codes,0)),0))) -> 0 | F130: 1 | G130: Regulated | J130: 7646 | Q130: 1 | S130: Regulated
B131: 2102 | C131: Nicosia | D131: =IF($B131=spare,Not.a.postcode, IF(NOT(ISNA(MATCH($B131,Occupied.postal.codes,0))),0, IF(ISNA(MATCH($B131,OCECPR.postal.codes,0)),0,INDEX(OCECPR.number.of.fibre.networks,MATCH($B131,OCECPR.postal.codes,0),)))) -> 1 | E131: =IF($B131=spare,Not.a.postcode, IF(NOT(ISNA(MATCH($B131,Occupied.postal.codes,0))),0, IF(NOT(ISNA(MATCH($B131,Postal.codes.reallocation.output,0))), INDEX(OCECPR.number.of.fibre.networks,MATCH(INDEX(Postal.codes.to.be.reallocated,MATCH($B131,Postal.codes.reallocation.output,0),),OCECPR.postal.codes,0)),0))) -> 0 | F131: 1 | G131: Regulated | J131: 7647 | Q131: 1 | S131: Regulated
B132: 2103 | C132: Nicosia | D132: =IF($B132=spare,Not.a.postcode, IF(NOT(ISNA(MATCH($B132,Occupied.postal.codes,0))),0, IF(ISNA(MATCH($B132,OCECPR.postal.codes,0)),0,INDEX(OCECPR.number.of.fibre.networks,MATCH($B132,OCECPR.postal.codes,0),)))) -> 1 | E132: =IF($B132=spare,Not.a.postcode, IF(NOT(ISNA(MATCH($B132,Occupied.postal.codes,0))),0, IF(NOT(ISNA(MATCH($B132,Postal.codes.reallocation.output,0))), INDEX(OCECPR.number.of.fibre.networks,MATCH(INDEX(Postal.codes.to.be.reallocated,MATCH($B132,Postal.codes.reallocation.output,0),),OCECPR.postal.codes,0)),0))) -> 0 | F132: 1 | G132: Regulated | J132: 7648 | Q132: 1 | S132: Regulated
B133: 2107 | C133: Nicosia | D133: =IF($B133=spare,Not.a.postcode, IF(NOT(ISNA(MATCH($B133,Occupied.postal.codes,0))),0, IF(ISNA(MATCH($B133,OCECPR.postal.codes,0)),0,INDEX(OCECPR.number.of.fibre.networks,MATCH($B133,OCECPR.postal.codes,0),)))) -> 1 | E133: =IF($B133=spare,Not.a.postcode, IF(NOT(ISNA(MATCH($B133,Occupied.postal.codes,0))),0, IF(NOT(ISNA(MATCH($B133,Postal.codes.reallocation.output,0))), INDEX(OCECPR.number.of.fibre.networks,MATCH(INDEX(Postal.codes.to.be.reallocated,MATCH($B133,Postal.codes.reallocation.output,0),),OCECPR.postal.codes,0)),0))) -> 0 | F133: 1 | G133: Regulated | J133: 7649 | Q133: 1 | S133: Regulated
B134: 2108 | C134: Nicosia | D134: =IF($B134=spare,Not.a.postcode, IF(NOT(ISNA(MATCH($B134,Occupied.postal.codes,0))),0, IF(ISNA(MATCH($B134,OCECPR.postal.codes,0)),0,INDEX(OCECPR.number.of.fibre.networks,MATCH($B134,OCECPR.postal.codes,0),)))) -> 1 | E134: =IF($B134=spare,Not.a.postcode, IF(NOT(ISNA(MATCH($B134,Occupied.postal.codes,0))),0, IF(NOT(ISNA(MATCH($B134,Postal.codes.reallocation.output,0))), INDEX(OCECPR.number.of.fibre.networks,MATCH(INDEX(Postal.codes.to.be.reallocated,MATCH($B134,Postal.codes.reallocation.output,0),),OCECPR.postal.codes,0)),0))) -> 0 | F134: 1 | G134: Regulated | J134: 7650 | Q134: 1 | S134: Regulated
B135: 2109 | C135: Nicosia | D135: =IF($B135=spare,Not.a.postcode, IF(NOT(ISNA(MATCH($B135,Occupied.postal.codes,0))),0, IF(ISNA(MATCH($B135,OCECPR.postal.codes,0)),0,INDEX(OCECPR.number.of.fibre.networks,MATCH($B135,OCECPR.postal.codes,0),)))) -> 1 | E135: =IF($B135=spare,Not.a.postcode, IF(NOT(ISNA(MATCH($B135,Occupied.postal.codes,0))),0, IF(NOT(ISNA(MATCH($B135,Postal.codes.reallocation.output,0))), INDEX(OCECPR.number.of.fibre.networks,MATCH(INDEX(Postal.codes.to.be.reallocated,MATCH($B135,Postal.codes.reallocation.output,0),),OCECPR.postal.codes,0)),0))) -> 0 | F135: 1 | G135: Regulated | J135: 7700 | Q135: 1 | S135: Regulated
B136: 2112 | C136: Nicosia | D136: =IF($B136=spare,Not.a.postcode, IF(NOT(ISNA(MATCH($B136,Occupied.postal.codes,0))),0, IF(ISNA(MATCH($B136,OCECPR.postal.codes,0)),0,INDEX(OCECPR.number.of.fibre.networks,MATCH($B136,OCECPR.postal.codes,0),)))) -> 1 | E136: =IF($B136=spare,Not.a.postcode, IF(NOT(ISNA(MATCH($B136,Occupied.postal.codes,0))),0, IF(NOT(ISNA(MATCH($B136,Postal.codes.reallocation.output,0))), INDEX(OCECPR.number.of.fibre.networks,MATCH(INDEX(Postal.codes.to.be.reallocated,MATCH($B136,Postal.codes.reallocation.output,0),),OCECPR.postal.codes,0)),0))) -> 0 | F136: 1 | G136: Regulated | J136: 7710 | Q136: 1 | S136: Regulated
B137: 2113 | C137: Nicosia | D137: =IF($B137=spare,Not.a.postcode, IF(NOT(ISNA(MATCH($B137,Occupied.postal.codes,0))),0, IF(ISNA(MATCH($B137,OCECPR.postal.codes,0)),0,INDEX(OCECPR.number.of.fibre.networks,MATCH($B137,OCECPR.postal.codes,0),)))) -> 1 | E137: =IF($B137=spare,Not.a.postcode, IF(NOT(ISNA(MATCH($B137,Occupied.postal.codes,0))),0, IF(NOT(ISNA(MATCH($B137,Postal.codes.reallocation.output,0))), INDEX(OCECPR.number.of.fibre.networks,MATCH(INDEX(Postal.codes.to.be.reallocated,MATCH($B137,Postal.codes.reallocation.output,0),),OCECPR.postal.codes,0)),0))) -> 0 | F137: 1 | G137: Regulated | J137: 7711 | Q137: 1 | S137: Regulated
B138: 2114 | C138: Nicosia | D138: =IF($B138=spare,Not.a.postcode, IF(NOT(ISNA(MATCH($B138,Occupied.postal.codes,0))),0, IF(ISNA(MATCH($B138,OCECPR.postal.codes,0)),0,INDEX(OCECPR.number.of.fibre.networks,MATCH($B138,OCECPR.postal.codes,0),)))) -> 1 | E138: =IF($B138=spare,Not.a.postcode, IF(NOT(ISNA(MATCH($B138,Occupied.postal.codes,0))),0, IF(NOT(ISNA(MATCH($B138,Postal.codes.reallocation.output,0))), INDEX(OCECPR.number.of.fibre.networks,MATCH(INDEX(Postal.codes.to.be.reallocated,MATCH($B138,Postal.codes.reallocation.output,0),),OCECPR.postal.codes,0)),0))) -> 0 | F138: 1 | G138: Regulated | J138: 7712 | Q138: 1 | S138: Regulated
B139: 2115 | C139: Nicosia | D139: =IF($B139=spare,Not.a.postcode, IF(NOT(ISNA(MATCH($B139,Occupied.postal.codes,0))),0, IF(ISNA(MATCH($B139,OCECPR.postal.codes,0)),0,INDEX(OCECPR.number.of.fibre.networks,MATCH($B139,OCECPR.postal.codes,0),)))) -> 1 | E139: =IF($B139=spare,Not.a.postcode, IF(NOT(ISNA(MATCH($B139,Occupied.postal.codes,0))),0, IF(NOT(ISNA(MATCH($B139,Postal.codes.reallocation.output,0))), INDEX(OCECPR.number.of.fibre.networks,MATCH(INDEX(Postal.codes.to.be.reallocated,MATCH($B139,Postal.codes.reallocation.output,0),),OCECPR.postal.codes,0)),0))) -> 0 | F139: 1 | G139: Regulated | J139: 7713 | Q139: 1 | S139: Regulated
B140: 2116 | C140: Nicosia | D140: =IF($B140=spare,Not.a.postcode, IF(NOT(ISNA(MATCH($B140,Occupied.postal.codes,0))),0, IF(ISNA(MATCH($B140,OCECPR.postal.codes,0)),0,INDEX(OCECPR.number.of.fibre.networks,MATCH($B140,OCECPR.postal.codes,0),)))) -> 1 | E140: =IF($B140=spare,Not.a.postcode, IF(NOT(ISNA(MATCH($B140,Occupied.postal.codes,0))),0, IF(NOT(ISNA(MATCH($B140,Postal.codes.reallocation.output,0))), INDEX(OCECPR.number.of.fibre.networks,MATCH(INDEX(Postal.codes.to.be.reallocated,MATCH($B140,Postal.codes.reallocation.output,0),),OCECPR.postal.codes,0)),0))) -> 0 | F140: 1 | G140: Regulated | J140: 7714 | Q140: 1 | S140: Regulated
B141: 2120 | C141: Nicosia | D141: =IF($B141=spare,Not.a.postcode, IF(NOT(ISNA(MATCH($B141,Occupied.postal.codes,0))),0, IF(ISNA(MATCH($B141,OCECPR.postal.codes,0)),0,INDEX(OCECPR.number.of.fibre.networks,MATCH($B141,OCECPR.postal.codes,0),)))) -> 1 | E141: =IF($B141=spare,Not.a.postcode, IF(NOT(ISNA(MATCH($B141,Occupied.postal.codes,0))),0, IF(NOT(ISNA(MATCH($B141,Postal.codes.reallocation.output,0))), INDEX(OCECPR.number.of.fibre.networks,MATCH(INDEX(Postal.codes.to.be.reallocated,MATCH($B141,Postal.codes.reallocation.output,0),),OCECPR.postal.codes,0)),0))) -> 0 | F141: 1 | G141: Regulated | J141: 7715 | Q141: 1 | S141: Regulated
B142: 2121 | C142: Nicosia | D142: =IF($B142=spare,Not.a.postcode, IF(NOT(ISNA(MATCH($B142,Occupied.postal.codes,0))),0, IF(ISNA(MATCH($B142,OCECPR.postal.codes,0)),0,INDEX(OCECPR.number.of.fibre.networks,MATCH($B142,OCECPR.postal.codes,0),)))) -> 1 | E142: =IF($B142=spare,Not.a.postcode, IF(NOT(ISNA(MATCH($B142,Occupied.postal.codes,0))),0, IF(NOT(ISNA(MATCH($B142,Postal.codes.reallocation.output,0))), INDEX(OCECPR.number.of.fibre.networks,MATCH(INDEX(Postal.codes.to.be.reallocated,MATCH($B142,Postal.codes.reallocation.output,0),),OCECPR.postal.codes,0)),0))) -> 0 | F142: 1 | G142: Regulated | J142: 7716 | Q142: 1 | S142: Regulated
B143: 2122 | C143: Nicosia | D143: =IF($B143=spare,Not.a.postcode, IF(NOT(ISNA(MATCH($B143,Occupied.postal.codes,0))),0, IF(ISNA(MATCH($B143,OCECPR.postal.codes,0)),0,INDEX(OCECPR.number.of.fibre.networks,MATCH($B143,OCECPR.postal.codes,0),)))) -> 1 | E143: =IF($B143=spare,Not.a.postcode, IF(NOT(ISNA(MATCH($B143,Occupied.postal.codes,0))),0, IF(NOT(ISNA(MATCH($B143,Postal.codes.reallocation.output,0))), INDEX(OCECPR.number.of.fibre.networks,MATCH(INDEX(Postal.codes.to.be.reallocated,MATCH($B143,Postal.codes.reallocation.output,0),),OCECPR.postal.codes,0)),0))) -> 0 | F143: 1 | G143: Regulated | J143: 7717 | Q143: 1 | S143: Regulated
B144: 2123 | C144: Nicosia | D144: =IF($B144=spare,Not.a.postcode, IF(NOT(ISNA(MATCH($B144,Occupied.postal.codes,0))),0, IF(ISNA(MATCH($B144,OCECPR.postal.codes,0)),0,INDEX(OCECPR.number.of.fibre.networks,MATCH($B144,OCECPR.postal.codes,0),)))) -> 1 | E144: =IF($B144=spare,Not.a.postcode, IF(NOT(ISNA(MATCH($B144,Occupied.postal.codes,0))),0, IF(NOT(ISNA(MATCH($B144,Postal.codes.reallocation.output,0))), INDEX(OCECPR.number.of.fibre.networks,MATCH(INDEX(Postal.codes.to.be.reallocated,MATCH($B144,Postal.codes.reallocation.output,0),),OCECPR.postal.codes,0)),0))) -> 0 | F144: 1 | G144: Regulated | J144: 7718 | Q144: 1 | S144: Regulated
B145: 2200 | C145: Nicosia | D145: =IF($B145=spare,Not.a.postcode, IF(NOT(ISNA(MATCH($B145,Occupied.postal.codes,0))),0, IF(ISNA(MATCH($B145,OCECPR.postal.codes,0)),0,INDEX(OCECPR.number.of.fibre.networks,MATCH($B145,OCECPR.postal.codes,0),)))) -> 1 | E145: =IF($B145=spare,Not.a.postcode, IF(NOT(ISNA(MATCH($B145,Occupied.postal.codes,0))),0, IF(NOT(ISNA(MATCH($B145,Postal.codes.reallocation.output,0))), INDEX(OCECPR.number.of.fibre.networks,MATCH(INDEX(Postal.codes.to.be.reallocated,MATCH($B145,Postal.codes.reallocation.output,0),),OCECPR.postal.codes,0)),0))) -> 0 | F145: 1 | G145: Regulated | J145: 7719 | Q145: 1 | S145: Regulated
B146: 2201 | C146: Nicosia | D146: =IF($B146=spare,Not.a.postcode, IF(NOT(ISNA(MATCH($B146,Occupied.postal.codes,0))),0, IF(ISNA(MATCH($B146,OCECPR.postal.codes,0)),0,INDEX(OCECPR.number.of.fibre.networks,MATCH($B146,OCECPR.postal.codes,0),)))) -> 1 | E146: =IF($B146=spare,Not.a.postcode, IF(NOT(ISNA(MATCH($B146,Occupied.postal.codes,0))),0, IF(NOT(ISNA(MATCH($B146,Postal.codes.reallocation.output,0))), INDEX(OCECPR.number.of.fibre.networks,MATCH(INDEX(Postal.codes.to.be.reallocated,MATCH($B146,Postal.codes.reallocation.output,0),),OCECPR.postal.codes,0)),0))) -> 0 | F146: 1 | G146: Regulated | J146: 7730 | Q146: 1 | S146: Regulated
B147: 2202 | C147: Nicosia | D147: =IF($B147=spare,Not.a.postcode, IF(NOT(ISNA(MATCH($B147,Occupied.postal.codes,0))),0, IF(ISNA(MATCH($B147,OCECPR.postal.codes,0)),0,INDEX(OCECPR.number.of.fibre.networks,MATCH($B147,OCECPR.postal.codes,0),)))) -> 1 | E147: =IF($B147=spare,Not.a.postcode, IF(NOT(ISNA(MATCH($B147,Occupied.postal.codes,0))),0, IF(NOT(ISNA(MATCH($B147,Postal.codes.reallocation.output,0))), INDEX(OCECPR.number.of.fibre.networks,MATCH(INDEX(Postal.codes.to.be.reallocated,MATCH($B147,Postal.codes.reallocation.output,0),),OCECPR.postal.codes,0)),0))) -> 0 | F147: 1 | G147: =IF($B147=spare,Not.a.postcode, IF(NOT(ISNA(MATCH($B147,Occupied.postal.codes,0))),Occupied, IF(F147>=Deregulation.threshold,Unregulated,Regulated))) -> Regulated | J147: 7731 | Q147: 1 | S147: Regulated
B148: 2220 | C148: Nicosia | D148: =IF($B148=spare,Not.a.postcode, IF(NOT(ISNA(MATCH($B148,Occupied.postal.codes,0))),0, IF(ISNA(MATCH($B148,OCECPR.postal.codes,0)),0,INDEX(OCECPR.number.of.fibre.networks,MATCH($B148,OCECPR.postal.codes,0),)))) -> 1 | E148: =IF($B148=spare,Not.a.postcode, IF(NOT(ISNA(MATCH($B148,Occupied.postal.codes,0))),0, IF(NOT(ISNA(MATCH($B148,Postal.codes.reallocation.output,0))), INDEX(OCECPR.number.of.fibre.networks,MATCH(INDEX(Postal.codes.to.be.reallocated,MATCH($B148,Postal.codes.reallocation.output,0),),OCECPR.postal.codes,0)),0))) -> 0 | F148: =MAX(D148,E148) -> 1 | G148: Regulated | J148: 7732 | Q148: 1 | S148: =IF(Q148>=Deregulation.threshold,Unregulated,Regulated) -> Regulated
B149: 2221 | C149: Nicosia | D149: =IF($B149=spare,Not.a.postcode, IF(NOT(ISNA(MATCH($B149,Occupied.postal.codes,0))),0, IF(ISNA(MATCH($B149,OCECPR.postal.codes,0)),0,INDEX(OCECPR.number.of.fibre.networks,MATCH($B149,OCECPR.postal.codes,0),)))) -> 1 | E149: =IF($B149=spare,Not.a.postcode, IF(NOT(ISNA(MATCH($B149,Occupied.postal.codes,0))),0, IF(NOT(ISNA(MATCH($B149,Postal.codes.reallocation.output,0))), INDEX(OCECPR.number.of.fibre.networks,MATCH(INDEX(Postal.codes.to.be.reallocated,MATCH($B149,Postal.codes.reallocation.output,0),),OCECPR.postal.codes,0)),0))) -> 0 | F149: 1 | G149: Regulated | J149: 7733 | Q149: 1 | S149: Regulated
B150: 2222 | C150: Nicosia | D150: =IF($B150=spare,Not.a.postcode, IF(NOT(ISNA(MATCH($B150,Occupied.postal.codes,0))),0, IF(ISNA(MATCH($B150,OCECPR.postal.codes,0)),0,INDEX(OCECPR.number.of.fibre.networks,MATCH($B150,OCECPR.postal.codes,0),)))) -> 1 | E150: =IF($B150=spare,Not.a.postcode, IF(NOT(ISNA(MATCH($B150,Occupied.postal.codes,0))),0, IF(NOT(ISNA(MATCH($B150,Postal.codes.reallocation.output,0))), INDEX(OCECPR.number.of.fibre.networks,MATCH(INDEX(Postal.codes.to.be.reallocated,MATCH($B150,Postal.codes.reallocation.output,0),),OCECPR.postal.codes,0)),0))) -> 0 | F150: 1 | G150: Regulated | J150: 7734 | Q150: 1 | S150: Regulated
B151: 2223 | C151: Nicosia | D151: =IF($B151=spare,Not.a.postcode, IF(NOT(ISNA(MATCH($B151,Occupied.postal.codes,0))),0, IF(ISNA(MATCH($B151,OCECPR.postal.codes,0)),0,INDEX(OCECPR.number.of.fibre.networks,MATCH($B151,OCECPR.postal.codes,0),)))) -> 1 | E151: =IF($B151=spare,Not.a.postcode, IF(NOT(ISNA(MATCH($B151,Occupied.postal.codes,0))),0, IF(NOT(ISNA(MATCH($B151,Postal.codes.reallocation.output,0))), INDEX(OCECPR.number.of.fibre.networks,MATCH(INDEX(Postal.codes.to.be.reallocated,MATCH($B151,Postal.codes.reallocation.output,0),),OCECPR.postal.codes,0)),0))) -> 0 | F151: 1 | G151: Regulated | J151: 7735 | Q151: 1 | S151: Regulated
B152: 2224 | C152: Nicosia | D152: =IF($B152=spare,Not.a.postcode, IF(NOT(ISNA(MATCH($B152,Occupied.postal.codes,0))),0, IF(ISNA(MATCH($B152,OCECPR.postal.codes,0)),0,INDEX(OCECPR.number.of.fibre.networks,MATCH($B152,OCECPR.postal.codes,0),)))) -> 1 | E152: =IF($B152=spare,Not.a.postcode, IF(NOT(ISNA(MATCH($B152,Occupied.postal.codes,0))),0, IF(NOT(ISNA(MATCH($B152,Postal.codes.reallocation.output,0))), INDEX(OCECPR.number.of.fibre.networks,MATCH(INDEX(Postal.codes.to.be.reallocated,MATCH($B152,Postal.codes.reallocation.output,0),),OCECPR.postal.codes,0)),0))) -> 0 | F152: 1 | G152: Regulated | J152: 7736 | Q152: 1 | S152: Regulated
B153: 2230 | C153: Nicosia | D153: =IF($B153=spare,Not.a.postcode, IF(NOT(ISNA(MATCH($B153,Occupied.postal.codes,0))),0, IF(ISNA(MATCH($B153,OCECPR.postal.codes,0)),0,INDEX(OCECPR.number.of.fibre.networks,MATCH($B153,OCECPR.postal.codes,0),)))) -> 1 | E153: =IF($B153=spare,Not.a.postcode, IF(NOT(ISNA(MATCH($B153,Occupied.postal.codes,0))),0, IF(NOT(ISNA(MATCH($B153,Postal.codes.reallocation.output,0))), INDEX(OCECPR.number.of.fibre.networks,MATCH(INDEX(Postal.codes.to.be.reallocated,MATCH($B153,Postal.codes.reallocation.output,0),),OCECPR.postal.codes,0)),0))) -> 0 | F153: 1 | G153: Regulated | J153: 7737 | Q153: 1 | S153: Regulated
B154: 2231 | C154: Nicosia | D154: =IF($B154=spare,Not.a.postcode, IF(NOT(ISNA(MATCH($B154,Occupied.postal.codes,0))),0, IF(ISNA(MATCH($B154,OCECPR.postal.codes,0)),0,INDEX(OCECPR.number.of.fibre.networks,MATCH($B154,OCECPR.postal.codes,0),)))) -> 1 | E154: =IF($B154=spare,Not.a.postcode, IF(NOT(ISNA(MATCH($B154,Occupied.postal.codes,0))),0, IF(NOT(ISNA(MATCH($B154,Postal.codes.reallocation.output,0))), INDEX(OCECPR.number.of.fibre.networks,MATCH(INDEX(Postal.codes.to.be.reallocated,MATCH($B154,Postal.codes.reallocation.output,0),),OCECPR.postal.codes,0)),0))) -> 0 | F154: 1 | G154: Regulated | J154: 7738 | Q154: 1 | S154: Regulated
B155: 2232 | C155: Nicosia | D155: =IF($B155=spare,Not.a.postcode, IF(NOT(ISNA(MATCH($B155,Occupied.postal.codes,0))),0, IF(ISNA(MATCH($B155,OCECPR.postal.codes,0)),0,INDEX(OCECPR.number.of.fibre.networks,MATCH($B155,OCECPR.postal.codes,0),)))) -> 1 | E155: =IF($B155=spare,Not.a.postcode, IF(NOT(ISNA(MATCH($B155,Occupied.postal.codes,0))),0, IF(NOT(ISNA(MATCH($B155,Postal.codes.reallocation.output,0))), INDEX(OCECPR.number.of.fibre.networks,MATCH(INDEX(Postal.codes.to.be.reallocated,MATCH($B155,Postal.codes.reallocation.output,0),),OCECPR.postal.codes,0)),0))) -> 0 | F155: 1 | G155: Regulated | J155: 7739 | Q155: 1 | S155: Regulated
B156: 2233 | C156: Nicosia | D156: =IF($B156=spare,Not.a.postcode, IF(NOT(ISNA(MATCH($B156,Occupied.postal.codes,0))),0, IF(ISNA(MATCH($B156,OCECPR.postal.codes,0)),0,INDEX(OCECPR.number.of.fibre.networks,MATCH($B156,OCECPR.postal.codes,0),)))) -> 1 | E156: =IF($B156=spare,Not.a.postcode, IF(NOT(ISNA(MATCH($B156,Occupied.postal.codes,0))),0, IF(NOT(ISNA(MATCH($B156,Postal.codes.reallocation.output,0))), INDEX(OCECPR.number.of.fibre.networks,MATCH(INDEX(Postal.codes.to.be.reallocated,MATCH($B156,Postal.codes.reallocation.output,0),),OCECPR.postal.codes,0)),0))) -> 0 | F156: 1 | G156: Regulated | J156: 7740 | Q156: 1 | S156: Regulated
B157: 2234 | C157: Nicosia | D157: =IF($B157=spare,Not.a.postcode, IF(NOT(ISNA(MATCH($B157,Occupied.postal.codes,0))),0, IF(ISNA(MATCH($B157,OCECPR.postal.codes,0)),0,INDEX(OCECPR.number.of.fibre.networks,MATCH($B157,OCECPR.postal.codes,0),)))) -> 1 | E157: =IF($B157=spare,Not.a.postcode, IF(NOT(ISNA(MATCH($B157,Occupied.postal.codes,0))),0, IF(NOT(ISNA(MATCH($B157,Postal.codes.reallocation.output,0))), INDEX(OCECPR.number.of.fibre.networks,MATCH(INDEX(Postal.codes.to.be.reallocated,MATCH($B157,Postal.codes.reallocation.output,0),),OCECPR.postal.codes,0)),0))) -> 0 | F157: 1 | G157: Regulated | J157: 7741 | Q157: 1 | S157: Regulated
B158: 2235 | C158: Nicosia | D158: =IF($B158=spare,Not.a.postcode, IF(NOT(ISNA(MATCH($B158,Occupied.postal.codes,0))),0, IF(ISNA(MATCH($B158,OCECPR.postal.codes,0)),0,INDEX(OCECPR.number.of.fibre.networks,MATCH($B158,OCECPR.postal.codes,0),)))) -> 1 | E158: =IF($B158=spare,Not.a.postcode, IF(NOT(ISNA(MATCH($B158,Occupied.postal.codes,0))),0, IF(NOT(ISNA(MATCH($B158,Postal.codes.reallocation.output,0))), INDEX(OCECPR.number.of.fibre.networks,MATCH(INDEX(Postal.codes.to.be.reallocated,MATCH($B158,Postal.codes.reallocation.output,0),),OCECPR.postal.codes,0)),0))) -> 0 | F158: 1 | G158: Regulated | J158: 7742 | Q158: 1 | S158: Regulated
B159: 2236 | C159: Nicosia | D159: =IF($B159=spare,Not.a.postcode, IF(NOT(ISNA(MATCH($B159,Occupied.postal.codes,0))),0, IF(ISNA(MATCH($B159,OCECPR.postal.codes,0)),0,INDEX(OCECPR.number.of.fibre.networks,MATCH($B159,OCECPR.postal.codes,0),)))) -> 1 | E159: =IF($B159=spare,Not.a.postcode, IF(NOT(ISNA(MATCH($B159,Occupied.postal.codes,0))),0, IF(NOT(ISNA(MATCH($B159,Postal.codes.reallocation.output,0))), INDEX(OCECPR.number.of.fibre.networks,MATCH(INDEX(Postal.codes.to.be.reallocated,MATCH($B159,Postal.codes.reallocation.output,0),),OCECPR.postal.codes,0)),0))) -> 0 | F159: 1 | G159: Regulated | J159: 7743 | Q159: 1 | S159: Regulated
B160: 2237 | C160: Nicosia | D160: =IF($B160=spare,Not.a.postcode, IF(NOT(ISNA(MATCH($B160,Occupied.postal.codes,0))),0, IF(ISNA(MATCH($B160,OCECPR.postal.codes,0)),0,INDEX(OCECPR.number.of.fibre.networks,MATCH($B160,OCECPR.postal.codes,0),)))) -> 1 | E160: =IF($B160=spare,Not.a.postcode, IF(NOT(ISNA(MATCH($B160,Occupied.postal.codes,0))),0, IF(NOT(ISNA(MATCH($B160,Postal.codes.reallocation.output,0))), INDEX(OCECPR.number.of.fibre.networks,MATCH(INDEX(Postal.codes.to.be.reallocated,MATCH($B160,Postal.codes.reallocation.output,0),),OCECPR.postal.codes,0)),0))) -> 0 | F160: 1 | G160: Regulated | J160: 3010 | Q160: 1 | S160: Regulated
B161: 2238 | C161: Nicosia | D161: =IF($B161=spare,Not.a.postcode, IF(NOT(ISNA(MATCH($B161,Occupied.postal.codes,0))),0, IF(ISNA(MATCH($B161,OCECPR.postal.codes,0)),0,INDEX(OCECPR.number.of.fibre.networks,MATCH($B161,OCECPR.postal.codes,0),)))) -> 1 | E161: =IF($B161=spare,Not.a.postcode, IF(NOT(ISNA(MATCH($B161,Occupied.postal.codes,0))),0, IF(NOT(ISNA(MATCH($B161,Postal.codes.reallocation.output,0))), INDEX(OCECPR.number.of.fibre.networks,MATCH(INDEX(Postal.codes.to.be.reallocated,MATCH($B161,Postal.codes.reallocation.output,0),),OCECPR.postal.codes,0)),0))) -> 0 | F161: 1 | G161: Regulated | J161: 3011 | Q161: 1 | S161: Regulated
B162: 2300 | C162: Nicosia | D162: =IF($B162=spare,Not.a.postcode, IF(NOT(ISNA(MATCH($B162,Occupied.postal.codes,0))),0, IF(ISNA(MATCH($B162,OCECPR.postal.codes,0)),0,INDEX(OCECPR.number.of.fibre.networks,MATCH($B162,OCECPR.postal.codes,0),)))) -> 1 | E162: =IF($B162=spare,Not.a.postcode, IF(NOT(ISNA(MATCH($B162,Occupied.postal.codes,0))),0, IF(NOT(ISNA(MATCH($B162,Postal.codes.reallocation.output,0))), INDEX(OCECPR.number.of.fibre.networks,MATCH(INDEX(Postal.codes.to.be.reallocated,MATCH($B162,Postal.codes.reallocation.output,0),),OCECPR.postal.codes,0)),0))) -> 0 | F162: 1 | G162: Regulated | J162: 3012 | Q162: 1 | S162: Regulated
B163: 2301 | C163: Nicosia | D163: =IF($B163=spare,Not.a.postcode, IF(NOT(ISNA(MATCH($B163,Occupied.postal.codes,0))),0, IF(ISNA(MATCH($B163,OCECPR.postal.codes,0)),0,INDEX(OCECPR.number.of.fibre.networks,MATCH($B163,OCECPR.postal.codes,0),)))) -> 1 | E163: =IF($B163=spare,Not.a.postcode, IF(NOT(ISNA(MATCH($B163,Occupied.postal.codes,0))),0, IF(NOT(ISNA(MATCH($B163,Postal.codes.reallocation.output,0))), INDEX(OCECPR.number.of.fibre.networks,MATCH(INDEX(Postal.codes.to.be.reallocated,MATCH($B163,Postal.codes.reallocation.output,0),),OCECPR.postal.codes,0)),0))) -> 0 | F163: 1 | G163: Regulated | J163: 3013 | Q163: 1 | S163: Regulated
B164: 2302 | C164: Nicosia | D164: =IF($B164=spare,Not.a.postcode, IF(NOT(ISNA(MATCH($B164,Occupied.postal.codes,0))),0, IF(ISNA(MATCH($B164,OCECPR.postal.codes,0)),0,INDEX(OCECPR.number.of.fibre.networks,MATCH($B164,OCECPR.postal.codes,0),)))) -> 1 | E164: =IF($B164=spare,Not.a.postcode, IF(NOT(ISNA(MATCH($B164,Occupied.postal.codes,0))),0, IF(NOT(ISNA(MATCH($B164,Postal.codes.reallocation.output,0))), INDEX(OCECPR.number.of.fibre.networks,MATCH(INDEX(Postal.codes.to.be.reallocated,MATCH($B164,Postal.codes.reallocation.output,0),),OCECPR.postal.codes,0)),0))) -> 0 | F164: 1 | G164: Regulated | J164: 3015 | Q164: 1 | S164: Regulated
B165: 2303 | C165: Nicosia | D165: =IF($B165=spare,Not.a.postcode, IF(NOT(ISNA(MATCH($B165,Occupied.postal.codes,0))),0, IF(ISNA(MATCH($B165,OCECPR.postal.codes,0)),0,INDEX(OCECPR.number.of.fibre.networks,MATCH($B165,OCECPR.postal.codes,0),)))) -> 1 | E165: =IF($B165=spare,Not.a.postcode, IF(NOT(ISNA(MATCH($B165,Occupied.postal.codes,0))),0, IF(NOT(ISNA(MATCH($B165,Postal.codes.reallocation.output,0))), INDEX(OCECPR.number.of.fibre.networks,MATCH(INDEX(Postal.codes.to.be.reallocated,MATCH($B165,Postal.codes.reallocation.output,0),),OCECPR.postal.codes,0)),0))) -> 0 | F165: 1 | G165: Regulated | J165: 3016 | Q165: 1 | S165: Regulated
B166: 2304 | C166: Nicosia | D166: =IF($B166=spare,Not.a.postcode, IF(NOT(ISNA(MATCH($B166,Occupied.postal.codes,0))),0, IF(ISNA(MATCH($B166,OCECPR.postal.codes,0)),0,INDEX(OCECPR.number.of.fibre.networks,MATCH($B166,OCECPR.postal.codes,0),)))) -> 1 | E166: =IF($B166=spare,Not.a.postcode, IF(NOT(ISNA(MATCH($B166,Occupied.postal.codes,0))),0, IF(NOT(ISNA(MATCH($B166,Postal.codes.reallocation.output,0))), INDEX(OCECPR.number.of.fibre.networks,MATCH(INDEX(Postal.codes.to.be.reallocated,MATCH($B166,Postal.codes.reallocation.output,0),),OCECPR.postal.codes,0)),0))) -> 0 | F166: 1 | G166: Regulated | J166: 3017 | Q166: 1 | S166: Regulated
B167: 2305 | C167: Nicosia | D167: =IF($B167=spare,Not.a.postcode, IF(NOT(ISNA(MATCH($B167,Occupied.postal.codes,0))),0, IF(ISNA(MATCH($B167,OCECPR.postal.codes,0)),0,INDEX(OCECPR.number.of.fibre.networks,MATCH($B167,OCECPR.postal.codes,0),)))) -> 1 | E167: =IF($B167=spare,Not.a.postcode, IF(NOT(ISNA(MATCH($B167,Occupied.postal.codes,0))),0, IF(NOT(ISNA(MATCH($B167,Postal.codes.reallocation.output,0))), INDEX(OCECPR.number.of.fibre.networks,MATCH(INDEX(Postal.codes.to.be.reallocated,MATCH($B167,Postal.codes.reallocation.output,0),),OCECPR.postal.codes,0)),0))) -> 0 | F167: 1 | G167: Regulated | J167: 3020 | Q167: 1 | S167: Regulated
B168: 2306 | C168: Nicosia | D168: =IF($B168=spare,Not.a.postcode, IF(NOT(ISNA(MATCH($B168,Occupied.postal.codes,0))),0, IF(ISNA(MATCH($B168,OCECPR.postal.codes,0)),0,INDEX(OCECPR.number.of.fibre.networks,MATCH($B168,OCECPR.postal.codes,0),)))) -> 1 | E168: =IF($B168=spare,Not.a.postcode, IF(NOT(ISNA(MATCH($B168,Occupied.postal.codes,0))),0, IF(NOT(ISNA(MATCH($B168,Postal.codes.reallocation.output,0))), INDEX(OCECPR.number.of.fibre.networks,MATCH(INDEX(Postal.codes.to.be.reallocated,MATCH($B168,Postal.codes.reallocation.output,0),),OCECPR.postal.codes,0)),0))) -> 0 | F168: 1 | G168: Regulated | J168: 3021 | Q168: 1 | S168: Regulated
B169: 2310 | C169: Nicosia | D169: =IF($B169=spare,Not.a.postcode, IF(NOT(ISNA(MATCH($B169,Occupied.postal.codes,0))),0, IF(ISNA(MATCH($B169,OCECPR.postal.codes,0)),0,INDEX(OCECPR.number.of.fibre.networks,MATCH($B169,OCECPR.postal.codes,0),)))) -> 1 | E169: =IF($B169=spare,Not.a.postcode, IF(NOT(ISNA(MATCH($B169,Occupied.postal.codes,0))),0, IF(NOT(ISNA(MATCH($B169,Postal.codes.reallocation.output,0))), INDEX(OCECPR.number.of.fibre.networks,MATCH(INDEX(Postal.codes.to.be.reallocated,MATCH($B169,Postal.codes.reallocation.output,0),),OCECPR.postal.codes,0)),0))) -> 0 | F169: 1 | G169: Regulated | J169: 3022 | Q169: 1 | S169: Regulated
B170: 2311 | C170: Nicosia | D170: =IF($B170=spare,Not.a.postcode, IF(NOT(ISNA(MATCH($B170,Occupied.postal.codes,0))),0, IF(ISNA(MATCH($B170,OCECPR.postal.codes,0)),0,INDEX(OCECPR.number.of.fibre.networks,MATCH($B170,OCECPR.postal.codes,0),)))) -> 1 | E170: =IF($B170=spare,Not.a.postcode, IF(NOT(ISNA(MATCH($B170,Occupied.postal.codes,0))),0, IF(NOT(ISNA(MATCH($B170,Postal.codes.reallocation.output,0))), INDEX(OCECPR.number.of.fibre.networks,MATCH(INDEX(Postal.codes.to.be.reallocated,MATCH($B170,Postal.codes.reallocation.output,0),),OCECPR.postal.codes,0)),0))) -> 0 | F170: 1 | G170: Regulated | J170: 3025 | Q170: 1 | S170: Regulated
B171: 2312 | C171: Nicosia | D171: =IF($B171=spare,Not.a.postcode, IF(NOT(ISNA(MATCH($B171,Occupied.postal.codes,0))),0, IF(ISNA(MATCH($B171,OCECPR.postal.codes,0)),0,INDEX(OCECPR.number.of.fibre.networks,MATCH($B171,OCECPR.postal.codes,0),)))) -> 1 | E171: =IF($B171=spare,Not.a.postcode, IF(NOT(ISNA(MATCH($B171,Occupied.postal.codes,0))),0, IF(NOT(ISNA(MATCH($B171,Postal.codes.reallocation.output,0))), INDEX(OCECPR.number.of.fibre.networks,MATCH(INDEX(Postal.codes.to.be.reallocated,MATCH($B171,Postal.codes.reallocation.output,0),),OCECPR.postal.codes,0)),0))) -> 0 | F171: 1 | G171: Regulated | J171: 3026 | Q171: 1 | S171: Regulated
B172: 2313 | C172: Nicosia | D172: =IF($B172=spare,Not.a.postcode, IF(NOT(ISNA(MATCH($B172,Occupied.postal.codes,0))),0, IF(ISNA(MATCH($B172,OCECPR.postal.codes,0)),0,INDEX(OCECPR.number.of.fibre.networks,MATCH($B172,OCECPR.postal.codes,0),)))) -> 1 | E172: =IF($B172=spare,Not.a.postcode, IF(NOT(ISNA(MATCH($B172,Occupied.postal.codes,0))),0, IF(NOT(ISNA(MATCH($B172,Postal.codes.reallocation.output,0))), INDEX(OCECPR.number.of.fibre.networks,MATCH(INDEX(Postal.codes.to.be.reallocated,MATCH($B172,Postal.codes.reallocation.output,0),),OCECPR.postal.codes,0)),0))) -> 0 | F172: 1 | G172: Regulated | J172: 3027 | Q172: 1 | S172: Regulated
B173: 2314 | C173: Nicosia | D173: =IF($B173=spare,Not.a.postcode, IF(NOT(ISNA(MATCH($B173,Occupied.postal.codes,0))),0, IF(ISNA(MATCH($B173,OCECPR.postal.codes,0)),0,INDEX(OCECPR.number.of.fibre.networks,MATCH($B173,OCECPR.postal.codes,0),)))) -> 1 | E173: =IF($B173=spare,Not.a.postcode, IF(NOT(ISNA(MATCH($B173,Occupied.postal.codes,0))),0, IF(NOT(ISNA(MATCH($B173,Postal.codes.reallocation.output,0))), INDEX(OCECPR.number.of.fibre.networks,MATCH(INDEX(Postal.codes.to.be.reallocated,MATCH($B173,Postal.codes.reallocation.output,0),),OCECPR.postal.codes,0)),0))) -> 0 | F173: 1 | G173: Regulated | J173: 3030 | Q173: 1 | S173: Regulated
B174: 2320 | C174: Nicosia | D174: =IF($B174=spare,Not.a.postcode, IF(NOT(ISNA(MATCH($B174,Occupied.postal.codes,0))),0, IF(ISNA(MATCH($B174,OCECPR.postal.codes,0)),0,INDEX(OCECPR.number.of.fibre.networks,MATCH($B174,OCECPR.postal.codes,0),)))) -> 1 | E174: =IF($B174=spare,Not.a.postcode, IF(NOT(ISNA(MATCH($B174,Occupied.postal.codes,0))),0, IF(NOT(ISNA(MATCH($B174,Postal.codes.reallocation.output,0))), INDEX(OCECPR.number.of.fibre.networks,MATCH(INDEX(Postal.codes.to.be.reallocated,MATCH($B174,Postal.codes.reallocation.output,0),),OCECPR.postal.codes,0)),0))) -> 0 | F174: 1 | G174: Regulated | J174: 3031 | Q174: 1 | S174: Regulated
B175: 2321 | C175: Nicosia | D175: =IF($B175=spare,Not.a.postcode, IF(NOT(ISNA(MATCH($B175,Occupied.postal.codes,0))),0, IF(ISNA(MATCH($B175,OCECPR.postal.codes,0)),0,INDEX(OCECPR.number.of.fibre.networks,MATCH($B175,OCECPR.postal.codes,0),)))) -> 1 | E175: =IF($B175=spare,Not.a.postcode, IF(NOT(ISNA(MATCH($B175,Occupied.postal.codes,0))),0, IF(NOT(ISNA(MATCH($B175,Postal.codes.reallocation.output,0))), INDEX(OCECPR.number.of.fibre.networks,MATCH(INDEX(Postal.codes.to.be.reallocated,MATCH($B175,Postal.codes.reallocation.output,0),),OCECPR.postal.codes,0)),0))) -> 0 | F175: 1 | G175: Regulated | J175: 3032 | Q175: 1 | S175: Regulated
B176: 2322 | C176: Nicosia | D176: =IF($B176=spare,Not.a.postcode, IF(NOT(ISNA(MATCH($B176,Occupied.postal.codes,0))),0, IF(ISNA(MATCH($B176,OCECPR.postal.codes,0)),0,INDEX(OCECPR.number.of.fibre.networks,MATCH($B176,OCECPR.postal.codes,0),)))) -> 1 | E176: =IF($B176=spare,Not.a.postcode, IF(NOT(ISNA(MATCH($B176,Occupied.postal.codes,0))),0, IF(NOT(ISNA(MATCH($B176,Postal.codes.reallocation.output,0))), INDEX(OCECPR.number.of.fibre.networks,MATCH(INDEX(Postal.codes.to.be.reallocated,MATCH($B176,Postal.codes.reallocation.output,0),),OCECPR.postal.codes,0)),0))) -> 0 | F176: 1 | G176: Regulated | J176: 3035 | Q176: 1 | S176: Regulated
B177: 2323 | C177: Nicosia | D177: =IF($B177=spare,Not.a.postcode, IF(NOT(ISNA(MATCH($B177,Occupied.postal.codes,0))),0, IF(ISNA(MATCH($B177,OCECPR.postal.codes,0)),0,INDEX(OCECPR.number.of.fibre.networks,MATCH($B177,OCECPR.postal.codes,0),)))) -> 1 | E177: =IF($B177=spare,Not.a.postcode, IF(NOT(ISNA(MATCH($B177,Occupied.postal.codes,0))),0, IF(NOT(ISNA(MATCH($B177,Postal.codes.reallocation.output,0))), INDEX(OCECPR.number.of.fibre.networks,MATCH(INDEX(Postal.codes.to.be.reallocated,MATCH($B177,Postal.codes.reallocation.output,0),),OCECPR.postal.codes,0)),0))) -> 0 | F177: 1 | G177: Regulated | J177: 3036 | Q177: 1 | S177: Regulated
B178: 2324 | C178: Nicosia | D178: =IF($B178=spare,Not.a.postcode, IF(NOT(ISNA(MATCH($B178,Occupied.postal.codes,0))),0, IF(ISNA(MATCH($B178,OCECPR.postal.codes,0)),0,INDEX(OCECPR.number.of.fibre.networks,MATCH($B178,OCECPR.postal.codes,0),)))) -> 1 | E178: =IF($B178=spare,Not.a.postcode, IF(NOT(ISNA(MATCH($B178,Occupied.postal.codes,0))),0, IF(NOT(ISNA(MATCH($B178,Postal.codes.reallocation.output,0))), INDEX(OCECPR.number.of.fibre.networks,MATCH(INDEX(Postal.codes.to.be.reallocated,MATCH($B178,Postal.codes.reallocation.output,0),),OCECPR.postal.codes,0)),0))) -> 0 | F178: 1 | G178: Regulated | J178: 3040 | Q178: 1 | S178: Regulated
B179: 2325 | C179: Nicosia | D179: =IF($B179=spare,Not.a.postcode, IF(NOT(ISNA(MATCH($B179,Occupied.postal.codes,0))),0, IF(ISNA(MATCH($B179,OCECPR.postal.codes,0)),0,INDEX(OCECPR.number.of.fibre.networks,MATCH($B179,OCECPR.postal.codes,0),)))) -> 1 | E179: =IF($B179=spare,Not.a.postcode, IF(NOT(ISNA(MATCH($B179,Occupied.postal.codes,0))),0, IF(NOT(ISNA(MATCH($B179,Postal.codes.reallocation.output,0))), INDEX(OCECPR.number.of.fibre.networks,MATCH(INDEX(Postal.codes.to.be.reallocated,MATCH($B179,Postal.codes.reallocation.output,0),),OCECPR.postal.codes,0)),0))) -> 0 | F179: 1 | G179: Regulated | J179: 3041 | Q179: 1 | S179: Regulated
B180: 2326 | C180: Nicosia | D180: =IF($B180=spare,Not.a.postcode, IF(NOT(ISNA(MATCH($B180,Occupied.postal.codes,0))),0, IF(ISNA(MATCH($B180,OCECPR.postal.codes,0)),0,INDEX(OCECPR.number.of.fibre.networks,MATCH($B180,OCECPR.postal.codes,0),)))) -> 1 | E180: =IF($B180=spare,Not.a.postcode, IF(NOT(ISNA(MATCH($B180,Occupied.postal.codes,0))),0, IF(NOT(ISNA(MATCH($B180,Postal.codes.reallocation.output,0))), INDEX(OCECPR.number.of.fibre.networks,MATCH(INDEX(Postal.codes.to.be.reallocated,MATCH($B180,Postal.codes.reallocation.output,0),),OCECPR.postal.codes,0)),0))) -> 0 | F180: 1 | G180: Regulated | J180: 3042 | Q180: 1 | S180: Regulated
B181: 2328 | C181: Nicosia | D181: =IF($B181=spare,Not.a.postcode, IF(NOT(ISNA(MATCH($B181,Occupied.postal.codes,0))),0, IF(ISNA(MATCH($B181,OCECPR.postal.codes,0)),0,INDEX(OCECPR.number.of.fibre.networks,MATCH($B181,OCECPR.postal.codes,0),)))) -> 1 | E181: =IF($B181=spare,Not.a.postcode, IF(NOT(ISNA(MATCH($B181,Occupied.postal.codes,0))),0, IF(NOT(ISNA(MATCH($B181,Postal.codes.reallocation.output,0))), INDEX(OCECPR.number.of.fibre.networks,MATCH(INDEX(Postal.codes.to.be.reallocated,MATCH($B181,Postal.codes.reallocation.output,0),),OCECPR.postal.codes,0)),0))) -> 0 | F181: 1 | G181: Regulated | J181: 3045 | Q181: 1 | S181: Regulated
B182: 2330 | C182: Nicosia | D182: =IF($B182=spare,Not.a.postcode, IF(NOT(ISNA(MATCH($B182,Occupied.postal.codes,0))),0, IF(ISNA(MATCH($B182,OCECPR.postal.codes,0)),0,INDEX(OCECPR.number.of.fibre.networks,MATCH($B182,OCECPR.postal.codes,0),)))) -> 1 | E182: =IF($B182=spare,Not.a.postcode, IF(NOT(ISNA(MATCH($B182,Occupied.postal.codes,0))),0, IF(NOT(ISNA(MATCH($B182,Postal.codes.reallocation.output,0))), INDEX(OCECPR.number.of.fibre.networks,MATCH(INDEX(Postal.codes.to.be.reallocated,MATCH($B182,Postal.codes.reallocation.output,0),),OCECPR.postal.codes,0)),0))) -> 0 | F182: 1 | G182: Regulated | J182: 3046 | Q182: 1 | S182: Regulated
B183: 2331 | C183: Nicosia | D183: =IF($B183=spare,Not.a.postcode, IF(NOT(ISNA(MATCH($B183,Occupied.postal.codes,0))),0, IF(ISNA(MATCH($B183,OCECPR.postal.codes,0)),0,INDEX(OCECPR.number.of.fibre.networks,MATCH($B183,OCECPR.postal.codes,0),)))) -> 1 | E183: =IF($B183=spare,Not.a.postcode, IF(NOT(ISNA(MATCH($B183,Occupied.postal.codes,0))),0, IF(NOT(ISNA(MATCH($B183,Postal.codes.reallocation.output,0))), INDEX(OCECPR.number.of.fibre.networks,MATCH(INDEX(Postal.codes.to.be.reallocated,MATCH($B183,Postal.codes.reallocation.output,0),),OCECPR.postal.codes,0)),0))) -> 0 | F183: 1 | G183: Regulated | J183: 3047 | Q183: 1 | S183: Regulated
B184: 2332 | C184: Nicosia | D184: =IF($B184=spare,Not.a.postcode, IF(NOT(ISNA(MATCH($B184,Occupied.postal.codes,0))),0, IF(ISNA(MATCH($B184,OCECPR.postal.codes,0)),0,INDEX(OCECPR.number.of.fibre.networks,MATCH($B184,OCECPR.postal.codes,0),)))) -> 1 | E184: =IF($B184=spare,Not.a.postcode, IF(NOT(ISNA(MATCH($B184,Occupied.postal.codes,0))),0, IF(NOT(ISNA(MATCH($B184,Postal.codes.reallocation.output,0))), INDEX(OCECPR.number.of.fibre.networks,MATCH(INDEX(Postal.codes.to.be.reallocated,MATCH($B184,Postal.codes.reallocation.output,0),),OCECPR.postal.codes,0)),0))) -> 0 | F184: 1 | G184: Regulated | J184: 3048 | Q184: 1 | S184: Regulated
B185: 2333 | C185: Nicosia | D185: =IF($B185=spare,Not.a.postcode, IF(NOT(ISNA(MATCH($B185,Occupied.postal.codes,0))),0, IF(ISNA(MATCH($B185,OCECPR.postal.codes,0)),0,INDEX(OCECPR.number.of.fibre.networks,MATCH($B185,OCECPR.postal.codes,0),)))) -> 1 | E185: =IF($B185=spare,Not.a.postcode, IF(NOT(ISNA(MATCH($B185,Occupied.postal.codes,0))),0, IF(NOT(ISNA(MATCH($B185,Postal.codes.reallocation.output,0))), INDEX(OCECPR.number.of.fibre.networks,MATCH(INDEX(Postal.codes.to.be.reallocated,MATCH($B185,Postal.codes.reallocation.output,0),),OCECPR.postal.codes,0)),0))) -> 0 | F185: 1 | G185: Regulated | J185: 3050 | Q185: 1 | S185: Regulated
B186: 2334 | C186: Nicosia | D186: =IF($B186=spare,Not.a.postcode, IF(NOT(ISNA(MATCH($B186,Occupied.postal.codes,0))),0, IF(ISNA(MATCH($B186,OCECPR.postal.codes,0)),0,INDEX(OCECPR.number.of.fibre.networks,MATCH($B186,OCECPR.postal.codes,0),)))) -> 1 | E186: =IF($B186=spare,Not.a.postcode, IF(NOT(ISNA(MATCH($B186,Occupied.postal.codes,0))),0, IF(NOT(ISNA(MATCH($B186,Postal.codes.reallocation.output,0))), INDEX(OCECPR.number.of.fibre.networks,MATCH(INDEX(Postal.codes.to.be.reallocated,MATCH($B186,Postal.codes.reallocation.output,0),),OCECPR.postal.codes,0)),0))) -> 0 | F186: 1 | G186: Regulated | J186: 3051 | Q186: 1 | S186: Regulated
B187: 2335 | C187: Nicosia | D187: =IF($B187=spare,Not.a.postcode, IF(NOT(ISNA(MATCH($B187,Occupied.postal.codes,0))),0, IF(ISNA(MATCH($B187,OCECPR.postal.codes,0)),0,INDEX(OCECPR.number.of.fibre.networks,MATCH($B187,OCECPR.postal.codes,0),)))) -> 1 | E187: =IF($B187=spare,Not.a.postcode, IF(NOT(ISNA(MATCH($B187,Occupied.postal.codes,0))),0, IF(NOT(ISNA(MATCH($B187,Postal.codes.reallocation.output,0))), INDEX(OCECPR.number.of.fibre.networks,MATCH(INDEX(Postal.codes.to.be.reallocated,MATCH($B187,Postal.codes.reallocation.output,0),),OCECPR.postal.codes,0)),0))) -> 0 | F187: 1 | G187: Regulated | J187: 3052 | Q187: 1 | S187: Regulated
B188: 2350 | C188: Nicosia | D188: =IF($B188=spare,Not.a.postcode, IF(NOT(ISNA(MATCH($B188,Occupied.postal.codes,0))),0, IF(ISNA(MATCH($B188,OCECPR.postal.codes,0)),0,INDEX(OCECPR.number.of.fibre.networks,MATCH($B188,OCECPR.postal.codes,0),)))) -> 1 | E188: =IF($B188=spare,Not.a.postcode, IF(NOT(ISNA(MATCH($B188,Occupied.postal.codes,0))),0, IF(NOT(ISNA(MATCH($B188,Postal.codes.reallocation.output,0))), INDEX(OCECPR.number.of.fibre.networks,MATCH(INDEX(Postal.codes.to.be.reallocated,MATCH($B188,Postal.codes.reallocation.output,0),),OCECPR.postal.codes,0)),0))) -> 0 | F188: 1 | G188: Regulated | J188: 3055 | Q188: 1 | S188: Regulated
B189: 2360 | C189: Nicosia | D189: =IF($B189=spare,Not.a.postcode, IF(NOT(ISNA(MATCH($B189,Occupied.postal.codes,0))),0, IF(ISNA(MATCH($B189,OCECPR.postal.codes,0)),0,INDEX(OCECPR.number.of.fibre.networks,MATCH($B189,OCECPR.postal.codes,0),)))) -> 1 | E189: =IF($B189=spare,Not.a.postcode, IF(NOT(ISNA(MATCH($B189,Occupied.postal.codes,0))),0, IF(NOT(ISNA(MATCH($B189,Postal.codes.reallocation.output,0))), INDEX(OCECPR.number.of.fibre.networks,MATCH(INDEX(Postal.codes.to.be.reallocated,MATCH($B189,Postal.codes.reallocation.output,0),),OCECPR.postal.codes,0)),0))) -> 0 | F189: 1 | G189: Regulated | J189: 3056 | Q189: 1 | S189: Regulated
B190: 2361 | C190: Nicosia | D190: =IF($B190=spare,Not.a.postcode, IF(NOT(ISNA(MATCH($B190,Occupied.postal.codes,0))),0, IF(ISNA(MATCH($B190,OCECPR.postal.codes,0)),0,INDEX(OCECPR.number.of.fibre.networks,MATCH($B190,OCECPR.postal.codes,0),)))) -> 1 | E190: =IF($B190=spare,Not.a.postcode, IF(NOT(ISNA(MATCH($B190,Occupied.postal.codes,0))),0, IF(NOT(ISNA(MATCH($B190,Postal.codes.reallocation.output,0))), INDEX(OCECPR.number.of.fibre.networks,MATCH(INDEX(Postal.codes.to.be.reallocated,MATCH($B190,Postal.codes.reallocation.output,0),),OCECPR.postal.codes,0)),0))) -> 0 | F190: 1 | G190: Regulated | J190: 3060 | Q190: 1 | S190: Regulated
B191: 2362 | C191: Nicosia | D191: =IF($B191=spare,Not.a.postcode, IF(NOT(ISNA(MATCH($B191,Occupied.postal.codes,0))),0, IF(ISNA(MATCH($B191,OCECPR.postal.codes,0)),0,INDEX(OCECPR.number.of.fibre.networks,MATCH($B191,OCECPR.postal.codes,0),)))) -> 1 | E191: =IF($B191=spare,Not.a.postcode, IF(NOT(ISNA(MATCH($B191,Occupied.postal.codes,0))),0, IF(NOT(ISNA(MATCH($B191,Postal.codes.reallocation.output,0))), INDEX(OCECPR.number.of.fibre.networks,MATCH(INDEX(Postal.codes.to.be.reallocated,MATCH($B191,Postal.codes.reallocation.output,0),),OCECPR.postal.codes,0)),0))) -> 0 | F191: 1 | G191: Regulated | J191: 3061 | Q191: 1 | S191: Regulated
B192: 2363 | C192: Nicosia | D192: =IF($B192=spare,Not.a.postcode, IF(NOT(ISNA(MATCH($B192,Occupied.postal.codes,0))),0, IF(ISNA(MATCH($B192,OCECPR.postal.codes,0)),0,INDEX(OCECPR.number.of.fibre.networks,MATCH($B192,OCECPR.postal.codes,0),)))) -> 1 | E192: =IF($B192=spare,Not.a.postcode, IF(NOT(ISNA(MATCH($B192,Occupied.postal.codes,0))),0, IF(NOT(ISNA(MATCH($B192,Postal.codes.reallocation.output,0))), INDEX(OCECPR.number.of.fibre.networks,MATCH(INDEX(Postal.codes.to.be.reallocated,MATCH($B192,Postal.codes.reallocation.output,0),),OCECPR.postal.codes,0)),0))) -> 0 | F192: 1 | G192: Regulated | J192: 3065 | Q192: 1 | S192: Regulated
B193: 2364 | C193: Nicosia | D193: =IF($B193=spare,Not.a.postcode, IF(NOT(ISNA(MATCH($B193,Occupied.postal.codes,0))),0, IF(ISNA(MATCH($B193,OCECPR.postal.codes,0)),0,INDEX(OCECPR.number.of.fibre.networks,MATCH($B193,OCECPR.postal.codes,0),)))) -> 1 | E193: =IF($B193=spare,Not.a.postcode, IF(NOT(ISNA(MATCH($B193,Occupied.postal.codes,0))),0, IF(NOT(ISNA(MATCH($B193,Postal.codes.reallocation.output,0))), INDEX(OCECPR.number.of.fibre.networks,MATCH(INDEX(Postal.codes.to.be.reallocated,MATCH($B193,Postal.codes.reallocation.output,0),),OCECPR.postal.codes,0)),0))) -> 0 | F193: 1 | G193: Regulated | J193: 3066 | Q193: 1 | S193: Regulated
B194: 2365 | C194: Nicosia | D194: =IF($B194=spare,Not.a.postcode, IF(NOT(ISNA(MATCH($B194,Occupied.postal.codes,0))),0, IF(ISNA(MATCH($B194,OCECPR.postal.codes,0)),0,INDEX(OCECPR.number.of.fibre.networks,MATCH($B194,OCECPR.postal.codes,0),)))) -> 1 | E194: =IF($B194=spare,Not.a.postcode, IF(NOT(ISNA(MATCH($B194,Occupied.postal.codes,0))),0, IF(NOT(ISNA(MATCH($B194,Postal.codes.reallocation.output,0))), INDEX(OCECPR.number.of.fibre.networks,MATCH(INDEX(Postal.codes.to.be.reallocated,MATCH($B194,Postal.codes.reallocation.output,0),),OCECPR.postal.codes,0)),0))) -> 0 | F194: 1 | G194: Regulated | J194: 3067 | Q194: 1 | S194: Regulated
B195: 2368 | C195: Nicosia | D195: =IF($B195=spare,Not.a.postcode, IF(NOT(ISNA(MATCH($B195,Occupied.postal.codes,0))),0, IF(ISNA(MATCH($B195,OCECPR.postal.codes,0)),0,INDEX(OCECPR.number.of.fibre.networks,MATCH($B195,OCECPR.postal.codes,0),)))) -> 1 | E195: =IF($B195=spare,Not.a.postcode, IF(NOT(ISNA(MATCH($B195,Occupied.postal.codes,0))),0, IF(NOT(ISNA(MATCH($B195,Postal.codes.reallocation.output,0))), INDEX(OCECPR.number.of.fibre.networks,MATCH(INDEX(Postal.codes.to.be.reallocated,MATCH($B195,Postal.codes.reallocation.output,0),),OCECPR.postal.codes,0)),0))) -> 0 | F195: 1 | G195: Regulated | J195: 3070 | Q195: 1 | S195: Regulated
B196: 2369 | C196: Nicosia | D196: =IF($B196=spare,Not.a.postcode, IF(NOT(ISNA(MATCH($B196,Occupied.postal.codes,0))),0, IF(ISNA(MATCH($B196,OCECPR.postal.codes,0)),0,INDEX(OCECPR.number.of.fibre.networks,MATCH($B196,OCECPR.postal.codes,0),)))) -> 1 | E196: =IF($B196=spare,Not.a.postcode, IF(NOT(ISNA(MATCH($B196,Occupied.postal.codes,0))),0, IF(NOT(ISNA(MATCH($B196,Postal.codes.reallocation.output,0))), INDEX(OCECPR.number.of.fibre.networks,MATCH(INDEX(Postal.codes.to.be.reallocated,MATCH($B196,Postal.codes.reallocation.output,0),),OCECPR.postal.codes,0)),0))) -> 0 | F196: 1 | G196: Regulated | J196: 3071 | Q196: 1 | S196: Regulated
B197: 2370 | C197: Nicosia | D197: =IF($B197=spare,Not.a.postcode, IF(NOT(ISNA(MATCH($B197,Occupied.postal.codes,0))),0, IF(ISNA(MATCH($B197,OCECPR.postal.codes,0)),0,INDEX(OCECPR.number.of.fibre.networks,MATCH($B197,OCECPR.postal.codes,0),)))) -> 1 | E197: =IF($B197=spare,Not.a.postcode, IF(NOT(ISNA(MATCH($B197,Occupied.postal.codes,0))),0, IF(NOT(ISNA(MATCH($B197,Postal.codes.reallocation.output,0))), INDEX(OCECPR.number.of.fibre.networks,MATCH(INDEX(Postal.codes.to.be.reallocated,MATCH($B197,Postal.codes.reallocation.output,0),),OCECPR.postal.codes,0)),0))) -> 0 | F197: 1 | G197: Regulated | J197: 3075 | Q197: 1 | S197: Regulated
B198: 2373 | C198: Nicosia | D198: =IF($B198=spare,Not.a.postcode, IF(NOT(ISNA(MATCH($B198,Occupied.postal.codes,0))),0, IF(ISNA(MATCH($B198,OCECPR.postal.codes,0)),0,INDEX(OCECPR.number.of.fibre.networks,MATCH($B198,OCECPR.postal.codes,0),)))) -> 1 | E198: =IF($B198=spare,Not.a.postcode, IF(NOT(ISNA(MATCH($B198,Occupied.postal.codes,0))),0, IF(NOT(ISNA(MATCH($B198,Postal.codes.reallocation.output,0))), INDEX(OCECPR.number.of.fibre.networks,MATCH(INDEX(Postal.codes.to.be.reallocated,MATCH($B198,Postal.codes.reallocation.output,0),),OCECPR.postal.codes,0)),0))) -> 0 | F198: 1 | G198: Regulated | J198: 3076 | Q198: 1 | S198: Regulated
B199: 2400 | C199: Nicosia | D199: =IF($B199=spare,Not.a.postcode, IF(NOT(ISNA(MATCH($B199,Occupied.postal.codes,0))),0, IF(ISNA(MATCH($B199,OCECPR.postal.codes,0)),0,INDEX(OCECPR.number.of.fibre.networks,MATCH($B199,OCECPR.postal.codes,0),)))) -> 1 | E199: =IF($B199=spare,Not.a.postcode, IF(NOT(ISNA(MATCH($B199,Occupied.postal.codes,0))),0, IF(NOT(ISNA(MATCH($B199,Postal.codes.reallocation.output,0))), INDEX(OCECPR.number.of.fibre.networks,MATCH(INDEX(Postal.codes.to.be.reallocated,MATCH($B199,Postal.codes.reallocation.output,0),),OCECPR.postal.codes,0)),0))) -> 0 | F199: 1 | G199: Regulated | J199: 3077 | Q199: 1 | S199: Regulated
B200: 2401 | C200: Nicosia | D200: =IF($B200=spare,Not.a.postcode, IF(NOT(ISNA(MATCH($B200,Occupied.postal.codes,0))),0, IF(ISNA(MATCH($B200,OCECPR.postal.codes,0)),0,INDEX(OCECPR.number.of.fibre.networks,MATCH($B200,OCECPR.postal.codes,0),)))) -> 1 | E200: =IF($B200=spare,Not.a.postcode, IF(NOT(ISNA(MATCH($B200,Occupied.postal.codes,0))),0, IF(NOT(ISNA(MATCH($B200,Postal.codes.reallocation.output,0))), INDEX(OCECPR.number.of.fibre.networks,MATCH(INDEX(Postal.codes.to.be.reallocated,MATCH($B200,Postal.codes.reallocation.output,0),),OCECPR.postal.codes,0)),0))) -> 0 | F200: 1 | G200: Regulated | J200: 3080 | Q200: 1 | S200: Regulated
B201: 2402 | C201: Nicosia | D201: =IF($B201=spare,Not.a.postcode, IF(NOT(ISNA(MATCH($B201,Occupied.postal.codes,0))),0, IF(ISNA(MATCH($B201,OCECPR.postal.codes,0)),0,INDEX(OCECPR.number.of.fibre.networks,MATCH($B201,OCECPR.postal.codes,0),)))) -> 1 | E201: =IF($B201=spare,Not.a.postcode, IF(NOT(ISNA(MATCH($B201,Occupied.postal.codes,0))),0, IF(NOT(ISNA(MATCH($B201,Postal.codes.reallocation.output,0))), INDEX(OCECPR.number.of.fibre.networks,MATCH(INDEX(Postal.codes.to.be.reallocated,MATCH($B201,Postal.codes.reallocation.output,0),),OCECPR.postal.codes,0)),0))) -> 0 | F201: 1 | G201: Regulated | J201: 3081 | Q201: 1 | S201: Regulated
... 839 more rows

Sheet Lists
D1: Lists
A2: This model has been prepared for OCECPR to undertake its regulatory duties using bottom-up models for the calculation of the cost of wholesale services in order to promote competition in the fixed electronic communications market in Cyprus and for no other purpose. We do not give, accept or assume responsibility for any other purpose or to any other person for action or inaction taken as a result of this model, unless expressly agreed by our prior consent in writing.
A3: =MAX(A$1:A2)+1 -> 1 | B3: Parameters
D5: boolean
D6: TRUE
D7: FALSE
D8: boolean
D10: spare | E10: spare
D12: Years
D13: 2020
D14: =D13+1 -> 2021
D15: 2022
D16: 2023
D17: 2024
D18: 2025
D19: 2026
D20: 2027
D21: 2028
D22: 2029 | E22: Years.costing
D23: 2030
D24: Years.market
D26: Geotypes
D27: Single geotype
D28: Spare
D29: Spare
D30: Spare
D31: Spare
D32: Spare
D33: Spare
D34: Spare
D35: Spare
D36: Spare
D37: Geotypes
D39: Access technologies
D40: Copper
D41: Fibre
D42: Cable
D43: Access.technologies
D45: Operators
D46: Cyta
D47: Primetel
D48: Cablenet
D49: Epic
D50: Operators
A54: =MAX(A$1:A53)+1 -> 2 | B54: Modelled services
C56: Service categories
E57: Service categories | F57: Original units | G57: Units for cost allocation
E58: Access line | F58: Subscribers | G58: Subscribers
E59: Leased line | F59: Subscribers | G59: Subscribers
E60: spare | F60: spare | G60: spare
E61: VDSL feeder | F61: Per remote MSAN | G61: Per remote MSAN
E62: spare | F62: spare | G62: spare
E63: spare | F63: spare | G63: spare
E64: Ethernet interface | F64: Port | G64: Port
E65: Voice | F65: Minutes | G65: BHMbps
E66: Voice processing | F66: Minutes | G66: BHE
E67: Broadband | F67: BHMbps | G67: BHMbps
E68: IPTV | F68: BHMbps | G68: BHMbps
E69: Leased line traffic | F69: BHMbps | G69: BHMbps
E70: Interconnection traffic | F70: BHMbps | G70: BHMbps
E71: spare | F71: spare | G71: spare
E72: Subscribers | F72: Subscribers | G72: Subscribers
E73: Services.categories.list | F73: Services.categories.original.units | G73: Services.categories.units.for.cost.allocation
C76: Access services | J76: All services
D78: Network services | E78: Service category | F78: Original units | G78: Units for cost allocation | H78: Nodes routing path | K78: Network services | L78: Service category | M78: Original units | N78: Units for cost allocation | O78: Nodes routing path | P78: Network services type | Q78: Incoming voice traffic
C79: 1 | D79: Fixed access line - copper loop (LLU) | E79: Access line | F79: =INDEX(Services.categories.original.units,MATCH($E79,Services.categories.list,0),) -> Subscribers | G79: =INDEX(Services.categories.units.for.cost.allocation,MATCH($E79,Services.categories.list,0),) -> Subscribers | H79: Copper loop | K79: =Access.network.services.list -> Fixed access line - copper loop (LLU) | L79: =E79:E98 -> Access line | M79: =F79:F98 -> Subscribers | N79: =G79:G98 -> Subscribers | O79: =H79:H98 -> Copper loop | P79: Copper | Q79: 0
C80: =C79+1 -> 2 | D80: Fixed access line - copper sub-loop (SLU) | E80: Access line | F80: =INDEX(Services.categories.original.units,MATCH($E80,Services.categories.list,0),) -> Subscribers | G80: =INDEX(Services.categories.units.for.cost.allocation,MATCH($E80,Services.categories.list,0),) -> Subscribers | H80: Copper sub loop | K80: Fixed access line - copper sub-loop (SLU) | L80: Access line | M80: Subscribers | N80: Subscribers | O80: Copper sub loop | P80: Copper | Q80: 0
C81: 3 | D81: Fixed access line - shared copper loop | E81: Access line | F81: =INDEX(Services.categories.original.units,MATCH($E81,Services.categories.list,0),) -> Subscribers | G81: =INDEX(Services.categories.units.for.cost.allocation,MATCH($E81,Services.categories.list,0),) -> Subscribers | H81: Copper loop | K81: Fixed access line - shared copper loop | L81: Access line | M81: Subscribers | N81: Subscribers | O81: Copper loop | P81: Copper | Q81: 0
C82: 4 | D82: Fixed access line - shared copper sub-loop | E82: Access line | F82: =INDEX(Services.categories.original.units,MATCH($E82,Services.categories.list,0),) -> Subscribers | G82: =INDEX(Services.categories.units.for.cost.allocation,MATCH($E82,Services.categories.list,0),) -> Subscribers | H82: Copper sub loop | K82: Fixed access line - shared copper sub-loop | L82: Access line | M82: Subscribers | N82: Subscribers | O82: Copper sub loop | P82: Copper | Q82: 0
C83: 5 | D83: Wholesale virtual local access over copper (VULA-VDSL) | E83: Access line | F83: =INDEX(Services.categories.original.units,MATCH($E83,Services.categories.list,0),) -> Subscribers | G83: =INDEX(Services.categories.units.for.cost.allocation,MATCH($E83,Services.categories.list,0),) -> Subscribers | H83: FTTC-VDSL | K83: Wholesale virtual local access over copper (VULA-VDSL) | L83: Access line | M83: Subscribers | N83: Subscribers | O83: FTTC-VDSL | P83: Copper | Q83: 0
C84: 6 | D84: Wholesale virtual local access over fibre (VULA-Fibre) | E84: Access line | F84: =INDEX(Services.categories.original.units,MATCH($E84,Services.categories.list,0),) -> Subscribers | G84: =INDEX(Services.categories.units.for.cost.allocation,MATCH($E84,Services.categories.list,0),) -> Subscribers | H84: Fibre GPON | K84: Wholesale virtual local access over fibre (VULA-Fibre) | L84: Access line | M84: Subscribers | N84: Subscribers | O84: Fibre GPON | P84: Fibre | Q84: 0
C85: 7 | D85: Spare | E85: spare | F85: =INDEX(Services.categories.original.units,MATCH($E85,Services.categories.list,0),) -> spare | G85: =INDEX(Services.categories.units.for.cost.allocation,MATCH($E85,Services.categories.list,0),) -> spare | H85: - | K85: Spare | L85: spare | M85: spare | N85: spare | O85: - | P85: Spare | Q85: 0
C86: =C85+1 -> 8 | D86: Leased line access segment - copper | E86: Leased line | F86: =INDEX(Services.categories.original.units,MATCH($E86,Services.categories.list,0),) -> Subscribers | G86: =INDEX(Services.categories.units.for.cost.allocation,MATCH($E86,Services.categories.list,0),) -> Subscribers | H86: Copper loop | K86: Leased line access segment - copper | L86: Leased line | M86: Subscribers | N86: Subscribers | O86: Copper loop | P86: Copper | Q86: 0
C87: 9 | D87: Leased line access segment - fibre | E87: Leased line | F87: =INDEX(Services.categories.original.units,MATCH($E87,Services.categories.list,0),) -> Subscribers | G87: =INDEX(Services.categories.units.for.cost.allocation,MATCH($E87,Services.categories.list,0),) -> Subscribers | H87: Fibre PtP | K87: Leased line access segment - fibre | L87: Leased line | M87: Subscribers | N87: Subscribers | O87: Fibre PtP | P87: Fibre | Q87: 0
C88: 10 | D88: Spare | E88: spare | F88: =INDEX(Services.categories.original.units,MATCH($E88,Services.categories.list,0),) -> spare | G88: =INDEX(Services.categories.units.for.cost.allocation,MATCH($E88,Services.categories.list,0),) -> spare | H88: - | K88: Spare | L88: spare | M88: spare | N88: spare | O88: - | P88: Spare | Q88: 0
C89: 11 | D89: Spare | E89: spare | F89: =INDEX(Services.categories.original.units,MATCH($E89,Services.categories.list,0),) -> spare | G89: =INDEX(Services.categories.units.for.cost.allocation,MATCH($E89,Services.categories.list,0),) -> spare | H89: - | K89: Spare | L89: spare | M89: spare | N89: spare | O89: - | P89: Copper | Q89: 0
C90: 12 | D90: Spare | E90: spare | F90: =INDEX(Services.categories.original.units,MATCH($E90,Services.categories.list,0),) -> spare | G90: =INDEX(Services.categories.units.for.cost.allocation,MATCH($E90,Services.categories.list,0),) -> spare | H90: - | K90: Spare | L90: spare | M90: spare | N90: spare | O90: - | P90: Spare | Q90: 0
C91: 13 | D91: Spare | E91: spare | F91: =INDEX(Services.categories.original.units,MATCH($E91,Services.categories.list,0),) -> spare | G91: =INDEX(Services.categories.units.for.cost.allocation,MATCH($E91,Services.categories.list,0),) -> spare | H91: - | K91: Spare | L91: spare | M91: spare | N91: spare | O91: - | P91: Spare | Q91: 0
C92: 14 | D92: Spare | E92: spare | F92: =INDEX(Services.categories.original.units,MATCH($E92,Services.categories.list,0),) -> spare | G92: =INDEX(Services.categories.units.for.cost.allocation,MATCH($E92,Services.categories.list,0),) -> spare | H92: - | K92: Spare | L92: spare | M92: spare | N92: spare | O92: - | P92: Spare | Q92: 0
C93: 15 | D93: Spare | E93: spare | F93: =INDEX(Services.categories.original.units,MATCH($E93,Services.categories.list,0),) -> spare | G93: =INDEX(Services.categories.units.for.cost.allocation,MATCH($E93,Services.categories.list,0),) -> spare | H93: - | K93: Spare | L93: spare | M93: spare | N93: spare | O93: - | P93: Spare | Q93: 0
C94: 16 | D94: Spare | E94: spare | F94: =INDEX(Services.categories.original.units,MATCH($E94,Services.categories.list,0),) -> spare | G94: =INDEX(Services.categories.units.for.cost.allocation,MATCH($E94,Services.categories.list,0),) -> spare | H94: - | K94: Spare | L94: spare | M94: spare | N94: spare | O94: - | P94: Spare | Q94: 0
C95: 17 | D95: Spare | E95: spare | F95: =INDEX(Services.categories.original.units,MATCH($E95,Services.categories.list,0),) -> spare | G95: =INDEX(Services.categories.units.for.cost.allocation,MATCH($E95,Services.categories.list,0),) -> spare | H95: - | K95: Spare | L95: spare | M95: spare | N95: spare | O95: - | P95: Spare | Q95: 0
C96: 18 | D96: Spare | E96: spare | F96: =INDEX(Services.categories.original.units,MATCH($E96,Services.categories.list,0),) -> spare | G96: =INDEX(Services.categories.units.for.cost.allocation,MATCH($E96,Services.categories.list,0),) -> spare | H96: - | K96: Spare | L96: spare | M96: spare | N96: spare | O96: - | P96: Spare | Q96: 0
C97: 19 | D97: Spare | E97: spare | F97: =INDEX(Services.categories.original.units,MATCH($E97,Services.categories.list,0),) -> spare | G97: =INDEX(Services.categories.units.for.cost.allocation,MATCH($E97,Services.categories.list,0),) -> spare | H97: - | K97: Spare | L97: spare | M97: spare | N97: spare | O97: - | P97: Spare | Q97: 0
C98: 20 | D98: Spare | E98: spare | F98: =INDEX(Services.categories.original.units,MATCH($E98,Services.categories.list,0),) -> spare | G98: =INDEX(Services.categories.units.for.cost.allocation,MATCH($E98,Services.categories.list,0),) -> spare | H98: - | K98: Spare | L98: spare | M98: spare | N98: spare | O98: - | P98: Spare | Q98: 0
D99: Access.network.services.list | K99: =Core.network.services.list -> On-net voice | L99: =E105:E134 -> Voice | M99: =F105:F134 -> Minutes | N99: =G105:G134 -> BHMbps | O99: =H105:H134 -> MSAN-EthSw-SR-EthSw-MSAN | P99: Common | Q99: 0
K100: Outgoing voice | L100: Voice | M100: Minutes | N100: BHMbps | O100: MSAN-EthSw-SR… | P100: Common | Q100: 0
K101: Incoming voice | L101: Voice | M101: Minutes | N101: BHMbps | O101: …SR-EthSw-MSAN | P101: Common | Q101: 1
C102: Core services | K102: Transit voice - collocated | L102: Voice | M102: Minutes | N102: BHMbps | O102: other operators-SR-other operators | P102: Common | Q102: 0
K103: Transit voice - not collocated | L103: Voice | M103: Minutes | N103: BHMbps | O103: other operators-SR-SR-other operators | P103: Common | Q103: 0
D104: Network services | E104: Service category | F104: Original units | G104: Units for cost allocation | H104: Nodes routing path | K104: Wholesale voice origination | L104: Voice | M104: Minutes | N104: BHMbps | O104: MSAN-EthSw-SR… | P104: Common | Q104: 0
C105: 1 | D105: On-net voice | E105: Voice | F105: =INDEX(Services.categories.original.units,MATCH($E105,Services.categories.list,0),) -> Minutes | G105: =INDEX(Services.categories.units.for.cost.allocation,MATCH($E105,Services.categories.list,0),) -> BHMbps | H105: MSAN-EthSw-SR-EthSw-MSAN | K105: Voice call processing (all types) | L105: Voice processing | M105: Minutes | N105: BHE | O105: Call servers | P105: Common | Q105: 0
C106: =C105+1 -> 2 | D106: Outgoing voice | E106: Voice | F106: =INDEX(Services.categories.original.units,MATCH($E106,Services.categories.list,0),) -> Minutes | G106: =INDEX(Services.categories.units.for.cost.allocation,MATCH($E106,Services.categories.list,0),) -> BHMbps | H106: MSAN-EthSw-SR… | K106: Broadband traffic from copper lines - retail | L106: Broadband | M106: BHMbps | N106: BHMbps | O106: MSAN-EthSw-SR… | P106: Copper | Q106: 0
C107: 3 | D107: Incoming voice | E107: Voice | F107: =INDEX(Services.categories.original.units,MATCH($E107,Services.categories.list,0),) -> Minutes | G107: =INDEX(Services.categories.units.for.cost.allocation,MATCH($E107,Services.categories.list,0),) -> BHMbps | H107: …SR-EthSw-MSAN | K107: Broadband traffic from copper lines - wholesale | L107: Broadband | M107: BHMbps | N107: BHMbps | O107: MSAN-EthSw-SR… | P107: Copper | Q107: 0
C108: 4 | D108: Transit voice - collocated | E108: Voice | F108: =INDEX(Services.categories.original.units,MATCH($E108,Services.categories.list,0),) -> Minutes | G108: =INDEX(Services.categories.units.for.cost.allocation,MATCH($E108,Services.categories.list,0),) -> BHMbps | H108: other operators-SR-other operators | K108: Broadband traffic from fibre lines - retail | L108: Broadband | M108: BHMbps | N108: BHMbps | O108: OLT-EthSw-SR… | P108: Fibre | Q108: 0
C109: 5 | D109: Transit voice - not collocated | E109: Voice | F109: =INDEX(Services.categories.original.units,MATCH($E109,Services.categories.list,0),) -> Minutes | G109: =INDEX(Services.categories.units.for.cost.allocation,MATCH($E109,Services.categories.list,0),) -> BHMbps | H109: other operators-SR-SR-other operators | K109: Broadband traffic from fibre lines - wholesale | L109: Broadband | M109: BHMbps | N109: BHMbps | O109: OLT-EthSw-SR… | P109: Fibre | Q109: 0
C110: 6 | D110: Wholesale voice origination | E110: Voice | F110: =INDEX(Services.categories.original.units,MATCH($E110,Services.categories.list,0),) -> Minutes | G110: =INDEX(Services.categories.units.for.cost.allocation,MATCH($E110,Services.categories.list,0),) -> BHMbps | H110: MSAN-EthSw-SR… | K110: Linear TV broadcast - whole IPTV flow | L110: IPTV | M110: BHMbps | N110: BHMbps | O110: MSAN/OLT-EthSw-SR-service platforms | P110: Common | Q110: 0
C111: 7 | D111: Voice call processing (all types) | E111: Voice processing | F111: =INDEX(Services.categories.original.units,MATCH($E111,Services.categories.list,0),) -> Minutes | G111: =INDEX(Services.categories.units.for.cost.allocation,MATCH($E111,Services.categories.list,0),) -> BHE | H111: Call servers | K111: Ethernet leased lines local traffic on copper (i.e. it only uses the local Ethernet switch) | L111: Leased line traffic | M111: BHMbps | N111: BHMbps | O111: ...-EthSw-… | P111: Copper | Q111: 0
C112: 8 | D112: Broadband traffic from copper lines - retail | E112: Broadband | F112: =INDEX(Services.categories.original.units,MATCH($E112,Services.categories.list,0),) -> BHMbps | G112: =INDEX(Services.categories.units.for.cost.allocation,MATCH($E112,Services.categories.list,0),) -> BHMbps | H112: MSAN-EthSw-SR… | K112: Ethernet leased lines local traffic on fibre (i.e. it only uses the local Ethernet switch) | L112: Leased line traffic | M112: BHMbps | N112: BHMbps | O112: ...-EthSw-… | P112: Fibre | Q112: 0
C113: 9 | D113: Broadband traffic from copper lines - wholesale | E113: Broadband | F113: =INDEX(Services.categories.original.units,MATCH($E113,Services.categories.list,0),) -> BHMbps | G113: =INDEX(Services.categories.units.for.cost.allocation,MATCH($E113,Services.categories.list,0),) -> BHMbps | H113: MSAN-EthSw-SR… | K113: IP VPN on copper traffic | L113: Leased line traffic | M113: BHMbps | N113: BHMbps | O113: EthSw-SR-EthSw | P113: Copper | Q113: 0
C114: 10 | D114: Broadband traffic from fibre lines - retail | E114: Broadband | F114: =INDEX(Services.categories.original.units,MATCH($E114,Services.categories.list,0),) -> BHMbps | G114: =INDEX(Services.categories.units.for.cost.allocation,MATCH($E114,Services.categories.list,0),) -> BHMbps | H114: OLT-EthSw-SR… | K114: IP VPN on fibre traffic | L114: Leased line traffic | M114: BHMbps | N114: BHMbps | O114: EthSw-SR-EthSw | P114: Fibre | Q114: 0
C115: 11 | D115: Broadband traffic from fibre lines - wholesale | E115: Broadband | F115: =INDEX(Services.categories.original.units,MATCH($E115,Services.categories.list,0),) -> BHMbps | G115: =INDEX(Services.categories.units.for.cost.allocation,MATCH($E115,Services.categories.list,0),) -> BHMbps | H115: OLT-EthSw-SR… | K115: SDH leased lines on copper traffic | L115: Leased line traffic | M115: BHMbps | N115: BHMbps | O115: EthSw-SR-EthSw | P115: Copper | Q115: 0
C116: 12 | D116: Linear TV broadcast - whole IPTV flow | E116: IPTV | F116: =INDEX(Services.categories.original.units,MATCH($E116,Services.categories.list,0),) -> BHMbps | G116: =INDEX(Services.categories.units.for.cost.allocation,MATCH($E116,Services.categories.list,0),) -> BHMbps | H116: MSAN/OLT-EthSw-SR-service platforms | K116: SDH leased lines on fibre traffic | L116: Leased line traffic | M116: BHMbps | N116: BHMbps | O116: EthSw-SR-EthSw | P116: Fibre | Q116: 0
C117: 13 | D117: Ethernet leased lines local traffic on copper (i.e. it only uses the local Ethernet switch) | E117: Leased line traffic | F117: =INDEX(Services.categories.original.units,MATCH($E117,Services.categories.list,0),) -> BHMbps | G117: =INDEX(Services.categories.units.for.cost.allocation,MATCH($E117,Services.categories.list,0),) -> BHMbps | H117: ...-EthSw-… | K117: Ethernet leased lines on copper traffic | L117: Leased line traffic | M117: BHMbps | N117: BHMbps | O117: EthSw-SR-EthSw | P117: Copper | Q117: 0
C118: 14 | D118: Ethernet leased lines local traffic on fibre (i.e. it only uses the local Ethernet switch) | E118: Leased line traffic | F118: =INDEX(Services.categories.original.units,MATCH($E118,Services.categories.list,0),) -> BHMbps | G118: =INDEX(Services.categories.units.for.cost.allocation,MATCH($E118,Services.categories.list,0),) -> BHMbps | H118: ...-EthSw-… | K118: Ethernet leased lines on fibre traffic | L118: Leased line traffic | M118: BHMbps | N118: BHMbps | O118: EthSw-SR-EthSw | P118: Fibre | Q118: 0
C119: 15 | D119: IP VPN on copper traffic | E119: Leased line traffic | F119: =INDEX(Services.categories.original.units,MATCH($E119,Services.categories.list,0),) -> BHMbps | G119: =INDEX(Services.categories.units.for.cost.allocation,MATCH($E119,Services.categories.list,0),) -> BHMbps | H119: EthSw-SR-EthSw | K119: spare | L119: spare | M119: spare | N119: spare | O119: - | P119: Spare | Q119: 0
C120: 16 | D120: IP VPN on fibre traffic | E120: Leased line traffic | F120: =INDEX(Services.categories.original.units,MATCH($E120,Services.categories.list,0),) -> BHMbps | G120: =INDEX(Services.categories.units.for.cost.allocation,MATCH($E120,Services.categories.list,0),) -> BHMbps | H120: EthSw-SR-EthSw | K120: spare | L120: spare | M120: spare | N120: spare | O120: - | P120: Spare | Q120: 0
C121: 17 | D121: SDH leased lines on copper traffic | E121: Leased line traffic | F121: =INDEX(Services.categories.original.units,MATCH($E121,Services.categories.list,0),) -> BHMbps | G121: =INDEX(Services.categories.units.for.cost.allocation,MATCH($E121,Services.categories.list,0),) -> BHMbps | H121: EthSw-SR-EthSw | K121: spare | L121: spare | M121: spare | N121: spare | O121: - | P121: Spare | Q121: 0
C122: 18 | D122: SDH leased lines on fibre traffic | E122: Leased line traffic | F122: =INDEX(Services.categories.original.units,MATCH($E122,Services.categories.list,0),) -> BHMbps | G122: =INDEX(Services.categories.units.for.cost.allocation,MATCH($E122,Services.categories.list,0),) -> BHMbps | H122: EthSw-SR-EthSw | K122: spare | L122: spare | M122: spare | N122: spare | O122: - | P122: Spare | Q122: 0
C123: 19 | D123: Ethernet leased lines on copper traffic | E123: Leased line traffic | F123: =INDEX(Services.categories.original.units,MATCH($E123,Services.categories.list,0),) -> BHMbps | G123: =INDEX(Services.categories.units.for.cost.allocation,MATCH($E123,Services.categories.list,0),) -> BHMbps | H123: EthSw-SR-EthSw | K123: Copper subscribers | L123: Subscribers | M123: Subscribers | N123: Subscribers | O123: MSAN | P123: Copper | Q123: 0
C124: 20 | D124: Ethernet leased lines on fibre traffic | E124: Leased line traffic | F124: =INDEX(Services.categories.original.units,MATCH($E124,Services.categories.list,0),) -> BHMbps | G124: =INDEX(Services.categories.units.for.cost.allocation,MATCH($E124,Services.categories.list,0),) -> BHMbps | H124: EthSw-SR-EthSw | K124: Fibre subscribers | L124: Subscribers | M124: Subscribers | N124: Subscribers | O124: OLT | P124: Fibre | Q124: 0
C125: 21 | D125: spare | E125: spare | F125: =INDEX(Services.categories.original.units,MATCH($E125,Services.categories.list,0),) -> spare | G125: =INDEX(Services.categories.units.for.cost.allocation,MATCH($E125,Services.categories.list,0),) -> spare | H125: - | K125: IPTV subscribers | L125: Subscribers | M125: Subscribers | N125: Subscribers | O125: linear TV platform | P125: Common | Q125: 0
C126: 22 | D126: spare | E126: spare | F126: =INDEX(Services.categories.original.units,MATCH($E126,Services.categories.list,0),) -> spare | G126: =INDEX(Services.categories.units.for.cost.allocation,MATCH($E126,Services.categories.list,0),) -> spare | H126: - | K126: Leased line subscribers | L126: Subscribers | M126: Subscribers | N126: Subscribers | O126: MSAN/OLT | P126: Common | Q126: 0
C127: 23 | D127: spare | E127: spare | F127: =INDEX(Services.categories.original.units,MATCH($E127,Services.categories.list,0),) -> spare | G127: =INDEX(Services.categories.units.for.cost.allocation,MATCH($E127,Services.categories.list,0),) -> spare | H127: - | K127: Broadband subscribers | L127: Subscribers | M127: Subscribers | N127: Subscribers | O127: MSAN/OLT | P127: Common | Q127: 0
C128: 24 | D128: spare | E128: spare | F128: =INDEX(Services.categories.original.units,MATCH($E128,Services.categories.list,0),) -> spare | G128: =INDEX(Services.categories.units.for.cost.allocation,MATCH($E128,Services.categories.list,0),) -> spare | H128: - | K128: spare | L128: spare | M128: spare | N128: spare | O128: - | P128: Spare | Q128: 0
C129: 25 | D129: Copper subscribers | E129: Subscribers | F129: =INDEX(Services.categories.original.units,MATCH($E129,Services.categories.list,0),) -> Subscribers | G129: =INDEX(Services.categories.units.for.cost.allocation,MATCH($E129,Services.categories.list,0),) -> Subscribers | H129: MSAN | K129: Network.services.list | L129: Network.services.categories | M129: Network.services.original.units | N129: Network.services.units.for.cost.allocation | O129: Network.services.nodes.routing | P129: Network.services.types | Q129: Incoming.voice.selector
C130: 26 | D130: Fibre subscribers | E130: Subscribers | F130: =INDEX(Services.categories.original.units,MATCH($E130,Services.categories.list,0),) -> Subscribers | G130: =INDEX(Services.categories.units.for.cost.allocation,MATCH($E130,Services.categories.list,0),) -> Subscribers | H130: OLT
C131: 27 | D131: IPTV subscribers | E131: Subscribers | F131: =INDEX(Services.categories.original.units,MATCH($E131,Services.categories.list,0),) -> Subscribers | G131: =INDEX(Services.categories.units.for.cost.allocation,MATCH($E131,Services.categories.list,0),) -> Subscribers | H131: linear TV platform
C132: 28 | D132: Leased line subscribers | E132: Subscribers | F132: =INDEX(Services.categories.original.units,MATCH($E132,Services.categories.list,0),) -> Subscribers | G132: =INDEX(Services.categories.units.for.cost.allocation,MATCH($E132,Services.categories.list,0),) -> Subscribers | H132: MSAN/OLT
C133: 29 | D133: Broadband subscribers | E133: Subscribers | F133: =INDEX(Services.categories.original.units,MATCH($E133,Services.categories.list,0),) -> Subscribers | G133: =INDEX(Services.categories.units.for.cost.allocation,MATCH($E133,Services.categories.list,0),) -> Subscribers | H133: MSAN/OLT
C134: 30 | D134: spare | E134: spare | F134: =INDEX(Services.categories.original.units,MATCH($E134,Services.categories.list,0),) -> spare | G134: =INDEX(Services.categories.units.for.cost.allocation,MATCH($E134,Services.categories.list,0),) -> spare | H134: -
D135: Core.network.services.list
C138: Asset groups
D140: Asset groups | E140: Unit | F140: Asset groups notes
C141: 1 | D141: Copper sub-loop, copper loop and VULA VDSL | E141: # | F141: All copper lines
C142: =C141+1 -> 2 | D142: Copper loop and VULA VDSL | E142: # | F142: Copper full loops (passive and VULA)
C143: 3 | D143: VULA VDSL | E143: # | F143: Copper VULA
C144: 4 | D144: Fibre GPON | E144: # | F144: Fibre GPON
C145: 5 | D145: Fibre PtP | E145: # | F145: Fibre PtP
C146: 6 | D146: Fibre GPON and PtP in distribution | E146: # | F146: Fibre GPON and PtP in distribution
C147: 7 | D147: Fibre GPON and PtP in feeder | E147: # | F147: Fibre GPON and PtP in feeder
C148: 8 | D148: Fibre GPON and PtP at the OLT | E148: # | F148: Fibre GPON and PtP at the OLT
C149: 9 | D149: Spare | E149: - | F149: -
C150: 10 | D150: Access transmission for voice | E150: BHMbps | F150: MSAN/OLT-EthSw
C151: 11 | D151: Access transmission for copper broadband | E151: BHMbps | F151: MSAN-EthSw
C152: 12 | D152: Access transmission for copper broadband and linear IPTV | E152: BHMbps | F152: MSAN-EthSw
C153: 13 | D153: Access transmission for fibre broadband | E153: BHMbps | F153: OLT-EthSw
C154: 14 | D154: Access transmission for fibre broadband and linear IPTV | E154: BHMbps | F154: OLT-EthSw
C155: 15 | D155: Access transmission for copper leased lines | E155: BHMbps | F155: EthSw for LL traffic
C156: 16 | D156: Access transmission for fibre leased lines | E156: BHMbps | F156: EthSw for LL traffic
C157: 17 | D157: Distribution transmission | E157: BHMbps | F157: EthSw-SR
C158: 18 | D158: Core transmission | E158: BHMbps | F158: SR-SR
C159: 19 | D159: Access switching | E159: BHMbps | F159: EthSw
C160: 20 | D160: Core routing | E160: BHMbps | F160: SR
C161: 21 | D161: Subscribers | E161: # | F161: Clock, NMS
C162: 22 | D162: Interconnect SBC | E162: BHMbps | F162: I-SBCs
C163: 23 | D163: Voice interconnection | E163: BHMbps | F163: PR
C164: 24 | D164: Call servers | E164: BHE | F164: CS
C165: 25 | D165: Core platforms | E165: Broadband subscribers | F165: BRAS, DNS, RADIUS
C166: 26 | D166: Broadband and/or voice copper active service connections | E166: # | F166: MSAN for retail and active wholesale lines, excluding passive wholesale lines (i.e. LLU)
C167: 27 | D167: Broadband and/or voice fibre active service connections | E167: # | F167: OLT
C168: 28 | D168: Leased lines copper connections | E168: # | F168: MSAN for retail and active wholesale lines, excluding passive wholesale lines (i.e. LLU)
C169: 29 | D169: Leased lines fibre connections | E169: # | F169: OLT
C170: 30 | D170: Linear IPTV, per link | E170: BHMbit/s | F170: Broadcast from core node to all MSANs or OLTs
D171: Assets.groups | E171: Assets.groups.units | F171: Assets.groups.notes
A174: =MAX(A$1:A173)+1 -> 3 | B174: Commercial broadband and leased line services
D176: Copper broadband speeds
D177: 10Mbps
D178: 20Mbps
D179: 30Mbps
D180: 50Mbps
D181: 80Mbps
D182: 100Mbps
D183: 150Mbps
D184: 200Mbps
D185: 300Mbps
D186: Spare
D187: Broadband.speeds.copper
D189: Fibre broadband speeds
D190: 10Mbps
D191: 20Mbps
D192: 30Mbps
D193: 50Mbps
D194: 80Mbps
D195: 100Mbps
D196: 150Mbps
D197: 200Mbps
D198: 300Mbps
D199: 400Mbps
D200: 500Mbps
D201: 700Mbps
D202: 1000Mbps
D203: 2000Mbps
D204: 5000Mbps
D205: Spare
D206: Spare
D207: Spare
D208: Spare
D209: Spare
D210: Spare
D211: Spare
D212: Spare
D213: Spare
D214: Spare
D215: Spare
D216: Spare
D217: Spare
D218: Spare
D219: Spare
D220: Broadband.speeds.fibre
... 58 more rows

Sheet Demand
D1: Demand
A2: This model has been prepared for OCECPR to undertake its regulatory duties using bottom-up models for the calculation of the cost of wholesale services in order to promote competition in the fixed electronic communications market in Cyprus and for no other purpose. We do not give, accept or assume responsibility for any other purpose or to any other person for action or inaction taken as a result of this model, unless expressly agreed by our prior consent in writing.
F3: Unit | G3: Source | H3: Comment | J3: =TRANSPOSE(Years.market) -> 2020 | K3: 2021 | L3: 2022 | M3: 2023 | N3: 2024 | O3: 2025 | P3: 2026 | Q3: 2027 | R3: 2028 | S3: 2029 | T3: 2030 | W3: Notes
A5: =MAX(A$1:A4)+1 -> 1 | B5: Demographic data
J7: =TRANSPOSE(Years.market) -> 2020 | K7: 2021 | L7: 2022 | M7: 2023 | N7: 2024 | O7: 2025 | P7: 2026 | Q7: 2027 | R7: 2028 | S7: 2029 | T7: 2030
D8: Households | F8: # at YE | G8: https://library.cystat.gov.cy/NEW/CYPRUS_IN_FIGURES-2023-EN-260224.pdf | H8: Page 6 | J8: 340000 | K8: 346000 | L8: 352600 | M8: =M10/M12 -> 356353.1009 | N8: =N10/N12 -> 358459.433 | O8: 360182.7957 | P8: 361523.1889 | Q8: 362442.3156 | R8: 363361.4424 | S8: 364203.9752 | T8: 364931.6172 | U8: Households
D10: Population | F10: # at YE | G10: Same source as households until 2022, Euromonitor from 2023 onwards. The two sources are aligned from 2020 to 2022, but use a different reporting convention (31 December of year N from CYSTAT is the same value as 1 January of year N+1 from Euromonitor) | J10: 896000 | K10: 904700 | L10: 920700 | M10: 930500 | N10: 936000 | O10: 940500 | P10: 944000 | Q10: 946400 | R10: 948800 | S10: 951000 | T10: 952900
D12: Average household size | F12: # at YE | J12: =J10/J8 -> 2.635294118 | K12: =K10/K8 -> 2.614739884 | L12: 2.611174135 | M12: =L12 -> 2.611174135 | N12: =M12 -> 2.611174135 | O12: 2.611174135 | P12: 2.611174135 | Q12: 2.611174135 | R12: 2.611174135 | S12: 2.611174135 | T12: 2.611174135
A16: =MAX(A$1:A15)+1 -> 2 | B16: Subscriptions
C18: Broadband subscriptions
D20: Subscriptions | J20: =TRANSPOSE(Years.market) -> 2020 | K20: 2021 | L20: 2022 | M20: 2023 | N20: 2024 | O20: 2025 | P20: 2026 | Q20: 2027 | R20: 2028 | S20: 2029 | T20: 2030
E21: Subscriptions | F21: # | G21: https://ocecpr.ee.cy/images/files_uploads/katanalotes/paratiritirio-agoras/EC_Report_FixedTelephonyBroadbandTelecomBulletin_GR_Q4.23_-_Revised.pdf | H21: Figure 4a | J21: 332080 | K21: 340774 | L21: 348943 | M21: 356615 | N21: =N8*N22 -> 362704.0986 | O21: =O8*O22 -> 368448.2271 | P21: 373834.6254 | Q21: 378810.5066 | R21: 383806.8042 | S21: 388741.7641 | T21: 393571.5316 | U21: Connections.broadband
E22: Take-up of households | F22: % | H22: Penetration going above 100% of households with businesses and holiday homes (which are not households) having a broadband subscription | J22: =J21/J8 -> 0.9767058824 | K22: =K21/K8 -> 0.9848959538 | L22: =L21/L8 -> 0.9896284742 | M22: =M21/M8 -> 1.000734943 | N22: =M22+(M22-L22) -> 1.011841411 | O22: =N22+(N22-M22) -> 1.02294788 | P22: 1.034054348 | Q22: 1.045160817 | R22: 1.056267285 | S22: 1.067373754 | T22: 1.078480222 | U22: Broadband.take.up.of.households
D24: Split by technology
E25: =Access.technologies -> Copper | F25: % | G25: https://ocecpr.ee.cy/images/files_uploads/katanalotes/paratiritirio-agoras/EC_Report_FixedTelephonyBroadbandTelecomBulletin_GR_Q4.23_-_Revised.pdf | H25: Figure 7 | J25: 0.686 | K25: 0.563 | L25: 0.423 | M25: 0.273 | N25: =1-SUM(N26:N27) -> 0.112 | O25: 0.03 | P25: 0 | Q25: 0 | R25: 0 | S25: 0 | T25: 0
E26: Fibre | F26: % | G26: https://ocecpr.ee.cy/images/files_uploads/katanalotes/paratiritirio-agoras/EC_Report_FixedTelephonyBroadbandTelecomBulletin_GR_Q4.23_-_Revised.pdf | H26: Figure 7 | J26: 0.09 | K26: 0.209 | L26: 0.351 | M26: 0.514 | N26: =MIN(M26+(M26-L26),1-N27) -> 0.677 | O26: =(1-O27-O25) -> 0.761 | P26: =(1-P27-P25) -> 0.793 | Q26: 0.795 | R26: 0.797 | S26: 0.799 | T26: 0.801 | W26: Annual evolution of cable share (percentage points)
E27: Cable | F27: % | G27: https://ocecpr.ee.cy/images/files_uploads/katanalotes/paratiritirio-agoras/EC_Report_FixedTelephonyBroadbandTelecomBulletin_GR_Q4.23_-_Revised.pdf | H27: Figure 7 | J27: 0.224 | K27: 0.228 | L27: 0.225 | M27: 0.213 | N27: =M27+$W27 -> 0.211 | O27: =N27+$W27 -> 0.209 | P27: 0.207 | Q27: 0.205 | R27: 0.203 | S27: 0.201 | T27: 0.199 | W27: -0.002
D29: Subscriptions by technology
E30: =Access.technologies -> Copper | F30: # | J30: =J$21*J25 -> 227806.88 | K30: =K$21*K25 -> 191855.762 | L30: =L$21*L25 -> 147602.889 | M30: =M$21*M25 -> 97355.895 | N30: =N$21*N25 -> 40622.85904 | O30: =O$21*O25 -> 11053.44681 | P30: =P$21*P25 -> 0 | Q30: =Q$21*Q25 -> 0 | R30: =R$21*R25 -> 0 | S30: =S$21*S25 -> 0 | T30: =T$21*T25 -> 0 | U30: Market.connections.copper.broadband
E31: Fibre | F31: # | J31: =J$21*J26 -> 29887.2 | K31: =K$21*K26 -> 71221.766 | L31: =L$21*L26 -> 122478.993 | M31: =M$21*M26 -> 183300.11 | N31: =N$21*N26 -> 245550.6747 | O31: =O$21*O26 -> 280389.1009 | P31: =P$21*P26 -> 296450.8579 | Q31: =Q$21*Q26 -> 301154.3527 | R31: =R$21*R26 -> 305894.023 | S31: =S$21*S26 -> 310604.6695 | T31: =T$21*T26 -> 315250.7968 | U31: Market.connections.fibre.broadband
E32: Cable | F32: # | J32: =J$21*J27 -> 74385.92 | K32: =K$21*K27 -> 77696.472 | L32: =L$21*L27 -> 78512.175 | M32: =M$21*M27 -> 75958.995 | N32: =N$21*N27 -> 76530.5648 | O32: =O$21*O27 -> 77005.67947 | P32: =P$21*P27 -> 77383.76746 | Q32: =Q$21*Q27 -> 77656.15385 | R32: =R$21*R27 -> 77912.78126 | S32: =S$21*S27 -> 78137.09458 | T32: =T$21*T27 -> 78320.73479
D34: Copper; split by speed
E35: =Broadband.speeds.copper -> 10Mbps | F35: % | G35: Redacted inputs | J35: 0.5 | K35: 0.5 | L35: 0.5 | M35: 0.5 | N35: 0.5 | O35: 0.5 | P35: =O35 -> 0.5 | Q35: =P35 -> 0.5 | R35: 0.5 | S35: 0.5 | T35: 0.5
E36: 20Mbps | F36: % | G36: Redacted inputs | J36: 0.3 | K36: 0.3 | L36: 0.3 | M36: 0.3 | N36: 0.3 | O36: 0.3 | P36: =O36 -> 0.3 | Q36: 0.3 | R36: 0.3 | S36: 0.3 | T36: 0.3
E37: 30Mbps | F37: % | G37: Redacted inputs | J37: 0.15 | K37: 0.15 | L37: 0.15 | M37: 0.15 | N37: 0.15 | O37: 0.15 | P37: 0.15 | Q37: 0.15 | R37: 0.15 | S37: 0.15 | T37: 0.15
E38: 50Mbps | F38: % | G38: Redacted inputs | J38: 0.03 | K38: 0.03 | L38: 0.03 | M38: 0.03 | N38: 0.03 | O38: 0.03 | P38: 0.03 | Q38: 0.03 | R38: 0.03 | S38: 0.03 | T38: 0.03
E39: 80Mbps | F39: % | G39: Redacted inputs | J39: 0.01 | K39: 0.01 | L39: 0.01 | M39: 0.01 | N39: 0.01 | O39: 0.01 | P39: 0.01 | Q39: 0.01 | R39: 0.01 | S39: 0.01 | T39: 0.01
E40: 100Mbps | F40: % | G40: Redacted inputs | J40: 0.01 | K40: 0.01 | L40: 0.01 | M40: 0.01 | N40: 0.01 | O40: 0.01 | P40: 0.01 | Q40: 0.01 | R40: 0.01 | S40: 0.01 | T40: 0.01
E41: 150Mbps | F41: % | G41: Redacted inputs | J41: 0 | K41: 0 | L41: 0 | M41: 0 | N41: 0 | O41: 0 | P41: =O41 -> 0 | Q41: 0 | R41: 0 | S41: 0 | T41: 0
E42: 200Mbps | F42: % | G42: Redacted inputs | J42: 0 | K42: 0 | L42: 0 | M42: 0 | N42: 0 | O42: 0 | P42: =O42 -> 0 | Q42: 0 | R42: 0 | S42: 0 | T42: 0
E43: 300Mbps | F43: % | G43: Redacted inputs | J43: 0 | K43: 0 | L43: 0 | M43: 0 | N43: 0 | O43: 0 | P43: 0 | Q43: 0 | R43: 0 | S43: 0 | T43: 0
E44: Spare | F44: % | J44: 0 | K44: 0 | L44: 0 | M44: 0 | N44: 0 | O44: 0 | P44: 0 | Q44: 0 | R44: 0 | S44: 0 | T44: 0
J45: =SUM(J35:J44) -> 1 | K45: =SUM(K35:K44) -> 1 | L45: 1 | M45: 1 | N45: 1 | O45: 1 | P45: 1 | Q45: 1 | R45: 1 | S45: 1 | T45: 1
D46: Copper; subscriptions by speed
E47: =Broadband.speeds.copper -> 10Mbps | F47: # | J47: =J35*J$30 -> 113903.44 | K47: =K35*K$30 -> 95927.881 | L47: 73801.4445 | M47: 48677.9475 | N47: 20311.42952 | O47: 5526.723407 | P47: 0 | Q47: 0 | R47: 0 | S47: 0 | T47: 0
E48: 20Mbps | F48: # | J48: =J36*J$30 -> 68342.064 | K48: 57556.7286 | L48: 44280.8667 | M48: 29206.7685 | N48: 12186.85771 | O48: 3316.034044 | P48: 0 | Q48: 0 | R48: 0 | S48: 0 | T48: 0
E49: 30Mbps | F49: # | J49: 34171.032 | K49: 28778.3643 | L49: 22140.43335 | M49: 14603.38425 | N49: 6093.428856 | O49: 1658.017022 | P49: 0 | Q49: 0 | R49: 0 | S49: 0 | T49: 0
E50: 50Mbps | F50: # | J50: 6834.2064 | K50: 5755.67286 | L50: 4428.08667 | M50: 2920.67685 | N50: 1218.685771 | O50: 331.6034044 | P50: 0 | Q50: 0 | R50: 0 | S50: 0 | T50: 0
E51: 80Mbps | F51: # | J51: 2278.0688 | K51: 1918.55762 | L51: 1476.02889 | M51: 973.55895 | N51: 406.2285904 | O51: 110.5344681 | P51: 0 | Q51: 0 | R51: 0 | S51: 0 | T51: 0
E52: 100Mbps | F52: # | J52: 2278.0688 | K52: 1918.55762 | L52: 1476.02889 | M52: 973.55895 | N52: 406.2285904 | O52: 110.5344681 | P52: 0 | Q52: 0 | R52: 0 | S52: 0 | T52: 0
E53: 150Mbps | F53: # | J53: 0 | K53: 0 | L53: 0 | M53: 0 | N53: 0 | O53: 0 | P53: 0 | Q53: 0 | R53: 0 | S53: 0 | T53: 0
E54: 200Mbps | F54: # | J54: 0 | K54: 0 | L54: 0 | M54: 0 | N54: 0 | O54: 0 | P54: 0 | Q54: 0 | R54: 0 | S54: 0 | T54: 0
E55: 300Mbps | F55: # | J55: 0 | K55: 0 | L55: 0 | M55: 0 | N55: 0 | O55: 0 | P55: 0 | Q55: 0 | R55: 0 | S55: 0 | T55: 0
E56: Spare | F56: # | J56: 0 | K56: 0 | L56: 0 | M56: 0 | N56: 0 | O56: 0 | P56: 0 | Q56: 0 | R56: 0 | S56: 0 | T56: 0
J57: =SUM(J47:J56) -> 227806.88 | K57: 191855.762 | L57: 147602.889 | M57: 97355.895 | N57: 40622.85904 | O57: 11053.44681 | P57: 0 | Q57: 0 | R57: 0 | S57: 0 | T57: 0
D58: Fibre; split by speed | W58: Annual evolution (percentage points)
E59: =Broadband.speeds.fibre -> 10Mbps | F59: % | G59: Redacted inputs | J59: 0 | K59: 0 | L59: 0 | M59: 0 | N59: 0 | O59: 0 | P59: =MAX(O59+$W59,0) -> 0 | Q59: =MAX(P59+$W59,0) -> 0 | R59: =MAX(Q59+$W59,0) -> 0 | S59: =MAX(R59+$W59,0) -> 0 | T59: =MAX(S59+$W59,0) -> 0 | W59: 0
E60: 20Mbps | F60: % | G60: Redacted inputs | J60: 0 | K60: 0 | L60: 0 | M60: 0 | N60: 0 | O60: 0 | P60: 0 | Q60: 0 | R60: 0 | S60: 0 | T60: 0 | W60: 0
E61: 30Mbps | F61: % | G61: Redacted inputs | J61: 0 | K61: 0 | L61: 0 | M61: 0 | N61: 0 | O61: 0 | P61: 0 | Q61: 0 | R61: 0 | S61: 0 | T61: 0 | W61: 0
E62: 50Mbps | F62: % | G62: Redacted inputs | J62: 0.1 | K62: 0 | L62: 0 | M62: 0 | N62: 0 | O62: 0 | P62: 0 | Q62: 0 | R62: 0 | S62: 0 | T62: 0 | W62: 0
E63: 80Mbps | F63: % | G63: Redacted inputs | J63: 0 | K63: 0 | L63: 0 | M63: 0 | N63: 0 | O63: 0 | P63: 0 | Q63: 0 | R63: 0 | S63: 0 | T63: 0 | W63: 0
E64: 100Mbps | F64: % | G64: Redacted inputs | J64: 0.45 | K64: 0.4 | L64: 0.3 | M64: 0.2 | N64: 0.1 | O64: 0 | P64: 0 | Q64: 0 | R64: 0 | S64: 0 | T64: 0 | W64: -0.02
E65: 150Mbps | F65: % | G65: Redacted inputs | J65: 0 | K65: 0.05 | L65: 0.1 | M65: 0.15 | N65: 0.2 | O65: 0.25 | P65: 0.23 | Q65: 0.21 | R65: 0.19 | S65: 0.17 | T65: 0.15 | W65: -0.02
E66: 200Mbps | F66: % | G66: Redacted inputs | J66: 0.45 | K66: 0.4 | L66: 0.4 | M66: 0.3 | N66: 0.2 | O66: 0.1 | P66: 0.05 | Q66: 0 | R66: 0 | S66: 0 | T66: 0 | W66: -0.05
E67: 300Mbps | F67: % | G67: Redacted inputs | J67: 0 | K67: 0.1 | L67: 0.1 | M67: 0.15 | N67: 0.25 | O67: 0.35 | P67: =1-SUM(P59:P66,P68:P88) -> 0.405 | Q67: =1-SUM(Q59:Q66,Q68:Q88) -> 0.46 | R67: 0.455 | S67: 0.44 | T67: 0.425
E68: 400Mbps | F68: % | G68: Redacted inputs | J68: 0 | K68: 0.05 | L68: 0.1 | M68: 0.15 | N68: 0.2 | O68: 0.2 | P68: =MAX(O68+$W68,0) -> 0.18 | Q68: =MAX(P68+$W68,0) -> 0.16 | R68: =MAX(Q68+$W68,0) -> 0.14 | S68: =MAX(R68+$W68,0) -> 0.12 | T68: =MAX(S68+$W68,0) -> 0.1 | W68: -0.02
E69: 500Mbps | F69: % | G69: Redacted inputs | J69: 0 | K69: 0 | L69: 0 | M69: 0.05 | N69: 0.05 | O69: 0.05 | P69: 0.08 | Q69: 0.11 | R69: 0.14 | S69: 0.17 | T69: 0.2 | W69: 0.03
E70: 700Mbps | F70: % | G70: Redacted inputs | J70: 0 | K70: 0 | L70: 0 | M70: 0 | N70: 0 | O70: 0.05 | P70: 0.03 | Q70: 0.01 | R70: 0 | S70: 0 | T70: 0 | W70: -0.02
E71: 1000Mbps | F71: % | G71: Redacted inputs | J71: 0 | K71: 0 | L71: 0 | M71: 0 | N71: 0 | O71: 0 | P71: 0.02 | Q71: 0.04 | R71: 0.06 | S71: 0.08 | T71: 0.1 | W71: 0.02
E72: 2000Mbps | F72: % | G72: Redacted inputs | J72: 0 | K72: 0 | L72: 0 | M72: 0 | N72: 0 | O72: 0 | P72: =MAX(O72+$W72,0) -> 0.005 | Q72: =MAX(P72+$W72,0) -> 0.01 | R72: =MAX(Q72+$W72,0) -> 0.015 | S72: =MAX(R72+$W72,0) -> 0.02 | T72: =MAX(S72+$W72,0) -> 0.025 | W72: 0.005
E73: 5000Mbps | F73: % | G73: Redacted inputs | J73: 0 | K73: 0 | L73: 0 | M73: 0 | N73: 0 | O73: 0 | P73: =MAX(O73+$W73,0) -> 0 | Q73: =MAX(P73+$W73,0) -> 0 | R73: =MAX(Q73+$W73,0) -> 0 | S73: =MAX(R73+$W73,0) -> 0 | T73: =MAX(S73+$W73,0) -> 0 | W73: 0
E74: Spare | F74: % | J74: 0 | K74: 0 | L74: 0 | M74: 0 | N74: 0 | O74: 0 | P74: 0 | Q74: 0 | R74: 0 | S74: 0 | T74: 0 | W74: 0
E75: Spare | F75: % | J75: 0 | K75: 0 | L75: 0 | M75: 0 | N75: 0 | O75: 0 | P75: 0 | Q75: 0 | R75: 0 | S75: 0 | T75: 0 | W75: 0
E76: Spare | F76: % | J76: 0 | K76: 0 | L76: 0 | M76: 0 | N76: 0 | O76: 0 | P76: 0 | Q76: 0 | R76: 0 | S76: 0 | T76: 0 | W76: 0
E77: Spare | F77: % | J77: 0 | K77: 0 | L77: 0 | M77: 0 | N77: 0 | O77: 0 | P77: 0 | Q77: 0 | R77: 0 | S77: 0 | T77: 0 | W77: 0
E78: Spare | F78: % | J78: 0 | K78: 0 | L78: 0 | M78: 0 | N78: 0 | O78: 0 | P78: 0 | Q78: 0 | R78: 0 | S78: 0 | T78: 0 | W78: 0
E79: Spare | F79: % | J79: 0 | K79: 0 | L79: 0 | M79: 0 | N79: 0 | O79: 0 | P79: 0 | Q79: 0 | R79: 0 | S79: 0 | T79: 0 | W79: 0
E80: Spare | F80: % | J80: 0 | K80: 0 | L80: 0 | M80: 0 | N80: 0 | O80: 0 | P80: 0 | Q80: 0 | R80: 0 | S80: 0 | T80: 0 | W80: 0
E81: Spare | F81: % | J81: 0 | K81: 0 | L81: 0 | M81: 0 | N81: 0 | O81: 0 | P81: 0 | Q81: 0 | R81: 0 | S81: 0 | T81: 0 | W81: 0
E82: Spare | F82: % | J82: 0 | K82: 0 | L82: 0 | M82: 0 | N82: 0 | O82: 0 | P82: 0 | Q82: 0 | R82: 0 | S82: 0 | T82: 0 | W82: 0
E83: Spare | F83: % | J83: 0 | K83: 0 | L83: 0 | M83: 0 | N83: 0 | O83: 0 | P83: 0 | Q83: 0 | R83: 0 | S83: 0 | T83: 0 | W83: 0
E84: Spare | F84: % | J84: 0 | K84: 0 | L84: 0 | M84: 0 | N84: 0 | O84: 0 | P84: 0 | Q84: 0 | R84: 0 | S84: 0 | T84: 0 | W84: 0
E85: Spare | F85: % | J85: 0 | K85: 0 | L85: 0 | M85: 0 | N85: 0 | O85: 0 | P85: 0 | Q85: 0 | R85: 0 | S85: 0 | T85: 0 | W85: 0
E86: Spare | F86: % | J86: 0 | K86: 0 | L86: 0 | M86: 0 | N86: 0 | O86: 0 | P86: 0 | Q86: 0 | R86: 0 | S86: 0 | T86: 0 | W86: 0
E87: Spare | F87: % | J87: 0 | K87: 0 | L87: 0 | M87: 0 | N87: 0 | O87: 0 | P87: 0 | Q87: 0 | R87: 0 | S87: 0 | T87: 0 | W87: 0
E88: Spare | F88: % | J88: 0 | K88: 0 | L88: 0 | M88: 0 | N88: 0 | O88: 0 | P88: 0 | Q88: 0 | R88: 0 | S88: 0 | T88: 0 | W88: 0
J89: =SUM(J59:J88) -> 1 | K89: =SUM(K59:K88) -> 1 | L89: 1 | M89: 1 | N89: 1 | O89: 1 | P89: 1 | Q89: 1 | R89: 1 | S89: 1 | T89: 1
E91: Weighted average speed | J91: =SUMPRODUCT(IF($E59:$E88=spare,0,LEFT($E59:$E88,LEN($E59:$E88)-4))*1,J59:J88) -> 140 | K91: =SUMPRODUCT(IF($E59:$E88=spare,0,LEFT($E59:$E88,LEN($E59:$E88)-4))*1,K59:K88) -> 177.5 | L91: =SUMPRODUCT(IF($E59:$E88=spare,0,LEFT($E59:$E88,LEN($E59:$E88)-4))*1,L59:L88) -> 195 | M91: =SUMPRODUCT(IF($E59:$E88=spare,0,LEFT($E59:$E88,LEN($E59:$E88)-4))*1,M59:M88) -> 232.5 | N91: =SUMPRODUCT(IF($E59:$E88=spare,0,LEFT($E59:$E88,LEN($E59:$E88)-4))*1,N59:N88) -> 260 | O91: =SUMPRODUCT(IF($E59:$E88=spare,0,LEFT($E59:$E88,LEN($E59:$E88)-4))*1,O59:O88) -> 302.5 | P91: =SUMPRODUCT(IF($E59:$E88=spare,0,LEFT($E59:$E88,LEN($E59:$E88)-4))*1,P59:P88) -> 329 | Q91: =SUMPRODUCT(IF($E59:$E88=spare,0,LEFT($E59:$E88,LEN($E59:$E88)-4))*1,Q59:Q88) -> 355.5 | R91: =SUMPRODUCT(IF($E59:$E88=spare,0,LEFT($E59:$E88,LEN($E59:$E88)-4))*1,R59:R88) -> 381 | S91: =SUMPRODUCT(IF($E59:$E88=spare,0,LEFT($E59:$E88,LEN($E59:$E88)-4))*1,S59:S88) -> 410.5 | T91: =SUMPRODUCT(IF($E59:$E88=spare,0,LEFT($E59:$E88,LEN($E59:$E88)-4))*1,T59:T88) -> 440
E92: Annual evolution | K92: =K91/J91-1 -> 0.2678571429 | L92: =L91/K91-1 -> 0.0985915493 | M92: 0.1923076923 | N92: 0.1182795699 | O92: 0.1634615385 | P92: 0.08760330579 | Q92: 0.08054711246 | R92: 0.07172995781 | S92: 0.07742782152 | T92: 0.071863581
D94: Fibre; subscriptions by speed
E95: 10Mbps | F95: # | J95: =J59*J$31 -> 0 | K95: =K59*K$31 -> 0 | L95: 0 | M95: 0 | N95: 0 | O95: 0 | P95: 0 | Q95: 0 | R95: 0 | S95: 0 | T95: 0
E96: 20Mbps | F96: # | J96: 0 | K96: =K60*K$31 -> 0 | L96: 0 | M96: 0 | N96: 0 | O96: 0 | P96: 0 | Q96: 0 | R96: 0 | S96: 0 | T96: 0
E97: 30Mbps | F97: # | J97: 0 | K97: =K61*K$31 -> 0 | L97: 0 | M97: 0 | N97: 0 | O97: 0 | P97: 0 | Q97: 0 | R97: 0 | S97: 0 | T97: 0
E98: 50Mbps | F98: # | J98: 2988.72 | K98: =K62*K$31 -> 0 | L98: 0 | M98: 0 | N98: 0 | O98: 0 | P98: 0 | Q98: 0 | R98: 0 | S98: 0 | T98: 0
E99: 80Mbps | F99: # | J99: 0 | K99: =K63*K$31 -> 0 | L99: 0 | M99: 0 | N99: 0 | O99: 0 | P99: 0 | Q99: 0 | R99: 0 | S99: 0 | T99: 0
E100: 100Mbps | F100: # | J100: 13449.24 | K100: =K64*K$31 -> 28488.7064 | L100: 36743.6979 | M100: 36660.022 | N100: 24555.06747 | O100: 0 | P100: 0 | Q100: 0 | R100: 0 | S100: 0 | T100: 0
E101: 150Mbps | F101: # | J101: 0 | K101: =K65*K$31 -> 3561.0883 | L101: 12247.8993 | M101: 27495.0165 | N101: 49110.13495 | O101: 70097.27521 | P101: 68183.69733 | Q101: 63242.41407 | R101: 58119.86437 | S101: 52802.79382 | T101: 47287.61952
E102: 200Mbps | F102: # | J102: 13449.24 | K102: =K66*K$31 -> 28488.7064 | L102: 48991.5972 | M102: 54990.033 | N102: 49110.13495 | O102: 28038.91009 | P102: 14822.5429 | Q102: 0 | R102: 0 | S102: 0 | T102: 0
E103: 300Mbps | F103: # | J103: 0 | K103: =K67*K$31 -> 7122.1766 | L103: 12247.8993 | M103: 27495.0165 | N103: 61387.66868 | O103: 98136.1853 | P103: 120062.5975 | Q103: 138531.0023 | R103: 139181.7805 | S103: 136666.0546 | T103: 133981.5886
E104: 400Mbps | F104: # | J104: 0 | K104: =K68*K$31 -> 3561.0883 | L104: 12247.8993 | M104: 27495.0165 | N104: 49110.13495 | O104: 56077.82017 | P104: 53361.15443 | Q104: 48184.69643 | R104: 42825.16322 | S104: 37272.56034 | T104: 31525.07968
E105: 500Mbps | F105: # | J105: 0 | K105: =K69*K$31 -> 0 | L105: 0 | M105: 9165.0055 | N105: 12277.53374 | O105: 14019.45504 | P105: 23716.06864 | Q105: 33126.9788 | R105: 42825.16322 | S105: 52802.79382 | T105: 63050.15936
E106: 700Mbps | F106: # | J106: 0 | K106: =K70*K$31 -> 0 | L106: 0 | M106: 0 | N106: 0 | O106: 14019.45504 | P106: 8893.525738 | Q106: 3011.543527 | R106: 0 | S106: 0 | T106: 0
E107: 1000Mbps | F107: # | J107: 0 | K107: =K71*K$31 -> 0 | L107: 0 | M107: 0 | N107: 0 | O107: 0 | P107: 5929.017159 | Q107: 12046.17411 | R107: 18353.64138 | S107: 24848.37356 | T107: 31525.07968
E108: 2000Mbps | F108: # | J108: 0 | K108: =K72*K$31 -> 0 | L108: 0 | M108: 0 | N108: 0 | O108: 0 | P108: 1482.25429 | Q108: 3011.543527 | R108: 4588.410345 | S108: 6212.09339 | T108: 7881.26992
E109: Spare | F109: # | J109: 0 | K109: =K73*K$31 -> 0 | L109: 0 | M109: 0 | N109: 0 | O109: 0 | P109: 0 | Q109: 0 | R109: 0 | S109: 0 | T109: 0
E110: Spare | F110: # | J110: 0 | K110: =K74*K$31 -> 0 | L110: 0 | M110: 0 | N110: 0 | O110: 0 | P110: 0 | Q110: 0 | R110: 0 | S110: 0 | T110: 0
E111: Spare | F111: # | J111: 0 | K111: =K75*K$31 -> 0 | L111: 0 | M111: 0 | N111: 0 | O111: 0 | P111: 0 | Q111: 0 | R111: 0 | S111: 0 | T111: 0
E112: Spare | F112: # | J112: 0 | K112: =K76*K$31 -> 0 | L112: 0 | M112: 0 | N112: 0 | O112: 0 | P112: 0 | Q112: 0 | R112: 0 | S112: 0 | T112: 0
E113: Spare | F113: # | J113: 0 | K113: =K77*K$31 -> 0 | L113: 0 | M113: 0 | N113: 0 | O113: 0 | P113: 0 | Q113: 0 | R113: 0 | S113: 0 | T113: 0
E114: Spare | F114: # | J114: 0 | K114: =K78*K$31 -> 0 | L114: 0 | M114: 0 | N114: 0 | O114: 0 | P114: 0 | Q114: 0 | R114: 0 | S114: 0 | T114: 0
E115: Spare | F115: # | J115: 0 | K115: =K79*K$31 -> 0 | L115: 0 | M115: 0 | N115: 0 | O115: 0 | P115: 0 | Q115: 0 | R115: 0 | S115: 0 | T115: 0
E116: Spare | F116: # | J116: 0 | K116: =K80*K$31 -> 0 | L116: 0 | M116: 0 | N116: 0 | O116: 0 | P116: 0 | Q116: 0 | R116: 0 | S116: 0 | T116: 0
E117: Spare | F117: # | J117: 0 | K117: =K81*K$31 -> 0 | L117: 0 | M117: 0 | N117: 0 | O117: 0 | P117: 0 | Q117: 0 | R117: 0 | S117: 0 | T117: 0
E118: Spare | F118: # | J118: 0 | K118: =K82*K$31 -> 0 | L118: 0 | M118: 0 | N118: 0 | O118: 0 | P118: 0 | Q118: 0 | R118: 0 | S118: 0 | T118: 0
E119: Spare | F119: # | J119: 0 | K119: =K83*K$31 -> 0 | L119: 0 | M119: 0 | N119: 0 | O119: 0 | P119: 0 | Q119: 0 | R119: 0 | S119: 0 | T119: 0
E120: Spare | F120: # | J120: 0 | K120: =K84*K$31 -> 0 | L120: 0 | M120: 0 | N120: 0 | O120: 0 | P120: 0 | Q120: 0 | R120: 0 | S120: 0 | T120: 0
E121: Spare | F121: # | J121: 0 | K121: =K85*K$31 -> 0 | L121: 0 | M121: 0 | N121: 0 | O121: 0 | P121: 0 | Q121: 0 | R121: 0 | S121: 0 | T121: 0
E122: Spare | F122: # | J122: 0 | K122: =K86*K$31 -> 0 | L122: 0 | M122: 0 | N122: 0 | O122: 0 | P122: 0 | Q122: 0 | R122: 0 | S122: 0 | T122: 0
E123: Spare | F123: # | J123: 0 | K123: =K87*K$31 -> 0 | L123: 0 | M123: 0 | N123: 0 | O123: 0 | P123: 0 | Q123: 0 | R123: 0 | S123: 0 | T123: 0
E124: Spare | F124: # | J124: 0 | K124: =K88*K$31 -> 0 | L124: 0 | M124: 0 | N124: 0 | O124: 0 | P124: 0 | Q124: 0 | R124: 0 | S124: 0 | T124: 0
J125: =SUM(J95:J124) -> 29887.2 | K125: 71221.766 | L125: 122478.993 | M125: 183300.11 | N125: 245550.6747 | O125: 280389.1009 | P125: 296450.8579 | Q125: 301154.3527 | R125: 305894.023 | S125: 310604.6695 | T125: 315250.7968
D127: Retail market shares of broadband connections | K127: Cyta adjusted from 57.4% to 57.5% so that the sum of rounded values presented in the source document adds up to 100% | W127: Annual evolution (percentage points)
E128: =Operators -> Cyta | F128: % | G128: https://ocecpr.ee.cy/images/files_uploads/katanalotes/paratiritirio-agoras/EC_Report_FixedTelephonyBroadbandTelecomBulletin_GR_Q4.23_-_Revised.pdf | H128: Figure 4b | J128: 0.566 | K128: 0.575 | L128: 0.578 | M128: 0.579 | N128: =M128+$W128 -> 0.58 | O128: =N128+$W128 -> 0.581 | P128: 0.582 | Q128: 0.583 | R128: 0.584 | S128: 0.585 | T128: 0.586 | W128: 0.001
E129: Primetel | F129: % | G129: https://ocecpr.ee.cy/images/files_uploads/katanalotes/paratiritirio-agoras/EC_Report_FixedTelephonyBroadbandTelecomBulletin_GR_Q4.23_-_Revised.pdf | H129: Figure 4b | J129: 0.137 | K129: 0.122 | L129: 0.117 | M129: 0.111 | N129: =M129+$W129 -> 0.108 | O129: 0.105 | P129: 0.102 | Q129: 0.099 | R129: 0.096 | S129: 0.093 | T129: 0.09 | W129: =-SUM(W128,W130:W131) -> -0.003
E130: Cablenet | F130: % | G130: https://ocecpr.ee.cy/images/files_uploads/katanalotes/paratiritirio-agoras/EC_Report_FixedTelephonyBroadbandTelecomBulletin_GR_Q4.23_-_Revised.pdf | H130: Figure 4b | J130: 0.228 | K130: 0.235 | L130: 0.237 | M130: 0.239 | N130: =M130+$W130 -> 0.24 | O130: 0.241 | P130: 0.242 | Q130: 0.243 | R130: 0.244 | S130: 0.245 | T130: 0.246 | W130: 0.001
E131: Epic | F131: % | G131: https://ocecpr.ee.cy/images/files_uploads/katanalotes/paratiritirio-agoras/EC_Report_FixedTelephonyBroadbandTelecomBulletin_GR_Q4.23_-_Revised.pdf | H131: Figure 4b | J131: 0.069 | K131: 0.068 | L131: 0.068 | M131: 0.071 | N131: =M131+$W131 -> 0.072 | O131: 0.073 | P131: 0.074 | Q131: 0.075 | R131: 0.076 | S131: 0.077 | T131: 0.078 | W131: 0.001
D133: Retail broadband subscribers by operator
E134: =Operators -> Cyta | F134: # | J134: =Market.connections.broadband*J128:T131 -> 187957.28 | K134: 195945.05 | L134: 201689.054 | M134: 206480.085 | N134: 210368.3772 | O134: 214068.42 | P134: 217571.752 | Q134: 220846.5253 | R134: 224143.1737 | S134: 227413.932 | T134: 230632.9175
E135: Primetel | F135: # | J135: 45494.96 | K135: 41574.428 | L135: 40826.331 | M135: 39584.265 | N135: 39172.04265 | O135: 38687.06385 | P135: 38131.13179 | Q135: 37502.24015 | R135: 36845.45321 | S135: 36152.98406 | T135: 35421.43784
E136: Cablenet | F136: # | J136: 75714.24 | K136: 80081.89 | L136: 82699.491 | M136: 85230.985 | N136: 87048.98366 | O136: 88796.02274 | P136: 90467.97935 | Q136: 92050.95309 | R136: 93648.86023 | S136: 95241.7322 | T136: 96818.59677
E137: Epic | F137: # | J137: 22913.52 | K137: 23172.632 | L137: 23728.124 | M137: 25319.665 | N137: 26114.6951 | O137: 26896.72058 | P137: 27663.76228 | Q137: 28410.78799 | R137: 29169.31712 | S137: 29933.11584 | T137: 30698.57946
D139: Retail broadband subscribers by operator and technology
D140: 1 | E140: =INDEX(Operators,D140,) -> Cyta
E141: =Access.technologies -> Copper | F141: # | J141: =J134*J30:J31/SUM(J30:J31) -> 166158.1109 | K141: =K134*K30:K31/SUM(K30:K31) -> 142897.7502 | L141: =L134*L30:L31/SUM(L30:L31) -> 110225.4132 | M141: =M134*M30:M31/SUM(M30:M31) -> 71625.23914 | N141: =N134*N30:N31/SUM(N30:N31) -> 29862.17775 | O141: =O134*O30:O31/SUM(O30:O31) -> 8118.903412 | P141: =P134*P30:P31/SUM(P30:P31) -> 0 | Q141: =Q134*Q30:Q31/SUM(Q30:Q31) -> 0 | R141: =R134*R30:R31/SUM(R30:R31) -> 0 | S141: =S134*S30:S31/SUM(S30:S31) -> 0 | T141: =T134*T30:T31/SUM(T30:T31) -> 0 | U141: Operator.modelled.retail.connections.copper.broadband
E142: Fibre | F142: # | J142: 21799.16907 | K142: 53047.29981 | L142: 91463.64077 | M142: 134854.8459 | N142: 180506.1994 | O142: 205949.5166 | P142: 217571.752 | Q142: 220846.5253 | R142: 224143.1737 | S142: 227413.932 | T142: 230632.9175 | U142: Operator.modelled.retail.connections.fibre.broadband
E143: Cable | F143: # | J143: 0 | K143: 0 | L143: 0 | M143: 0 | N143: 0 | O143: 0 | P143: 0 | Q143: 0 | R143: 0 | S143: 0 | T143: 0
E144: Total | J144: =SUM(J141:J143) -> 187957.28 | K144: =SUM(K141:K143) -> 195945.05 | L144: 201689.054 | M144: 206480.085 | N144: 210368.3772 | O144: 214068.42 | P144: 217571.752 | Q144: 220846.5253 | R144: 224143.1737 | S144: 227413.932 | T144: 230632.9175 | U144: Operator.modelled.retail.connections.all.broadband
C148: Voice subscriptions
D150: Subscriptions | J150: =TRANSPOSE(Years.market) -> 2020 | K150: 2021 | L150: 2022 | M150: 2023 | N150: 2024 | O150: 2025 | P150: 2026 | Q150: 2027 | R150: 2028 | S150: 2029 | T150: 2030
E151: Subscriptions | F151: # | G151: https://ocecpr.ee.cy/images/files_uploads/katanalotes/paratiritirio-agoras/EC_Report_FixedTelephonyBroadbandTelecomBulletin_GR_Q4.23_-_Revised.pdf | H151: Figure 1 | J151: 311439 | K151: 304581 | L151: 297382 | M151: 269918 | N151: =N8*N152 -> 252568.6465 | O151: 234747.0532 | P151: 216513.9405 | Q151: 197909.1171 | R151: 179207.141 | S151: 160374.2846 | T151: 141407.8523 | U151: Connections.voice | W151: Annual evolution (percentage points)
E152: Take-up of households | F152: % | J152: =J151/J8 -> 0.9159970588 | K152: =K151/K8 -> 0.8802919075 | L152: =L151/L8 -> 0.8433976177 | M152: =M151/M8 -> 0.7574453521 | N152: =M152+$W152 -> 0.7045947833 | O152: =N152+$W152 -> 0.6517442144 | P152: 0.5988936455 | Q152: 0.5460430766 | R152: 0.4931925077 | S152: 0.4403419388 | T152: 0.3874913699 | W152: =(M152-J152)/(M150-J150) -> -0.05285056889
D154: Subscriptions by type
E155: PSTN | F155: # | G155: https://ocecpr.ee.cy/images/files_uploads/katanalotes/paratiritirio-agoras/EC_Report_FixedTelephonyBroadbandTelecomBulletin_GR_Q4.23_-_Revised.pdf | H155: Figure 1 | J155: 2222 | K155: 246 | L155: 0 | M155: 0 | N155: 0 | O155: 0 | P155: 0 | Q155: 0 | R155: 0 | S155: 0 | T155: 0
E156: BBT | F156: # | G156: https://ocecpr.ee.cy/images/files_uploads/katanalotes/paratiritirio-agoras/EC_Report_FixedTelephonyBroadbandTelecomBulletin_GR_Q4.23_-_Revised.pdf | H156: Figure 1 | J156: 152849 | K156: 109720 | L156: 58807 | M156: 7545 | N156: 0 | O156: 0 | P156: 0 | Q156: 0 | R156: 0 | S156: 0 | T156: 0
E157: Naked DSL | F157: # | G157: https://ocecpr.ee.cy/images/files_uploads/katanalotes/paratiritirio-agoras/EC_Report_FixedTelephonyBroadbandTelecomBulletin_GR_Q4.23_-_Revised.pdf | H157: Figure 1 | J157: 48307 | K157: 48861 | L157: 34404 | M157: 23924 | N157: =N170:N173*N151 -> 14924.16783 | O157: =O170:O173*O151 -> 6935.548946 | P157: =P170:P173*P151 -> 0 | Q157: =Q170:Q173*Q151 -> 0 | R157: =R170:R173*R151 -> 0 | S157: =S170:S173*S151 -> 0 | T157: =T170:T173*T151 -> 0
E158: LLU | F158: # | G158: https://ocecpr.ee.cy/images/files_uploads/katanalotes/paratiritirio-agoras/EC_Report_FixedTelephonyBroadbandTelecomBulletin_GR_Q4.23_-_Revised.pdf | H158: Figure 1 | J158: 15525 | K158: 5342 | L158: 9554 | M158: 5496 | N158: 2171.193854 | O158: 0 | P158: 0 | Q158: 0 | R158: 0 | S158: 0 | T158: 0
E159: Cable | F159: # | G159: https://ocecpr.ee.cy/images/files_uploads/katanalotes/paratiritirio-agoras/EC_Report_FixedTelephonyBroadbandTelecomBulletin_GR_Q4.23_-_Revised.pdf | H159: Figure 1 | J159: 62954 | K159: 71563 | L159: 75431 | M159: 57481 | N159: 53872.62553 | O159: 50141.08666 | P159: 46301.32024 | Q159: 42363.96318 | R159: 38390.07654 | S159: 34374.87351 | T159: 30320.23672 | W159: 2023 decrease due to Cablenet starting to charge for their cable telephony. We are maintaining the ratio between (cable voice subs/total cable connections) and total voice take-up from 2023, and using this to forecast the future cable voice subs from 2024 onwards.
E160: Fibre Optic | F160: # | G160: https://ocecpr.ee.cy/images/files_uploads/katanalotes/paratiritirio-agoras/EC_Report_FixedTelephonyBroadbandTelecomBulletin_GR_Q4.23_-_Revised.pdf | H160: Figure 1 | J160: 28735 | K160: 68709 | L160: 119183 | M160: 175469 | N160: 181600.6593 | O160: 177670.4176 | P160: 170212.6203 | Q160: 155545.1539 | R160: 140817.0644 | S160: 125999.4111 | T160: 111087.6156
E161: WLR | F161: # | G161: https://ocecpr.ee.cy/images/files_uploads/katanalotes/paratiritirio-agoras/EC_Report_FixedTelephonyBroadbandTelecomBulletin_GR_Q4.23_-_Revised.pdf | H161: Figure 1 | J161: 0 | K161: 0 | L161: 0 | M161: 0 | N161: 0 | O161: 0 | P161: 0 | Q161: 0 | R161: 0 | S161: 0 | T161: 0
E162: ISDN 2B + D | F162: # | G162: https://ocecpr.ee.cy/images/files_uploads/katanalotes/paratiritirio-agoras/EC_Report_FixedTelephonyBroadbandTelecomBulletin_GR_Q4.23_-_Revised.pdf | H162: Figure 1 | J162: 818 | K162: 134 | L162: 1 | M162: 1 | N162: 0 | O162: 0 | P162: 0 | Q162: 0 | R162: 0 | S162: 0 | T162: 0
E163: ISDN 30B + D | F163: # | G163: https://ocecpr.ee.cy/images/files_uploads/katanalotes/paratiritirio-agoras/EC_Report_FixedTelephonyBroadbandTelecomBulletin_GR_Q4.23_-_Revised.pdf | H163: Figure 1 | J163: 29 | K163: 6 | L163: 2 | M163: 2 | N163: 0 | O163: 0 | P163: 0 | Q163: 0 | R163: 0 | S163: 0 | T163: 0
E165: Cable (forecasted) | F165: # | H165: We are maintaining the ratio between (cable voice subs/total cable connections) and total voice take-up from 2023, and using this to forecast the future cable voice subs from 2024 onwards | N165: =($M159/$M32/$M152)*(N152*N32) -> 53872.62553 | O165: 50141.08666 | P165: 46301.32024 | Q165: 42363.96318 | R165: 38390.07654 | S165: 34374.87351 | T165: 30320.23672
D167: Split by type
E168: PSTN | F168: % | J168: =J155/SUM(J$155:J$163) -> 0.007134623474 | K168: =K155/SUM(K$155:K$163) -> 0.000807666926 | L168: =L155/SUM(L$155:L$163) -> 0 | M168: 0 | N168: 0 | O168: 0 | P168: 0 | Q168: 0 | R168: 0 | S168: 0 | T168: 0
E169: BBT | F169: % | J169: =J156/SUM(J$155:J$163) -> 0.4907831068 | K169: 0.3602325818 | L169: 0.1977490231 | M169: 0.02795293385 | N169: 0 | O169: 0 | P169: 0 | Q169: 0 | R169: 0 | S169: 0 | T169: 0
E170: Naked DSL | F170: % | J170: 0.1551090262 | K170: 0.1604203808 | L170: 0.1156895844 | M170: 0.08863432598 | N170: =M170+($P170-$M170)/($P$150-$M$150) -> 0.05908955065 | O170: =N170+($P170-$M170)/($P$150-$M$150) -> 0.02954477533 | P170: 0 | Q170: 0 | R170: 0 | S170: 0 | T170: 0
E171: LLU | F171: % | J171: =J158/SUM(J$155:J$163) -> 0.04984924817 | K171: =K158/SUM(K$155:K$163) -> 0.01753884845 | L171: 0.03212702854 | M171: 0.02036173949 | N171: =MAX(M171+(M171-L171),0) -> 0.008596450447 | O171: =MAX(N171+(N171-M171),0) -> 0 | P171: 0 | Q171: 0 | R171: 0 | S171: 0 | T171: 0
E172: Cable | F172: % | J172: 0.2021391027 | K172: 0.2349555619 | L172: 0.2536501873 | M172: 0.2129572685 | N172: =N165/N151 -> 0.2132989437 | O172: =O165/O151 -> 0.2135962346 | P172: 0.2138491412 | Q172: 0.2140576634 | R172: 0.2142218013 | S172: 0.2143415548 | T172: 0.214416924
E173: Fibre Optic | F173: % | J173: =J160/SUM(J$155:J$163) -> 0.09226525901 | K173: 0.2255853123 | L173: 0.4007740885 | M173: 0.6500826177 | N173: =1-SUM(N170:N172) -> 0.7190150552 | O173: =1-SUM(O170:O172) -> 0.75685899 | P173: 0.7861508588 | Q173: 0.7859423366 | R173: 0.7857781987 | S173: 0.7856584452 | T173: 0.785583076
E174: WLR | F174: % | J174: 0 | K174: 0 | L174: 0 | M174: 0 | N174: 0 | O174: 0 | P174: 0 | Q174: 0 | R174: 0 | S174: 0 | T174: 0
E175: ISDN 2B + D | F175: % | J175: 0.002626517552 | K175: 0.0004399486508 | L175: 3.362678306e-06 | M175: 3.704828874e-06 | N175: 0 | O175: 0 | P175: 0 | Q175: 0 | R175: 0 | S175: 0 | T175: 0
E176: ISDN 30B + D | F176: % | J176: 9.311614795e-05 | K176: 1.969919332e-05 | L176: 6.725356612e-06 | M176: 7.409657748e-06 | N176: 0 | O176: 0 | P176: 0 | Q176: 0 | R176: 0 | S176: 0 | T176: 0
D178: Subscriptions by technology
E179: Copper | F179: # | J179: =SUM(J155:J158,J161:J163) -> 219750 | K179: 164309 | L179: 102768 | M179: 36968 | N179: 17095.36169 | O179: 6935.548946 | P179: 0 | Q179: 0 | R179: 0 | S179: 0 | T179: 0
E180: Fibre | F180: # | J180: =J160 -> 28735 | K180: =K160 -> 68709 | L180: 119183 | M180: 175469 | N180: 181600.6593 | O180: 177670.4176 | P180: 170212.6203 | Q180: 155545.1539 | R180: 140817.0644 | S180: 125999.4111 | T180: 111087.6156
E181: Cable | F181: # | J181: =J159 -> 62954 | K181: =K159 -> 71563 | L181: 75431 | M181: 57481 | N181: 53872.62553 | O181: 50141.08666 | P181: 46301.32024 | Q181: 42363.96318 | R181: 38390.07654 | S181: 34374.87351 | T181: 30320.23672
J182: =SUM(J179:J181) -> 311439 | K182: =SUM(K179:K181) -> 304581 | L182: 297382 | M182: 269918 | N182: 252568.6465 | O182: 234747.0532 | P182: 216513.9405 | Q182: 197909.1171 | R182: 179207.141 | S182: 160374.2846 | T182: 141407.8523
D184: Retail market shares of voice lines | M184: Cyta adjusted from 56.6% to 56.5% so that the sum of rounded values presented in the source document adds up to 100% | W184: Annual evolution (percentage points)
E185: =Operators -> Cyta | F185: % | G185: https://ocecpr.ee.cy/images/files_uploads/katanalotes/paratiritirio-agoras/EC_Report_FixedTelephonyBroadbandTelecomBulletin_GR_Q4.23_-_Revised.pdf | H185: Figure 3b | J185: 0.582 | K185: 0.554 | L185: 0.543 | M185: 0.565 | N185: =M185+$W185 -> 0.569 | O185: =N185+$W185 -> 0.573 | P185: 0.577 | Q185: 0.581 | R185: 0.585 | S185: 0.589 | T185: 0.593 | U185: Operator.modelled.voice.market.share | W185: 0.004
E186: Primetel | F186: % | G186: https://ocecpr.ee.cy/images/files_uploads/katanalotes/paratiritirio-agoras/EC_Report_FixedTelephonyBroadbandTelecomBulletin_GR_Q4.23_-_Revised.pdf | H186: Figure 3b | J186: 0.131 | K186: 0.119 | L186: 0.107 | M186: 0.103 | N186: =M186+$W186 -> 0.099 | O186: 0.095 | P186: 0.091 | Q186: 0.087 | R186: 0.083 | S186: 0.079 | T186: 0.075 | W186: =-SUM(W185,W187:W188) -> -0.004
E187: Cablenet | F187: % | G187: https://ocecpr.ee.cy/images/files_uploads/katanalotes/paratiritirio-agoras/EC_Report_FixedTelephonyBroadbandTelecomBulletin_GR_Q4.23_-_Revised.pdf | H187: Figure 3b | J187: 0.21 | K187: 0.247 | L187: 0.27 | M187: 0.238 | N187: =M187+$W187 -> 0.233 | O187: 0.228 | P187: 0.223 | Q187: 0.218 | R187: 0.213 | S187: 0.208 | T187: 0.203 | W187: -0.005
E188: Epic | F188: % | G188: https://ocecpr.ee.cy/images/files_uploads/katanalotes/paratiritirio-agoras/EC_Report_FixedTelephonyBroadbandTelecomBulletin_GR_Q4.23_-_Revised.pdf | H188: Figure 3b | J188: 0.077 | K188: 0.08 | L188: 0.08 | M188: 0.094 | N188: =M188+$W188 -> 0.099 | O188: 0.104 | P188: 0.109 | Q188: 0.114 | R188: 0.119 | S188: 0.124 | T188: 0.129 | W188: 0.005
D190: On-net weighting
E191: =Operators -> Cyta | F191: % | J191: =J185:T188^2 -> 0.338724 | K191: 0.306916 | L191: 0.294849 | M191: 0.319225 | N191: 0.323761 | O191: 0.328329 | P191: 0.332929 | Q191: 0.337561 | R191: 0.342225 | S191: 0.346921 | T191: 0.351649
E192: Primetel | F192: % | J192: 0.017161 | K192: 0.014161 | L192: 0.011449 | M192: 0.010609 | N192: 0.009801 | O192: 0.009025 | P192: 0.008281 | Q192: 0.007569 | R192: 0.006889 | S192: 0.006241 | T192: 0.005625
E193: Cablenet | F193: % | J193: 0.0441 | K193: 0.061009 | L193: 0.0729 | M193: 0.056644 | N193: 0.054289 | O193: 0.051984 | P193: 0.049729 | Q193: 0.047524 | R193: 0.045369 | S193: 0.043264 | T193: 0.041209
E194: Epic | F194: % | J194: 0.005929 | K194: 0.0064 | L194: 0.0064 | M194: 0.008836 | N194: 0.009801 | O194: 0.010816 | P194: 0.011881 | Q194: 0.012996 | R194: 0.014161 | S194: 0.015376 | T194: 0.016641
D196: On-net weighting normalised
E197: =Operators -> Cyta | F197: % | J197: =J191:J194/SUM(J191:J194) -> 0.8344723267 | K197: =K191:K194/SUM(K191:K194) -> 0.7900310436 | L197: =L191:L194/SUM(L191:L194) -> 0.7646538623 | M197: =M191:M194/SUM(M191:M194) -> 0.8075226276 | N197: =N191:N194/SUM(N191:N194) -> 0.8141817469 | O197: =O191:O194/SUM(O191:O194) -> 0.820506605 | P197: =P191:P194/SUM(P191:P194) -> 0.8264957053 | Q197: =Q191:Q194/SUM(Q191:Q194) -> 0.8321484038 | R197: =R191:R194/SUM(R191:R194) -> 0.8374648839 | S197: =S191:S194/SUM(S191:S194) -> 0.842446127 | T197: =T191:T194/SUM(T191:T194) -> 0.8470938804 | U197: Operator.modelled.voice.on.net.share
E198: Primetel | F198: % | J198: 0.04227742822 | K198: 0.03645176403 | L198: 0.02969154404 | M198: 0.02683689422 | N198: 0.02464717894 | O198: 0.02255381678 | P198: 0.02055756914 | Q198: 0.01865894244 | R198: 0.01685819442 | S198: 0.01515534164 | T198: 0.01355016814
E199: Cablenet | F199: % | J199: 0.1086437029 | K199: 0.1570429822 | L199: 0.1890569972 | M199: 0.1432886263 | N199: 0.1365238953 | O199: 0.1299099847 | P199: 0.1234521623 | Q199: 0.117155183 | R199: 0.1110232868 | S199: 0.1050601988 | T199: 0.09926913404
E200: Epic | F200: % | J200: 0.01460654227 | K200: 0.01647421014 | L200: 0.01659759646 | M200: 0.02235185195 | N200: 0.02464717894 | O200: 0.02702959361 | P200: 0.02949456333 | Q200: 0.03203747073 | R200: 0.03465363495 | S200: 0.0373383325 | T200: 0.04008681743
C203: Leased lines subscriptions
J205: =TRANSPOSE(Years.market) -> 2020 | K205: 2021 | L205: 2022 | M205: 2023 | N205: 2024 | O205: 2025 | P205: 2026 | Q205: 2027 | R205: 2028 | S205: 2029 | T205: 2030
D206: Total number of access segments | F206: # | G206: Redacted inputs | J206: 5000 | K206: 5000 | L206: 5000 | M206: 5000 | N206: 5000 | O206: 5000 | P206: 5000 | Q206: 5000 | R206: 5000 | S206: 5000 | T206: 5000
E208: Split of broadband accesses between copper and fibre
E209: Copper | F209: % | J209: =J25/(J$25+J$26) -> 0.8840206186 | K209: 0.7292746114 | L209: 0.5465116279 | M209: 0.3468869123 | N209: 0.1419518378 | O209: 0.03792667509 | P209: 0 | Q209: 0 | R209: 0 | S209: 0 | T209: 0
E210: Fibre | F210: % | J210: =J26/(J$25+J$26) -> 0.1159793814 | K210: 0.2707253886 | L210: 0.4534883721 | M210: 0.6531130877 | N210: 0.8580481622 | O210: 0.9620733249 | P210: 1 | Q210: 1 | R210: 1 | S210: 1 | T210: 1
E212: Leased lines % that have to be on fibre given their speed (speed above selected value)
E213: Cut-off speed | F213: Mbit/s | G213: Estimate | H213: 2 | J213: =SUMIF(Leased.lines.speeds,">"&$H213,J275:J314) -> 0.3 | K213: 0.3 | L213: 0.3 | M213: 0.3 | N213: 0.3 | O213: 0.3 | P213: 0.3 | Q213: 0.3 | R213: 0.3 | S213: 0.3 | T213: 0.3
E215: Split of leased lines accesses between copper and fibre
E216: Copper | F216: % | J216: =1-J217 -> 0.7 | K216: =1-K217 -> 0.7 | L216: 0.5465116279 | M216: 0.3468869123 | N216: 0.1419518378 | O216: 0.03792667509 | P216: 0 | Q216: 0 | R216: 0 | S216: 0 | T216: 0
E217: Fibre | F217: % | J217: =MAX(J210,J213) -> 0.3 | K217: =MAX(K210,K213) -> 0.3 | L217: 0.4534883721 | M217: 0.6531130877 | N217: 0.8580481622 | O217: 0.9620733249 | P217: 1 | Q217: 1 | R217: 1 | S217: 1 | T217: 1
E218: Technologies
D220: Access segments by technology
E221: Copper | F221: # | J221: =J$206*J216 -> 3500 | K221: =K$206*K216 -> 3500 | L221: 2732.55814 | M221: 1734.434562 | N221: 709.7591888 | O221: 189.6333755 | P221: 0 | Q221: 0 | R221: 0 | S221: 0 | T221: 0
E222: Fibre | F222: # | J222: =J$206*J217 -> 1500 | K222: 1500 | L222: 2267.44186 | M222: 3265.565438 | N222: 4290.240811 | O222: 4810.366625 | P222: 5000 | Q222: 5000 | R222: 5000 | S222: 5000 | T222: 5000
D224: Access segments by speed by technology
E225: =Leased.lines.speeds -> 0.064 | F225: % | J225: =IF(OR($E275>$H$213,SUM(J275:J$314,J322:J$361,J369:J$408,J416:J$455)<=J$217),$E$217,$E$216) -> Copper | K225: =IF(OR($E275>$H$213,SUM(K275:K$314,K322:K$361,K369:K$408,K416:K$455)<=K$217),$E$217,$E$216) -> Copper | L225: =IF(OR($E275>$H$213,SUM(L275:L$314,L322:L$361,L369:L$408,L416:L$455)<=L$217),$E$217,$E$216) -> Copper | M225: =IF(OR($E275>$H$213,SUM(M275:M$314,M322:M$361,M369:M$408,M416:M$455)<=M$217),$E$217,$E$216) -> Copper | N225: =IF(OR($E275>$H$213,SUM(N275:N$314,N322:N$361,N369:N$408,N416:N$455)<=N$217),$E$217,$E$216) -> Copper | O225: =IF(OR($E275>$H$213,SUM(O275:O$314,O322:O$361,O369:O$408,O416:O$455)<=O$217),$E$217,$E$216) -> Copper | P225: =IF(OR($E275>$H$213,SUM(P275:P$314,P322:P$361,P369:P$408,P416:P$455)<=P$217),$E$217,$E$216) -> Fibre | Q225: =IF(OR($E275>$H$213,SUM(Q275:Q$314,Q322:Q$361,Q369:Q$408,Q416:Q$455)<=Q$217),$E$217,$E$216) -> Fibre | R225: =IF(OR($E275>$H$213,SUM(R275:R$314,R322:R$361,R369:R$408,R416:R$455)<=R$217),$E$217,$E$216) -> Fibre | S225: =IF(OR($E275>$H$213,SUM(S275:S$314,S322:S$361,S369:S$408,S416:S$455)<=S$217),$E$217,$E$216) -> Fibre | T225: =IF(OR($E275>$H$213,SUM(T275:T$314,T322:T$361,T369:T$408,T416:T$455)<=T$217),$E$217,$E$216) -> Fibre
E226: 0.128 | F226: % | J226: =IF(OR($E276>$H$213,SUM(J276:J$314,J323:J$361,J370:J$408,J417:J$455)<=J$217),$E$217,$E$216) -> Copper | K226: =IF(OR($E276>$H$213,SUM(K276:K$314,K323:K$361,K370:K$408,K417:K$455)<=K$217),$E$217,$E$216) -> Copper | L226: =IF(OR($E276>$H$213,SUM(L276:L$314,L323:L$361,L370:L$408,L417:L$455)<=L$217),$E$217,$E$216) -> Copper | M226: =IF(OR($E276>$H$213,SUM(M276:M$314,M323:M$361,M370:M$408,M417:M$455)<=M$217),$E$217,$E$216) -> Copper | N226: =IF(OR($E276>$H$213,SUM(N276:N$314,N323:N$361,N370:N$408,N417:N$455)<=N$217),$E$217,$E$216) -> Copper | O226: =IF(OR($E276>$H$213,SUM(O276:O$314,O323:O$361,O370:O$408,O417:O$455)<=O$217),$E$217,$E$216) -> Copper | P226: =IF(OR($E276>$H$213,SUM(P276:P$314,P323:P$361,P370:P$408,P417:P$455)<=P$217),$E$217,$E$216) -> Fibre | Q226: =IF(OR($E276>$H$213,SUM(Q276:Q$314,Q323:Q$361,Q370:Q$408,Q417:Q$455)<=Q$217),$E$217,$E$216) -> Fibre | R226: =IF(OR($E276>$H$213,SUM(R276:R$314,R323:R$361,R370:R$408,R417:R$455)<=R$217),$E$217,$E$216) -> Fibre | S226: =IF(OR($E276>$H$213,SUM(S276:S$314,S323:S$361,S370:S$408,S417:S$455)<=S$217),$E$217,$E$216) -> Fibre | T226: =IF(OR($E276>$H$213,SUM(T276:T$314,T323:T$361,T370:T$408,T417:T$455)<=T$217),$E$217,$E$216) -> Fibre
E227: 0.256 | F227: % | J227: =IF(OR($E277>$H$213,SUM(J277:J$314,J324:J$361,J371:J$408,J418:J$455)<=J$217),$E$217,$E$216) -> Copper | K227: =IF(OR($E277>$H$213,SUM(K277:K$314,K324:K$361,K371:K$408,K418:K$455)<=K$217),$E$217,$E$216) -> Copper | L227: =IF(OR($E277>$H$213,SUM(L277:L$314,L324:L$361,L371:L$408,L418:L$455)<=L$217),$E$217,$E$216) -> Copper | M227: =IF(OR($E277>$H$213,SUM(M277:M$314,M324:M$361,M371:M$408,M418:M$455)<=M$217),$E$217,$E$216) -> Copper | N227: =IF(OR($E277>$H$213,SUM(N277:N$314,N324:N$361,N371:N$408,N418:N$455)<=N$217),$E$217,$E$216) -> Copper | O227: =IF(OR($E277>$H$213,SUM(O277:O$314,O324:O$361,O371:O$408,O418:O$455)<=O$217),$E$217,$E$216) -> Copper | P227: =IF(OR($E277>$H$213,SUM(P277:P$314,P324:P$361,P371:P$408,P418:P$455)<=P$217),$E$217,$E$216) -> Fibre | Q227: =IF(OR($E277>$H$213,SUM(Q277:Q$314,Q324:Q$361,Q371:Q$408,Q418:Q$455)<=Q$217),$E$217,$E$216) -> Fibre | R227: =IF(OR($E277>$H$213,SUM(R277:R$314,R324:R$361,R371:R$408,R418:R$455)<=R$217),$E$217,$E$216) -> Fibre | S227: =IF(OR($E277>$H$213,SUM(S277:S$314,S324:S$361,S371:S$408,S418:S$455)<=S$217),$E$217,$E$216) -> Fibre | T227: =IF(OR($E277>$H$213,SUM(T277:T$314,T324:T$361,T371:T$408,T418:T$455)<=T$217),$E$217,$E$216) -> Fibre
E228: 0.512 | F228: % | J228: =IF(OR($E278>$H$213,SUM(J278:J$314,J325:J$361,J372:J$408,J419:J$455)<=J$217),$E$217,$E$216) -> Copper | K228: =IF(OR($E278>$H$213,SUM(K278:K$314,K325:K$361,K372:K$408,K419:K$455)<=K$217),$E$217,$E$216) -> Copper | L228: =IF(OR($E278>$H$213,SUM(L278:L$314,L325:L$361,L372:L$408,L419:L$455)<=L$217),$E$217,$E$216) -> Copper | M228: =IF(OR($E278>$H$213,SUM(M278:M$314,M325:M$361,M372:M$408,M419:M$455)<=M$217),$E$217,$E$216) -> Copper | N228: =IF(OR($E278>$H$213,SUM(N278:N$314,N325:N$361,N372:N$408,N419:N$455)<=N$217),$E$217,$E$216) -> Copper | O228: =IF(OR($E278>$H$213,SUM(O278:O$314,O325:O$361,O372:O$408,O419:O$455)<=O$217),$E$217,$E$216) -> Copper | P228: =IF(OR($E278>$H$213,SUM(P278:P$314,P325:P$361,P372:P$408,P419:P$455)<=P$217),$E$217,$E$216) -> Fibre | Q228: =IF(OR($E278>$H$213,SUM(Q278:Q$314,Q325:Q$361,Q372:Q$408,Q419:Q$455)<=Q$217),$E$217,$E$216) -> Fibre | R228: =IF(OR($E278>$H$213,SUM(R278:R$314,R325:R$361,R372:R$408,R419:R$455)<=R$217),$E$217,$E$216) -> Fibre | S228: =IF(OR($E278>$H$213,SUM(S278:S$314,S325:S$361,S372:S$408,S419:S$455)<=S$217),$E$217,$E$216) -> Fibre | T228: =IF(OR($E278>$H$213,SUM(T278:T$314,T325:T$361,T372:T$408,T419:T$455)<=T$217),$E$217,$E$216) -> Fibre
E229: 1 | F229: % | J229: =IF(OR($E279>$H$213,SUM(J279:J$314,J326:J$361,J373:J$408,J420:J$455)<=J$217),$E$217,$E$216) -> Copper | K229: =IF(OR($E279>$H$213,SUM(K279:K$314,K326:K$361,K373:K$408,K420:K$455)<=K$217),$E$217,$E$216) -> Copper | L229: =IF(OR($E279>$H$213,SUM(L279:L$314,L326:L$361,L373:L$408,L420:L$455)<=L$217),$E$217,$E$216) -> Copper | M229: =IF(OR($E279>$H$213,SUM(M279:M$314,M326:M$361,M373:M$408,M420:M$455)<=M$217),$E$217,$E$216) -> Copper | N229: =IF(OR($E279>$H$213,SUM(N279:N$314,N326:N$361,N373:N$408,N420:N$455)<=N$217),$E$217,$E$216) -> Copper | O229: =IF(OR($E279>$H$213,SUM(O279:O$314,O326:O$361,O373:O$408,O420:O$455)<=O$217),$E$217,$E$216) -> Copper | P229: =IF(OR($E279>$H$213,SUM(P279:P$314,P326:P$361,P373:P$408,P420:P$455)<=P$217),$E$217,$E$216) -> Fibre | Q229: =IF(OR($E279>$H$213,SUM(Q279:Q$314,Q326:Q$361,Q373:Q$408,Q420:Q$455)<=Q$217),$E$217,$E$216) -> Fibre | R229: =IF(OR($E279>$H$213,SUM(R279:R$314,R326:R$361,R373:R$408,R420:R$455)<=R$217),$E$217,$E$216) -> Fibre | S229: =IF(OR($E279>$H$213,SUM(S279:S$314,S326:S$361,S373:S$408,S420:S$455)<=S$217),$E$217,$E$216) -> Fibre | T229: =IF(OR($E279>$H$213,SUM(T279:T$314,T326:T$361,T373:T$408,T420:T$455)<=T$217),$E$217,$E$216) -> Fibre
E230: 2 | F230: % | J230: =IF(OR($E280>$H$213,SUM(J280:J$314,J327:J$361,J374:J$408,J421:J$455)<=J$217),$E$217,$E$216) -> Copper | K230: =IF(OR($E280>$H$213,SUM(K280:K$314,K327:K$361,K374:K$408,K421:K$455)<=K$217),$E$217,$E$216) -> Copper | L230: =IF(OR($E280>$H$213,SUM(L280:L$314,L327:L$361,L374:L$408,L421:L$455)<=L$217),$E$217,$E$216) -> Copper | M230: =IF(OR($E280>$H$213,SUM(M280:M$314,M327:M$361,M374:M$408,M421:M$455)<=M$217),$E$217,$E$216) -> Copper | N230: =IF(OR($E280>$H$213,SUM(N280:N$314,N327:N$361,N374:N$408,N421:N$455)<=N$217),$E$217,$E$216) -> Copper | O230: =IF(OR($E280>$H$213,SUM(O280:O$314,O327:O$361,O374:O$408,O421:O$455)<=O$217),$E$217,$E$216) -> Copper | P230: =IF(OR($E280>$H$213,SUM(P280:P$314,P327:P$361,P374:P$408,P421:P$455)<=P$217),$E$217,$E$216) -> Fibre | Q230: =IF(OR($E280>$H$213,SUM(Q280:Q$314,Q327:Q$361,Q374:Q$408,Q421:Q$455)<=Q$217),$E$217,$E$216) -> Fibre | R230: =IF(OR($E280>$H$213,SUM(R280:R$314,R327:R$361,R374:R$408,R421:R$455)<=R$217),$E$217,$E$216) -> Fibre | S230: =IF(OR($E280>$H$213,SUM(S280:S$314,S327:S$361,S374:S$408,S421:S$455)<=S$217),$E$217,$E$216) -> Fibre | T230: =IF(OR($E280>$H$213,SUM(T280:T$314,T327:T$361,T374:T$408,T421:T$455)<=T$217),$E$217,$E$216) -> Fibre
E231: 4 | F231: % | J231: =IF(OR($E281>$H$213,SUM(J281:J$314,J328:J$361,J375:J$408,J422:J$455)<=J$217),$E$217,$E$216) -> Fibre | K231: =IF(OR($E281>$H$213,SUM(K281:K$314,K328:K$361,K375:K$408,K422:K$455)<=K$217),$E$217,$E$216) -> Fibre | L231: =IF(OR($E281>$H$213,SUM(L281:L$314,L328:L$361,L375:L$408,L422:L$455)<=L$217),$E$217,$E$216) -> Fibre | M231: =IF(OR($E281>$H$213,SUM(M281:M$314,M328:M$361,M375:M$408,M422:M$455)<=M$217),$E$217,$E$216) -> Fibre | N231: =IF(OR($E281>$H$213,SUM(N281:N$314,N328:N$361,N375:N$408,N422:N$455)<=N$217),$E$217,$E$216) -> Fibre | O231: =IF(OR($E281>$H$213,SUM(O281:O$314,O328:O$361,O375:O$408,O422:O$455)<=O$217),$E$217,$E$216) -> Fibre | P231: =IF(OR($E281>$H$213,SUM(P281:P$314,P328:P$361,P375:P$408,P422:P$455)<=P$217),$E$217,$E$216) -> Fibre | Q231: =IF(OR($E281>$H$213,SUM(Q281:Q$314,Q328:Q$361,Q375:Q$408,Q422:Q$455)<=Q$217),$E$217,$E$216) -> Fibre | R231: =IF(OR($E281>$H$213,SUM(R281:R$314,R328:R$361,R375:R$408,R422:R$455)<=R$217),$E$217,$E$216) -> Fibre | S231: =IF(OR($E281>$H$213,SUM(S281:S$314,S328:S$361,S375:S$408,S422:S$455)<=S$217),$E$217,$E$216) -> Fibre | T231: =IF(OR($E281>$H$213,SUM(T281:T$314,T328:T$361,T375:T$408,T422:T$455)<=T$217),$E$217,$E$216) -> Fibre
E232: 5 | F232: % | J232: =IF(OR($E282>$H$213,SUM(J282:J$314,J329:J$361,J376:J$408,J423:J$455)<=J$217),$E$217,$E$216) -> Fibre | K232: =IF(OR($E282>$H$213,SUM(K282:K$314,K329:K$361,K376:K$408,K423:K$455)<=K$217),$E$217,$E$216) -> Fibre | L232: =IF(OR($E282>$H$213,SUM(L282:L$314,L329:L$361,L376:L$408,L423:L$455)<=L$217),$E$217,$E$216) -> Fibre | M232: =IF(OR($E282>$H$213,SUM(M282:M$314,M329:M$361,M376:M$408,M423:M$455)<=M$217),$E$217,$E$216) -> Fibre | N232: =IF(OR($E282>$H$213,SUM(N282:N$314,N329:N$361,N376:N$408,N423:N$455)<=N$217),$E$217,$E$216) -> Fibre | O232: =IF(OR($E282>$H$213,SUM(O282:O$314,O329:O$361,O376:O$408,O423:O$455)<=O$217),$E$217,$E$216) -> Fibre | P232: =IF(OR($E282>$H$213,SUM(P282:P$314,P329:P$361,P376:P$408,P423:P$455)<=P$217),$E$217,$E$216) -> Fibre | Q232: =IF(OR($E282>$H$213,SUM(Q282:Q$314,Q329:Q$361,Q376:Q$408,Q423:Q$455)<=Q$217),$E$217,$E$216) -> Fibre | R232: =IF(OR($E282>$H$213,SUM(R282:R$314,R329:R$361,R376:R$408,R423:R$455)<=R$217),$E$217,$E$216) -> Fibre | S232: =IF(OR($E282>$H$213,SUM(S282:S$314,S329:S$361,S376:S$408,S423:S$455)<=S$217),$E$217,$E$216) -> Fibre | T232: =IF(OR($E282>$H$213,SUM(T282:T$314,T329:T$361,T376:T$408,T423:T$455)<=T$217),$E$217,$E$216) -> Fibre
E233: 6 | F233: % | J233: =IF(OR($E283>$H$213,SUM(J283:J$314,J330:J$361,J377:J$408,J424:J$455)<=J$217),$E$217,$E$216) -> Fibre | K233: =IF(OR($E283>$H$213,SUM(K283:K$314,K330:K$361,K377:K$408,K424:K$455)<=K$217),$E$217,$E$216) -> Fibre | L233: =IF(OR($E283>$H$213,SUM(L283:L$314,L330:L$361,L377:L$408,L424:L$455)<=L$217),$E$217,$E$216) -> Fibre | M233: =IF(OR($E283>$H$213,SUM(M283:M$314,M330:M$361,M377:M$408,M424:M$455)<=M$217),$E$217,$E$216) -> Fibre | N233: =IF(OR($E283>$H$213,SUM(N283:N$314,N330:N$361,N377:N$408,N424:N$455)<=N$217),$E$217,$E$216) -> Fibre | O233: =IF(OR($E283>$H$213,SUM(O283:O$314,O330:O$361,O377:O$408,O424:O$455)<=O$217),$E$217,$E$216) -> Fibre | P233: =IF(OR($E283>$H$213,SUM(P283:P$314,P330:P$361,P377:P$408,P424:P$455)<=P$217),$E$217,$E$216) -> Fibre | Q233: =IF(OR($E283>$H$213,SUM(Q283:Q$314,Q330:Q$361,Q377:Q$408,Q424:Q$455)<=Q$217),$E$217,$E$216) -> Fibre | R233: =IF(OR($E283>$H$213,SUM(R283:R$314,R330:R$361,R377:R$408,R424:R$455)<=R$217),$E$217,$E$216) -> Fibre | S233: =IF(OR($E283>$H$213,SUM(S283:S$314,S330:S$361,S377:S$408,S424:S$455)<=S$217),$E$217,$E$216) -> Fibre | T233: =IF(OR($E283>$H$213,SUM(T283:T$314,T330:T$361,T377:T$408,T424:T$455)<=T$217),$E$217,$E$216) -> Fibre
E234: 8 | F234: % | J234: =IF(OR($E284>$H$213,SUM(J284:J$314,J331:J$361,J378:J$408,J425:J$455)<=J$217),$E$217,$E$216) -> Fibre | K234: =IF(OR($E284>$H$213,SUM(K284:K$314,K331:K$361,K378:K$408,K425:K$455)<=K$217),$E$217,$E$216) -> Fibre | L234: =IF(OR($E284>$H$213,SUM(L284:L$314,L331:L$361,L378:L$408,L425:L$455)<=L$217),$E$217,$E$216) -> Fibre | M234: =IF(OR($E284>$H$213,SUM(M284:M$314,M331:M$361,M378:M$408,M425:M$455)<=M$217),$E$217,$E$216) -> Fibre | N234: =IF(OR($E284>$H$213,SUM(N284:N$314,N331:N$361,N378:N$408,N425:N$455)<=N$217),$E$217,$E$216) -> Fibre | O234: =IF(OR($E284>$H$213,SUM(O284:O$314,O331:O$361,O378:O$408,O425:O$455)<=O$217),$E$217,$E$216) -> Fibre | P234: =IF(OR($E284>$H$213,SUM(P284:P$314,P331:P$361,P378:P$408,P425:P$455)<=P$217),$E$217,$E$216) -> Fibre | Q234: =IF(OR($E284>$H$213,SUM(Q284:Q$314,Q331:Q$361,Q378:Q$408,Q425:Q$455)<=Q$217),$E$217,$E$216) -> Fibre | R234: =IF(OR($E284>$H$213,SUM(R284:R$314,R331:R$361,R378:R$408,R425:R$455)<=R$217),$E$217,$E$216) -> Fibre | S234: =IF(OR($E284>$H$213,SUM(S284:S$314,S331:S$361,S378:S$408,S425:S$455)<=S$217),$E$217,$E$216) -> Fibre | T234: =IF(OR($E284>$H$213,SUM(T284:T$314,T331:T$361,T378:T$408,T425:T$455)<=T$217),$E$217,$E$216) -> Fibre
E235: 10 | F235: % | J235: =IF(OR($E285>$H$213,SUM(J285:J$314,J332:J$361,J379:J$408,J426:J$455)<=J$217),$E$217,$E$216) -> Fibre | K235: =IF(OR($E285>$H$213,SUM(K285:K$314,K332:K$361,K379:K$408,K426:K$455)<=K$217),$E$217,$E$216) -> Fibre | L235: =IF(OR($E285>$H$213,SUM(L285:L$314,L332:L$361,L379:L$408,L426:L$455)<=L$217),$E$217,$E$216) -> Fibre | M235: =IF(OR($E285>$H$213,SUM(M285:M$314,M332:M$361,M379:M$408,M426:M$455)<=M$217),$E$217,$E$216) -> Fibre | N235: =IF(OR($E285>$H$213,SUM(N285:N$314,N332:N$361,N379:N$408,N426:N$455)<=N$217),$E$217,$E$216) -> Fibre | O235: =IF(OR($E285>$H$213,SUM(O285:O$314,O332:O$361,O379:O$408,O426:O$455)<=O$217),$E$217,$E$216) -> Fibre | P235: =IF(OR($E285>$H$213,SUM(P285:P$314,P332:P$361,P379:P$408,P426:P$455)<=P$217),$E$217,$E$216) -> Fibre | Q235: =IF(OR($E285>$H$213,SUM(Q285:Q$314,Q332:Q$361,Q379:Q$408,Q426:Q$455)<=Q$217),$E$217,$E$216) -> Fibre | R235: =IF(OR($E285>$H$213,SUM(R285:R$314,R332:R$361,R379:R$408,R426:R$455)<=R$217),$E$217,$E$216) -> Fibre | S235: =IF(OR($E285>$H$213,SUM(S285:S$314,S332:S$361,S379:S$408,S426:S$455)<=S$217),$E$217,$E$216) -> Fibre | T235: =IF(OR($E285>$H$213,SUM(T285:T$314,T332:T$361,T379:T$408,T426:T$455)<=T$217),$E$217,$E$216) -> Fibre
E236: 20 | F236: % | J236: =IF(OR($E286>$H$213,SUM(J286:J$314,J333:J$361,J380:J$408,J427:J$455)<=J$217),$E$217,$E$216) -> Fibre | K236: =IF(OR($E286>$H$213,SUM(K286:K$314,K333:K$361,K380:K$408,K427:K$455)<=K$217),$E$217,$E$216) -> Fibre | L236: =IF(OR($E286>$H$213,SUM(L286:L$314,L333:L$361,L380:L$408,L427:L$455)<=L$217),$E$217,$E$216) -> Fibre | M236: =IF(OR($E286>$H$213,SUM(M286:M$314,M333:M$361,M380:M$408,M427:M$455)<=M$217),$E$217,$E$216) -> Fibre | N236: =IF(OR($E286>$H$213,SUM(N286:N$314,N333:N$361,N380:N$408,N427:N$455)<=N$217),$E$217,$E$216) -> Fibre | O236: =IF(OR($E286>$H$213,SUM(O286:O$314,O333:O$361,O380:O$408,O427:O$455)<=O$217),$E$217,$E$216) -> Fibre | P236: =IF(OR($E286>$H$213,SUM(P286:P$314,P333:P$361,P380:P$408,P427:P$455)<=P$217),$E$217,$E$216) -> Fibre | Q236: =IF(OR($E286>$H$213,SUM(Q286:Q$314,Q333:Q$361,Q380:Q$408,Q427:Q$455)<=Q$217),$E$217,$E$216) -> Fibre | R236: =IF(OR($E286>$H$213,SUM(R286:R$314,R333:R$361,R380:R$408,R427:R$455)<=R$217),$E$217,$E$216) -> Fibre | S236: =IF(OR($E286>$H$213,SUM(S286:S$314,S333:S$361,S380:S$408,S427:S$455)<=S$217),$E$217,$E$216) -> Fibre | T236: =IF(OR($E286>$H$213,SUM(T286:T$314,T333:T$361,T380:T$408,T427:T$455)<=T$217),$E$217,$E$216) -> Fibre
... 831 more rows

Sheet Traffic
D1: Network traffic
A2: This model has been prepared for OCECPR to undertake its regulatory duties using bottom-up models for the calculation of the cost of wholesale services in order to promote competition in the fixed electronic communications market in Cyprus and for no other purpose. We do not give, accept or assume responsibility for any other purpose or to any other person for action or inaction taken as a result of this model, unless expressly agreed by our prior consent in writing.
A3: =MAX(A$1:A2)+1 -> 1 | B3: Demand volumes by network services
C5: Network services volumes for cost results
H6: =[0]!CTRL.year.selected -> 2025
E7: Network services | F7: Original units | H7: Year selected | J7: =TRANSPOSE(Years.market) -> 2020 | K7: 2021 | L7: 2022 | M7: 2023 | N7: 2024 | O7: 2025 | P7: 2026 | Q7: 2027 | R7: 2028 | S7: 2029 | T7: 2030
D8: 1 | E8: =Network.services.list -> Fixed access line - copper loop (LLU) | F8: =Network.services.original.units -> Subscribers | H8: =INDEX(J8:T57,,MATCH(CTRL.year.selected,Years.market,0)) -> 0 | J8: =Network.volumes*IF(Incoming.traffic.selected=With.incoming,1,1-Incoming.voice.selector) -> 17747 | K8: 5588 | L8: 9554 | M8: 5496 | N8: 2171.193854 | O8: 0 | P8: 0 | Q8: 0 | R8: 0 | S8: 0 | T8: 0
D9: =D8+1 -> 2 | E9: Fixed access line - copper sub-loop (SLU) | F9: Subscribers | H9: 0 | J9: 1 | K9: 1 | L9: 1 | M9: 1 | N9: 1 | O9: 0 | P9: 0 | Q9: 0 | R9: 0 | S9: 0 | T9: 0
D10: 3 | E10: Fixed access line - shared copper loop | F10: Subscribers | H10: 0 | J10: 0 | K10: 0 | L10: 0 | M10: 0 | N10: 0 | O10: 0 | P10: 0 | Q10: 0 | R10: 0 | S10: 0 | T10: 0
D11: 4 | E11: Fixed access line - shared copper sub-loop | F11: Subscribers | H11: 0 | J11: 0 | K11: 0 | L11: 0 | M11: 0 | N11: 0 | O11: 0 | P11: 0 | Q11: 0 | R11: 0 | S11: 0 | T11: 0
D12: 5 | E12: Wholesale virtual local access over copper (VULA-VDSL) | F12: Subscribers | H12: 17988.99576 | J12: 276113.88 | K12: 240716.762 | L12: 182006.889 | M12: 121279.895 | N12: 55547.02687 | O12: 17988.99576 | P12: 0 | Q12: 0 | R12: 0 | S12: 0 | T12: 0
D13: 6 | E13: Wholesale virtual local access over fibre (VULA-Fibre) | F13: Subscribers | H13: 230085.9631 | J13: 24525.29423 | K13: 58444.24257 | L13: 100505.6793 | M13: 150415.1988 | N13: 201497.7162 | O13: 230085.9631 | P13: 243266.1646 | Q13: 247125.83 | R13: 251015.1809 | S13: 254880.7151 | T13: 258693.305
D14: 7 | E14: Spare | F14: spare | H14: 0 | J14: 0 | K14: 0 | L14: 0 | M14: 0 | N14: 0 | O14: 0 | P14: 0 | Q14: 0 | R14: 0 | S14: 0 | T14: 0
D15: 8 | E15: Leased line access segment - copper | F15: Subscribers | H15: 189.6333755 | J15: 3500 | K15: 3500 | L15: 2732.55814 | M15: 1734.434562 | N15: 709.7591888 | O15: 189.6333755 | P15: 0 | Q15: 0 | R15: 0 | S15: 0 | T15: 0
D16: 9 | E16: Leased line access segment - fibre | F16: Subscribers | H16: 3947.363982 | J16: 1230.892868 | K16: 1230.892868 | L16: 1860.65201 | M16: 2679.707473 | N16: 3520.551212 | O16: 3947.363982 | P16: 4102.976228 | Q16: 4102.976228 | R16: 4102.976228 | S16: 4102.976228 | T16: 4102.976228
D17: 10 | E17: Spare | F17: spare | H17: 0 | J17: 0 | K17: 0 | L17: 0 | M17: 0 | N17: 0 | O17: 0 | P17: 0 | Q17: 0 | R17: 0 | S17: 0 | T17: 0
D18: 11 | E18: Spare | F18: spare | H18: 0 | J18: 0 | K18: 0 | L18: 0 | M18: 0 | N18: 0 | O18: 0 | P18: 0 | Q18: 0 | R18: 0 | S18: 0 | T18: 0
D19: 12 | E19: Spare | F19: spare | H19: 0 | J19: 0 | K19: 0 | L19: 0 | M19: 0 | N19: 0 | O19: 0 | P19: 0 | Q19: 0 | R19: 0 | S19: 0 | T19: 0
D20: 13 | E20: Spare | F20: spare | H20: 0 | J20: 0 | K20: 0 | L20: 0 | M20: 0 | N20: 0 | O20: 0 | P20: 0 | Q20: 0 | R20: 0 | S20: 0 | T20: 0
D21: 14 | E21: Spare | F21: spare | H21: 0 | J21: 0 | K21: 0 | L21: 0 | M21: 0 | N21: 0 | O21: 0 | P21: 0 | Q21: 0 | R21: 0 | S21: 0 | T21: 0
D22: 15 | E22: Spare | F22: spare | H22: 0 | J22: 0 | K22: 0 | L22: 0 | M22: 0 | N22: 0 | O22: 0 | P22: 0 | Q22: 0 | R22: 0 | S22: 0 | T22: 0
D23: 16 | E23: Spare | F23: spare | H23: 0 | J23: 0 | K23: 0 | L23: 0 | M23: 0 | N23: 0 | O23: 0 | P23: 0 | Q23: 0 | R23: 0 | S23: 0 | T23: 0
D24: 17 | E24: Spare | F24: spare | H24: 0 | J24: 0 | K24: 0 | L24: 0 | M24: 0 | N24: 0 | O24: 0 | P24: 0 | Q24: 0 | R24: 0 | S24: 0 | T24: 0
D25: 18 | E25: Spare | F25: spare | H25: 0 | J25: 0 | K25: 0 | L25: 0 | M25: 0 | N25: 0 | O25: 0 | P25: 0 | Q25: 0 | R25: 0 | S25: 0 | T25: 0
D26: 19 | E26: Spare | F26: spare | H26: 0 | J26: 0 | K26: 0 | L26: 0 | M26: 0 | N26: 0 | O26: 0 | P26: 0 | Q26: 0 | R26: 0 | S26: 0 | T26: 0
D27: 20 | E27: Spare | F27: spare | H27: 0 | J27: 0 | K27: 0 | L27: 0 | M27: 0 | N27: 0 | O27: 0 | P27: 0 | Q27: 0 | R27: 0 | S27: 0 | T27: 0
D28: 21 | E28: On-net voice | F28: Minutes | H28: 63718616.48 | J28: 133305515.7 | K28: 107861825.9 | L28: 87220501.23 | M28: 79771099.97 | N28: 71643401.15 | O28: 63718616.48 | P28: 56051931.06 | Q28: 48690020.55 | R28: 41731654.24 | S28: 35192549.39 | T28: 29095481.41
D29: 22 | E29: Outgoing voice | F29: Minutes | H29: 99303602.28 | J29: 128947960 | K29: 131862055.2 | L29: 137501182.5 | M29: 124101896.8 | N29: 111521957.2 | O29: 99303602.28 | P29: 87513769.7 | Q29: 76207553.67 | R29: 65523531.09 | S29: 55472644.17 | T29: 46078826.36
D30: 23 | E30: Incoming voice | F30: Minutes | H30: 161412073.8 | J30: 217508997.6 | K30: 202485448.8 | L30: 193774111.2 | M30: 183004404 | N30: 172453871.8 | O30: 161412073.8 | P30: 149914252.4 | Q30: 137982236.4 | R30: 125803413 | S30: 113352544.3 | T30: 100625827.7
D31: 24 | E31: Transit voice - collocated | F31: Minutes | H31: 227500589.9 | J31: 297643434.4 | K31: 301757675.1 | L31: 305041706.9 | M31: 271775487.5 | N31: 249539392.8 | O31: 227500589.9 | P31: 205743520 | Q31: 184328562.9 | R31: 163527302.6 | S31: 143315100.6 | T31: 123697010.2
D32: 25 | E32: Transit voice - not collocated | F32: Minutes | H32: 1 | J32: 1 | K32: 1 | L32: 1 | M32: 1 | N32: 1 | O32: 1 | P32: 1 | Q32: 1 | R32: 1 | S32: 1 | T32: 1
D33: 26 | E33: Wholesale voice origination | F33: Minutes | H33: 125481184.1 | J33: 190654172.4 | K33: 187273371 | L33: 183645175.8 | M33: 159217173.4 | N33: 141995384.5 | O33: 125481184.1 | P33: 109744546.1 | Q33: 94838703.99 | R33: 80918483.17 | S33: 67977651.45 | T33: 56026004.13
D34: 27 | E34: Voice call processing (all types) | F34: Minutes | H34: 677416067.5 | J34: 968060081.1 | K34: 931240377 | L34: 907182678.6 | M34: 817870062.6 | N34: 747154008.5 | O34: 677416067.5 | P34: 608968020.3 | Q34: 542047078.6 | R34: 477504385.1 | S34: 415310490.9 | T34: 355523150.7
D35: 28 | E35: Broadband traffic from copper lines - retail | F35: BHMbps | H35: 5087.846138 | J35: 104125.7495 | K35: 89549.25679 | L35: 69074.59229 | M35: 44885.14986 | N35: 18713.63139 | O35: 5087.846138 | P35: 0 | Q35: 0 | R35: 0 | S35: 0 | T35: 0
D36: 29 | E36: Broadband traffic from copper lines - wholesale | F36: BHMbps | H36: 1838.980532 | J36: 38633.22862 | K36: 30680.35406 | L36: 23423.21815 | M36: 16124.54434 | N36: 6743.360276 | O36: 1838.980532 | P36: 0 | Q36: 0 | R36: 0 | S36: 0 | T36: 0
D37: 30 | E37: Broadband traffic from fibre lines - retail | F37: BHMbps | H37: 2076657.625 | J37: 101729.4557 | K37: 313863.1905 | L37: 594513.665 | M37: 1045125.055 | N37: 1564387.062 | O37: 2076657.625 | P37: 2386036.88 | Q37: 2617031.325 | R37: 2846618.306 | S37: 3111780.636 | T37: 3382616.123
D38: 31 | E38: Broadband traffic from fibre lines - wholesale | F38: BHMbps | H38: 243375.8359 | J38: 12721.91738 | K38: 31931.91134 | L38: 58773.25078 | M38: 120592.7353 | N38: 181926.4792 | O38: 243375.8359 | P38: 281782.0583 | Q38: 311409.761 | R38: 341274.4921 | S38: 375837.1485 | T38: 411552.3505
D39: 32 | E39: Linear TV broadcast - whole IPTV flow | F39: BHMbps | H39: 471 | J39: 454 | K39: 454 | L39: 454 | M39: 454 | N39: 471 | O39: 471 | P39: 471 | Q39: 471 | R39: 471 | S39: 471 | T39: 471
D40: 33 | E40: Ethernet leased lines local traffic on copper (i.e. it only uses the local Ethernet switch) | F40: BHMbps | H40: 1000 | J40: 1000 | K40: 1000 | L40: 1000 | M40: 1000 | N40: 1000 | O40: 1000 | P40: 0 | Q40: 0 | R40: 0 | S40: 0 | T40: 0
D41: 34 | E41: Ethernet leased lines local traffic on fibre (i.e. it only uses the local Ethernet switch) | F41: BHMbps | H41: 492357.1474 | J41: 492357.1474 | K41: 492357.1474 | L41: 492357.1474 | M41: 492357.1474 | N41: 492357.1474 | O41: 492357.1474 | P41: 493177.7426 | Q41: 493177.7426 | R41: 493177.7426 | S41: 493177.7426 | T41: 493177.7426
D42: 35 | E42: IP VPN on copper traffic | F42: BHMbps | H42: 500 | J42: 500 | K42: 500 | L42: 500 | M42: 500 | N42: 500 | O42: 500 | P42: 0 | Q42: 0 | R42: 0 | S42: 0 | T42: 0
D43: 36 | E43: IP VPN on fibre traffic | F43: BHMbps | H43: 227715.1807 | J43: 227715.1807 | K43: 227715.1807 | L43: 227715.1807 | M43: 227715.1807 | N43: 227715.1807 | O43: 227715.1807 | P43: 228125.4783 | Q43: 228125.4783 | R43: 228125.4783 | S43: 228125.4783 | T43: 228125.4783
D44: 37 | E44: SDH leased lines on copper traffic | F44: BHMbps | H44: 1000 | J44: 1000 | K44: 1000 | L44: 1000 | M44: 1000 | N44: 1000 | O44: 1000 | P44: 0 | Q44: 0 | R44: 0 | S44: 0 | T44: 0
D45: 38 | E45: SDH leased lines on fibre traffic | F45: BHMbps | H45: 0 | J45: 0 | K45: 0 | L45: 0 | M45: 0 | N45: 0 | O45: 0 | P45: 820.5952457 | Q45: 820.5952457 | R45: 820.5952457 | S45: 820.5952457 | T45: 820.5952457
D46: 39 | E46: Ethernet leased lines on copper traffic | F46: BHMbps | H46: 1000 | J46: 1000 | K46: 1000 | L46: 1000 | M46: 1000 | N46: 1000 | O46: 1000 | P46: 0 | Q46: 0 | R46: 0 | S46: 0 | T46: 0
D47: 40 | E47: Ethernet leased lines on fibre traffic | F47: BHMbps | H47: 248230.0618 | J47: 248230.0618 | K47: 248230.0618 | L47: 248230.0618 | M47: 248230.0618 | N47: 248230.0618 | O47: 248230.0618 | P47: 249050.6571 | Q47: 249050.6571 | R47: 249050.6571 | S47: 249050.6571 | T47: 249050.6571
D48: 41 | E48: spare | F48: spare | H48: 0 | J48: 0 | K48: 0 | L48: 0 | M48: 0 | N48: 0 | O48: 0 | P48: 0 | Q48: 0 | R48: 0 | S48: 0 | T48: 0
D49: 42 | E49: spare | F49: spare | H49: 0 | J49: 0 | K49: 0 | L49: 0 | M49: 0 | N49: 0 | O49: 0 | P49: 0 | Q49: 0 | R49: 0 | S49: 0 | T49: 0
D50: 43 | E50: spare | F50: spare | H50: 0 | J50: 0 | K50: 0 | L50: 0 | M50: 0 | N50: 0 | O50: 0 | P50: 0 | Q50: 0 | R50: 0 | S50: 0 | T50: 0
D51: 44 | E51: spare | F51: spare | H51: 0 | J51: 0 | K51: 0 | L51: 0 | M51: 0 | N51: 0 | O51: 0 | P51: 0 | Q51: 0 | R51: 0 | S51: 0 | T51: 0
D52: 45 | E52: Copper subscribers | F52: Subscribers | H52: 17988.99576 | J52: 293861.88 | K52: 246305.762 | L52: 191561.889 | M52: 126776.895 | N52: 57719.22073 | O52: 17988.99576 | P52: 0 | Q52: 0 | R52: 0 | S52: 0 | T52: 0
D53: 46 | E53: Fibre subscribers | F53: Subscribers | H53: 230085.9631 | J53: 24525.29423 | K53: 58444.24257 | L53: 100505.6793 | M53: 150415.1988 | N53: 201497.7162 | O53: 230085.9631 | P53: 243266.1646 | Q53: 247125.83 | R53: 251015.1809 | S53: 254880.7151 | T53: 258693.305
D54: 47 | E54: IPTV subscribers | F54: Subscribers | H54: 75763.99177 | J54: 93754.87674 | K54: 93136.908 | L54: 92223.4101 | M54: 87277.62247 | N54: 81675.34483 | O54: 75763.99177 | P54: 69561.42613 | Q54: 63079.84357 | R54: 56406.65925 | S54: 49530.259 | T54: 42449.51108
D55: 48 | E55: Leased line subscribers | F55: Subscribers | H55: 5000 | J55: 5000 | K55: 5000 | L55: 5000 | M55: 5000 | N55: 5000 | O55: 5000 | P55: 5000 | Q55: 5000 | R55: 5000 | S55: 5000 | T55: 5000
D56: 49 | E56: Broadband subscribers | F56: Subscribers | H56: 214068.42 | J56: 187957.28 | K56: 195945.05 | L56: 201689.054 | M56: 206480.085 | N56: 210368.3772 | O56: 214068.42 | P56: 217571.752 | Q56: 220846.5253 | R56: 224143.1737 | S56: 227413.932 | T56: 230632.9175
D57: 50 | E57: spare | F57: spare | H57: 0 | J57: 0 | K57: 0 | L57: 0 | M57: 0 | N57: 0 | O57: 0 | P57: 0 | Q57: 0 | R57: 0 | S57: 0 | T57: 0
H58: Network.services.volumes.cost.results.year.selected
E60: Copper lines | H60: =SUM(H8:H12,H15) -> 18178.62914 | I60: Demand.copper.lines
E61: Fibre lines | H61: =H13+H16 -> 234033.3271 | I61: Demand.fibre.lines
C64: Network services volumes for network dimensioning (traffic in BHMbps) and for cost allocation
D66: Busy hour (BH) calculations for voice
E67: Number of busy days per year | F67: # | H67: 260
E68: Proportion of weekly traffic during these busy days | F68: % | H68: 0.85
E69: Proportion of daily traffic in the busy hour | F69: % | H69: 0.1
K70: Note: not relevant in VoB
H71: Average call duration (minutes) | I71: Call attempts per successful call | J71: Ring minutes per call attempt | K71: Ringing time per minute
E72: =E28 -> On-net voice | H72: 1 | I72: 1 | J72: 0.1 | K72: =1/H72:H74*I72:I74*J72:J74 -> 0.1
E73: =E29 -> Outgoing voice | H73: 1 | I73: 1 | J73: 0.1 | K73: 0.1
E74: =E30 -> Incoming voice | H74: 1 | I74: 1 | J74: 0.1 | K74: 0.1
H75: Average.call.duration | I75: Call.attempts.per.successful.call | K75: Ring.Time.Per.Minute
D76: Conversion of voice traffic to Mbit/s
E77: Size of a voice channel | F77: kbit/s | H77: 87.2 | I77: G.711, Ethernet bandwidth | K77: https://www.cisco.com/c/en/us/support/docs/voice/voice-quality/7934-bwidth-consume.html#toc-hId-1036653676
D79: Network services volumes
E81: Network services | F81: Units for cost allocation | H81: Year selected | J81: =TRANSPOSE(Years.market) -> 2020 | K81: 2021 | L81: 2022 | M81: 2023 | N81: 2024 | O81: 2025 | P81: 2026 | Q81: 2027 | R81: 2028 | S81: 2029 | T81: 2030
D82: 1 | E82: =Network.services.list -> Fixed access line - copper loop (LLU) | F82: =Network.services.units.for.cost.allocation -> Subscribers | H82: =INDEX(J82:T131,,MATCH(CTRL.year.selected,Years.market,0)) -> 0 | J82: =J8:T8 -> 17747 | K82: 5588 | L82: 9554 | M82: 5496 | N82: 2171.193854 | O82: 0 | P82: 0 | Q82: 0 | R82: 0 | S82: 0 | T82: 0
D83: =D82+1 -> 2 | E83: Fixed access line - copper sub-loop (SLU) | F83: Subscribers | H83: 0 | J83: =J9:T9 -> 1 | K83: 1 | L83: 1 | M83: 1 | N83: 1 | O83: 0 | P83: 0 | Q83: 0 | R83: 0 | S83: 0 | T83: 0
D84: 3 | E84: Fixed access line - shared copper loop | F84: Subscribers | H84: 0 | J84: =J10:T10 -> 0 | K84: 0 | L84: 0 | M84: 0 | N84: 0 | O84: 0 | P84: 0 | Q84: 0 | R84: 0 | S84: 0 | T84: 0
D85: 4 | E85: Fixed access line - shared copper sub-loop | F85: Subscribers | H85: 0 | J85: =J11:T11 -> 0 | K85: 0 | L85: 0 | M85: 0 | N85: 0 | O85: 0 | P85: 0 | Q85: 0 | R85: 0 | S85: 0 | T85: 0
D86: 5 | E86: Wholesale virtual local access over copper (VULA-VDSL) | F86: Subscribers | H86: 17988.99576 | J86: =J12:T12 -> 276113.88 | K86: 240716.762 | L86: 182006.889 | M86: 121279.895 | N86: 55547.02687 | O86: 17988.99576 | P86: 0 | Q86: 0 | R86: 0 | S86: 0 | T86: 0
D87: 6 | E87: Wholesale virtual local access over fibre (VULA-Fibre) | F87: Subscribers | H87: 230085.9631 | J87: =J13:T13 -> 24525.29423 | K87: 58444.24257 | L87: 100505.6793 | M87: 150415.1988 | N87: 201497.7162 | O87: 230085.9631 | P87: 243266.1646 | Q87: 247125.83 | R87: 251015.1809 | S87: 254880.7151 | T87: 258693.305
D88: 7 | E88: Spare | F88: spare | H88: 0 | J88: 0 | K88: 0 | L88: 0 | M88: 0 | N88: 0 | O88: 0 | P88: 0 | Q88: 0 | R88: 0 | S88: 0 | T88: 0
D89: 8 | E89: Leased line access segment - copper | F89: Subscribers | H89: 189.6333755 | J89: =J15:T15 -> 3500 | K89: 3500 | L89: 2732.55814 | M89: 1734.434562 | N89: 709.7591888 | O89: 189.6333755 | P89: 0 | Q89: 0 | R89: 0 | S89: 0 | T89: 0
D90: 9 | E90: Leased line access segment - fibre | F90: Subscribers | H90: 3947.363982 | J90: =J16:T16 -> 1230.892868 | K90: 1230.892868 | L90: 1860.65201 | M90: 2679.707473 | N90: 3520.551212 | O90: 3947.363982 | P90: 4102.976228 | Q90: 4102.976228 | R90: 4102.976228 | S90: 4102.976228 | T90: 4102.976228
D91: 10 | E91: Spare | F91: spare | H91: 0 | J91: 0 | K91: 0 | L91: 0 | M91: 0 | N91: 0 | O91: 0 | P91: 0 | Q91: 0 | R91: 0 | S91: 0 | T91: 0
D92: 11 | E92: Spare | F92: spare | H92: 0 | J92: 0 | K92: 0 | L92: 0 | M92: 0 | N92: 0 | O92: 0 | P92: 0 | Q92: 0 | R92: 0 | S92: 0 | T92: 0
D93: 12 | E93: Spare | F93: spare | H93: 0 | J93: 0 | K93: 0 | L93: 0 | M93: 0 | N93: 0 | O93: 0 | P93: 0 | Q93: 0 | R93: 0 | S93: 0 | T93: 0
D94: 13 | E94: Spare | F94: spare | H94: 0 | J94: 0 | K94: 0 | L94: 0 | M94: 0 | N94: 0 | O94: 0 | P94: 0 | Q94: 0 | R94: 0 | S94: 0 | T94: 0
D95: 14 | E95: Spare | F95: spare | H95: 0 | J95: 0 | K95: 0 | L95: 0 | M95: 0 | N95: 0 | O95: 0 | P95: 0 | Q95: 0 | R95: 0 | S95: 0 | T95: 0
D96: 15 | E96: Spare | F96: spare | H96: 0 | J96: 0 | K96: 0 | L96: 0 | M96: 0 | N96: 0 | O96: 0 | P96: 0 | Q96: 0 | R96: 0 | S96: 0 | T96: 0
D97: 16 | E97: Spare | F97: spare | H97: 0 | J97: 0 | K97: 0 | L97: 0 | M97: 0 | N97: 0 | O97: 0 | P97: 0 | Q97: 0 | R97: 0 | S97: 0 | T97: 0
D98: 17 | E98: Spare | F98: spare | H98: 0 | J98: 0 | K98: 0 | L98: 0 | M98: 0 | N98: 0 | O98: 0 | P98: 0 | Q98: 0 | R98: 0 | S98: 0 | T98: 0
D99: 18 | E99: Spare | F99: spare | H99: 0 | J99: 0 | K99: 0 | L99: 0 | M99: 0 | N99: 0 | O99: 0 | P99: 0 | Q99: 0 | R99: 0 | S99: 0 | T99: 0
D100: 19 | E100: Spare | F100: spare | H100: 0 | J100: 0 | K100: 0 | L100: 0 | M100: 0 | N100: 0 | O100: 0 | P100: 0 | Q100: 0 | R100: 0 | S100: 0 | T100: 0
D101: 20 | E101: Spare | F101: spare | H101: 0 | J101: 0 | K101: 0 | L101: 0 | M101: 0 | N101: 0 | O101: 0 | P101: 0 | Q101: 0 | R101: 0 | S101: 0 | T101: 0
D102: 21 | E102: On-net voice | F102: BHMbps | H102: 30.27451188 | J102: =J28:T33/$H67*$H68*$H69/minutes.per.hour*$H77/1000 -> 63.33721039 | K102: 51.24819574 | L102: 41.4409202 | M102: 37.90149955 | N102: 34.0398006 | O102: 30.27451188 | P102: 26.6318534 | Q102: 23.13400207 | R102: 19.82788598 | S102: 16.72097283 | T102: 13.82408386
D103: 22 | E103: Outgoing voice | F103: BHMbps | H103: 47.18194232 | J103: 61.2668128 | K103: 62.65138162 | L103: 65.33069002 | M103: 58.9643115 | N103: 52.98722734 | O103: 47.18194232 | P103: 41.58026032 | Q103: 36.20835819 | R103: 31.13207772 | S103: 26.35661786 | T103: 21.89335006
D104: 23 | E104: Incoming voice | F104: BHMbps | H104: 76.6914289 | J104: 103.3446596 | K104: 96.20654785 | L104: 92.06754565 | M104: 86.950554 | N104: 81.9376986 | O104: 76.6914289 | P104: 71.22848967 | Q104: 65.55925234 | R104: 59.7727498 | S104: 53.85699094 | T104: 47.8101689
D105: 24 | E105: Transit voice - collocated | F105: BHMbps | H105: 108.091947 | J105: 141.4187907 | K105: 143.3735826 | L105: 144.9339187 | M105: 129.1281996 | N105: 118.5632038 | O105: 108.091947 | P105: 97.75454939 | Q105: 87.57969926 | R105: 77.69643378 | S105: 68.09304651 | T105: 58.77193841
D106: 25 | E106: Transit voice - not collocated | F106: BHMbps | H106: 4.751282051e-07 | J106: 4.751282051e-07 | K106: 4.751282051e-07 | L106: 4.751282051e-07 | M106: 4.751282051e-07 | N106: 4.751282051e-07 | O106: 4.751282051e-07 | P106: 4.751282051e-07 | Q106: 4.751282051e-07 | R106: 4.751282051e-07 | S106: 4.751282051e-07 | T106: 4.751282051e-07
D107: 26 | E107: Wholesale voice origination | F107: BHMbps | H107: 59.61964976 | J107: 90.58517475 | K107: 88.97886064 | L107: 87.25500278 | M107: 75.6485698 | N107: 67.46601219 | O107: 59.61964976 | P107: 52.14272922 | Q107: 45.06054321 | R107: 38.44665367 | S107: 32.29809952 | T107: 26.61953478
D108: 27 | E108: Voice call processing (all types) | F108: BHE | H108: 3691.049086 | J108: =J34:T34/$H67*$H68*$H69/minutes.per.hour -> 5274.686339 | K108: 5074.066157 | L108: 4942.982544 | M108: 4456.34329 | N108: 4071.031457 | O108: 3691.049086 | P108: 3318.094982 | Q108: 2953.461646 | R108: 2601.786713 | S108: 2262.909726 | T108: 1937.145373
D109: 28 | E109: Broadband traffic from copper lines - retail | F109: BHMbps | H109: 5087.846138 | J109: =J35:T35 -> 104125.7495 | K109: 89549.25679 | L109: 69074.59229 | M109: 44885.14986 | N109: 18713.63139 | O109: 5087.846138 | P109: 0 | Q109: 0 | R109: 0 | S109: 0 | T109: 0
D110: 29 | E110: Broadband traffic from copper lines - wholesale | F110: BHMbps | H110: 1838.980532 | J110: =J36:T36 -> 38633.22862 | K110: 30680.35406 | L110: 23423.21815 | M110: 16124.54434 | N110: 6743.360276 | O110: 1838.980532 | P110: 0 | Q110: 0 | R110: 0 | S110: 0 | T110: 0
D111: 30 | E111: Broadband traffic from fibre lines - retail | F111: BHMbps | H111: 2076657.625 | J111: =J37:T37 -> 101729.4557 | K111: 313863.1905 | L111: 594513.665 | M111: 1045125.055 | N111: 1564387.062 | O111: 2076657.625 | P111: 2386036.88 | Q111: 2617031.325 | R111: 2846618.306 | S111: 3111780.636 | T111: 3382616.123
D112: 31 | E112: Broadband traffic from fibre lines - wholesale | F112: BHMbps | H112: 243375.8359 | J112: =J38:T38 -> 12721.91738 | K112: 31931.91134 | L112: 58773.25078 | M112: 120592.7353 | N112: 181926.4792 | O112: 243375.8359 | P112: 281782.0583 | Q112: 311409.761 | R112: 341274.4921 | S112: 375837.1485 | T112: 411552.3505
D113: 32 | E113: Linear TV broadcast - whole IPTV flow | F113: BHMbps | H113: 471 | J113: =J39:T39 -> 454 | K113: 454 | L113: 454 | M113: 454 | N113: 471 | O113: 471 | P113: 471 | Q113: 471 | R113: 471 | S113: 471 | T113: 471
D114: 33 | E114: Ethernet leased lines local traffic on copper (i.e. it only uses the local Ethernet switch) | F114: BHMbps | H114: 1000 | J114: =J40:T40 -> 1000 | K114: 1000 | L114: 1000 | M114: 1000 | N114: 1000 | O114: 1000 | P114: 0 | Q114: 0 | R114: 0 | S114: 0 | T114: 0
D115: 34 | E115: Ethernet leased lines local traffic on fibre (i.e. it only uses the local Ethernet switch) | F115: BHMbps | H115: 492357.1474 | J115: =J41:T41 -> 492357.1474 | K115: 492357.1474 | L115: 492357.1474 | M115: 492357.1474 | N115: 492357.1474 | O115: 492357.1474 | P115: 493177.7426 | Q115: 493177.7426 | R115: 493177.7426 | S115: 493177.7426 | T115: 493177.7426
D116: 35 | E116: IP VPN on copper traffic | F116: BHMbps | H116: 500 | J116: =J42:T42 -> 500 | K116: 500 | L116: 500 | M116: 500 | N116: 500 | O116: 500 | P116: 0 | Q116: 0 | R116: 0 | S116: 0 | T116: 0
D117: 36 | E117: IP VPN on fibre traffic | F117: BHMbps | H117: 227715.1807 | J117: =J43:T43 -> 227715.1807 | K117: 227715.1807 | L117: 227715.1807 | M117: 227715.1807 | N117: 227715.1807 | O117: 227715.1807 | P117: 228125.4783 | Q117: 228125.4783 | R117: 228125.4783 | S117: 228125.4783 | T117: 228125.4783
D118: 37 | E118: SDH leased lines on copper traffic | F118: BHMbps | H118: 1000 | J118: =J44:T44 -> 1000 | K118: 1000 | L118: 1000 | M118: 1000 | N118: 1000 | O118: 1000 | P118: 0 | Q118: 0 | R118: 0 | S118: 0 | T118: 0
D119: 38 | E119: SDH leased lines on fibre traffic | F119: BHMbps | H119: 0 | J119: =J45:T45 -> 0 | K119: 0 | L119: 0 | M119: 0 | N119: 0 | O119: 0 | P119: 820.5952457 | Q119: 820.5952457 | R119: 820.5952457 | S119: 820.5952457 | T119: 820.5952457
D120: 39 | E120: Ethernet leased lines on copper traffic | F120: BHMbps | H120: 1000 | J120: =J46:T46 -> 1000 | K120: 1000 | L120: 1000 | M120: 1000 | N120: 1000 | O120: 1000 | P120: 0 | Q120: 0 | R120: 0 | S120: 0 | T120: 0
D121: 40 | E121: Ethernet leased lines on fibre traffic | F121: BHMbps | H121: 248230.0618 | J121: =J47:T47 -> 248230.0618 | K121: 248230.0618 | L121: 248230.0618 | M121: 248230.0618 | N121: 248230.0618 | O121: 248230.0618 | P121: 249050.6571 | Q121: 249050.6571 | R121: 249050.6571 | S121: 249050.6571 | T121: 249050.6571
D122: 41 | E122: spare | F122: spare | H122: 0 | J122: 0 | K122: 0 | L122: 0 | M122: 0 | N122: 0 | O122: 0 | P122: 0 | Q122: 0 | R122: 0 | S122: 0 | T122: 0
D123: 42 | E123: spare | F123: spare | H123: 0 | J123: 0 | K123: 0 | L123: 0 | M123: 0 | N123: 0 | O123: 0 | P123: 0 | Q123: 0 | R123: 0 | S123: 0 | T123: 0
D124: 43 | E124: spare | F124: spare | H124: 0 | J124: 0 | K124: 0 | L124: 0 | M124: 0 | N124: 0 | O124: 0 | P124: 0 | Q124: 0 | R124: 0 | S124: 0 | T124: 0
D125: 44 | E125: spare | F125: spare | H125: 0 | J125: 0 | K125: 0 | L125: 0 | M125: 0 | N125: 0 | O125: 0 | P125: 0 | Q125: 0 | R125: 0 | S125: 0 | T125: 0
D126: 45 | E126: Copper subscribers | F126: Subscribers | H126: 17988.99576 | J126: =J52:T52 -> 293861.88 | K126: 246305.762 | L126: 191561.889 | M126: 126776.895 | N126: 57719.22073 | O126: 17988.99576 | P126: 0 | Q126: 0 | R126: 0 | S126: 0 | T126: 0
D127: 46 | E127: Fibre subscribers | F127: Subscribers | H127: 230085.9631 | J127: =J53:T53 -> 24525.29423 | K127: 58444.24257 | L127: 100505.6793 | M127: 150415.1988 | N127: 201497.7162 | O127: 230085.9631 | P127: 243266.1646 | Q127: 247125.83 | R127: 251015.1809 | S127: 254880.7151 | T127: 258693.305
D128: 47 | E128: IPTV subscribers | F128: Subscribers | H128: 75763.99177 | J128: =J54:T54 -> 93754.87674 | K128: 93136.908 | L128: 92223.4101 | M128: 87277.62247 | N128: 81675.34483 | O128: 75763.99177 | P128: 69561.42613 | Q128: 63079.84357 | R128: 56406.65925 | S128: 49530.259 | T128: 42449.51108
D129: 48 | E129: Leased line subscribers | F129: Subscribers | H129: 5000 | J129: =J55:T55 -> 5000 | K129: 5000 | L129: 5000 | M129: 5000 | N129: 5000 | O129: 5000 | P129: 5000 | Q129: 5000 | R129: 5000 | S129: 5000 | T129: 5000
D130: 49 | E130: Broadband subscribers | F130: Subscribers | H130: 214068.42 | J130: =J56:T56 -> 187957.28 | K130: 195945.05 | L130: 201689.054 | M130: 206480.085 | N130: 210368.3772 | O130: 214068.42 | P130: 217571.752 | Q130: 220846.5253 | R130: 224143.1737 | S130: 227413.932 | T130: 230632.9175
D131: 50 | E131: spare | F131: spare | H131: 0 | J131: 0 | K131: 0 | L131: 0 | M131: 0 | N131: 0 | O131: 0 | P131: 0 | Q131: 0 | R131: 0 | S131: 0 | T131: 0
H132: Network.services.volumes.cost.allocation.year.selected | U132: Network.services.volumes
A135: =MAX(A$1:A134)+1 -> 2 | B135: Network traffic by asset group
C137: Routing factors | V137: Average number of accesses by type | AA137: Routing factor | AC137: Routing factor
W138: Access only Ethernet | X138: =Accesses.by.type.of.leased.line -> 1 | Y138: Regional calls | Z138: 0.8 | AA138: 0 | AC138: 1
W139: IP | X139: 1.5 | Y139: National calls | Z139: =1-Z138 -> 0.2 | AA139: 1 | AC139: 2
O140: First splitter (in the local exchange) - 1:4 | P140: =Splitter.ratio.field -> 8 | W140: SDH | X140: 2 | Y140: Weighted average | AA140: =SUMPRODUCT($Z138:$Z139,AA138:AA139) -> 0.2 | AC140: =SUMPRODUCT($Z138:$Z139,AC138:AC139) -> 1.2
P141: Second splitter (in the field) - 1:8 | Q141: =Splitter.ratio.exchange -> 4 | W141: Ethernet | X141: 1.5
E143: Used for network dimensioning | J143: =TRANSPOSE(Asset.groups.for.dimensioning) -> FALSE | K143: FALSE | L143: FALSE | M143: FALSE | N143: FALSE | O143: FALSE | P143: FALSE | Q143: FALSE | R143: FALSE | S143: TRUE | T143: TRUE | U143: FALSE | V143: TRUE | W143: FALSE | X143: TRUE | Y143: TRUE | Z143: TRUE | AA143: TRUE | AB143: FALSE | AC143: FALSE | AD143: FALSE | AE143: TRUE | AF143: TRUE | AG143: TRUE | AH143: FALSE | AI143: TRUE | AJ143: TRUE | AK143: TRUE | AL143: TRUE | AM143: TRUE
E144: Used for cost allocation | J144: =IF(ISNA(MATCH(J147,Assets.RF,0)),FALSE,TRUE) -> TRUE | K144: TRUE | L144: TRUE | M144: TRUE | N144: TRUE | O144: TRUE | P144: TRUE | Q144: TRUE | R144: TRUE | S144: FALSE | T144: TRUE | U144: FALSE | V144: TRUE | W144: FALSE | X144: FALSE | Y144: FALSE | Z144: TRUE | AA144: TRUE | AB144: TRUE | AC144: TRUE | AD144: TRUE | AE144: TRUE | AF144: TRUE | AG144: TRUE | AH144: TRUE | AI144: FALSE | AJ144: FALSE | AK144: FALSE | AL144: FALSE | AM144: FALSE
J145: =TRANSPOSE(Assets.groups.notes) -> All copper lines | K145: Copper full loops (passive and VULA) | L145: Copper VULA | M145: Fibre GPON | N145: Fibre PtP | O145: Fibre GPON and PtP in distribution | P145: Fibre GPON and PtP in feeder | Q145: Fibre GPON and PtP at the OLT | R145: - | S145: MSAN/OLT-EthSw | T145: MSAN-EthSw | U145: MSAN-EthSw | V145: OLT-EthSw | W145: OLT-EthSw | X145: EthSw for LL traffic | Y145: EthSw for LL traffic | Z145: EthSw-SR | AA145: SR-SR | AB145: EthSw | AC145: SR | AD145: Clock, NMS | AE145: I-SBCs | AF145: PR | AG145: CS | AH145: BRAS, DNS, RADIUS | AI145: MSAN for retail and active wholesale lines, excluding passive wholesale lines (i.e. LLU) | AJ145: OLT | AK145: MSAN for retail and active wholesale lines, excluding passive wholesale lines (i.e. LLU) | AL145: OLT | AM145: Broadcast from core node to all MSANs or OLTs
J146: 1 | K146: =J146+1 -> 2 | L146: =K146+1 -> 3 | M146: 4 | N146: 5 | O146: 6 | P146: 7 | Q146: 8 | R146: 9 | S146: 10 | T146: 11 | U146: 12 | V146: 13 | W146: 14 | X146: 15 | Y146: 16 | Z146: 17 | AA146: 18 | AB146: 19 | AC146: 20 | AD146: 21 | AE146: 22 | AF146: 23 | AG146: 24 | AH146: 25 | AI146: 26 | AJ146: 27 | AK146: 28 | AL146: 29 | AM146: 30
E147: Network services | F147: Nodes routing | H147: Unit | J147: =TRANSPOSE(Assets.groups) -> Copper sub-loop, copper loop and VULA VDSL | K147: Copper loop and VULA VDSL | L147: VULA VDSL | M147: Fibre GPON | N147: Fibre PtP | O147: Fibre GPON and PtP in distribution | P147: Fibre GPON and PtP in feeder | Q147: Fibre GPON and PtP at the OLT | R147: Spare | S147: Access transmission for voice | T147: Access transmission for copper broadband | U147: Access transmission for copper broadband and linear IPTV | V147: Access transmission for fibre broadband | W147: Access transmission for fibre broadband and linear IPTV | X147: Access transmission for copper leased lines | Y147: Access transmission for fibre leased lines | Z147: Distribution transmission | AA147: Core transmission | AB147: Access switching | AC147: Core routing | AD147: Subscribers | AE147: Interconnect SBC | AF147: Voice interconnection | AG147: Call servers | AH147: Core platforms | AI147: Broadband and/or voice copper active service connections | AJ147: Broadband and/or voice fibre active service connections | AK147: Leased lines copper connections | AL147: Leased lines fibre connections | AM147: Linear IPTV, per link
D148: 1 | E148: =Network.services.list -> Fixed access line - copper loop (LLU) | F148: =Network.services.nodes.routing -> Copper loop | H148: =Network.services.original.units -> Subscribers | J148: 1 | K148: 1 | L148: 0 | M148: 0 | N148: 0 | O148: 0 | P148: 0 | Q148: 0 | R148: 0 | S148: 0 | T148: 0 | U148: 0 | V148: 0 | W148: 0 | X148: 0 | Y148: 0 | Z148: 0 | AA148: 0 | AB148: 0 | AC148: 0 | AD148: 0 | AE148: 0 | AF148: 0 | AG148: 0 | AH148: 0 | AI148: 0 | AJ148: 0 | AK148: 0 | AL148: 0 | AM148: 0
D149: =D148+1 -> 2 | E149: Fixed access line - copper sub-loop (SLU) | F149: Copper sub loop | H149: Subscribers | J149: 1 | K149: 0 | L149: 0 | M149: 0 | N149: 0 | O149: 0 | P149: 0 | Q149: 0 | R149: 0 | S149: 0 | T149: 0 | U149: 0 | V149: 0 | W149: 0 | X149: 0 | Y149: 0 | Z149: 0 | AA149: 0 | AB149: 0 | AC149: 0 | AD149: 0 | AE149: 0 | AF149: 0 | AG149: 0 | AH149: 0 | AI149: 0 | AJ149: 0 | AK149: 0 | AL149: 0 | AM149: 0
D150: 3 | E150: Fixed access line - shared copper loop | F150: Copper loop | H150: Subscribers | J150: 1 | K150: 1 | L150: 0 | M150: 0 | N150: 0 | O150: 0 | P150: 0 | Q150: 0 | R150: 0 | S150: 0 | T150: 0 | U150: 0 | V150: 0 | W150: 0 | X150: 0 | Y150: 0 | Z150: 0 | AA150: 0 | AB150: 0 | AC150: 0 | AD150: 0 | AE150: 0 | AF150: 0 | AG150: 0 | AH150: 0 | AI150: 1 | AJ150: 0 | AK150: 0 | AL150: 0 | AM150: 0
D151: 4 | E151: Fixed access line - shared copper sub-loop | F151: Copper sub loop | H151: Subscribers | J151: 1 | K151: 0 | L151: 0 | M151: 0 | N151: 0 | O151: 0 | P151: 0 | Q151: 0 | R151: 0 | S151: 0 | T151: 0 | U151: 0 | V151: 0 | W151: 0 | X151: 0 | Y151: 0 | Z151: 0 | AA151: 0 | AB151: 0 | AC151: 0 | AD151: 0 | AE151: 0 | AF151: 0 | AG151: 0 | AH151: 0 | AI151: 1 | AJ151: 0 | AK151: 0 | AL151: 0 | AM151: 0
D152: 5 | E152: Wholesale virtual local access over copper (VULA-VDSL) | F152: FTTC-VDSL | H152: Subscribers | J152: 1 | K152: 1 | L152: 1 | M152: 0 | N152: 0 | O152: 0 | P152: 0 | Q152: 0 | R152: 0 | S152: 0 | T152: 0 | U152: 0 | V152: 0 | W152: 0 | X152: 0 | Y152: 0 | Z152: 0 | AA152: 0 | AB152: 0 | AC152: 0 | AD152: 0 | AE152: 0 | AF152: 0 | AG152: 0 | AH152: 0 | AI152: 1 | AJ152: 0 | AK152: 0 | AL152: 0 | AM152: 0
D153: 6 | E153: Wholesale virtual local access over fibre (VULA-Fibre) | F153: Fibre GPON | H153: Subscribers | J153: 0 | K153: 0 | L153: 0 | M153: 1 | N153: 0 | O153: 1 | P153: =1/P140 -> 0.125 | Q153: =1/P140/Q141 -> 0.03125 | R153: 0 | S153: 0 | T153: 0 | U153: 0 | V153: 0 | W153: 0 | X153: 0 | Y153: 0 | Z153: 0 | AA153: 0 | AB153: 0 | AC153: 0 | AD153: 0 | AE153: 0 | AF153: 0 | AG153: 0 | AH153: 0 | AI153: 0 | AJ153: 1 | AK153: 0 | AL153: 0 | AM153: 0
D154: 7 | E154: Spare | F154: - | H154: spare | J154: 0 | K154: 0 | L154: 0 | M154: 0 | N154: 0 | O154: 0 | P154: 0 | Q154: 0 | R154: 0 | S154: 0 | T154: 0 | U154: 0 | V154: 0 | W154: 0 | X154: 0 | Y154: 0 | Z154: 0 | AA154: 0 | AB154: 0 | AC154: 0 | AD154: 0 | AE154: 0 | AF154: 0 | AG154: 0 | AH154: 0 | AI154: 0 | AJ154: 0 | AK154: 0 | AL154: 0 | AM154: 0
D155: 8 | E155: Leased line access segment - copper | F155: Copper loop | H155: Subscribers | J155: 1 | K155: 1 | L155: 0 | M155: 0 | N155: 0 | O155: 0 | P155: 0 | Q155: 0 | R155: 0 | S155: 0 | T155: 0 | U155: 0 | V155: 0 | W155: 0 | X155: 0 | Y155: 0 | Z155: 0 | AA155: 0 | AB155: 0 | AC155: 0 | AD155: 0 | AE155: 0 | AF155: 0 | AG155: 0 | AH155: 0 | AI155: 0 | AJ155: 0 | AK155: 1 | AL155: 0 | AM155: 0
D156: 9 | E156: Leased line access segment - fibre | F156: Fibre PtP | H156: Subscribers | J156: 0 | K156: 0 | L156: 0 | M156: 0 | N156: 1 | O156: 1 | P156: 1 | Q156: 1 | R156: 0 | S156: 0 | T156: 0 | U156: 0 | V156: 0 | W156: 0 | X156: 0 | Y156: 0 | Z156: 0 | AA156: 0 | AB156: 0 | AC156: 0 | AD156: 0 | AE156: 0 | AF156: 0 | AG156: 0 | AH156: 0 | AI156: 0 | AJ156: 0 | AK156: 0 | AL156: 1 | AM156: 0
D157: 10 | E157: Spare | F157: - | H157: spare | J157: 0 | K157: 0 | L157: 0 | M157: 0 | N157: 0 | O157: 0 | P157: 0 | Q157: 0 | R157: 0 | S157: 0 | T157: 0 | U157: 0 | V157: 0 | W157: 0 | X157: 0 | Y157: 0 | Z157: 0 | AA157: 0 | AB157: 0 | AC157: 0 | AD157: 0 | AE157: 0 | AF157: 0 | AG157: 0 | AH157: 0 | AI157: 0 | AJ157: 0 | AK157: 0 | AL157: 0 | AM157: 0
D158: 11 | E158: Spare | F158: - | H158: spare | J158: 0 | K158: 0 | L158: 0 | M158: 0 | N158: 0 | O158: 0 | P158: 0 | Q158: 0 | R158: 1 | S158: 0 | T158: 0 | U158: 0 | V158: 0 | W158: 0 | X158: 0 | Y158: 0 | Z158: 0 | AA158: 0 | AB158: 0 | AC158: 0 | AD158: 0 | AE158: 0 | AF158: 0 | AG158: 0 | AH158: 0 | AI158: 0 | AJ158: 0 | AK158: 0 | AL158: 0 | AM158: 0
D159: 12 | E159: Spare | F159: - | H159: spare | J159: 0 | K159: 0 | L159: 0 | M159: 0 | N159: 0 | O159: 0 | P159: 0 | Q159: 0 | R159: 0 | S159: 0 | T159: 0 | U159: 0 | V159: 0 | W159: 0 | X159: 0 | Y159: 0 | Z159: 0 | AA159: 0 | AB159: 0 | AC159: 0 | AD159: 0 | AE159: 0 | AF159: 0 | AG159: 0 | AH159: 0 | AI159: 0 | AJ159: 0 | AK159: 0 | AL159: 0 | AM159: 0
D160: 13 | E160: Spare | F160: - | H160: spare | J160: 0 | K160: 0 | L160: 0 | M160: 0 | N160: 0 | O160: 0 | P160: 0 | Q160: 0 | R160: 0 | S160: 0 | T160: 0 | U160: 0 | V160: 0 | W160: 0 | X160: 0 | Y160: 0 | Z160: 0 | AA160: 0 | AB160: 0 | AC160: 0 | AD160: 0 | AE160: 0 | AF160: 0 | AG160: 0 | AH160: 0 | AI160: 0 | AJ160: 0 | AK160: 0 | AL160: 0 | AM160: 0
D161: 14 | E161: Spare | F161: - | H161: spare | J161: 0 | K161: 0 | L161: 0 | M161: 0 | N161: 0 | O161: 0 | P161: 0 | Q161: 0 | R161: 0 | S161: 0 | T161: 0 | U161: 0 | V161: 0 | W161: 0 | X161: 0 | Y161: 0 | Z161: 0 | AA161: 0 | AB161: 0 | AC161: 0 | AD161: 0 | AE161: 0 | AF161: 0 | AG161: 0 | AH161: 0 | AI161: 0 | AJ161: 0 | AK161: 0 | AL161: 0 | AM161: 0
D162: 15 | E162: Spare | F162: - | H162: spare | J162: 0 | K162: 0 | L162: 0 | M162: 0 | N162: 0 | O162: 0 | P162: 0 | Q162: 0 | R162: 0 | S162: 0 | T162: 0 | U162: 0 | V162: 0 | W162: 0 | X162: 0 | Y162: 0 | Z162: 0 | AA162: 0 | AB162: 0 | AC162: 0 | AD162: 0 | AE162: 0 | AF162: 0 | AG162: 0 | AH162: 0 | AI162: 0 | AJ162: 0 | AK162: 0 | AL162: 0 | AM162: 0
D163: 16 | E163: Spare | F163: - | H163: spare | J163: 0 | K163: 0 | L163: 0 | M163: 0 | N163: 0 | O163: 0 | P163: 0 | Q163: 0 | R163: 0 | S163: 0 | T163: 0 | U163: 0 | V163: 0 | W163: 0 | X163: 0 | Y163: 0 | Z163: 0 | AA163: 0 | AB163: 0 | AC163: 0 | AD163: 0 | AE163: 0 | AF163: 0 | AG163: 0 | AH163: 0 | AI163: 0 | AJ163: 0 | AK163: 0 | AL163: 0 | AM163: 0
D164: 17 | E164: Spare | F164: - | H164: spare | J164: 0 | K164: 0 | L164: 0 | M164: 0 | N164: 0 | O164: 0 | P164: 0 | Q164: 0 | R164: 0 | S164: 0 | T164: 0 | U164: 0 | V164: 0 | W164: 0 | X164: 0 | Y164: 0 | Z164: 0 | AA164: 0 | AB164: 0 | AC164: 0 | AD164: 0 | AE164: 0 | AF164: 0 | AG164: 0 | AH164: 0 | AI164: 0 | AJ164: 0 | AK164: 0 | AL164: 0 | AM164: 0
D165: 18 | E165: Spare | F165: - | H165: spare | J165: 0 | K165: 0 | L165: 0 | M165: 0 | N165: 0 | O165: 0 | P165: 0 | Q165: 0 | R165: 0 | S165: 0 | T165: 0 | U165: 0 | V165: 0 | W165: 0 | X165: 0 | Y165: 0 | Z165: 0 | AA165: 0 | AB165: 0 | AC165: 0 | AD165: 0 | AE165: 0 | AF165: 0 | AG165: 0 | AH165: 0 | AI165: 0 | AJ165: 0 | AK165: 0 | AL165: 0 | AM165: 0
D166: 19 | E166: Spare | F166: - | H166: spare | J166: 0 | K166: 0 | L166: 0 | M166: 0 | N166: 0 | O166: 0 | P166: 0 | Q166: 0 | R166: 0 | S166: 0 | T166: 0 | U166: 0 | V166: 0 | W166: 0 | X166: 0 | Y166: 0 | Z166: 0 | AA166: 0 | AB166: 0 | AC166: 0 | AD166: 0 | AE166: 0 | AF166: 0 | AG166: 0 | AH166: 0 | AI166: 0 | AJ166: 0 | AK166: 0 | AL166: 0 | AM166: 0
D167: 20 | E167: Spare | F167: - | H167: spare | J167: 0 | K167: 0 | L167: 0 | M167: 0 | N167: 0 | O167: 0 | P167: 0 | Q167: 0 | R167: 0 | S167: 0 | T167: 0 | U167: 0 | V167: 0 | W167: 0 | X167: 0 | Y167: 0 | Z167: 0 | AA167: 0 | AB167: 0 | AC167: 0 | AD167: 0 | AE167: 0 | AF167: 0 | AG167: 0 | AH167: 0 | AI167: 0 | AJ167: 0 | AK167: 0 | AL167: 0 | AM167: 0
D168: 21 | E168: On-net voice | F168: MSAN-EthSw-SR-EthSw-MSAN | H168: Minutes | J168: 0 | K168: 0 | L168: 0 | M168: 0 | N168: 0 | O168: 0 | P168: 0 | Q168: 0 | R168: 0 | S168: 2 | T168: 0 | U168: 0 | V168: 0 | W168: 0 | X168: 0 | Y168: 0 | Z168: 2 | AA168: =AA$140 -> 0.2 | AB168: 2 | AC168: =AC$140 -> 1.2 | AD168: 0 | AE168: 0 | AF168: 0 | AG168: 0 | AH168: 0 | AI168: 0 | AJ168: 0 | AK168: 0 | AL168: 0 | AM168: 0
D169: 22 | E169: Outgoing voice | F169: MSAN-EthSw-SR… | H169: Minutes | J169: 0 | K169: 0 | L169: 0 | M169: 0 | N169: 0 | O169: 0 | P169: 0 | Q169: 0 | R169: 0 | S169: 1 | T169: 0 | U169: 0 | V169: 0 | W169: 0 | X169: 0 | Y169: 0 | Z169: 1 | AA169: =AA$140 -> 0.2 | AB169: 1 | AC169: =AC$140 -> 1.2 | AD169: 0 | AE169: 1 | AF169: 1 | AG169: 0 | AH169: 0 | AI169: 0 | AJ169: 0 | AK169: 0 | AL169: 0 | AM169: 0
D170: 23 | E170: Incoming voice | F170: …SR-EthSw-MSAN | H170: Minutes | J170: 0 | K170: 0 | L170: 0 | M170: 0 | N170: 0 | O170: 0 | P170: 0 | Q170: 0 | R170: 0 | S170: 1 | T170: 0 | U170: 0 | V170: 0 | W170: 0 | X170: 0 | Y170: 0 | Z170: 1 | AA170: =AA$140 -> 0.2 | AB170: 1 | AC170: =AC$140 -> 1.2 | AD170: 0 | AE170: 1 | AF170: 1 | AG170: 0 | AH170: 0 | AI170: 0 | AJ170: 0 | AK170: 0 | AL170: 0 | AM170: 0
D171: 24 | E171: Transit voice - collocated | F171: other operators-SR-other operators | H171: Minutes | J171: 0 | K171: 0 | L171: 0 | M171: 0 | N171: 0 | O171: 0 | P171: 0 | Q171: 0 | R171: 0 | S171: 0 | T171: 0 | U171: 0 | V171: 0 | W171: 0 | X171: 0 | Y171: 0 | Z171: 0 | AA171: 0 | AB171: 0 | AC171: 1 | AD171: 0 | AE171: 2 | AF171: 2 | AG171: 0 | AH171: 0 | AI171: 0 | AJ171: 0 | AK171: 0 | AL171: 0 | AM171: 0
D172: 25 | E172: Transit voice - not collocated | F172: other operators-SR-SR-other operators | H172: Minutes | J172: 0 | K172: 0 | L172: 0 | M172: 0 | N172: 0 | O172: 0 | P172: 0 | Q172: 0 | R172: 0 | S172: 0 | T172: 0 | U172: 0 | V172: 0 | W172: 0 | X172: 0 | Y172: 0 | Z172: 0 | AA172: 1 | AB172: 0 | AC172: 2 | AD172: 0 | AE172: 2 | AF172: 2 | AG172: 0 | AH172: 0 | AI172: 0 | AJ172: 0 | AK172: 0 | AL172: 0 | AM172: 0
D173: 26 | E173: Wholesale voice origination | F173: MSAN-EthSw-SR… | H173: Minutes | J173: 0 | K173: 0 | L173: 0 | M173: 0 | N173: 0 | O173: 0 | P173: 0 | Q173: 0 | R173: 0 | S173: 1 | T173: 0 | U173: 0 | V173: 0 | W173: 0 | X173: 0 | Y173: 0 | Z173: 1 | AA173: =AA$140 -> 0.2 | AB173: 1 | AC173: =AC$140 -> 1.2 | AD173: 0 | AE173: 1 | AF173: 1 | AG173: 0 | AH173: 0 | AI173: 0 | AJ173: 0 | AK173: 0 | AL173: 0 | AM173: 0
D174: 27 | E174: Voice call processing (all types) | F174: Call servers | H174: Minutes | J174: 0 | K174: 0 | L174: 0 | M174: 0 | N174: 0 | O174: 0 | P174: 0 | Q174: 0 | R174: 0 | S174: 0 | T174: 0 | U174: 0 | V174: 0 | W174: 0 | X174: 0 | Y174: 0 | Z174: 0 | AA174: 0 | AB174: 0 | AC174: 0 | AD174: 0 | AE174: 0 | AF174: 0 | AG174: 1 | AH174: 0 | AI174: 0 | AJ174: 0 | AK174: 0 | AL174: 0 | AM174: 0
D175: 28 | E175: Broadband traffic from copper lines - retail | F175: MSAN-EthSw-SR… | H175: BHMbps | J175: 0 | K175: 0 | L175: 0 | M175: 0 | N175: 0 | O175: 0 | P175: 0 | Q175: 0 | R175: 0 | S175: 0 | T175: 1 | U175: 1 | V175: 0 | W175: 0 | X175: 0 | Y175: 0 | Z175: 1 | AA175: 1 | AB175: 1 | AC175: 1 | AD175: 0 | AE175: 0 | AF175: 0 | AG175: 0 | AH175: 0 | AI175: 0 | AJ175: 0 | AK175: 0 | AL175: 0 | AM175: 0
D176: 29 | E176: Broadband traffic from copper lines - wholesale | F176: MSAN-EthSw-SR… | H176: BHMbps | J176: 0 | K176: 0 | L176: 0 | M176: 0 | N176: 0 | O176: 0 | P176: 0 | Q176: 0 | R176: 0 | S176: 0 | T176: 1 | U176: 1 | V176: 0 | W176: 0 | X176: 0 | Y176: 0 | Z176: 1 | AA176: 0 | AB176: 1 | AC176: 0 | AD176: 0 | AE176: 0 | AF176: 0 | AG176: 0 | AH176: 0 | AI176: 0 | AJ176: 0 | AK176: 0 | AL176: 0 | AM176: 0
D177: 30 | E177: Broadband traffic from fibre lines - retail | F177: OLT-EthSw-SR… | H177: BHMbps | J177: 0 | K177: 0 | L177: 0 | M177: 0 | N177: 0 | O177: 0 | P177: 0 | Q177: 0 | R177: 0 | S177: 0 | T177: 0 | U177: 0 | V177: 1 | W177: 1 | X177: 0 | Y177: 0 | Z177: 1 | AA177: 1 | AB177: 1 | AC177: 1 | AD177: 0 | AE177: 0 | AF177: 0 | AG177: 0 | AH177: 0 | AI177: 0 | AJ177: 0 | AK177: 0 | AL177: 0 | AM177: 0
D178: 31 | E178: Broadband traffic from fibre lines - wholesale | F178: OLT-EthSw-SR… | H178: BHMbps | J178: 0 | K178: 0 | L178: 0 | M178: 0 | N178: 0 | O178: 0 | P178: 0 | Q178: 0 | R178: 0 | S178: 0 | T178: 0 | U178: 0 | V178: 1 | W178: 1 | X178: 0 | Y178: 0 | Z178: 1 | AA178: 0 | AB178: 1 | AC178: 0 | AD178: 0 | AE178: 0 | AF178: 0 | AG178: 0 | AH178: 0 | AI178: 0 | AJ178: 0 | AK178: 0 | AL178: 0 | AM178: 0
D179: 32 | E179: Linear TV broadcast - whole IPTV flow | F179: MSAN/OLT-EthSw-SR-service platforms | H179: BHMbps | J179: 0 | K179: 0 | L179: 0 | M179: 0 | N179: 0 | O179: 0 | P179: 0 | Q179: 0 | R179: 0 | S179: 0 | T179: 0 | U179: =SUM(Sites.with.cabinets)+SUM(Number.of.local.exchanges) -> 1076 | V179: 0 | W179: =SUM(Number.of.local.exchanges.for.FTTH) -> 92 | X179: 0 | Y179: 0 | Z179: =Rings.total.number.of.rings -> 5 | AA179: =core.nodes-1 -> 4 | AB179: =SUM(Number.of.local.exchanges) -> 96 | AC179: =core.nodes-1 -> 4 | AD179: 0 | AE179: 0 | AF179: 0 | AG179: 0 | AH179: 0 | AI179: 0 | AJ179: 0 | AK179: 0 | AL179: 0 | AM179: 1
D180: 33 | E180: Ethernet leased lines local traffic on copper (i.e. it only uses the local Ethernet switch) | F180: ...-EthSw-… | H180: BHMbps | J180: 0 | K180: 0 | L180: 0 | M180: 0 | N180: 0 | O180: 0 | P180: 0 | Q180: 0 | R180: 0 | S180: 0 | T180: 0 | U180: 0 | V180: 0 | W180: 0 | X180: =X138 -> 1 | Y180: 0 | Z180: 0 | AA180: 0 | AB180: =X138 -> 1 | AC180: 0 | AD180: 0 | AE180: 0 | AF180: 0 | AG180: 0 | AH180: 0 | AI180: 0 | AJ180: 0 | AK180: 0 | AL180: 0 | AM180: 0
D181: 34 | E181: Ethernet leased lines local traffic on fibre (i.e. it only uses the local Ethernet switch) | F181: ...-EthSw-… | H181: BHMbps | J181: 0 | K181: 0 | L181: 0 | M181: 0 | N181: 0 | O181: 0 | P181: 0 | Q181: 0 | R181: 0 | S181: 0 | T181: 0 | U181: 0 | V181: 0 | W181: 0 | X181: 0 | Y181: =X138 -> 1 | Z181: 0 | AA181: 0 | AB181: =X138 -> 1 | AC181: 0 | AD181: 0 | AE181: 0 | AF181: 0 | AG181: 0 | AH181: 0 | AI181: 0 | AJ181: 0 | AK181: 0 | AL181: 0 | AM181: 0
D182: 35 | E182: IP VPN on copper traffic | F182: EthSw-SR-EthSw | H182: BHMbps | J182: 0 | K182: 0 | L182: 0 | M182: 0 | N182: 0 | O182: 0 | P182: 0 | Q182: 0 | R182: 0 | S182: 0 | T182: 0 | U182: 0 | V182: 0 | W182: 0 | X182: =X139 -> 1.5 | Y182: 0 | Z182: 1 | AA182: 1 | AB182: =X139 -> 1.5 | AC182: 1 | AD182: 0 | AE182: 0 | AF182: 0 | AG182: 0 | AH182: 0 | AI182: 0 | AJ182: 0 | AK182: 0 | AL182: 0 | AM182: 0
D183: 36 | E183: IP VPN on fibre traffic | F183: EthSw-SR-EthSw | H183: BHMbps | J183: 0 | K183: 0 | L183: 0 | M183: 0 | N183: 0 | O183: 0 | P183: 0 | Q183: 0 | R183: 0 | S183: 0 | T183: 0 | U183: 0 | V183: 0 | W183: 0 | X183: 0 | Y183: =X139 -> 1.5 | Z183: 1 | AA183: 1 | AB183: =X139 -> 1.5 | AC183: 1 | AD183: 0 | AE183: 0 | AF183: 0 | AG183: 0 | AH183: 0 | AI183: 0 | AJ183: 0 | AK183: 0 | AL183: 0 | AM183: 0
D184: 37 | E184: SDH leased lines on copper traffic | F184: EthSw-SR-EthSw | H184: BHMbps | J184: 0 | K184: 0 | L184: 0 | M184: 0 | N184: 0 | O184: 0 | P184: 0 | Q184: 0 | R184: 0 | S184: 0 | T184: 0 | U184: 0 | V184: 0 | W184: 0 | X184: =X140 -> 2 | Y184: 0 | Z184: 1 | AA184: 1 | AB184: =X140 -> 2 | AC184: 1 | AD184: 0 | AE184: 0 | AF184: 0 | AG184: 0 | AH184: 0 | AI184: 0 | AJ184: 0 | AK184: 0 | AL184: 0 | AM184: 0
D185: 38 | E185: SDH leased lines on fibre traffic | F185: EthSw-SR-EthSw | H185: BHMbps | J185: 0 | K185: 0 | L185: 0 | M185: 0 | N185: 0 | O185: 0 | P185: 0 | Q185: 0 | R185: 0 | S185: 0 | T185: 0 | U185: 0 | V185: 0 | W185: 0 | X185: 0 | Y185: =X140 -> 2 | Z185: 1 | AA185: 1 | AB185: =X140 -> 2 | AC185: 1 | AD185: 0 | AE185: 0 | AF185: 0 | AG185: 0 | AH185: 0 | AI185: 0 | AJ185: 0 | AK185: 0 | AL185: 0 | AM185: 0
D186: 39 | E186: Ethernet leased lines on copper traffic | F186: EthSw-SR-EthSw | H186: BHMbps | J186: 0 | K186: 0 | L186: 0 | M186: 0 | N186: 0 | O186: 0 | P186: 0 | Q186: 0 | R186: 0 | S186: 0 | T186: 0 | U186: 0 | V186: 0 | W186: 0 | X186: =X141 -> 1.5 | Y186: 0 | Z186: 1 | AA186: 1 | AB186: =X141 -> 1.5 | AC186: 1 | AD186: 0 | AE186: 0 | AF186: 0 | AG186: 0 | AH186: 0 | AI186: 0 | AJ186: 0 | AK186: 0 | AL186: 0 | AM186: 0
D187: 40 | E187: Ethernet leased lines on fibre traffic | F187: EthSw-SR-EthSw | H187: BHMbps | J187: 0 | K187: 0 | L187: 0 | M187: 0 | N187: 0 | O187: 0 | P187: 0 | Q187: 0 | R187: 0 | S187: 0 | T187: 0 | U187: 0 | V187: 0 | W187: 0 | X187: 0 | Y187: =X141 -> 1.5 | Z187: 1 | AA187: 1 | AB187: =X141 -> 1.5 | AC187: 1 | AD187: 0 | AE187: 0 | AF187: 0 | AG187: 0 | AH187: 0 | AI187: 0 | AJ187: 0 | AK187: 0 | AL187: 0 | AM187: 0
D188: 41 | E188: spare | F188: - | H188: spare | J188: 0 | K188: 0 | L188: 0 | M188: 0 | N188: 0 | O188: 0 | P188: 0 | Q188: 0 | R188: 0 | S188: 0 | T188: 0 | U188: 0 | V188: 0 | W188: 0 | X188: 0 | Y188: 0 | Z188: 0 | AA188: 0 | AB188: 0 | AC188: 0 | AD188: 0 | AE188: 0 | AF188: 0 | AG188: 0 | AH188: 0 | AI188: 0 | AJ188: 0 | AK188: 0 | AL188: 0 | AM188: 0
D189: 42 | E189: spare | F189: - | H189: spare | J189: 0 | K189: 0 | L189: 0 | M189: 0 | N189: 0 | O189: 0 | P189: 0 | Q189: 0 | R189: 0 | S189: 0 | T189: 0 | U189: 0 | V189: 0 | W189: 0 | X189: 0 | Y189: 0 | Z189: 0 | AA189: 0 | AB189: 0 | AC189: 0 | AD189: 0 | AE189: 0 | AF189: 0 | AG189: 0 | AH189: 0 | AI189: 0 | AJ189: 0 | AK189: 0 | AL189: 0 | AM189: 0
D190: 43 | E190: spare | F190: - | H190: spare | J190: 0 | K190: 0 | L190: 0 | M190: 0 | N190: 0 | O190: 0 | P190: 0 | Q190: 0 | R190: 0 | S190: 0 | T190: 0 | U190: 0 | V190: 0 | W190: 0 | X190: 0 | Y190: 0 | Z190: 0 | AA190: 0 | AB190: 0 | AC190: 0 | AD190: 0 | AE190: 0 | AF190: 0 | AG190: 0 | AH190: 0 | AI190: 0 | AJ190: 0 | AK190: 0 | AL190: 0 | AM190: 0
D191: 44 | E191: spare | F191: - | H191: spare | J191: 0 | K191: 0 | L191: 0 | M191: 0 | N191: 0 | O191: 0 | P191: 0 | Q191: 0 | R191: 0 | S191: 0 | T191: 0 | U191: 0 | V191: 0 | W191: 0 | X191: 0 | Y191: 0 | Z191: 0 | AA191: 0 | AB191: 0 | AC191: 0 | AD191: 0 | AE191: 0 | AF191: 0 | AG191: 0 | AH191: 0 | AI191: 0 | AJ191: 0 | AK191: 0 | AL191: 0 | AM191: 0
D192: 45 | E192: Copper subscribers | F192: MSAN | H192: Subscribers | J192: 0 | K192: 0 | L192: 0 | M192: 0 | N192: 0 | O192: 0 | P192: 0 | Q192: 0 | R192: 0 | S192: 0 | T192: 0 | U192: 0 | V192: 0 | W192: 0 | X192: 0 | Y192: 0 | Z192: 0 | AA192: 0 | AB192: 0 | AC192: 0 | AD192: 1 | AE192: 0 | AF192: 0 | AG192: 0 | AH192: 0 | AI192: 0 | AJ192: 0 | AK192: 0 | AL192: 0 | AM192: 0
D193: 46 | E193: Fibre subscribers | F193: OLT | H193: Subscribers | J193: 0 | K193: 0 | L193: 0 | M193: 0 | N193: 0 | O193: 0 | P193: 0 | Q193: 0 | R193: 0 | S193: 0 | T193: 0 | U193: 0 | V193: 0 | W193: 0 | X193: 0 | Y193: 0 | Z193: 0 | AA193: 0 | AB193: 0 | AC193: 0 | AD193: 1 | AE193: 0 | AF193: 0 | AG193: 0 | AH193: 0 | AI193: 0 | AJ193: 0 | AK193: 0 | AL193: 0 | AM193: 0
D194: 47 | E194: IPTV subscribers | F194: linear TV platform | H194: Subscribers | J194: 0 | K194: 0 | L194: 0 | M194: 0 | N194: 0 | O194: 0 | P194: 0 | Q194: 0 | R194: 0 | S194: 0 | T194: 0 | U194: 0 | V194: 0 | W194: 0 | X194: 0 | Y194: 0 | Z194: 0 | AA194: 0 | AB194: 0 | AC194: 0 | AD194: 0 | AE194: 0 | AF194: 0 | AG194: 0 | AH194: 0 | AI194: 0 | AJ194: 0 | AK194: 0 | AL194: 0 | AM194: 0
D195: 48 | E195: Leased line subscribers | F195: MSAN/OLT | H195: Subscribers | J195: 0 | K195: 0 | L195: 0 | M195: 0 | N195: 0 | O195: 0 | P195: 0 | Q195: 0 | R195: 0 | S195: 0 | T195: 0 | U195: 0 | V195: 0 | W195: 0 | X195: 0 | Y195: 0 | Z195: 0 | AA195: 0 | AB195: 0 | AC195: 0 | AD195: 1 | AE195: 0 | AF195: 0 | AG195: 0 | AH195: 0 | AI195: 0 | AJ195: 0 | AK195: 0 | AL195: 0 | AM195: 0
D196: 49 | E196: Broadband subscribers | F196: MSAN/OLT | H196: Subscribers | J196: 0 | K196: 0 | L196: 0 | M196: 0 | N196: 0 | O196: 0 | P196: 0 | Q196: 0 | R196: 0 | S196: 0 | T196: 0 | U196: 0 | V196: 0 | W196: 0 | X196: 0 | Y196: 0 | Z196: 0 | AA196: 0 | AB196: 0 | AC196: 0 | AD196: 0 | AE196: 0 | AF196: 0 | AG196: 0 | AH196: 1 | AI196: 0 | AJ196: 0 | AK196: 0 | AL196: 0 | AM196: 0
D197: 50 | E197: spare | F197: - | H197: spare | J197: 0 | K197: 0 | L197: 0 | M197: 0 | N197: 0 | O197: 0 | P197: 0 | Q197: 0 | R197: 0 | S197: 0 | T197: 0 | U197: 0 | V197: 0 | W197: 0 | X197: 0 | Y197: 0 | Z197: 0 | AA197: 0 | AB197: 0 | AC197: 0 | AD197: 0 | AE197: 0 | AF197: 0 | AG197: 0 | AH197: 0 | AI197: 0 | AJ197: 0 | AK197: 0 | AL197: 0 | AM197: 0
AN198: Routing.factors.small.matrix
C200: Total network volumes
E202: Asset groups | F202: Units | H202: Year selected | J202: =TRANSPOSE(Years.market) -> 2020 | K202: 2021 | L202: 2022 | M202: 2023 | N202: 2024 | O202: 2025 | P202: 2026 | Q202: 2027 | R202: 2028 | S202: 2029 | T202: 2030
E203: =Assets.groups -> Copper sub-loop, copper loop and VULA VDSL | F203: =Assets.groups.units -> # | H203: =INDEX(J203:T232,,MATCH(CTRL.year.selected,Years.market,0)) -> 18178.62914 | J203: =MMULT(TRANSPOSE(Routing.factors.small.matrix),Network.services.volumes) -> 297361.88 | K203: 249805.762 | L203: 194294.4471 | M203: 128511.3296 | N203: 58428.97991 | O203: 18178.62914 | P203: 0 | Q203: 0 | R203: 0 | S203: 0 | T203: 0
E204: Copper loop and VULA VDSL | F204: # | H204: 18178.62914 | J204: 297360.88 | K204: 249804.762 | L204: 194293.4471 | M204: 128510.3296 | N204: 58427.97991 | O204: 18178.62914 | P204: 0 | Q204: 0 | R204: 0 | S204: 0 | T204: 0
E205: VULA VDSL | F205: # | H205: 17988.99576 | J205: 276113.88 | K205: 240716.762 | L205: 182006.889 | M205: 121279.895 | N205: 55547.02687 | O205: 17988.99576 | P205: 0 | Q205: 0 | R205: 0 | S205: 0 | T205: 0
E206: Fibre GPON | F206: # | H206: 230085.9631 | J206: 24525.29423 | K206: 58444.24257 | L206: 100505.6793 | M206: 150415.1988 | N206: 201497.7162 | O206: 230085.9631 | P206: 243266.1646 | Q206: 247125.83 | R206: 251015.1809 | S206: 254880.7151 | T206: 258693.305
E207: Fibre PtP | F207: # | H207: 3947.363982 | J207: 1230.892868 | K207: 1230.892868 | L207: 1860.65201 | M207: 2679.707473 | N207: 3520.551212 | O207: 3947.363982 | P207: 4102.976228 | Q207: 4102.976228 | R207: 4102.976228 | S207: 4102.976228 | T207: 4102.976228
E208: Fibre GPON and PtP in distribution | F208: # | H208: 234033.3271 | J208: 25756.18709 | K208: 59675.13544 | L208: 102366.3314 | M208: 153094.9063 | N208: 205018.2675 | O208: 234033.3271 | P208: 247369.1408 | Q208: 251228.8063 | R208: 255118.1572 | S208: 258983.6913 | T208: 262796.2813
E209: Fibre GPON and PtP in feeder | F209: # | H209: 32708.10937 | J209: 4296.554647 | K209: 8536.423189 | L209: 14423.86193 | M209: 21481.60732 | N209: 28707.76574 | O209: 32708.10937 | P209: 34511.2468 | Q209: 34993.70498 | R209: 35479.87384 | S209: 35963.06561 | T209: 36439.63936
E210: Fibre GPON and PtP at the OLT | F210: # | H210: 11137.55033 | J210: 1997.308313 | K210: 3057.275449 | L210: 5001.45449 | M210: 7380.182435 | N210: 9817.354845 | O210: 11137.55033 | P210: 11705.04387 | Q210: 11825.65842 | R210: 11947.20063 | S210: 12067.99857 | T210: 12187.14201
E211: Spare | F211: - | H211: 0 | J211: 0 | K211: 0 | L211: 0 | M211: 0 | N211: 0 | O211: 0 | P211: 0 | Q211: 0 | R211: 0 | S211: 0 | T211: 0
E212: Access transmission for voice | F212: BHMbps | H212: 244.0420447 | J212: 381.871068 | K212: 350.3331816 | L212: 327.5350789 | M212: 297.3664344 | N212: 270.4705393 | O212: 244.0420447 | P212: 218.215186 | Q212: 193.0961579 | R212: 169.0072531 | S212: 145.953654 | T212: 123.9712215
E213: Access transmission for copper broadband | F213: BHMbps | H213: 6926.82667 | J213: 142758.9781 | K213: 120229.6109 | L213: 92497.81044 | M213: 61009.6942 | N213: 25456.99166 | O213: 6926.82667 | P213: 0 | Q213: 0 | R213: 0 | S213: 0 | T213: 0
... 21 more rows

Sheet Access network
D1: Access network
A2: This model has been prepared for OCECPR to undertake its regulatory duties using bottom-up models for the calculation of the cost of wholesale services in order to promote competition in the fixed electronic communications market in Cyprus and for no other purpose. We do not give, accept or assume responsibility for any other purpose or to any other person for action or inaction taken as a result of this model, unless expressly agreed by our prior consent in writing. | L2: =TRANSPOSE(Years.costing) -> 2022 | M2: 2023 | N2: 2024 | O2: 2025 | P2: 2026 | Q2: 2027 | R2: 2028
A4: =MAX(A$1:A3)+1 -> 1 | B4: Deployment drivers
B6: Premises passed
C8: Cumulative proportion of buildings passed in each postal code area
D10: By the copper network
E11: Postal code | L11: =TRANSPOSE(Years.costing) -> 2022 | M11: 2023 | N11: 2024 | O11: 2025 | P11: 2026 | Q11: 2027 | R11: 2028 | T11: Year selected
E12: =Postal.codes -> 1010 | L12: 1 | M12: 1 | N12: 1 | O12: 1 | P12: 1 | Q12: 1 | R12: 1 | T12: =INDEX(L12:R1011,,MATCH(CTRL.year.selected,Years.costing,0)) -> 1
E13: 1011 | L13: 1 | M13: 1 | N13: 1 | O13: 1 | P13: 1 | Q13: 1 | R13: 1 | T13: 1
E14: 1015 | L14: 1 | M14: 1 | N14: 1 | O14: 1 | P14: 1 | Q14: 1 | R14: 1 | T14: 1
E15: 1016 | L15: 1 | M15: 1 | N15: 1 | O15: 1 | P15: 1 | Q15: 1 | R15: 1 | T15: 1
E16: 1017 | L16: 1 | M16: 1 | N16: 1 | O16: 1 | P16: 1 | Q16: 1 | R16: 1 | T16: 1
E17: 1020 | L17: 1 | M17: 1 | N17: 1 | O17: 1 | P17: 1 | Q17: 1 | R17: 1 | T17: 1
E18: 1021 | L18: 1 | M18: 1 | N18: 1 | O18: 1 | P18: 1 | Q18: 1 | R18: 1 | T18: 1
E19: 1022 | L19: 1 | M19: 1 | N19: 1 | O19: 1 | P19: 1 | Q19: 1 | R19: 1 | T19: 1
E20: 1025 | L20: 1 | M20: 1 | N20: 1 | O20: 1 | P20: 1 | Q20: 1 | R20: 1 | T20: 1
E21: 1026 | L21: 1 | M21: 1 | N21: 1 | O21: 1 | P21: 1 | Q21: 1 | R21: 1 | T21: 1
E22: 1027 | L22: 1 | M22: 1 | N22: 1 | O22: 1 | P22: 1 | Q22: 1 | R22: 1 | T22: 1
E23: 1028 | L23: 1 | M23: 1 | N23: 1 | O23: 1 | P23: 1 | Q23: 1 | R23: 1 | T23: 1
E24: 1035 | L24: 1 | M24: 1 | N24: 1 | O24: 1 | P24: 1 | Q24: 1 | R24: 1 | T24: 1
E25: 1036 | L25: 1 | M25: 1 | N25: 1 | O25: 1 | P25: 1 | Q25: 1 | R25: 1 | T25: 1
E26: 1037 | L26: 1 | M26: 1 | N26: 1 | O26: 1 | P26: 1 | Q26: 1 | R26: 1 | T26: 1
E27: 1040 | L27: 1 | M27: 1 | N27: 1 | O27: 1 | P27: 1 | Q27: 1 | R27: 1 | T27: 1
E28: 1041 | L28: 1 | M28: 1 | N28: 1 | O28: 1 | P28: 1 | Q28: 1 | R28: 1 | T28: 1
E29: 1042 | L29: 1 | M29: 1 | N29: 1 | O29: 1 | P29: 1 | Q29: 1 | R29: 1 | T29: 1
E30: 1045 | L30: 1 | M30: 1 | N30: 1 | O30: 1 | P30: 1 | Q30: 1 | R30: 1 | T30: 1
E31: 1046 | L31: 1 | M31: 1 | N31: 1 | O31: 1 | P31: 1 | Q31: 1 | R31: 1 | T31: 1
E32: 1047 | L32: 1 | M32: 1 | N32: 1 | O32: 1 | P32: 1 | Q32: 1 | R32: 1 | T32: 1
E33: 1048 | L33: 1 | M33: 1 | N33: 1 | O33: 1 | P33: 1 | Q33: 1 | R33: 1 | T33: 1
E34: 1049 | L34: 1 | M34: 1 | N34: 1 | O34: 1 | P34: 1 | Q34: 1 | R34: 1 | T34: 1
E35: 1055 | L35: 1 | M35: 1 | N35: 1 | O35: 1 | P35: 1 | Q35: 1 | R35: 1 | T35: 1
E36: 1056 | L36: 1 | M36: 1 | N36: 1 | O36: 1 | P36: 1 | Q36: 1 | R36: 1 | T36: 1
E37: 1057 | L37: 1 | M37: 1 | N37: 1 | O37: 1 | P37: 1 | Q37: 1 | R37: 1 | T37: 1
E38: 1060 | L38: 1 | M38: 1 | N38: 1 | O38: 1 | P38: 1 | Q38: 1 | R38: 1 | T38: 1
E39: 1061 | L39: 1 | M39: 1 | N39: 1 | O39: 1 | P39: 1 | Q39: 1 | R39: 1 | T39: 1
E40: 1065 | L40: 1 | M40: 1 | N40: 1 | O40: 1 | P40: 1 | Q40: 1 | R40: 1 | T40: 1
E41: 1066 | L41: 1 | M41: 1 | N41: 1 | O41: 1 | P41: 1 | Q41: 1 | R41: 1 | T41: 1
E42: 1070 | L42: 1 | M42: 1 | N42: 1 | O42: 1 | P42: 1 | Q42: 1 | R42: 1 | T42: 1
E43: 1071 | L43: 1 | M43: 1 | N43: 1 | O43: 1 | P43: 1 | Q43: 1 | R43: 1 | T43: 1
E44: 1075 | L44: 1 | M44: 1 | N44: 1 | O44: 1 | P44: 1 | Q44: 1 | R44: 1 | T44: 1
E45: 1076 | L45: 1 | M45: 1 | N45: 1 | O45: 1 | P45: 1 | Q45: 1 | R45: 1 | T45: 1
E46: 1077 | L46: 1 | M46: 1 | N46: 1 | O46: 1 | P46: 1 | Q46: 1 | R46: 1 | T46: 1
E47: 1080 | L47: 1 | M47: 1 | N47: 1 | O47: 1 | P47: 1 | Q47: 1 | R47: 1 | T47: 1
E48: 1081 | L48: 1 | M48: 1 | N48: 1 | O48: 1 | P48: 1 | Q48: 1 | R48: 1 | T48: 1
E49: 1082 | L49: 1 | M49: 1 | N49: 1 | O49: 1 | P49: 1 | Q49: 1 | R49: 1 | T49: 1
E50: 1085 | L50: 1 | M50: 1 | N50: 1 | O50: 1 | P50: 1 | Q50: 1 | R50: 1 | T50: 1
E51: 1086 | L51: 1 | M51: 1 | N51: 1 | O51: 1 | P51: 1 | Q51: 1 | R51: 1 | T51: 1
E52: 1087 | L52: 1 | M52: 1 | N52: 1 | O52: 1 | P52: 1 | Q52: 1 | R52: 1 | T52: 1
E53: 1090 | L53: 1 | M53: 1 | N53: 1 | O53: 1 | P53: 1 | Q53: 1 | R53: 1 | T53: 1
E54: 1095 | L54: 1 | M54: 1 | N54: 1 | O54: 1 | P54: 1 | Q54: 1 | R54: 1 | T54: 1
E55: 1096 | L55: 1 | M55: 1 | N55: 1 | O55: 1 | P55: 1 | Q55: 1 | R55: 1 | T55: 1
E56: 1097 | L56: 1 | M56: 1 | N56: 1 | O56: 1 | P56: 1 | Q56: 1 | R56: 1 | T56: 1
E57: 1100 | L57: 1 | M57: 1 | N57: 1 | O57: 1 | P57: 1 | Q57: 1 | R57: 1 | T57: 1
E58: 1101 | L58: 1 | M58: 1 | N58: 1 | O58: 1 | P58: 1 | Q58: 1 | R58: 1 | T58: 1
E59: 1102 | L59: 1 | M59: 1 | N59: 1 | O59: 1 | P59: 1 | Q59: 1 | R59: 1 | T59: 1
E60: 1105 | L60: 1 | M60: 1 | N60: 1 | O60: 1 | P60: 1 | Q60: 1 | R60: 1 | T60: 1
E61: 1106 | L61: 1 | M61: 1 | N61: 1 | O61: 1 | P61: 1 | Q61: 1 | R61: 1 | T61: 1
E62: 1107 | L62: 1 | M62: 1 | N62: 1 | O62: 1 | P62: 1 | Q62: 1 | R62: 1 | T62: 1
E63: 1120 | L63: 1 | M63: 1 | N63: 1 | O63: 1 | P63: 1 | Q63: 1 | R63: 1 | T63: 1
E64: 1130 | L64: 1 | M64: 1 | N64: 1 | O64: 1 | P64: 1 | Q64: 1 | R64: 1 | T64: 1
E65: 1140 | L65: 1 | M65: 1 | N65: 1 | O65: 1 | P65: 1 | Q65: 1 | R65: 1 | T65: 1
E66: 1150 | L66: 1 | M66: 1 | N66: 1 | O66: 1 | P66: 1 | Q66: 1 | R66: 1 | T66: 1
E67: 1160 | L67: 1 | M67: 1 | N67: 1 | O67: 1 | P67: 1 | Q67: 1 | R67: 1 | T67: 1
E68: 2000 | L68: 1 | M68: 1 | N68: 1 | O68: 1 | P68: 1 | Q68: 1 | R68: 1 | T68: 1
E69: 2001 | L69: 1 | M69: 1 | N69: 1 | O69: 1 | P69: 1 | Q69: 1 | R69: 1 | T69: 1
E70: 2002 | L70: 1 | M70: 1 | N70: 1 | O70: 1 | P70: 1 | Q70: 1 | R70: 1 | T70: 1
E71: 2003 | L71: 1 | M71: 1 | N71: 1 | O71: 1 | P71: 1 | Q71: 1 | R71: 1 | T71: 1
E72: 2006 | L72: 1 | M72: 1 | N72: 1 | O72: 1 | P72: 1 | Q72: 1 | R72: 1 | T72: 1
E73: 2007 | L73: 1 | M73: 1 | N73: 1 | O73: 1 | P73: 1 | Q73: 1 | R73: 1 | T73: 1
E74: 2008 | L74: 1 | M74: 1 | N74: 1 | O74: 1 | P74: 1 | Q74: 1 | R74: 1 | T74: 1
E75: 2011 | L75: 1 | M75: 1 | N75: 1 | O75: 1 | P75: 1 | Q75: 1 | R75: 1 | T75: 1
E76: 2012 | L76: 1 | M76: 1 | N76: 1 | O76: 1 | P76: 1 | Q76: 1 | R76: 1 | T76: 1
E77: 2013 | L77: 1 | M77: 1 | N77: 1 | O77: 1 | P77: 1 | Q77: 1 | R77: 1 | T77: 1
E78: 2014 | L78: 1 | M78: 1 | N78: 1 | O78: 1 | P78: 1 | Q78: 1 | R78: 1 | T78: 1
E79: 2015 | L79: 1 | M79: 1 | N79: 1 | O79: 1 | P79: 1 | Q79: 1 | R79: 1 | T79: 1
E80: 2018 | L80: 1 | M80: 1 | N80: 1 | O80: 1 | P80: 1 | Q80: 1 | R80: 1 | T80: 1
E81: 2019 | L81: 1 | M81: 1 | N81: 1 | O81: 1 | P81: 1 | Q81: 1 | R81: 1 | T81: 1
E82: 2020 | L82: 1 | M82: 1 | N82: 1 | O82: 1 | P82: 1 | Q82: 1 | R82: 1 | T82: 1
E83: 2021 | L83: 1 | M83: 1 | N83: 1 | O83: 1 | P83: 1 | Q83: 1 | R83: 1 | T83: 1
E84: 2023 | L84: 1 | M84: 1 | N84: 1 | O84: 1 | P84: 1 | Q84: 1 | R84: 1 | T84: 1
E85: 2024 | L85: 1 | M85: 1 | N85: 1 | O85: 1 | P85: 1 | Q85: 1 | R85: 1 | T85: 1
E86: 2025 | L86: 1 | M86: 1 | N86: 1 | O86: 1 | P86: 1 | Q86: 1 | R86: 1 | T86: 1
E87: 2027 | L87: 1 | M87: 1 | N87: 1 | O87: 1 | P87: 1 | Q87: 1 | R87: 1 | T87: 1
E88: 2028 | L88: 1 | M88: 1 | N88: 1 | O88: 1 | P88: 1 | Q88: 1 | R88: 1 | T88: 1
E89: 2029 | L89: 1 | M89: 1 | N89: 1 | O89: 1 | P89: 1 | Q89: 1 | R89: 1 | T89: 1
E90: 2030 | L90: 1 | M90: 1 | N90: 1 | O90: 1 | P90: 1 | Q90: 1 | R90: 1 | T90: 1
E91: 2031 | L91: 1 | M91: 1 | N91: 1 | O91: 1 | P91: 1 | Q91: 1 | R91: 1 | T91: 1
E92: 2032 | L92: 1 | M92: 1 | N92: 1 | O92: 1 | P92: 1 | Q92: 1 | R92: 1 | T92: 1
E93: 2033 | L93: 1 | M93: 1 | N93: 1 | O93: 1 | P93: 1 | Q93: 1 | R93: 1 | T93: 1
E94: 2034 | L94: 1 | M94: 1 | N94: 1 | O94: 1 | P94: 1 | Q94: 1 | R94: 1 | T94: 1
E95: 2035 | L95: 1 | M95: 1 | N95: 1 | O95: 1 | P95: 1 | Q95: 1 | R95: 1 | T95: 1
E96: 2036 | L96: 1 | M96: 1 | N96: 1 | O96: 1 | P96: 1 | Q96: 1 | R96: 1 | T96: 1
E97: 2037 | L97: 1 | M97: 1 | N97: 1 | O97: 1 | P97: 1 | Q97: 1 | R97: 1 | T97: 1
E98: 2038 | L98: 1 | M98: 1 | N98: 1 | O98: 1 | P98: 1 | Q98: 1 | R98: 1 | T98: 1
E99: 2039 | L99: 1 | M99: 1 | N99: 1 | O99: 1 | P99: 1 | Q99: 1 | R99: 1 | T99: 1
E100: 2040 | L100: 1 | M100: 1 | N100: 1 | O100: 1 | P100: 1 | Q100: 1 | R100: 1 | T100: 1
E101: 2042 | L101: 1 | M101: 1 | N101: 1 | O101: 1 | P101: 1 | Q101: 1 | R101: 1 | T101: 1
E102: 2043 | L102: 1 | M102: 1 | N102: 1 | O102: 1 | P102: 1 | Q102: 1 | R102: 1 | T102: 1
E103: 2044 | L103: 1 | M103: 1 | N103: 1 | O103: 1 | P103: 1 | Q103: 1 | R103: 1 | T103: 1
E104: 2045 | L104: 1 | M104: 1 | N104: 1 | O104: 1 | P104: 1 | Q104: 1 | R104: 1 | T104: 1
E105: 2046 | L105: 1 | M105: 1 | N105: 1 | O105: 1 | P105: 1 | Q105: 1 | R105: 1 | T105: 1
E106: 2047 | L106: 1 | M106: 1 | N106: 1 | O106: 1 | P106: 1 | Q106: 1 | R106: 1 | T106: 1
E107: 2048 | L107: 1 | M107: 1 | N107: 1 | O107: 1 | P107: 1 | Q107: 1 | R107: 1 | T107: 1
E108: 2049 | L108: 1 | M108: 1 | N108: 1 | O108: 1 | P108: 1 | Q108: 1 | R108: 1 | T108: 1
E109: 2050 | L109: 1 | M109: 1 | N109: 1 | O109: 1 | P109: 1 | Q109: 1 | R109: 1 | T109: 1
E110: 2051 | L110: 1 | M110: 1 | N110: 1 | O110: 1 | P110: 1 | Q110: 1 | R110: 1 | T110: 1
E111: 2052 | L111: 1 | M111: 1 | N111: 1 | O111: 1 | P111: 1 | Q111: 1 | R111: 1 | T111: 1
E112: 2054 | L112: 1 | M112: 1 | N112: 1 | O112: 1 | P112: 1 | Q112: 1 | R112: 1 | T112: 1
E113: 2055 | L113: 1 | M113: 1 | N113: 1 | O113: 1 | P113: 1 | Q113: 1 | R113: 1 | T113: 1
E114: 2057 | L114: 1 | M114: 1 | N114: 1 | O114: 1 | P114: 1 | Q114: 1 | R114: 1 | T114: 1
E115: 2058 | L115: 1 | M115: 1 | N115: 1 | O115: 1 | P115: 1 | Q115: 1 | R115: 1 | T115: 1
E116: 2059 | L116: 1 | M116: 1 | N116: 1 | O116: 1 | P116: 1 | Q116: 1 | R116: 1 | T116: 1
E117: 2060 | L117: 1 | M117: 1 | N117: 1 | O117: 1 | P117: 1 | Q117: 1 | R117: 1 | T117: 1
E118: 2062 | L118: 1 | M118: 1 | N118: 1 | O118: 1 | P118: 1 | Q118: 1 | R118: 1 | T118: 1
E119: 2063 | L119: 1 | M119: 1 | N119: 1 | O119: 1 | P119: 1 | Q119: 1 | R119: 1 | T119: 1
E120: 2064 | L120: 1 | M120: 1 | N120: 1 | O120: 1 | P120: 1 | Q120: 1 | R120: 1 | T120: 1
E121: 2066 | L121: 1 | M121: 1 | N121: 1 | O121: 1 | P121: 1 | Q121: 1 | R121: 1 | T121: 1
E122: 2100 | L122: 1 | M122: 1 | N122: 1 | O122: 1 | P122: 1 | Q122: 1 | R122: 1 | T122: 1
E123: 2101 | L123: 1 | M123: 1 | N123: 1 | O123: 1 | P123: 1 | Q123: 1 | R123: 1 | T123: 1
E124: 2102 | L124: 1 | M124: 1 | N124: 1 | O124: 1 | P124: 1 | Q124: 1 | R124: 1 | T124: 1
E125: 2103 | L125: 1 | M125: 1 | N125: 1 | O125: 1 | P125: 1 | Q125: 1 | R125: 1 | T125: 1
E126: 2107 | L126: 1 | M126: 1 | N126: 1 | O126: 1 | P126: 1 | Q126: 1 | R126: 1 | T126: 1
E127: 2108 | L127: 1 | M127: 1 | N127: 1 | O127: 1 | P127: 1 | Q127: 1 | R127: 1 | T127: 1
E128: 2109 | L128: 1 | M128: 1 | N128: 1 | O128: 1 | P128: 1 | Q128: 1 | R128: 1 | T128: 1
E129: 2112 | L129: 1 | M129: 1 | N129: 1 | O129: 1 | P129: 1 | Q129: 1 | R129: 1 | T129: 1
E130: 2113 | L130: 1 | M130: 1 | N130: 1 | O130: 1 | P130: 1 | Q130: 1 | R130: 1 | T130: 1
E131: 2114 | L131: 1 | M131: 1 | N131: 1 | O131: 1 | P131: 1 | Q131: 1 | R131: 1 | T131: 1
E132: 2115 | L132: 1 | M132: 1 | N132: 1 | O132: 1 | P132: 1 | Q132: 1 | R132: 1 | T132: 1
E133: 2116 | L133: 1 | M133: 1 | N133: 1 | O133: 1 | P133: 1 | Q133: 1 | R133: 1 | T133: 1
E134: 2120 | L134: 1 | M134: 1 | N134: 1 | O134: 1 | P134: 1 | Q134: 1 | R134: 1 | T134: 1
E135: 2121 | L135: 1 | M135: 1 | N135: 1 | O135: 1 | P135: 1 | Q135: 1 | R135: 1 | T135: 1
E136: 2122 | L136: 1 | M136: 1 | N136: 1 | O136: 1 | P136: 1 | Q136: 1 | R136: 1 | T136: 1
E137: 2123 | L137: 1 | M137: 1 | N137: 1 | O137: 1 | P137: 1 | Q137: 1 | R137: 1 | T137: 1
E138: 2200 | L138: 1 | M138: 1 | N138: 1 | O138: 1 | P138: 1 | Q138: 1 | R138: 1 | T138: 1
E139: 2201 | L139: 1 | M139: 1 | N139: 1 | O139: 1 | P139: 1 | Q139: 1 | R139: 1 | T139: 1
E140: 2202 | L140: 1 | M140: 1 | N140: 1 | O140: 1 | P140: 1 | Q140: 1 | R140: 1 | T140: 1
E141: 2220 | L141: 1 | M141: 1 | N141: 1 | O141: 1 | P141: 1 | Q141: 1 | R141: 1 | T141: 1
E142: 2221 | L142: 1 | M142: 1 | N142: 1 | O142: 1 | P142: 1 | Q142: 1 | R142: 1 | T142: 1
E143: 2222 | L143: 1 | M143: 1 | N143: 1 | O143: 1 | P143: 1 | Q143: 1 | R143: 1 | T143: 1
E144: 2223 | L144: 1 | M144: 1 | N144: 1 | O144: 1 | P144: 1 | Q144: 1 | R144: 1 | T144: 1
E145: 2224 | L145: 1 | M145: 1 | N145: 1 | O145: 1 | P145: 1 | Q145: 1 | R145: 1 | T145: 1
E146: 2230 | L146: 1 | M146: 1 | N146: 1 | O146: 1 | P146: 1 | Q146: 1 | R146: 1 | T146: 1
E147: 2231 | L147: 1 | M147: 1 | N147: 1 | O147: 1 | P147: 1 | Q147: 1 | R147: 1 | T147: 1
E148: 2232 | L148: 1 | M148: 1 | N148: 1 | O148: 1 | P148: 1 | Q148: 1 | R148: 1 | T148: 1
E149: 2233 | L149: 1 | M149: 1 | N149: 1 | O149: 1 | P149: 1 | Q149: 1 | R149: 1 | T149: 1
E150: 2234 | L150: 1 | M150: 1 | N150: 1 | O150: 1 | P150: 1 | Q150: 1 | R150: 1 | T150: 1
E151: 2235 | L151: 1 | M151: 1 | N151: 1 | O151: 1 | P151: 1 | Q151: 1 | R151: 1 | T151: 1
E152: 2236 | L152: 1 | M152: 1 | N152: 1 | O152: 1 | P152: 1 | Q152: 1 | R152: 1 | T152: 1
E153: 2237 | L153: 1 | M153: 1 | N153: 1 | O153: 1 | P153: 1 | Q153: 1 | R153: 1 | T153: 1
E154: 2238 | L154: 1 | M154: 1 | N154: 1 | O154: 1 | P154: 1 | Q154: 1 | R154: 1 | T154: 1
E155: 2300 | L155: 1 | M155: 1 | N155: 1 | O155: 1 | P155: 1 | Q155: 1 | R155: 1 | T155: 1
E156: 2301 | L156: 1 | M156: 1 | N156: 1 | O156: 1 | P156: 1 | Q156: 1 | R156: 1 | T156: 1
E157: 2302 | L157: 1 | M157: 1 | N157: 1 | O157: 1 | P157: 1 | Q157: 1 | R157: 1 | T157: 1
E158: 2303 | L158: 1 | M158: 1 | N158: 1 | O158: 1 | P158: 1 | Q158: 1 | R158: 1 | T158: 1
E159: 2304 | L159: 1 | M159: 1 | N159: 1 | O159: 1 | P159: 1 | Q159: 1 | R159: 1 | T159: 1
E160: 2305 | L160: 1 | M160: 1 | N160: 1 | O160: 1 | P160: 1 | Q160: 1 | R160: 1 | T160: 1
E161: 2306 | L161: 1 | M161: 1 | N161: 1 | O161: 1 | P161: 1 | Q161: 1 | R161: 1 | T161: 1
E162: 2310 | L162: 1 | M162: 1 | N162: 1 | O162: 1 | P162: 1 | Q162: 1 | R162: 1 | T162: 1
E163: 2311 | L163: 1 | M163: 1 | N163: 1 | O163: 1 | P163: 1 | Q163: 1 | R163: 1 | T163: 1
E164: 2312 | L164: 1 | M164: 1 | N164: 1 | O164: 1 | P164: 1 | Q164: 1 | R164: 1 | T164: 1
E165: 2313 | L165: 1 | M165: 1 | N165: 1 | O165: 1 | P165: 1 | Q165: 1 | R165: 1 | T165: 1
E166: 2314 | L166: 1 | M166: 1 | N166: 1 | O166: 1 | P166: 1 | Q166: 1 | R166: 1 | T166: 1
E167: 2320 | L167: 1 | M167: 1 | N167: 1 | O167: 1 | P167: 1 | Q167: 1 | R167: 1 | T167: 1
E168: 2321 | L168: 1 | M168: 1 | N168: 1 | O168: 1 | P168: 1 | Q168: 1 | R168: 1 | T168: 1
E169: 2322 | L169: 1 | M169: 1 | N169: 1 | O169: 1 | P169: 1 | Q169: 1 | R169: 1 | T169: 1
E170: 2323 | L170: 1 | M170: 1 | N170: 1 | O170: 1 | P170: 1 | Q170: 1 | R170: 1 | T170: 1
E171: 2324 | L171: 1 | M171: 1 | N171: 1 | O171: 1 | P171: 1 | Q171: 1 | R171: 1 | T171: 1
E172: 2325 | L172: 1 | M172: 1 | N172: 1 | O172: 1 | P172: 1 | Q172: 1 | R172: 1 | T172: 1
E173: 2326 | L173: 1 | M173: 1 | N173: 1 | O173: 1 | P173: 1 | Q173: 1 | R173: 1 | T173: 1
E174: 2328 | L174: 1 | M174: 1 | N174: 1 | O174: 1 | P174: 1 | Q174: 1 | R174: 1 | T174: 1
E175: 2330 | L175: 1 | M175: 1 | N175: 1 | O175: 1 | P175: 1 | Q175: 1 | R175: 1 | T175: 1
E176: 2331 | L176: 1 | M176: 1 | N176: 1 | O176: 1 | P176: 1 | Q176: 1 | R176: 1 | T176: 1
E177: 2332 | L177: 1 | M177: 1 | N177: 1 | O177: 1 | P177: 1 | Q177: 1 | R177: 1 | T177: 1
E178: 2333 | L178: 1 | M178: 1 | N178: 1 | O178: 1 | P178: 1 | Q178: 1 | R178: 1 | T178: 1
E179: 2334 | L179: 1 | M179: 1 | N179: 1 | O179: 1 | P179: 1 | Q179: 1 | R179: 1 | T179: 1
E180: 2335 | L180: 1 | M180: 1 | N180: 1 | O180: 1 | P180: 1 | Q180: 1 | R180: 1 | T180: 1
E181: 2350 | L181: 1 | M181: 1 | N181: 1 | O181: 1 | P181: 1 | Q181: 1 | R181: 1 | T181: 1
E182: 2360 | L182: 1 | M182: 1 | N182: 1 | O182: 1 | P182: 1 | Q182: 1 | R182: 1 | T182: 1
E183: 2361 | L183: 1 | M183: 1 | N183: 1 | O183: 1 | P183: 1 | Q183: 1 | R183: 1 | T183: 1
E184: 2362 | L184: 1 | M184: 1 | N184: 1 | O184: 1 | P184: 1 | Q184: 1 | R184: 1 | T184: 1
E185: 2363 | L185: 1 | M185: 1 | N185: 1 | O185: 1 | P185: 1 | Q185: 1 | R185: 1 | T185: 1
E186: 2364 | L186: 1 | M186: 1 | N186: 1 | O186: 1 | P186: 1 | Q186: 1 | R186: 1 | T186: 1
E187: 2365 | L187: 1 | M187: 1 | N187: 1 | O187: 1 | P187: 1 | Q187: 1 | R187: 1 | T187: 1
E188: 2368 | L188: 1 | M188: 1 | N188: 1 | O188: 1 | P188: 1 | Q188: 1 | R188: 1 | T188: 1
E189: 2369 | L189: 1 | M189: 1 | N189: 1 | O189: 1 | P189: 1 | Q189: 1 | R189: 1 | T189: 1
E190: 2370 | L190: 1 | M190: 1 | N190: 1 | O190: 1 | P190: 1 | Q190: 1 | R190: 1 | T190: 1
E191: 2373 | L191: 1 | M191: 1 | N191: 1 | O191: 1 | P191: 1 | Q191: 1 | R191: 1 | T191: 1
E192: 2400 | L192: 1 | M192: 1 | N192: 1 | O192: 1 | P192: 1 | Q192: 1 | R192: 1 | T192: 1
E193: 2401 | L193: 1 | M193: 1 | N193: 1 | O193: 1 | P193: 1 | Q193: 1 | R193: 1 | T193: 1
E194: 2402 | L194: 1 | M194: 1 | N194: 1 | O194: 1 | P194: 1 | Q194: 1 | R194: 1 | T194: 1
E195: 2404 | L195: 1 | M195: 1 | N195: 1 | O195: 1 | P195: 1 | Q195: 1 | R195: 1 | T195: 1
E196: 2406 | L196: 1 | M196: 1 | N196: 1 | O196: 1 | P196: 1 | Q196: 1 | R196: 1 | T196: 1
E197: 2407 | L197: 1 | M197: 1 | N197: 1 | O197: 1 | P197: 1 | Q197: 1 | R197: 1 | T197: 1
E198: 2408 | L198: 1 | M198: 1 | N198: 1 | O198: 1 | P198: 1 | Q198: 1 | R198: 1 | T198: 1
E199: 2409 | L199: 1 | M199: 1 | N199: 1 | O199: 1 | P199: 1 | Q199: 1 | R199: 1 | T199: 1
E200: 2410 | L200: 1 | M200: 1 | N200: 1 | O200: 1 | P200: 1 | Q200: 1 | R200: 1 | T200: 1
E201: 2411 | L201: 1 | M201: 1 | N201: 1 | O201: 1 | P201: 1 | Q201: 1 | R201: 1 | T201: 1
E202: 2412 | L202: 1 | M202: 1 | N202: 1 | O202: 1 | P202: 1 | Q202: 1 | R202: 1 | T202: 1
E203: 2413 | L203: 1 | M203: 1 | N203: 1 | O203: 1 | P203: 1 | Q203: 1 | R203: 1 | T203: 1
E204: 2414 | L204: 1 | M204: 1 | N204: 1 | O204: 1 | P204: 1 | Q204: 1 | R204: 1 | T204: 1
... 348 more rows

Sheet NwDesIn
D1: Network design inputs
A2: This model has been prepared for OCECPR to undertake its regulatory duties using bottom-up models for the calculation of the cost of wholesale services in order to promote competition in the fixed electronic communications market in Cyprus and for no other purpose. We do not give, accept or assume responsibility for any other purpose or to any other person for action or inaction taken as a result of this model, unless expressly agreed by our prior consent in writing. | G2: Units | H2: Source
A4: =MAX(A$1:A3)+1 -> 1 | B4: Nodes
K6: =TRANSPOSE(Geotypes) -> Single geotype | L6: Spare | M6: Spare | N6: Spare | O6: Spare | P6: Spare | Q6: Spare | R6: Spare | S6: Spare | T6: Spare
C7: Number of cabinets | K7: 980 | L7: 0 | M7: 0 | N7: 0 | O7: 0 | P7: 0 | Q7: 0 | R7: 0 | S7: 0 | T7: 0 | U7: Number.of.cabinets
C9: Number of local exchanges | K9: 96 | L9: 0 | M9: 0 | N9: 0 | O9: 0 | P9: 0 | Q9: 0 | R9: 0 | S9: 0 | T9: 0 | U9: Number.of.local.exchanges
D10: Of which are also core nodes | K10: 5 | L10: 0 | M10: 0 | N10: 0 | O10: 0 | P10: 0 | Q10: 0 | R10: 0 | S10: 0 | T10: 0 | U10: Number.of.core.nodes
D12: Number of local exchanges used by the fbre network over time | K12: =INDEX(I13:I19,MATCH(CTRL.year.selected,D13:D19,0),) -> 92 | L12: 0 | M12: 0 | N12: 0 | O12: 0 | P12: 0 | Q12: 0 | R12: 0 | S12: 0 | T12: 0 | U12: Number.of.local.exchanges.for.FTTH
D13: =Years.costing -> 2022 | G13: # | H13: Analysys Mason estimate | I13: 40
D14: 2023 | G14: # | H14: Analysys Mason estimate | I14: 50
D15: 2024 | G15: # | H15: Analysys Mason estimate | I15: 70
D16: 2025 | G16: # | H16: Analysys Mason estimate | I16: 92
D17: 2026 | G17: # | H17: Analysys Mason estimate | I17: 92
D18: 2027 | G18: # | H18: Analysys Mason estimate | I18: 92
D19: 2028 | G19: # | H19: Analysys Mason estimate | I19: 92
A22: =MAX(A$1:A12)+1 -> 2 | B22: Lines
B24: Copper lines
I25: Year selected | K25: =TRANSPOSE(Years.market) -> 2020 | L25: 2021 | M25: 2022 | N25: 2023 | O25: 2024 | P25: 2025 | Q25: 2026 | R25: 2027 | S25: 2028 | T25: 2029 | U25: 2030
C26: Share of active lines by type of node
D27: Cabinet | G27: % | I27: =INDEX(K27:U27,,MATCH(CTRL.year.selected,Years.market,0)) -> 0.8 | J27: Share.of.copper.lines.on.cabinet | K27: =1-K28 -> 0.8 | L27: 0.8 | M27: 0.8 | N27: 0.8 | O27: =1-O28 -> 0.8 | P27: =1-P28 -> 0.8 | Q27: 0.8 | R27: 0.8 | S27: 0.8 | T27: 0.8 | U27: 0.8
D28: Local exchange | G28: % | H28: Cyta's response to the data request (rounded) | I28: =INDEX(K28:U28,,MATCH(CTRL.year.selected,Years.market,0)) -> 0.2 | J28: Share.of.copper.lines.on.local.exchange | K28: =L28 -> 0.2 | L28: 0.2 | M28: 0.2 | N28: =O28 -> 0.2 | O28: 0.2 | P28: =O28 -> 0.2 | Q28: =P28 -> 0.2 | R28: 0.2 | S28: 0.2 | T28: 0.2 | U28: 0.2
C30: Distribution of lines by geotype at cabinet level
D31: =Geotypes -> Single geotype | G31: % | I31: =INDEX(K31:U31,,MATCH(CTRL.year.selected,Years.market,0)) -> 1 | K31: =L31 -> 1 | L31: 1 | M31: 1 | N31: 1 | O31: 1 | P31: =O31 -> 1 | Q31: =P31 -> 1 | R31: 1 | S31: 1 | T31: 1 | U31: 1
D32: Spare | G32: % | I32: =INDEX(K32:U32,,MATCH(CTRL.year.selected,Years.market,0)) -> 0 | K32: =L32 -> 0 | L32: 0 | M32: 0 | N32: 0 | O32: 0 | P32: =O32 -> 0 | Q32: 0 | R32: 0 | S32: 0 | T32: 0 | U32: 0
D33: Spare | G33: % | I33: =INDEX(K33:U33,,MATCH(CTRL.year.selected,Years.market,0)) -> 0 | K33: =L33 -> 0 | L33: 0 | M33: 0 | N33: 0 | O33: 0 | P33: =O33 -> 0 | Q33: 0 | R33: 0 | S33: 0 | T33: 0 | U33: 0
D34: Spare | G34: % | I34: =INDEX(K34:U34,,MATCH(CTRL.year.selected,Years.market,0)) -> 0 | K34: =L34 -> 0 | L34: 0 | M34: 0 | N34: 0 | O34: 0 | P34: =O34 -> 0 | Q34: 0 | R34: 0 | S34: 0 | T34: 0 | U34: 0
D35: Spare | G35: % | I35: =INDEX(K35:U35,,MATCH(CTRL.year.selected,Years.market,0)) -> 0 | K35: =L35 -> 0 | L35: 0 | M35: 0 | N35: 0 | O35: 0 | P35: =O35 -> 0 | Q35: 0 | R35: 0 | S35: 0 | T35: 0 | U35: 0
D36: Spare | G36: % | I36: =INDEX(K36:U36,,MATCH(CTRL.year.selected,Years.market,0)) -> 0 | K36: =L36 -> 0 | L36: 0 | M36: 0 | N36: 0 | O36: 0 | P36: =O36 -> 0 | Q36: 0 | R36: 0 | S36: 0 | T36: 0 | U36: 0
D37: Spare | G37: % | I37: =INDEX(K37:U37,,MATCH(CTRL.year.selected,Years.market,0)) -> 0 | K37: =L37 -> 0 | L37: 0 | M37: 0 | N37: 0 | O37: 0 | P37: =O37 -> 0 | Q37: 0 | R37: 0 | S37: 0 | T37: 0 | U37: 0
